Workbook

Sheet Resultados
B3: Cargar | C3: Espacios: | D3: Borrar | F3: Descripción | Y3: Resultados horarios HULC 2019_vh. v01
C4: P01_E01_Base | F4: Modelo base | Y4: Actualizaciones y otras herramientas en:
C5: P01_E01_Sin nocturna | F5: Modelo 1. Sin ventilación nocturna | Y5: Autor: | Z5: Oscar Redondo Rivera o.redondo.rivera@gmail.com
C6: P01_E01_25 viv | F6: Modelo 4. Aumento a 25 viviendas
C7: P01_E01_Con recuperador | F7: Modelo 5. Recuperador de aire 300 m3/h ef:90%
C8: P01_E01_Higrorregulable | F8: Modelo 6. Higrorregulable reduccion caudal 19%
C10: Muros Exteriores (total kW/m2 mes)
E11: Enero | F11: Feb | G11: Marzo | H11: Abril | I11: Mayo | J11: Junio | K11: Julio | L11: Ago | M11: Sep | N11: Oct | O11: Nov | P11: Dic | R11: INV | S11: VER | U11: TOTAL
C12: =$C$4 -> P01_E01_Base | E12: =SUM('Archivo 1'!$F$4:$F$747)/1000 -> -1.42 | F12: =SUM('Archivo 1'!$F$748:$F$1419)/1000 -> -1.09 | G12: =SUM('Archivo 1'!$F$1420:$F$2163)/1000 -> -1.21 | H12: =SUM('Archivo 1'!$F$2164:$F$2883)/1000 -> -0.95 | I12: =SUM('Archivo 1'!$F$2884:$F$3627)/1000 -> -1.04 | J12: =SUM('Archivo 1'!$F$3628:$F$4347)/1000 -> 0.62 | K12: =SUM('Archivo 1'!$F$4348:$F$5091)/1000 -> 0.60 | L12: =SUM('Archivo 1'!$F$5092:$F$5835)/1000 -> 0.70 | M12: =SUM('Archivo 1'!$F$5836:$F$6555)/1000 -> 0.64 | N12: =SUM('Archivo 1'!$F$6556:$F$7299)/1000 -> -0.98 | O12: =SUM('Archivo 1'!$F$7300:$F$8020)/1000 -> -0.91 | P12: =SUM('Archivo 1'!$F$8021:$F$8763)/1000 -> -1.32 | R12: =SUM(E12:I12)+SUM(N12:P12) -> -8.91 | S12: =SUM(J12:M12) -> 2.56 | U12: =SUM(E12:P12) -> -6.35
C13: =$C$5 -> P01_E01_Sin nocturna | E13: =SUM('Archivo 2'!$F$4:$F$747)/1000 -> -1.42 | F13: =SUM('Archivo 2'!$F$748:$F$1419)/1000 -> -1.09 | G13: =SUM('Archivo 2'!$F$1420:$F$2163)/1000 -> -1.21 | H13: =SUM('Archivo 2'!$F$2164:$F$2883)/1000 -> -0.95 | I13: =SUM('Archivo 2'!$F$2884:$F$3627)/1000 -> -1.04 | J13: =SUM('Archivo 2'!$F$3628:$F$4347)/1000 -> -0.06 | K13: =SUM('Archivo 2'!$F$4348:$F$5091)/1000 -> -0.01 | L13: =SUM('Archivo 2'!$F$5092:$F$5835)/1000 -> 0.06 | M13: =SUM('Archivo 2'!$F$5836:$F$6555)/1000 -> -0.01 | N13: =SUM('Archivo 2'!$F$6556:$F$7299)/1000 -> -0.92 | O13: =SUM('Archivo 2'!$F$7300:$F$8020)/1000 -> -0.90 | P13: =SUM('Archivo 2'!$F$8021:$F$8763)/1000 -> -1.32 | R13: =SUM(E13:I13)+SUM(N13:P13) -> -8.85 | S13: =SUM(J13:M13) -> -0.01 | U13: =SUM(E13:P13) -> -8.86
C14: =$C$6 -> P01_E01_25 viv | E14: =SUM('Archivo 3'!$F$4:$F$747)/1000 -> -1.27 | F14: =SUM('Archivo 3'!$F$748:$F$1419)/1000 -> -0.97 | G14: =SUM('Archivo 3'!$F$1420:$F$2163)/1000 -> -0.92 | H14: =SUM('Archivo 3'!$F$2164:$F$2883)/1000 -> -0.67 | I14: =SUM('Archivo 3'!$F$2884:$F$3627)/1000 -> -0.65 | J14: =SUM('Archivo 3'!$F$3628:$F$4347)/1000 -> 0.49 | K14: =SUM('Archivo 3'!$F$4348:$F$5091)/1000 -> 0.63 | L14: =SUM('Archivo 3'!$F$5092:$F$5835)/1000 -> 0.72 | M14: =SUM('Archivo 3'!$F$5836:$F$6555)/1000 -> 0.69 | N14: =SUM('Archivo 3'!$F$6556:$F$7299)/1000 -> -0.11 | O14: =SUM('Archivo 3'!$F$7300:$F$8020)/1000 -> -0.83 | P14: =SUM('Archivo 3'!$F$8021:$F$8763)/1000 -> -1.29 | R14: =SUM(E14:I14)+SUM(N14:P14) -> -6.70 | S14: =SUM(J14:M14) -> 2.52 | U14: =SUM(E14:P14) -> -4.17
C15: =$C$7 -> P01_E01_Con recuperador | E15: =SUM('Archivo 4'!$F$4:$F$747)/1000 -> -2.17 | F15: =SUM('Archivo 4'!$F$748:$F$1419)/1000 -> -2.02 | G15: =SUM('Archivo 4'!$F$1420:$F$2163)/1000 -> -1.90 | H15: =SUM('Archivo 4'!$F$2164:$F$2883)/1000 -> -1.39 | I15: =SUM('Archivo 4'!$F$2884:$F$3627)/1000 -> -1.10 | J15: =SUM('Archivo 4'!$F$3628:$F$4347)/1000 -> 0.63 | K15: =SUM('Archivo 4'!$F$4348:$F$5091)/1000 -> 0.60 | L15: =SUM('Archivo 4'!$F$5092:$F$5835)/1000 -> 0.70 | M15: =SUM('Archivo 4'!$F$5836:$F$6555)/1000 -> 0.63 | N15: =SUM('Archivo 4'!$F$6556:$F$7299)/1000 -> -1.31 | O15: =SUM('Archivo 4'!$F$7300:$F$8020)/1000 -> -1.85 | P15: =SUM('Archivo 4'!$F$8021:$F$8763)/1000 -> -1.98 | R15: =SUM(E15:I15)+SUM(N15:P15) -> -13.71 | S15: =SUM(J15:M15) -> 2.54 | U15: =SUM(E15:P15) -> -11.17
C16: =$C$8 -> P01_E01_Higrorregulable | E16: =SUM('Archivo 5'!$F$4:$F$747)/1000 -> -1.46 | F16: =SUM('Archivo 5'!$F$748:$F$1419)/1000 -> -1.18 | G16: =SUM('Archivo 5'!$F$1420:$F$2163)/1000 -> -1.29 | H16: =SUM('Archivo 5'!$F$2164:$F$2883)/1000 -> -1.04 | I16: =SUM('Archivo 5'!$F$2884:$F$3627)/1000 -> -1.10 | J16: =SUM('Archivo 5'!$F$3628:$F$4347)/1000 -> 0.64 | K16: =SUM('Archivo 5'!$F$4348:$F$5091)/1000 -> 0.60 | L16: =SUM('Archivo 5'!$F$5092:$F$5835)/1000 -> 0.70 | M16: =SUM('Archivo 5'!$F$5836:$F$6555)/1000 -> 0.63 | N16: =SUM('Archivo 5'!$F$6556:$F$7299)/1000 -> -1.09 | O16: =SUM('Archivo 5'!$F$7300:$F$8020)/1000 -> -1.00 | P16: =SUM('Archivo 5'!$F$8021:$F$8763)/1000 -> -1.31 | R16: =SUM(E16:I16)+SUM(N16:P16) -> -9.46 | S16: =SUM(J16:M16) -> 2.58 | U16: =SUM(E16:P16) -> -6.89
C21: Cubiertas (total kW/m2 mes)
E22: Enero | F22: Feb | G22: Marzo | H22: Abril | I22: Mayo | J22: Junio | K22: Julio | L22: Ago | M22: Sep | N22: Oct | O22: Nov | P22: Dic | R22: INV | S22: VER | U22: TOTAL
C23: =$C$4 -> P01_E01_Base | E23: =SUM('Archivo 1'!$H$4:$H$747)/1000 -> 0.00 | F23: =SUM('Archivo 1'!$H$748:$H$1419)/1000 -> 0.00 | G23: =SUM('Archivo 1'!$H$1420:$H$2163)/1000 -> 0.00 | H23: =SUM('Archivo 1'!$H$2164:$H$2883)/1000 -> 0.00 | I23: =SUM('Archivo 1'!$H$2884:$H$3627)/1000 -> 0.00 | J23: =SUM('Archivo 1'!$H$3628:$H$4347)/1000 -> 0.00 | K23: =SUM('Archivo 1'!$H$4348:$H$5091)/1000 -> 0.00 | L23: =SUM('Archivo 1'!$H$5092:$H$5835)/1000 -> 0.00 | M23: =SUM('Archivo 1'!$H$5836:$H$6555)/1000 -> 0.00 | N23: =SUM('Archivo 1'!$H$6556:$H$7299)/1000 -> 0.00 | O23: =SUM('Archivo 1'!$H$7300:$H$8020)/1000 -> 0.00 | P23: =SUM('Archivo 1'!$H$8021:$H$8763)/1000 -> 0.00 | R23: =SUM(E23:I23)+SUM(N23:P23) -> 0.00 | S23: =SUM(J23:M23) -> 0.00 | U23: =SUM(E23:P23) -> 0.00
C24: =$C$5 -> P01_E01_Sin nocturna | E24: =SUM('Archivo 2'!$H$4:$H$747)/1000 -> 0.00 | F24: =SUM('Archivo 2'!$H$748:$H$1419)/1000 -> 0.00 | G24: =SUM('Archivo 2'!$H$1420:$H$2163)/1000 -> 0.00 | H24: =SUM('Archivo 2'!$H$2164:$H$2883)/1000 -> 0.00 | I24: =SUM('Archivo 2'!$H$2884:$H$3627)/1000 -> 0.00 | J24: =SUM('Archivo 2'!$H$3628:$H$4347)/1000 -> 0.00 | K24: =SUM('Archivo 2'!$H$4348:$H$5091)/1000 -> 0.00 | L24: =SUM('Archivo 2'!$H$5092:$H$5835)/1000 -> 0.00 | M24: =SUM('Archivo 2'!$H$5836:$H$6555)/1000 -> 0.00 | N24: =SUM('Archivo 2'!$H$6556:$H$7299)/1000 -> 0.00 | O24: =SUM('Archivo 2'!$H$7300:$H$8020)/1000 -> 0.00 | P24: =SUM('Archivo 2'!$H$8021:$H$8763)/1000 -> 0.00 | R24: =SUM(E24:I24)+SUM(N24:P24) -> 0.00 | S24: =SUM(J24:M24) -> 0.00 | U24: =SUM(E24:P24) -> 0.00
C25: =$C$6 -> P01_E01_25 viv | E25: =SUM('Archivo 3'!$H$4:$H$747)/1000 -> 0.00 | F25: =SUM('Archivo 3'!$H$748:$H$1419)/1000 -> 0.00 | G25: =SUM('Archivo 3'!$H$1420:$H$2163)/1000 -> 0.00 | H25: =SUM('Archivo 3'!$H$2164:$H$2883)/1000 -> 0.00 | I25: =SUM('Archivo 3'!$H$2884:$H$3627)/1000 -> 0.00 | J25: =SUM('Archivo 3'!$H$3628:$H$4347)/1000 -> 0.00 | K25: =SUM('Archivo 3'!$H$4348:$H$5091)/1000 -> 0.00 | L25: =SUM('Archivo 3'!$H$5092:$H$5835)/1000 -> 0.00 | M25: =SUM('Archivo 3'!$H$5836:$H$6555)/1000 -> 0.00 | N25: =SUM('Archivo 3'!$H$6556:$H$7299)/1000 -> 0.00 | O25: =SUM('Archivo 3'!$H$7300:$H$8020)/1000 -> 0.00 | P25: =SUM('Archivo 3'!$H$8021:$H$8763)/1000 -> 0.00 | R25: =SUM(E25:I25)+SUM(N25:P25) -> 0.00 | S25: =SUM(J25:M25) -> 0.00 | U25: =SUM(E25:P25) -> 0.00
C26: =$C$7 -> P01_E01_Con recuperador | E26: =SUM('Archivo 4'!$H$4:$H$747)/1000 -> 0.00 | F26: =SUM('Archivo 4'!$H$748:$H$1419)/1000 -> 0.00 | G26: =SUM('Archivo 4'!$H$1420:$H$2163)/1000 -> 0.00 | H26: =SUM('Archivo 4'!$H$2164:$H$2883)/1000 -> 0.00 | I26: =SUM('Archivo 4'!$H$2884:$H$3627)/1000 -> 0.00 | J26: =SUM('Archivo 4'!$H$3628:$H$4347)/1000 -> 0.00 | K26: =SUM('Archivo 4'!$H$4348:$H$5091)/1000 -> 0.00 | L26: =SUM('Archivo 4'!$H$5092:$H$5835)/1000 -> 0.00 | M26: =SUM('Archivo 4'!$H$5836:$H$6555)/1000 -> 0.00 | N26: =SUM('Archivo 4'!$H$6556:$H$7299)/1000 -> 0.00 | O26: =SUM('Archivo 4'!$H$7300:$H$8020)/1000 -> 0.00 | P26: =SUM('Archivo 4'!$H$8021:$H$8763)/1000 -> 0.00 | R26: =SUM(E26:I26)+SUM(N26:P26) -> 0.00 | S26: =SUM(J26:M26) -> 0.00 | U26: =SUM(E26:P26) -> 0.00
C27: =$C$8 -> P01_E01_Higrorregulable | E27: =SUM('Archivo 5'!$H$4:$H$747)/1000 -> 0.00 | F27: =SUM('Archivo 5'!$H$748:$H$1419)/1000 -> 0.00 | G27: =SUM('Archivo 5'!$H$1420:$H$2163)/1000 -> 0.00 | H27: =SUM('Archivo 5'!$H$2164:$H$2883)/1000 -> 0.00 | I27: =SUM('Archivo 5'!$H$2884:$H$3627)/1000 -> 0.00 | J27: =SUM('Archivo 5'!$H$3628:$H$4347)/1000 -> 0.00 | K27: =SUM('Archivo 5'!$H$4348:$H$5091)/1000 -> 0.00 | L27: =SUM('Archivo 5'!$H$5092:$H$5835)/1000 -> 0.00 | M27: =SUM('Archivo 5'!$H$5836:$H$6555)/1000 -> 0.00 | N27: =SUM('Archivo 5'!$H$6556:$H$7299)/1000 -> 0.00 | O27: =SUM('Archivo 5'!$H$7300:$H$8020)/1000 -> 0.00 | P27: =SUM('Archivo 5'!$H$8021:$H$8763)/1000 -> 0.00 | R27: =SUM(E27:I27)+SUM(N27:P27) -> 0.00 | S27: =SUM(J27:M27) -> 0.00 | U27: =SUM(E27:P27) -> 0.00
C32: Suelos (total kW/m2 mes)
E33: Enero | F33: Feb | G33: Marzo | H33: Abril | I33: Mayo | J33: Junio | K33: Julio | L33: Ago | M33: Sep | N33: Oct | O33: Nov | P33: Dic | R33: INV | S33: VER | U33: TOTAL
C34: =$C$4 -> P01_E01_Base | E34: =SUM('Archivo 1'!$I$4:$I$747)/1000 -> 0.00 | F34: =SUM('Archivo 1'!$I$748:$I$1419)/1000 -> 0.00 | G34: =SUM('Archivo 1'!$I$1420:$I$2163)/1000 -> 0.00 | H34: =SUM('Archivo 1'!$I$2164:$I$2883)/1000 -> 0.00 | I34: =SUM('Archivo 1'!$I$2884:$I$3627)/1000 -> 0.00 | J34: =SUM('Archivo 1'!$I$3628:$I$4347)/1000 -> 0.00 | K34: =SUM('Archivo 1'!$I$4348:$I$5091)/1000 -> 0.00 | L34: =SUM('Archivo 1'!$I$5092:$I$5835)/1000 -> 0.00 | M34: =SUM('Archivo 1'!$I$5836:$I$6555)/1000 -> 0.00 | N34: =SUM('Archivo 1'!$I$6556:$I$7299)/1000 -> 0.00 | O34: =SUM('Archivo 1'!$I$7300:$I$8020)/1000 -> 0.00 | P34: =SUM('Archivo 1'!$I$8021:$I$8763)/1000 -> 0.00 | R34: =SUM(E34:I34)+SUM(N34:P34) -> 0.00 | S34: =SUM(J34:M34) -> 0.00 | U34: =SUM(E34:P34) -> 0.00
C35: =$C$5 -> P01_E01_Sin nocturna | E35: =SUM('Archivo 2'!$I$4:$I$747)/1000 -> 0.00 | F35: =SUM('Archivo 2'!$I$748:$I$1419)/1000 -> 0.00 | G35: =SUM('Archivo 2'!$I$1420:$I$2163)/1000 -> 0.00 | H35: =SUM('Archivo 2'!$I$2164:$I$2883)/1000 -> 0.00 | I35: =SUM('Archivo 2'!$I$2884:$I$3627)/1000 -> 0.00 | J35: =SUM('Archivo 2'!$I$3628:$I$4347)/1000 -> 0.00 | K35: =SUM('Archivo 2'!$I$4348:$I$5091)/1000 -> 0.00 | L35: =SUM('Archivo 2'!$I$5092:$I$5835)/1000 -> 0.00 | M35: =SUM('Archivo 2'!$I$5836:$I$6555)/1000 -> 0.00 | N35: =SUM('Archivo 2'!$I$6556:$I$7299)/1000 -> 0.00 | O35: =SUM('Archivo 2'!$I$7300:$I$8020)/1000 -> 0.00 | P35: =SUM('Archivo 2'!$I$8021:$I$8763)/1000 -> 0.00 | R35: =SUM(E35:I35)+SUM(N35:P35) -> 0.00 | S35: =SUM(J35:M35) -> 0.00 | U35: =SUM(E35:P35) -> 0.00
C36: =$C$6 -> P01_E01_25 viv | E36: =SUM('Archivo 3'!$I$4:$I$747)/1000 -> 0.00 | F36: =SUM('Archivo 3'!$I$748:$I$1419)/1000 -> 0.00 | G36: =SUM('Archivo 3'!$I$1420:$I$2163)/1000 -> 0.00 | H36: =SUM('Archivo 3'!$I$2164:$I$2883)/1000 -> 0.00 | I36: =SUM('Archivo 3'!$I$2884:$I$3627)/1000 -> 0.00 | J36: =SUM('Archivo 3'!$I$3628:$I$4347)/1000 -> 0.00 | K36: =SUM('Archivo 3'!$I$4348:$I$5091)/1000 -> 0.00 | L36: =SUM('Archivo 3'!$I$5092:$I$5835)/1000 -> 0.00 | M36: =SUM('Archivo 3'!$I$5836:$I$6555)/1000 -> 0.00 | N36: =SUM('Archivo 3'!$I$6556:$I$7299)/1000 -> 0.00 | O36: =SUM('Archivo 3'!$I$7300:$I$8020)/1000 -> 0.00 | P36: =SUM('Archivo 3'!$I$8021:$I$8763)/1000 -> 0.00 | R36: =SUM(E36:I36)+SUM(N36:P36) -> 0.00 | S36: =SUM(J36:M36) -> 0.00 | U36: =SUM(E36:P36) -> 0.00
C37: =$C$7 -> P01_E01_Con recuperador | E37: =SUM('Archivo 4'!$I$4:$I$747)/1000 -> 0.00 | F37: =SUM('Archivo 4'!$I$748:$I$1419)/1000 -> 0.00 | G37: =SUM('Archivo 4'!$I$1420:$I$2163)/1000 -> 0.00 | H37: =SUM('Archivo 4'!$I$2164:$I$2883)/1000 -> 0.00 | I37: =SUM('Archivo 4'!$I$2884:$I$3627)/1000 -> 0.00 | J37: =SUM('Archivo 4'!$I$3628:$I$4347)/1000 -> 0.00 | K37: =SUM('Archivo 4'!$I$4348:$I$5091)/1000 -> 0.00 | L37: =SUM('Archivo 4'!$I$5092:$I$5835)/1000 -> 0.00 | M37: =SUM('Archivo 4'!$I$5836:$I$6555)/1000 -> 0.00 | N37: =SUM('Archivo 4'!$I$6556:$I$7299)/1000 -> 0.00 | O37: =SUM('Archivo 4'!$I$7300:$I$8020)/1000 -> 0.00 | P37: =SUM('Archivo 4'!$I$8021:$I$8763)/1000 -> 0.00 | R37: =SUM(E37:I37)+SUM(N37:P37) -> 0.00 | S37: =SUM(J37:M37) -> 0.00 | U37: =SUM(E37:P37) -> 0.00
C38: =$C$8 -> P01_E01_Higrorregulable | E38: =SUM('Archivo 5'!$I$4:$I$747)/1000 -> 0.00 | F38: =SUM('Archivo 5'!$I$748:$I$1419)/1000 -> 0.00 | G38: =SUM('Archivo 5'!$I$1420:$I$2163)/1000 -> 0.00 | H38: =SUM('Archivo 5'!$I$2164:$I$2883)/1000 -> 0.00 | I38: =SUM('Archivo 5'!$I$2884:$I$3627)/1000 -> 0.00 | J38: =SUM('Archivo 5'!$I$3628:$I$4347)/1000 -> 0.00 | K38: =SUM('Archivo 5'!$I$4348:$I$5091)/1000 -> 0.00 | L38: =SUM('Archivo 5'!$I$5092:$I$5835)/1000 -> 0.00 | M38: =SUM('Archivo 5'!$I$5836:$I$6555)/1000 -> 0.00 | N38: =SUM('Archivo 5'!$I$6556:$I$7299)/1000 -> 0.00 | O38: =SUM('Archivo 5'!$I$7300:$I$8020)/1000 -> 0.00 | P38: =SUM('Archivo 5'!$I$8021:$I$8763)/1000 -> 0.00 | R38: =SUM(E38:I38)+SUM(N38:P38) -> 0.00 | S38: =SUM(J38:M38) -> 0.00 | U38: =SUM(E38:P38) -> 0.00
C42: Puentes Termicos (total kW/m2 mes)
E43: Enero | F43: Feb | G43: Marzo | H43: Abril | I43: Mayo | J43: Junio | K43: Julio | L43: Ago | M43: Sep | N43: Oct | O43: Nov | P43: Dic | R43: INV | S43: VER | U43: TOTAL
C44: =$C$4 -> P01_E01_Base | E44: =SUM('Archivo 1'!$J$4:$J$747)/1000 -> -0.08 | F44: =SUM('Archivo 1'!$J$748:$J$1419)/1000 -> -0.05 | G44: =SUM('Archivo 1'!$J$1420:$J$2163)/1000 -> -0.06 | H44: =SUM('Archivo 1'!$J$2164:$J$2883)/1000 -> -0.05 | I44: =SUM('Archivo 1'!$J$2884:$J$3627)/1000 -> -0.06 | J44: =SUM('Archivo 1'!$J$3628:$J$4347)/1000 -> 0.13 | K44: =SUM('Archivo 1'!$J$4348:$J$5091)/1000 -> 0.08 | L44: =SUM('Archivo 1'!$J$5092:$J$5835)/1000 -> 0.07 | M44: =SUM('Archivo 1'!$J$5836:$J$6555)/1000 -> 0.12 | N44: =SUM('Archivo 1'!$J$6556:$J$7299)/1000 -> -0.06 | O44: =SUM('Archivo 1'!$J$7300:$J$8020)/1000 -> -0.04 | P44: =SUM('Archivo 1'!$J$8021:$J$8763)/1000 -> -0.07 | R44: =SUM(E44:I44)+SUM(N44:P44) -> -0.48 | S44: =SUM(J44:M44) -> 0.40 | U44: =SUM(E44:P44) -> -0.08
C45: =$C$5 -> P01_E01_Sin nocturna | E45: =SUM('Archivo 2'!$J$4:$J$747)/1000 -> -0.08 | F45: =SUM('Archivo 2'!$J$748:$J$1419)/1000 -> -0.05 | G45: =SUM('Archivo 2'!$J$1420:$J$2163)/1000 -> -0.06 | H45: =SUM('Archivo 2'!$J$2164:$J$2883)/1000 -> -0.05 | I45: =SUM('Archivo 2'!$J$2884:$J$3627)/1000 -> -0.06 | J45: =SUM('Archivo 2'!$J$3628:$J$4347)/1000 -> 0.01 | K45: =SUM('Archivo 2'!$J$4348:$J$5091)/1000 -> 0.01 | L45: =SUM('Archivo 2'!$J$5092:$J$5835)/1000 -> 0.02 | M45: =SUM('Archivo 2'!$J$5836:$J$6555)/1000 -> 0.00 | N45: =SUM('Archivo 2'!$J$6556:$J$7299)/1000 -> -0.05 | O45: =SUM('Archivo 2'!$J$7300:$J$8020)/1000 -> -0.04 | P45: =SUM('Archivo 2'!$J$8021:$J$8763)/1000 -> -0.07 | R45: =SUM(E45:I45)+SUM(N45:P45) -> -0.47 | S45: =SUM(J45:M45) -> 0.03 | U45: =SUM(E45:P45) -> -0.44
C46: =$C$6 -> P01_E01_25 viv | E46: =SUM('Archivo 3'!$J$4:$J$747)/1000 -> -0.07 | F46: =SUM('Archivo 3'!$J$748:$J$1419)/1000 -> -0.04 | G46: =SUM('Archivo 3'!$J$1420:$J$2163)/1000 -> -0.03 | H46: =SUM('Archivo 3'!$J$2164:$J$2883)/1000 -> -0.02 | I46: =SUM('Archivo 3'!$J$2884:$J$3627)/1000 -> -0.00 | J46: =SUM('Archivo 3'!$J$3628:$J$4347)/1000 -> 0.11 | K46: =SUM('Archivo 3'!$J$4348:$J$5091)/1000 -> 0.08 | L46: =SUM('Archivo 3'!$J$5092:$J$5835)/1000 -> 0.07 | M46: =SUM('Archivo 3'!$J$5836:$J$6555)/1000 -> 0.13 | N46: =SUM('Archivo 3'!$J$6556:$J$7299)/1000 -> 0.04 | O46: =SUM('Archivo 3'!$J$7300:$J$8020)/1000 -> -0.03 | P46: =SUM('Archivo 3'!$J$8021:$J$8763)/1000 -> -0.07 | R46: =SUM(E46:I46)+SUM(N46:P46) -> -0.22 | S46: =SUM(J46:M46) -> 0.39 | U46: =SUM(E46:P46) -> 0.18
C47: =$C$7 -> P01_E01_Con recuperador | E47: =SUM('Archivo 4'!$J$4:$J$747)/1000 -> -0.13 | F47: =SUM('Archivo 4'!$J$748:$J$1419)/1000 -> -0.13 | G47: =SUM('Archivo 4'!$J$1420:$J$2163)/1000 -> -0.12 | H47: =SUM('Archivo 4'!$J$2164:$J$2883)/1000 -> -0.09 | I47: =SUM('Archivo 4'!$J$2884:$J$3627)/1000 -> -0.07 | J47: =SUM('Archivo 4'!$J$3628:$J$4347)/1000 -> 0.13 | K47: =SUM('Archivo 4'!$J$4348:$J$5091)/1000 -> 0.08 | L47: =SUM('Archivo 4'!$J$5092:$J$5835)/1000 -> 0.07 | M47: =SUM('Archivo 4'!$J$5836:$J$6555)/1000 -> 0.12 | N47: =SUM('Archivo 4'!$J$6556:$J$7299)/1000 -> -0.09 | O47: =SUM('Archivo 4'!$J$7300:$J$8020)/1000 -> -0.12 | P47: =SUM('Archivo 4'!$J$8021:$J$8763)/1000 -> -0.12 | R47: =SUM(E47:I47)+SUM(N47:P47) -> -0.86 | S47: =SUM(J47:M47) -> 0.40 | U47: =SUM(E47:P47) -> -0.46
C48: =$C$8 -> P01_E01_Higrorregulable | E48: =SUM('Archivo 5'!$J$4:$J$747)/1000 -> -0.08 | F48: =SUM('Archivo 5'!$J$748:$J$1419)/1000 -> -0.06 | G48: =SUM('Archivo 5'!$J$1420:$J$2163)/1000 -> -0.07 | H48: =SUM('Archivo 5'!$J$2164:$J$2883)/1000 -> -0.05 | I48: =SUM('Archivo 5'!$J$2884:$J$3627)/1000 -> -0.07 | J48: =SUM('Archivo 5'!$J$3628:$J$4347)/1000 -> 0.13 | K48: =SUM('Archivo 5'!$J$4348:$J$5091)/1000 -> 0.08 | L48: =SUM('Archivo 5'!$J$5092:$J$5835)/1000 -> 0.07 | M48: =SUM('Archivo 5'!$J$5836:$J$6555)/1000 -> 0.12 | N48: =SUM('Archivo 5'!$J$6556:$J$7299)/1000 -> -0.07 | O48: =SUM('Archivo 5'!$J$7300:$J$8020)/1000 -> -0.05 | P48: =SUM('Archivo 5'!$J$8021:$J$8763)/1000 -> -0.07 | R48: =SUM(E48:I48)+SUM(N48:P48) -> -0.53 | S48: =SUM(J48:M48) -> 0.40 | U48: =SUM(E48:P48) -> -0.12
C52: Radiacion ventanas (total kW/m2 mes)
E53: Enero | F53: Feb | G53: Marzo | H53: Abril | I53: Mayo | J53: Junio | K53: Julio | L53: Ago | M53: Sep | N53: Oct | O53: Nov | P53: Dic | R53: INV | S53: VER | U53: TOTAL
C54: =$C$4 -> P01_E01_Base | E54: =SUM('Archivo 1'!$L$4:$L$747)/1000 -> 2.82 | F54: =SUM('Archivo 1'!$L$748:$L$1419)/1000 -> 3.37 | G54: =SUM('Archivo 1'!$L$1420:$L$2163)/1000 -> 3.49 | H54: =SUM('Archivo 1'!$L$2164:$L$2883)/1000 -> 2.67 | I54: =SUM('Archivo 1'!$L$2884:$L$3627)/1000 -> 2.37 | J54: =SUM('Archivo 1'!$L$3628:$L$4347)/1000 -> 1.62 | K54: =SUM('Archivo 1'!$L$4348:$L$5091)/1000 -> 1.80 | L54: =SUM('Archivo 1'!$L$5092:$L$5835)/1000 -> 2.20 | M54: =SUM('Archivo 1'!$L$5836:$L$6555)/1000 -> 2.76 | N54: =SUM('Archivo 1'!$L$6556:$L$7299)/1000 -> 3.89 | O54: =SUM('Archivo 1'!$L$7300:$L$8020)/1000 -> 3.28 | P54: =SUM('Archivo 1'!$L$8021:$L$8763)/1000 -> 2.69 | R54: =SUM(E54:I54)+SUM(N54:P54) -> 24.58 | S54: =SUM(J54:M54) -> 8.38 | U54: =SUM(E54:P54) -> 32.96
C55: =$C$5 -> P01_E01_Sin nocturna | E55: =SUM('Archivo 2'!$L$4:$L$747)/1000 -> 2.82 | F55: =SUM('Archivo 2'!$L$748:$L$1419)/1000 -> 3.37 | G55: =SUM('Archivo 2'!$L$1420:$L$2163)/1000 -> 3.49 | H55: =SUM('Archivo 2'!$L$2164:$L$2883)/1000 -> 2.67 | I55: =SUM('Archivo 2'!$L$2884:$L$3627)/1000 -> 2.37 | J55: =SUM('Archivo 2'!$L$3628:$L$4347)/1000 -> 1.62 | K55: =SUM('Archivo 2'!$L$4348:$L$5091)/1000 -> 1.80 | L55: =SUM('Archivo 2'!$L$5092:$L$5835)/1000 -> 2.20 | M55: =SUM('Archivo 2'!$L$5836:$L$6555)/1000 -> 2.76 | N55: =SUM('Archivo 2'!$L$6556:$L$7299)/1000 -> 3.89 | O55: =SUM('Archivo 2'!$L$7300:$L$8020)/1000 -> 3.28 | P55: =SUM('Archivo 2'!$L$8021:$L$8763)/1000 -> 2.69 | R55: =SUM(E55:I55)+SUM(N55:P55) -> 24.58 | S55: =SUM(J55:M55) -> 8.38 | U55: =SUM(E55:P55) -> 32.96
C56: =$C$6 -> P01_E01_25 viv | E56: =SUM('Archivo 3'!$L$4:$L$747)/1000 -> 2.82 | F56: =SUM('Archivo 3'!$L$748:$L$1419)/1000 -> 3.37 | G56: =SUM('Archivo 3'!$L$1420:$L$2163)/1000 -> 3.49 | H56: =SUM('Archivo 3'!$L$2164:$L$2883)/1000 -> 2.67 | I56: =SUM('Archivo 3'!$L$2884:$L$3627)/1000 -> 2.37 | J56: =SUM('Archivo 3'!$L$3628:$L$4347)/1000 -> 1.62 | K56: =SUM('Archivo 3'!$L$4348:$L$5091)/1000 -> 1.80 | L56: =SUM('Archivo 3'!$L$5092:$L$5835)/1000 -> 2.20 | M56: =SUM('Archivo 3'!$L$5836:$L$6555)/1000 -> 2.76 | N56: =SUM('Archivo 3'!$L$6556:$L$7299)/1000 -> 3.89 | O56: =SUM('Archivo 3'!$L$7300:$L$8020)/1000 -> 3.28 | P56: =SUM('Archivo 3'!$L$8021:$L$8763)/1000 -> 2.69 | R56: =SUM(E56:I56)+SUM(N56:P56) -> 24.58 | S56: =SUM(J56:M56) -> 8.38 | U56: =SUM(E56:P56) -> 32.96
C57: =$C$7 -> P01_E01_Con recuperador | E57: =SUM('Archivo 4'!$L$4:$L$747)/1000 -> 2.82 | F57: =SUM('Archivo 4'!$L$748:$L$1419)/1000 -> 3.37 | G57: =SUM('Archivo 4'!$L$1420:$L$2163)/1000 -> 3.49 | H57: =SUM('Archivo 4'!$L$2164:$L$2883)/1000 -> 2.67 | I57: =SUM('Archivo 4'!$L$2884:$L$3627)/1000 -> 2.37 | J57: =SUM('Archivo 4'!$L$3628:$L$4347)/1000 -> 1.62 | K57: =SUM('Archivo 4'!$L$4348:$L$5091)/1000 -> 1.80 | L57: =SUM('Archivo 4'!$L$5092:$L$5835)/1000 -> 2.20 | M57: =SUM('Archivo 4'!$L$5836:$L$6555)/1000 -> 2.76 | N57: =SUM('Archivo 4'!$L$6556:$L$7299)/1000 -> 3.89 | O57: =SUM('Archivo 4'!$L$7300:$L$8020)/1000 -> 3.28 | P57: =SUM('Archivo 4'!$L$8021:$L$8763)/1000 -> 2.69 | R57: =SUM(E57:I57)+SUM(N57:P57) -> 24.58 | S57: =SUM(J57:M57) -> 8.38 | U57: =SUM(E57:P57) -> 32.96
C58: =$C$8 -> P01_E01_Higrorregulable | E58: =SUM('Archivo 5'!$L$4:$L$747)/1000 -> 2.82 | F58: =SUM('Archivo 5'!$L$748:$L$1419)/1000 -> 3.37 | G58: =SUM('Archivo 5'!$L$1420:$L$2163)/1000 -> 3.49 | H58: =SUM('Archivo 5'!$L$2164:$L$2883)/1000 -> 2.67 | I58: =SUM('Archivo 5'!$L$2884:$L$3627)/1000 -> 2.37 | J58: =SUM('Archivo 5'!$L$3628:$L$4347)/1000 -> 1.62 | K58: =SUM('Archivo 5'!$L$4348:$L$5091)/1000 -> 1.80 | L58: =SUM('Archivo 5'!$L$5092:$L$5835)/1000 -> 2.20 | M58: =SUM('Archivo 5'!$L$5836:$L$6555)/1000 -> 2.76 | N58: =SUM('Archivo 5'!$L$6556:$L$7299)/1000 -> 3.89 | O58: =SUM('Archivo 5'!$L$7300:$L$8020)/1000 -> 3.28 | P58: =SUM('Archivo 5'!$L$8021:$L$8763)/1000 -> 2.69 | R58: =SUM(E58:I58)+SUM(N58:P58) -> 24.58 | S58: =SUM(J58:M58) -> 8.38 | U58: =SUM(E58:P58) -> 32.96
C63: Transmison ventanas (total kW/m2 mes)
E64: Enero | F64: Feb | G64: Marzo | H64: Abril | I64: Mayo | J64: Junio | K64: Julio | L64: Ago | M64: Sep | N64: Oct | O64: Nov | P64: Dic | R64: INV | S64: VER | U64: TOTAL
C65: =$C$4 -> P01_E01_Base | E65: =SUM('Archivo 1'!$K$4:$K$747)/1000 -> -0.85 | F65: =SUM('Archivo 1'!$K$748:$K$1419)/1000 -> -0.32 | G65: =SUM('Archivo 1'!$K$1420:$K$2163)/1000 -> -0.47 | H65: =SUM('Archivo 1'!$K$2164:$K$2883)/1000 -> -0.32 | I65: =SUM('Archivo 1'!$K$2884:$K$3627)/1000 -> -0.86 | J65: =SUM('Archivo 1'!$K$3628:$K$4347)/1000 -> 0.44 | K65: =SUM('Archivo 1'!$K$4348:$K$5091)/1000 -> 0.37 | L65: =SUM('Archivo 1'!$K$5092:$K$5835)/1000 -> 0.77 | M65: =SUM('Archivo 1'!$K$5836:$K$6555)/1000 -> 0.86 | N65: =SUM('Archivo 1'!$K$6556:$K$7299)/1000 -> -0.94 | O65: =SUM('Archivo 1'!$K$7300:$K$8020)/1000 -> -0.23 | P65: =SUM('Archivo 1'!$K$8021:$K$8763)/1000 -> -0.80 | R65: =SUM(E65:I65)+SUM(N65:P65) -> -4.78 | S65: =SUM(J65:M65) -> 2.44 | U65: =SUM(E65:P65) -> -2.34
C66: =$C$5 -> P01_E01_Sin nocturna | E66: =SUM('Archivo 2'!$K$4:$K$747)/1000 -> -0.85 | F66: =SUM('Archivo 2'!$K$748:$K$1419)/1000 -> -0.32 | G66: =SUM('Archivo 2'!$K$1420:$K$2163)/1000 -> -0.47 | H66: =SUM('Archivo 2'!$K$2164:$K$2883)/1000 -> -0.32 | I66: =SUM('Archivo 2'!$K$2884:$K$3627)/1000 -> -0.86 | J66: =SUM('Archivo 2'!$K$3628:$K$4347)/1000 -> 0.55 | K66: =SUM('Archivo 2'!$K$4348:$K$5091)/1000 -> 0.80 | L66: =SUM('Archivo 2'!$K$5092:$K$5835)/1000 -> 1.12 | M66: =SUM('Archivo 2'!$K$5836:$K$6555)/1000 -> 1.08 | N66: =SUM('Archivo 2'!$K$6556:$K$7299)/1000 -> -0.86 | O66: =SUM('Archivo 2'!$K$7300:$K$8020)/1000 -> -0.23 | P66: =SUM('Archivo 2'!$K$8021:$K$8763)/1000 -> -0.80 | R66: =SUM(E66:I66)+SUM(N66:P66) -> -4.70 | S66: =SUM(J66:M66) -> 3.54 | U66: =SUM(E66:P66) -> -1.16
C67: =$C$6 -> P01_E01_25 viv | E67: =SUM('Archivo 3'!$K$4:$K$747)/1000 -> -0.62 | F67: =SUM('Archivo 3'!$K$748:$K$1419)/1000 -> -0.16 | G67: =SUM('Archivo 3'!$K$1420:$K$2163)/1000 -> -0.09 | H67: =SUM('Archivo 3'!$K$2164:$K$2883)/1000 -> 0.00 | I67: =SUM('Archivo 3'!$K$2884:$K$3627)/1000 -> -0.37 | J67: =SUM('Archivo 3'!$K$3628:$K$4347)/1000 -> 0.20 | K67: =SUM('Archivo 3'!$K$4348:$K$5091)/1000 -> 0.35 | L67: =SUM('Archivo 3'!$K$5092:$K$5835)/1000 -> 0.76 | M67: =SUM('Archivo 3'!$K$5836:$K$6555)/1000 -> 0.93 | N67: =SUM('Archivo 3'!$K$6556:$K$7299)/1000 -> 0.04 | O67: =SUM('Archivo 3'!$K$7300:$K$8020)/1000 -> -0.12 | P67: =SUM('Archivo 3'!$K$8021:$K$8763)/1000 -> -0.69 | R67: =SUM(E67:I67)+SUM(N67:P67) -> -2.01 | S67: =SUM(J67:M67) -> 2.25 | U67: =SUM(E67:P67) -> 0.23
C68: =$C$7 -> P01_E01_Con recuperador | E68: =SUM('Archivo 4'!$K$4:$K$747)/1000 -> -1.52 | F68: =SUM('Archivo 4'!$K$748:$K$1419)/1000 -> -1.18 | G68: =SUM('Archivo 4'!$K$1420:$K$2163)/1000 -> -1.17 | H68: =SUM('Archivo 4'!$K$2164:$K$2883)/1000 -> -0.85 | I68: =SUM('Archivo 4'!$K$2884:$K$3627)/1000 -> -0.96 | J68: =SUM('Archivo 4'!$K$3628:$K$4347)/1000 -> 0.50 | K68: =SUM('Archivo 4'!$K$4348:$K$5091)/1000 -> 0.39 | L68: =SUM('Archivo 4'!$K$5092:$K$5835)/1000 -> 0.78 | M68: =SUM('Archivo 4'!$K$5836:$K$6555)/1000 -> 0.85 | N68: =SUM('Archivo 4'!$K$6556:$K$7299)/1000 -> -1.30 | O68: =SUM('Archivo 4'!$K$7300:$K$8020)/1000 -> -1.15 | P68: =SUM('Archivo 4'!$K$8021:$K$8763)/1000 -> -1.46 | R68: =SUM(E68:I68)+SUM(N68:P68) -> -9.60 | S68: =SUM(J68:M68) -> 2.52 | U68: =SUM(E68:P68) -> -7.08
C69: =$C$8 -> P01_E01_Higrorregulable | E69: =SUM('Archivo 5'!$K$4:$K$747)/1000 -> -0.88 | F69: =SUM('Archivo 5'!$K$748:$K$1419)/1000 -> -0.40 | G69: =SUM('Archivo 5'!$K$1420:$K$2163)/1000 -> -0.54 | H69: =SUM('Archivo 5'!$K$2164:$K$2883)/1000 -> -0.40 | I69: =SUM('Archivo 5'!$K$2884:$K$3627)/1000 -> -0.92 | J69: =SUM('Archivo 5'!$K$3628:$K$4347)/1000 -> 0.47 | K69: =SUM('Archivo 5'!$K$4348:$K$5091)/1000 -> 0.38 | L69: =SUM('Archivo 5'!$K$5092:$K$5835)/1000 -> 0.77 | M69: =SUM('Archivo 5'!$K$5836:$K$6555)/1000 -> 0.85 | N69: =SUM('Archivo 5'!$K$6556:$K$7299)/1000 -> -1.06 | O69: =SUM('Archivo 5'!$K$7300:$K$8020)/1000 -> -0.31 | P69: =SUM('Archivo 5'!$K$8021:$K$8763)/1000 -> -0.79 | R69: =SUM(E69:I69)+SUM(N69:P69) -> -5.30 | S69: =SUM(J69:M69) -> 2.47 | U69: =SUM(E69:P69) -> -2.83
C74: Carga Infiltracion Ventilacion (total kW/m2 mes)
E75: Enero | F75: Feb | G75: Marzo | H75: Abril | I75: Mayo | J75: Junio | K75: Julio | L75: Ago | M75: Sep | N75: Oct | O75: Nov | P75: Dic | R75: INV | S75: VER | U75: TOTAL
C76: =$C$4 -> P01_E01_Base | E76: =SUM('Archivo 1'!$N$4:$N$747)/1000 -> -5.78 | F76: =SUM('Archivo 1'!$N$748:$N$1419)/1000 -> -5.16 | G76: =SUM('Archivo 1'!$N$1420:$N$2163)/1000 -> -5.25 | H76: =SUM('Archivo 1'!$N$2164:$N$2883)/1000 -> -4.77 | I76: =SUM('Archivo 1'!$N$2884:$N$3627)/1000 -> -3.73 | J76: =SUM('Archivo 1'!$N$3628:$N$4347)/1000 -> -4.79 | K76: =SUM('Archivo 1'!$N$4348:$N$5091)/1000 -> -3.21 | L76: =SUM('Archivo 1'!$N$5092:$N$5835)/1000 -> -3.11 | M76: =SUM('Archivo 1'!$N$5836:$N$6555)/1000 -> -4.60 | N76: =SUM('Archivo 1'!$N$6556:$N$7299)/1000 -> -5.31 | O76: =SUM('Archivo 1'!$N$7300:$N$8020)/1000 -> -5.58 | P76: =SUM('Archivo 1'!$N$8021:$N$8763)/1000 -> -5.57 | R76: =SUM(E76:I76)+SUM(N76:P76) -> -41.15 | S76: =SUM(J76:M76) -> -15.71 | U76: =SUM(E76:P76) -> -56.86
C77: =$C$5 -> P01_E01_Sin nocturna | E77: =SUM('Archivo 2'!$N$4:$N$747)/1000 -> -5.78 | F77: =SUM('Archivo 2'!$N$748:$N$1419)/1000 -> -5.16 | G77: =SUM('Archivo 2'!$N$1420:$N$2163)/1000 -> -5.25 | H77: =SUM('Archivo 2'!$N$2164:$N$2883)/1000 -> -4.77 | I77: =SUM('Archivo 2'!$N$2884:$N$3627)/1000 -> -3.73 | J77: =SUM('Archivo 2'!$N$3628:$N$4347)/1000 -> -1.63 | K77: =SUM('Archivo 2'!$N$4348:$N$5091)/1000 -> -0.58 | L77: =SUM('Archivo 2'!$N$5092:$N$5835)/1000 -> -0.56 | M77: =SUM('Archivo 2'!$N$5836:$N$6555)/1000 -> -1.45 | N77: =SUM('Archivo 2'!$N$6556:$N$7299)/1000 -> -5.48 | O77: =SUM('Archivo 2'!$N$7300:$N$8020)/1000 -> -5.58 | P77: =SUM('Archivo 2'!$N$8021:$N$8763)/1000 -> -5.57 | R77: =SUM(E77:I77)+SUM(N77:P77) -> -41.32 | S77: =SUM(J77:M77) -> -4.21 | U77: =SUM(E77:P77) -> -45.53
C78: =$C$6 -> P01_E01_25 viv | E78: =SUM('Archivo 3'!$N$4:$N$747)/1000 -> -13.17 | F78: =SUM('Archivo 3'!$N$748:$N$1419)/1000 -> -10.69 | G78: =SUM('Archivo 3'!$N$1420:$N$2163)/1000 -> -10.33 | H78: =SUM('Archivo 3'!$N$2164:$N$2883)/1000 -> -8.33 | I78: =SUM('Archivo 3'!$N$2884:$N$3627)/1000 -> -6.43 | J78: =SUM('Archivo 3'!$N$3628:$N$4347)/1000 -> -4.37 | K78: =SUM('Archivo 3'!$N$4348:$N$5091)/1000 -> -2.56 | L78: =SUM('Archivo 3'!$N$5092:$N$5835)/1000 -> -2.54 | M78: =SUM('Archivo 3'!$N$5836:$N$6555)/1000 -> -4.82 | N78: =SUM('Archivo 3'!$N$6556:$N$7299)/1000 -> -7.62 | O78: =SUM('Archivo 3'!$N$7300:$N$8020)/1000 -> -10.05 | P78: =SUM('Archivo 3'!$N$8021:$N$8763)/1000 -> -12.75 | R78: =SUM(E78:I78)+SUM(N78:P78) -> -79.37 | S78: =SUM(J78:M78) -> -14.29 | U78: =SUM(E78:P78) -> -93.66
C79: =$C$7 -> P01_E01_Con recuperador | E79: =SUM('Archivo 4'!$N$4:$N$747)/1000 -> -2.34 | F79: =SUM('Archivo 4'!$N$748:$N$1419)/1000 -> -3.18 | G79: =SUM('Archivo 4'!$N$1420:$N$2163)/1000 -> -3.76 | H79: =SUM('Archivo 4'!$N$2164:$N$2883)/1000 -> -3.72 | I79: =SUM('Archivo 4'!$N$2884:$N$3627)/1000 -> -3.65 | J79: =SUM('Archivo 4'!$N$3628:$N$4347)/1000 -> -4.96 | K79: =SUM('Archivo 4'!$N$4348:$N$5091)/1000 -> -3.63 | L79: =SUM('Archivo 4'!$N$5092:$N$5835)/1000 -> -3.51 | M79: =SUM('Archivo 4'!$N$5836:$N$6555)/1000 -> -4.75 | N79: =SUM('Archivo 4'!$N$6556:$N$7299)/1000 -> -4.52 | O79: =SUM('Archivo 4'!$N$7300:$N$8020)/1000 -> -3.55 | P79: =SUM('Archivo 4'!$N$8021:$N$8763)/1000 -> -2.61 | R79: =SUM(E79:I79)+SUM(N79:P79) -> -27.33 | S79: =SUM(J79:M79) -> -16.85 | U79: =SUM(E79:P79) -> -44.18
C80: =$C$8 -> P01_E01_Higrorregulable | E80: =SUM('Archivo 5'!$N$4:$N$747)/1000 -> -5.30 | F80: =SUM('Archivo 5'!$N$748:$N$1419)/1000 -> -4.90 | G80: =SUM('Archivo 5'!$N$1420:$N$2163)/1000 -> -5.02 | H80: =SUM('Archivo 5'!$N$2164:$N$2883)/1000 -> -4.58 | I80: =SUM('Archivo 5'!$N$2884:$N$3627)/1000 -> -3.61 | J80: =SUM('Archivo 5'!$N$3628:$N$4347)/1000 -> -4.81 | K80: =SUM('Archivo 5'!$N$4348:$N$5091)/1000 -> -3.25 | L80: =SUM('Archivo 5'!$N$5092:$N$5835)/1000 -> -3.15 | M80: =SUM('Archivo 5'!$N$5836:$N$6555)/1000 -> -4.58 | N80: =SUM('Archivo 5'!$N$6556:$N$7299)/1000 -> -5.04 | O80: =SUM('Archivo 5'!$N$7300:$N$8020)/1000 -> -5.38 | P80: =SUM('Archivo 5'!$N$8021:$N$8763)/1000 -> -5.11 | R80: =SUM(E80:I80)+SUM(N80:P80) -> -38.93 | S80: =SUM(J80:M80) -> -15.79 | U80: =SUM(E80:P80) -> -54.72
C85: Carga total acumulada (kW/m2 mes)
E86: Enero | F86: Feb | G86: Marzo | H86: Abril | I86: Mayo | J86: Junio | K86: Julio | L86: Ago | M86: Sep | N86: Oct | O86: Nov | P86: Dic | R86: INV | S86: VER | U86: TOTAL
C87: =$C$4 -> P01_E01_Base | E87: =SUM('Archivo 1'!$P$4:$P$747)/1000 -> -1.91 | F87: =SUM('Archivo 1'!$P$748:$P$1419)/1000 -> -0.10 | G87: =SUM('Archivo 1'!$P$1420:$P$2163)/1000 -> -0.08 | H87: =SUM('Archivo 1'!$P$2164:$P$2883)/1000 -> 0.00 | I87: =SUM('Archivo 1'!$P$2884:$P$3627)/1000 -> 0.00 | J87: =SUM('Archivo 1'!$P$3628:$P$4347)/1000 -> 1.44 | K87: =SUM('Archivo 1'!$P$4348:$P$5091)/1000 -> 3.12 | L87: =SUM('Archivo 1'!$P$5092:$P$5835)/1000 -> 4.08 | M87: =SUM('Archivo 1'!$P$5836:$P$6555)/1000 -> 3.18 | N87: =SUM('Archivo 1'!$P$6556:$P$7299)/1000 -> 0.00 | O87: =SUM('Archivo 1'!$P$7300:$P$8020)/1000 -> -0.02 | P87: =SUM('Archivo 1'!$P$8021:$P$8763)/1000 -> -1.60 | R87: =SUM(E87:I87)+SUM(N87:P87) -> -3.72 | S87: =SUM(J87:M87) -> 11.81 | U87: =-R87+S87 -> 15.53
C88: =$C$5 -> P01_E01_Sin nocturna | E88: =SUM('Archivo 2'!$P$4:$P$747)/1000 -> -1.91 | F88: =SUM('Archivo 2'!$P$748:$P$1419)/1000 -> -0.10 | G88: =SUM('Archivo 2'!$P$1420:$P$2163)/1000 -> -0.08 | H88: =SUM('Archivo 2'!$P$2164:$P$2883)/1000 -> 0.00 | I88: =SUM('Archivo 2'!$P$2884:$P$3627)/1000 -> 0.00 | J88: =SUM('Archivo 2'!$P$3628:$P$4347)/1000 -> 3.90 | K88: =SUM('Archivo 2'!$P$4348:$P$5091)/1000 -> 5.48 | L88: =SUM('Archivo 2'!$P$5092:$P$5835)/1000 -> 6.29 | M88: =SUM('Archivo 2'!$P$5836:$P$6555)/1000 -> 5.77 | N88: =SUM('Archivo 2'!$P$6556:$P$7299)/1000 -> 0.00 | O88: =SUM('Archivo 2'!$P$7300:$P$8020)/1000 -> -0.02 | P88: =SUM('Archivo 2'!$P$8021:$P$8763)/1000 -> -1.60 | R88: =SUM(E88:I88)+SUM(N88:P88) -> -3.72 | S88: =SUM(J88:M88) -> 21.44 | U88: =-R88+S88 -> 25.15
C89: =$C$6 -> P01_E01_25 viv | E89: =SUM('Archivo 3'!$P$4:$P$747)/1000 -> -8.87 | F89: =SUM('Archivo 3'!$P$748:$P$1419)/1000 -> -5.36 | G89: =SUM('Archivo 3'!$P$1420:$P$2163)/1000 -> -4.44 | H89: =SUM('Archivo 3'!$P$2164:$P$2883)/1000 -> -2.95 | I89: =SUM('Archivo 3'!$P$2884:$P$3627)/1000 -> -1.72 | J89: =SUM('Archivo 3'!$P$3628:$P$4347)/1000 -> 1.41 | K89: =SUM('Archivo 3'!$P$4348:$P$5091)/1000 -> 3.76 | L89: =SUM('Archivo 3'!$P$5092:$P$5835)/1000 -> 4.65 | M89: =SUM('Archivo 3'!$P$5836:$P$6555)/1000 -> 3.11 | N89: =SUM('Archivo 3'!$P$6556:$P$7299)/1000 -> -0.28 | O89: =SUM('Archivo 3'!$P$7300:$P$8020)/1000 -> -4.39 | P89: =SUM('Archivo 3'!$P$8021:$P$8763)/1000 -> -8.63 | R89: =SUM(E89:I89)+SUM(N89:P89) -> -36.63 | S89: =SUM(J89:M89) -> 12.93 | U89: =-R89+S89 -> 49.57
C90: =$C$7 -> P01_E01_Con recuperador | E90: =SUM('Archivo 4'!$P$4:$P$747)/1000 -> 0.00 | F90: =SUM('Archivo 4'!$P$748:$P$1419)/1000 -> 0.00 | G90: =SUM('Archivo 4'!$P$1420:$P$2163)/1000 -> 0.00 | H90: =SUM('Archivo 4'!$P$2164:$P$2883)/1000 -> 0.00 | I90: =SUM('Archivo 4'!$P$2884:$P$3627)/1000 -> 0.00 | J90: =SUM('Archivo 4'!$P$3628:$P$4347)/1000 -> 1.34 | K90: =SUM('Archivo 4'!$P$4348:$P$5091)/1000 -> 2.70 | L90: =SUM('Archivo 4'!$P$5092:$P$5835)/1000 -> 3.68 | M90: =SUM('Archivo 4'!$P$5836:$P$6555)/1000 -> 3.01 | N90: =SUM('Archivo 4'!$P$6556:$P$7299)/1000 -> 0.00 | O90: =SUM('Archivo 4'!$P$7300:$P$8020)/1000 -> 0.00 | P90: =SUM('Archivo 4'!$P$8021:$P$8763)/1000 -> 0.00 | R90: =SUM(E90:I90)+SUM(N90:P90) -> 0.00 | S90: =SUM(J90:M90) -> 10.73 | U90: =-R90+S90 -> 10.73
C91: =$C$8 -> P01_E01_Higrorregulable | E91: =SUM('Archivo 5'!$P$4:$P$747)/1000 -> -1.49 | F91: =SUM('Archivo 5'!$P$748:$P$1419)/1000 -> -0.02 | G91: =SUM('Archivo 5'!$P$1420:$P$2163)/1000 -> -0.00 | H91: =SUM('Archivo 5'!$P$2164:$P$2883)/1000 -> 0.00 | I91: =SUM('Archivo 5'!$P$2884:$P$3627)/1000 -> 0.00 | J91: =SUM('Archivo 5'!$P$3628:$P$4347)/1000 -> 1.48 | K91: =SUM('Archivo 5'!$P$4348:$P$5091)/1000 -> 3.07 | L91: =SUM('Archivo 5'!$P$5092:$P$5835)/1000 -> 4.04 | M91: =SUM('Archivo 5'!$P$5836:$P$6555)/1000 -> 3.19 | N91: =SUM('Archivo 5'!$P$6556:$P$7299)/1000 -> 0.00 | O91: =SUM('Archivo 5'!$P$7300:$P$8020)/1000 -> 0.00 | P91: =SUM('Archivo 5'!$P$8021:$P$8763)/1000 -> -1.11 | R91: =SUM(E91:I91)+SUM(N91:P91) -> -2.63 | S91: =SUM(J91:M91) -> 11.78 | U91: =-R91+S91 -> 14.41
C97: Tª aire (media mensual ºC)
E98: Enero | F98: Feb | G98: Marzo | H98: Abril | I98: Mayo | J98: Junio | K98: Julio | L98: Ago | M98: Sep | N98: Oct | O98: Nov | P98: Dic | R98: MIN | S98: MAX
C99: =$C$4 -> P01_E01_Base | E99: =SUM('Archivo 1'!$Q$4:$Q$747)/(31*24) -> 20.33 | F99: =SUM('Archivo 1'!$Q$748:$Q$1419)/(28*24) -> 21.76 | G99: =SUM('Archivo 1'!$Q$1420:$Q$2163)/(31*24) -> 22.51 | H99: =SUM('Archivo 1'!$Q$2164:$Q$2883)/(30*24) -> 23.98 | I99: =SUM('Archivo 1'!$Q$2884:$Q$3627)/(31*24) -> 24.63 | J99: =SUM('Archivo 1'!$Q$3628:$Q$4347)/(30*24) -> 23.05 | K99: =SUM('Archivo 1'!$Q$4348:$Q$5091)/(31*24) -> 24.54 | L99: =SUM('Archivo 1'!$Q$5092:$Q$5835)/(31*24) -> 24.83 | M99: =SUM('Archivo 1'!$Q$5836:$Q$6555)/(30*24) -> 24.35 | N99: =SUM('Archivo 1'!$Q$6556:$Q$7299)/(31*24) -> 28.45 | O99: =SUM('Archivo 1'!$Q$7300:$Q$8020)/(30*24) -> 23.76 | P99: =SUM('Archivo 1'!$Q$8021:$Q$8763)/(31*24) -> 20.19 | R99: =MIN('Archivo 1'!$Q$4:$Q$8763) -> 16.4 | S99: =MAX('Archivo 1'!$Q$4:$Q$8763) -> 31.8
C100: =$C$5 -> P01_E01_Sin nocturna | E100: =SUM('Archivo 2'!$Q$4:$Q$747)/(31*24) -> 20.33 | F100: =SUM('Archivo 2'!$Q$748:$Q$1419)/(28*24) -> 21.76 | G100: =SUM('Archivo 2'!$Q$1420:$Q$2163)/(31*24) -> 22.51 | H100: =SUM('Archivo 2'!$Q$2164:$Q$2883)/(30*24) -> 23.98 | I100: =SUM('Archivo 2'!$Q$2884:$Q$3627)/(31*24) -> 24.63 | J100: =SUM('Archivo 2'!$Q$3628:$Q$4347)/(30*24) -> 25.48 | K100: =SUM('Archivo 2'!$Q$4348:$Q$5091)/(31*24) -> 25.82 | L100: =SUM('Archivo 2'!$Q$5092:$Q$5835)/(31*24) -> 25.99 | M100: =SUM('Archivo 2'!$Q$5836:$Q$6555)/(30*24) -> 25.89 | N100: =SUM('Archivo 2'!$Q$6556:$Q$7299)/(31*24) -> 28.91 | O100: =SUM('Archivo 2'!$Q$7300:$Q$8020)/(30*24) -> 23.76 | P100: =SUM('Archivo 2'!$Q$8021:$Q$8763)/(31*24) -> 20.19 | R100: =MIN('Archivo 2'!$Q$4:$Q$8763) -> 17.9 | S100: =MAX('Archivo 2'!$Q$4:$Q$8763) -> 32.0
C101: =$C$6 -> P01_E01_25 viv | E101: =SUM('Archivo 3'!$Q$4:$Q$747)/(31*24) -> 19.38 | F101: =SUM('Archivo 3'!$Q$748:$Q$1419)/(28*24) -> 19.53 | G101: =SUM('Archivo 3'!$Q$1420:$Q$2163)/(31*24) -> 19.81 | H101: =SUM('Archivo 3'!$Q$2164:$Q$2883)/(30*24) -> 20.21 | I101: =SUM('Archivo 3'!$Q$2884:$Q$3627)/(31*24) -> 21.64 | J101: =SUM('Archivo 3'!$Q$3628:$Q$4347)/(30*24) -> 22.62 | K101: =SUM('Archivo 3'!$Q$4348:$Q$5091)/(31*24) -> 24.48 | L101: =SUM('Archivo 3'!$Q$5092:$Q$5835)/(31*24) -> 24.78 | M101: =SUM('Archivo 3'!$Q$5836:$Q$6555)/(30*24) -> 24.18 | N101: =SUM('Archivo 3'!$Q$6556:$Q$7299)/(31*24) -> 22.46 | O101: =SUM('Archivo 3'!$Q$7300:$Q$8020)/(30*24) -> 19.74 | P101: =SUM('Archivo 3'!$Q$8021:$Q$8763)/(31*24) -> 19.35 | R101: =MIN('Archivo 3'!$Q$4:$Q$8763) -> 15.8 | S101: =MAX('Archivo 3'!$Q$4:$Q$8763) -> 28.5
C102: =$C$7 -> P01_E01_Con recuperador | E102: =SUM('Archivo 4'!$Q$4:$Q$747)/(31*24) -> 24.78 | F102: =SUM('Archivo 4'!$Q$748:$Q$1419)/(28*24) -> 31.05 | G102: =SUM('Archivo 4'!$Q$1420:$Q$2163)/(31*24) -> 30.64 | H102: =SUM('Archivo 4'!$Q$2164:$Q$2883)/(30*24) -> 28.56 | I102: =SUM('Archivo 4'!$Q$2884:$Q$3627)/(31*24) -> 28.04 | J102: =SUM('Archivo 4'!$Q$3628:$Q$4347)/(30*24) -> 23.10 | K102: =SUM('Archivo 4'!$Q$4348:$Q$5091)/(31*24) -> 24.53 | L102: =SUM('Archivo 4'!$Q$5092:$Q$5835)/(31*24) -> 24.82 | M102: =SUM('Archivo 4'!$Q$5836:$Q$6555)/(30*24) -> 24.36 | N102: =SUM('Archivo 4'!$Q$6556:$Q$7299)/(31*24) -> 30.00 | O102: =SUM('Archivo 4'!$Q$7300:$Q$8020)/(30*24) -> 30.59 | P102: =SUM('Archivo 4'!$Q$8021:$Q$8763)/(31*24) -> 27.27 | R102: =MIN('Archivo 4'!$Q$4:$Q$8763) -> 16.6 | S102: =MAX('Archivo 4'!$Q$4:$Q$8763) -> 34.6
C103: =$C$8 -> P01_E01_Higrorregulable | E103: =SUM('Archivo 5'!$Q$4:$Q$747)/(31*24) -> 20.50 | F103: =SUM('Archivo 5'!$Q$748:$Q$1419)/(28*24) -> 22.51 | G103: =SUM('Archivo 5'!$Q$1420:$Q$2163)/(31*24) -> 23.27 | H103: =SUM('Archivo 5'!$Q$2164:$Q$2883)/(30*24) -> 24.81 | I103: =SUM('Archivo 5'!$Q$2884:$Q$3627)/(31*24) -> 25.33 | J103: =SUM('Archivo 5'!$Q$3628:$Q$4347)/(30*24) -> 23.08 | K103: =SUM('Archivo 5'!$Q$4348:$Q$5091)/(31*24) -> 24.55 | L103: =SUM('Archivo 5'!$Q$5092:$Q$5835)/(31*24) -> 24.84 | M103: =SUM('Archivo 5'!$Q$5836:$Q$6555)/(30*24) -> 24.36 | N103: =SUM('Archivo 5'!$Q$6556:$Q$7299)/(31*24) -> 29.16 | O103: =SUM('Archivo 5'!$Q$7300:$Q$8020)/(30*24) -> 24.75 | P103: =SUM('Archivo 5'!$Q$8021:$Q$8763)/(31*24) -> 20.38 | R103: =MIN('Archivo 5'!$Q$4:$Q$8763) -> 16.4 | S103: =MAX('Archivo 5'!$Q$4:$Q$8763) -> 32.6

Sheet RES horarios
C2: Dia de mayor carga
D3: Calefaccion | I3: Refrigeración
D4: W/m2 | E4: Mes | F4: Dia | G4: Hora | I4: W/m2 | J4: Mes | K4: Dia | L4: Hora
C5: =Resultados!C4 -> P01_E01_Base | D5: =MIN('Archivo 1'!P:P) -> -46.71 | E5: =INDEX('Archivo 1'!A:B,MATCH(D5,'Archivo 1'!P:P,0),1) -> 1 | F5: =INDEX('Archivo 1'!A:B,MATCH(D5,'Archivo 1'!P:P,0),2) -> 16 | G5: =INDEX('Archivo 1'!$A:$C,MATCH(D5,'Archivo 1'!$P:$P,0),3) -> 8 | I5: =MAX('Archivo 1'!P:P) -> 72.04 | J5: =INDEX('Archivo 1'!A:B,MATCH(I5,'Archivo 1'!P:P,0),1) -> 7 | K5: =INDEX('Archivo 1'!A:B,MATCH(I5,'Archivo 1'!P:P,0),2) -> 22 | L5: =INDEX('Archivo 1'!$A:$C,MATCH(I5,'Archivo 1'!$P:$P,0),3) -> 16
C6: =Resultados!C5 -> P01_E01_Sin nocturna | D6: =MIN('Archivo 2'!P:P) -> -46.71 | E6: =INDEX('Archivo 2'!A:B,MATCH(D6,'Archivo 2'!P:P,0),1) -> 1 | F6: =INDEX('Archivo 2'!A:B,MATCH(D6,'Archivo 2'!P:P,0),2) -> 16 | G6: =INDEX('Archivo 2'!$A:$C,MATCH(D6,'Archivo 2'!$P:$P,0),3) -> 8 | I6: =MAX('Archivo 2'!P:P) -> 92.56 | J6: =INDEX('Archivo 2'!A:B,MATCH(I6,'Archivo 2'!P:P,0),1) -> 9 | K6: =INDEX('Archivo 2'!A:B,MATCH(I6,'Archivo 2'!P:P,0),2) -> 8 | L6: =INDEX('Archivo 2'!$A:$C,MATCH(I6,'Archivo 2'!$P:$P,0),3) -> 16
C7: =Resultados!C6 -> P01_E01_25 viv | D7: =MIN('Archivo 3'!P:P) -> -83.62 | E7: =INDEX('Archivo 3'!A:B,MATCH(D7,'Archivo 3'!P:P,0),1) -> 2 | F7: =INDEX('Archivo 3'!A:B,MATCH(D7,'Archivo 3'!P:P,0),2) -> 15 | G7: =INDEX('Archivo 3'!$A:$C,MATCH(D7,'Archivo 3'!$P:$P,0),3) -> 8 | I7: =MAX('Archivo 3'!P:P) -> 85.35 | J7: =INDEX('Archivo 3'!A:B,MATCH(I7,'Archivo 3'!P:P,0),1) -> 7 | K7: =INDEX('Archivo 3'!A:B,MATCH(I7,'Archivo 3'!P:P,0),2) -> 22 | L7: =INDEX('Archivo 3'!$A:$C,MATCH(I7,'Archivo 3'!$P:$P,0),3) -> 16
C8: =Resultados!C7 -> P01_E01_Con recuperador | D8: =MIN('Archivo 4'!P:P) -> 0.00 | E8: =INDEX('Archivo 4'!A:B,MATCH(D8,'Archivo 4'!P:P,0),1) -> 1 | F8: =INDEX('Archivo 4'!A:B,MATCH(D8,'Archivo 4'!P:P,0),2) -> 1 | G8: =INDEX('Archivo 4'!$A:$C,MATCH(D8,'Archivo 4'!$P:$P,0),3) -> 1 | I8: =MAX('Archivo 4'!P:P) -> 64.43 | J8: =INDEX('Archivo 4'!A:B,MATCH(I8,'Archivo 4'!P:P,0),1) -> 7 | K8: =INDEX('Archivo 4'!A:B,MATCH(I8,'Archivo 4'!P:P,0),2) -> 22 | L8: =INDEX('Archivo 4'!$A:$C,MATCH(I8,'Archivo 4'!$P:$P,0),3) -> 16
C9: =Resultados!C8 -> P01_E01_Higrorregulable | D9: =MIN('Archivo 5'!P:P) -> -42.37 | E9: =INDEX('Archivo 5'!A:B,MATCH(D9,'Archivo 5'!P:P,0),1) -> 1 | F9: =INDEX('Archivo 5'!A:B,MATCH(D9,'Archivo 5'!P:P,0),2) -> 16 | G9: =INDEX('Archivo 5'!$A:$C,MATCH(D9,'Archivo 5'!$P:$P,0),3) -> 8 | I9: =MAX('Archivo 5'!P:P) -> 71.13 | J9: =INDEX('Archivo 5'!A:B,MATCH(I9,'Archivo 5'!P:P,0),1) -> 7 | K9: =INDEX('Archivo 5'!A:B,MATCH(I9,'Archivo 5'!P:P,0),2) -> 22 | L9: =INDEX('Archivo 5'!$A:$C,MATCH(I9,'Archivo 5'!$P:$P,0),3) -> 16
C11: Dia comprobacion | D11: Mes | E11: Dia
D12: 1 | E12: 16 | F12: =4+24*(DATE(2019,D12,E12)-DATE(2019,1,1)) -> 364
C30: Resultados horarios Carga total acumulada (W/m2)
D31: 1 | E31: 2 | F31: 3 | G31: 4 | H31: 5 | I31: 6 | J31: 7 | K31: 8 | L31: 9 | M31: 10 | N31: 11 | O31: 12 | P31: 13 | Q31: 14 | R31: 15 | S31: 16 | T31: 17 | U31: 18 | V31: 19 | W31: 20 | X31: 21 | Y31: 22 | Z31: 23 | AA31: 24
C32: =C5 -> P01_E01_Base | D32: =INDEX('Archivo 1'!$P:$P,$F$12+(D$31-1),1) -> 0.00 | E32: =INDEX('Archivo 1'!$P:$P,$F$12+(E$31-1),1) -> 0.00 | F32: =INDEX('Archivo 1'!$P:$P,$F$12+(F$31-1),1) -> 0.00 | G32: =INDEX('Archivo 1'!$P:$P,$F$12+(G$31-1),1) -> 0.00 | H32: =INDEX('Archivo 1'!$P:$P,$F$12+(H$31-1),1) -> 0.00 | I32: =INDEX('Archivo 1'!$P:$P,$F$12+(I$31-1),1) -> 0.00 | J32: =INDEX('Archivo 1'!$P:$P,$F$12+(J$31-1),1) -> 0.00 | K32: =INDEX('Archivo 1'!$P:$P,$F$12+(K$31-1),1) -> -46.71 | L32: =INDEX('Archivo 1'!$P:$P,$F$12+(L$31-1),1) -> -14.95 | M32: =INDEX('Archivo 1'!$P:$P,$F$12+(M$31-1),1) -> -10.92 | N32: =INDEX('Archivo 1'!$P:$P,$F$12+(N$31-1),1) -> -9.43 | O32: =INDEX('Archivo 1'!$P:$P,$F$12+(O$31-1),1) -> -9.51 | P32: =INDEX('Archivo 1'!$P:$P,$F$12+(P$31-1),1) -> -8.64 | Q32: =INDEX('Archivo 1'!$P:$P,$F$12+(Q$31-1),1) -> -8.32 | R32: =INDEX('Archivo 1'!$P:$P,$F$12+(R$31-1),1) -> -8.66 | S32: =INDEX('Archivo 1'!$P:$P,$F$12+(S$31-1),1) -> -9.10 | T32: =INDEX('Archivo 1'!$P:$P,$F$12+(T$31-1),1) -> -8.70 | U32: =INDEX('Archivo 1'!$P:$P,$F$12+(U$31-1),1) -> -9.45 | V32: =INDEX('Archivo 1'!$P:$P,$F$12+(V$31-1),1) -> -9.22 | W32: =INDEX('Archivo 1'!$P:$P,$F$12+(W$31-1),1) -> -7.07 | X32: =INDEX('Archivo 1'!$P:$P,$F$12+(X$31-1),1) -> -7.14 | Y32: =INDEX('Archivo 1'!$P:$P,$F$12+(Y$31-1),1) -> -6.92 | Z32: =INDEX('Archivo 1'!$P:$P,$F$12+(Z$31-1),1) -> -6.74 | AA32: =INDEX('Archivo 1'!$P:$P,$F$12+(AA$31-1),1) -> 0.00
C33: =C6 -> P01_E01_Sin nocturna | D33: =INDEX('Archivo 2'!$P:$P,$F$12+(D$31-1),1) -> 0.00 | E33: =INDEX('Archivo 2'!$P:$P,$F$12+(E$31-1),1) -> 0.00 | F33: =INDEX('Archivo 2'!$P:$P,$F$12+(F$31-1),1) -> 0.00 | G33: =INDEX('Archivo 2'!$P:$P,$F$12+(G$31-1),1) -> 0.00 | H33: =INDEX('Archivo 2'!$P:$P,$F$12+(H$31-1),1) -> 0.00 | I33: =INDEX('Archivo 2'!$P:$P,$F$12+(I$31-1),1) -> 0.00 | J33: =INDEX('Archivo 2'!$P:$P,$F$12+(J$31-1),1) -> 0.00 | K33: =INDEX('Archivo 2'!$P:$P,$F$12+(K$31-1),1) -> -46.71 | L33: =INDEX('Archivo 2'!$P:$P,$F$12+(L$31-1),1) -> -14.95 | M33: =INDEX('Archivo 2'!$P:$P,$F$12+(M$31-1),1) -> -10.92 | N33: =INDEX('Archivo 2'!$P:$P,$F$12+(N$31-1),1) -> -9.43 | O33: =INDEX('Archivo 2'!$P:$P,$F$12+(O$31-1),1) -> -9.51 | P33: =INDEX('Archivo 2'!$P:$P,$F$12+(P$31-1),1) -> -8.64 | Q33: =INDEX('Archivo 2'!$P:$P,$F$12+(Q$31-1),1) -> -8.32 | R33: =INDEX('Archivo 2'!$P:$P,$F$12+(R$31-1),1) -> -8.66 | S33: =INDEX('Archivo 2'!$P:$P,$F$12+(S$31-1),1) -> -9.10 | T33: =INDEX('Archivo 2'!$P:$P,$F$12+(T$31-1),1) -> -8.70 | U33: =INDEX('Archivo 2'!$P:$P,$F$12+(U$31-1),1) -> -9.45 | V33: =INDEX('Archivo 2'!$P:$P,$F$12+(V$31-1),1) -> -9.22 | W33: =INDEX('Archivo 2'!$P:$P,$F$12+(W$31-1),1) -> -7.07 | X33: =INDEX('Archivo 2'!$P:$P,$F$12+(X$31-1),1) -> -7.14 | Y33: =INDEX('Archivo 2'!$P:$P,$F$12+(Y$31-1),1) -> -6.92 | Z33: =INDEX('Archivo 2'!$P:$P,$F$12+(Z$31-1),1) -> -6.74 | AA33: =INDEX('Archivo 2'!$P:$P,$F$12+(AA$31-1),1) -> 0.00
C34: =C7 -> P01_E01_25 viv | D34: =INDEX('Archivo 3'!$P:$P,$F$12+(D$31-1),1) -> 0.00 | E34: =INDEX('Archivo 3'!$P:$P,$F$12+(E$31-1),1) -> 0.00 | F34: =INDEX('Archivo 3'!$P:$P,$F$12+(F$31-1),1) -> -5.46 | G34: =INDEX('Archivo 3'!$P:$P,$F$12+(G$31-1),1) -> -10.24 | H34: =INDEX('Archivo 3'!$P:$P,$F$12+(H$31-1),1) -> -11.18 | I34: =INDEX('Archivo 3'!$P:$P,$F$12+(I$31-1),1) -> -12.01 | J34: =INDEX('Archivo 3'!$P:$P,$F$12+(J$31-1),1) -> -11.99 | K34: =INDEX('Archivo 3'!$P:$P,$F$12+(K$31-1),1) -> -79.29 | L34: =INDEX('Archivo 3'!$P:$P,$F$12+(L$31-1),1) -> -32.67 | M34: =INDEX('Archivo 3'!$P:$P,$F$12+(M$31-1),1) -> -27.47 | N34: =INDEX('Archivo 3'!$P:$P,$F$12+(N$31-1),1) -> -24.44 | O34: =INDEX('Archivo 3'!$P:$P,$F$12+(O$31-1),1) -> -23.87 | P34: =INDEX('Archivo 3'!$P:$P,$F$12+(P$31-1),1) -> -22.38 | Q34: =INDEX('Archivo 3'!$P:$P,$F$12+(Q$31-1),1) -> -21.47 | R34: =INDEX('Archivo 3'!$P:$P,$F$12+(R$31-1),1) -> -21.65 | S34: =INDEX('Archivo 3'!$P:$P,$F$12+(S$31-1),1) -> -22.37 | T34: =INDEX('Archivo 3'!$P:$P,$F$12+(T$31-1),1) -> -21.84 | U34: =INDEX('Archivo 3'!$P:$P,$F$12+(U$31-1),1) -> -22.90 | V34: =INDEX('Archivo 3'!$P:$P,$F$12+(V$31-1),1) -> -22.98 | W34: =INDEX('Archivo 3'!$P:$P,$F$12+(W$31-1),1) -> -20.73 | X34: =INDEX('Archivo 3'!$P:$P,$F$12+(X$31-1),1) -> -21.13 | Y34: =INDEX('Archivo 3'!$P:$P,$F$12+(Y$31-1),1) -> -20.83 | Z34: =INDEX('Archivo 3'!$P:$P,$F$12+(Z$31-1),1) -> -20.56 | AA34: =INDEX('Archivo 3'!$P:$P,$F$12+(AA$31-1),1) -> 0.00
C35: =C8 -> P01_E01_Con recuperador | D35: =INDEX('Archivo 4'!$P:$P,$F$12+(D$31-1),1) -> 0.00 | E35: =INDEX('Archivo 4'!$P:$P,$F$12+(E$31-1),1) -> 0.00 | F35: =INDEX('Archivo 4'!$P:$P,$F$12+(F$31-1),1) -> 0.00 | G35: =INDEX('Archivo 4'!$P:$P,$F$12+(G$31-1),1) -> 0.00 | H35: =INDEX('Archivo 4'!$P:$P,$F$12+(H$31-1),1) -> 0.00 | I35: =INDEX('Archivo 4'!$P:$P,$F$12+(I$31-1),1) -> 0.00 | J35: =INDEX('Archivo 4'!$P:$P,$F$12+(J$31-1),1) -> 0.00 | K35: =INDEX('Archivo 4'!$P:$P,$F$12+(K$31-1),1) -> 0.00 | L35: =INDEX('Archivo 4'!$P:$P,$F$12+(L$31-1),1) -> 0.00 | M35: =INDEX('Archivo 4'!$P:$P,$F$12+(M$31-1),1) -> 0.00 | N35: =INDEX('Archivo 4'!$P:$P,$F$12+(N$31-1),1) -> 0.00 | O35: =INDEX('Archivo 4'!$P:$P,$F$12+(O$31-1),1) -> 0.00 | P35: =INDEX('Archivo 4'!$P:$P,$F$12+(P$31-1),1) -> 0.00 | Q35: =INDEX('Archivo 4'!$P:$P,$F$12+(Q$31-1),1) -> 0.00 | R35: =INDEX('Archivo 4'!$P:$P,$F$12+(R$31-1),1) -> 0.00 | S35: =INDEX('Archivo 4'!$P:$P,$F$12+(S$31-1),1) -> 0.00 | T35: =INDEX('Archivo 4'!$P:$P,$F$12+(T$31-1),1) -> 0.00 | U35: =INDEX('Archivo 4'!$P:$P,$F$12+(U$31-1),1) -> 0.00 | V35: =INDEX('Archivo 4'!$P:$P,$F$12+(V$31-1),1) -> 0.00 | W35: =INDEX('Archivo 4'!$P:$P,$F$12+(W$31-1),1) -> 0.00 | X35: =INDEX('Archivo 4'!$P:$P,$F$12+(X$31-1),1) -> 0.00 | Y35: =INDEX('Archivo 4'!$P:$P,$F$12+(Y$31-1),1) -> 0.00 | Z35: =INDEX('Archivo 4'!$P:$P,$F$12+(Z$31-1),1) -> 0.00 | AA35: =INDEX('Archivo 4'!$P:$P,$F$12+(AA$31-1),1) -> 0.00
C36: =C9 -> P01_E01_Higrorregulable | D36: =INDEX('Archivo 5'!$P:$P,$F$12+(D$31-1),1) -> 0.00 | E36: =INDEX('Archivo 5'!$P:$P,$F$12+(E$31-1),1) -> 0.00 | F36: =INDEX('Archivo 5'!$P:$P,$F$12+(F$31-1),1) -> 0.00 | G36: =INDEX('Archivo 5'!$P:$P,$F$12+(G$31-1),1) -> 0.00 | H36: =INDEX('Archivo 5'!$P:$P,$F$12+(H$31-1),1) -> 0.00 | I36: =INDEX('Archivo 5'!$P:$P,$F$12+(I$31-1),1) -> 0.00 | J36: =INDEX('Archivo 5'!$P:$P,$F$12+(J$31-1),1) -> 0.00 | K36: =INDEX('Archivo 5'!$P:$P,$F$12+(K$31-1),1) -> -42.37 | L36: =INDEX('Archivo 5'!$P:$P,$F$12+(L$31-1),1) -> -13.55 | M36: =INDEX('Archivo 5'!$P:$P,$F$12+(M$31-1),1) -> -9.62 | N36: =INDEX('Archivo 5'!$P:$P,$F$12+(N$31-1),1) -> -8.25 | O36: =INDEX('Archivo 5'!$P:$P,$F$12+(O$31-1),1) -> -8.38 | P36: =INDEX('Archivo 5'!$P:$P,$F$12+(P$31-1),1) -> -7.57 | Q36: =INDEX('Archivo 5'!$P:$P,$F$12+(Q$31-1),1) -> -7.30 | R36: =INDEX('Archivo 5'!$P:$P,$F$12+(R$31-1),1) -> -7.65 | S36: =INDEX('Archivo 5'!$P:$P,$F$12+(S$31-1),1) -> -8.09 | T36: =INDEX('Archivo 5'!$P:$P,$F$12+(T$31-1),1) -> -7.71 | U36: =INDEX('Archivo 5'!$P:$P,$F$12+(U$31-1),1) -> -8.45 | V36: =INDEX('Archivo 5'!$P:$P,$F$12+(V$31-1),1) -> -8.20 | W36: =INDEX('Archivo 5'!$P:$P,$F$12+(W$31-1),1) -> -6.06 | X36: =INDEX('Archivo 5'!$P:$P,$F$12+(X$31-1),1) -> -6.11 | Y36: =INDEX('Archivo 5'!$P:$P,$F$12+(Y$31-1),1) -> -5.91 | Z36: =INDEX('Archivo 5'!$P:$P,$F$12+(Z$31-1),1) -> -5.74 | AA36: =INDEX('Archivo 5'!$P:$P,$F$12+(AA$31-1),1) -> 0.00

Sheet Archivo 1
D1: Nombre espacio | E1: Area(m2)
D2: P01_E01 | E2: 83.16
A3: Mes | B3: Dia | C3: Hora | D3: Horario Funcionamiento Equipo | E3: Funcionamiento Real Equipo | F3: Transmisi Muros Exteriores(W/m2 del espacio) | G3: Transmisi Muros Interiores(W/m2 del espacio) | H3: Transmisi Cubiertas(W/m2 del espacio) | I3: Transmisi Suelos(W/m2 del espacio) | J3: Transmisi Puentes T駻micos(W/m2 del espacio) | K3: Transmisi Ventanas(W/m2 del espacio) | L3: Radiaci Ventanas(W/m2 del espacio) | M3: Fuentes internas(W/m2 del espacio) | N3: Carga de ventilaci e infiltraci(W/m2 del espacio) | O3: Energia Almacenada Aire(W/m2 del espacio) | P3: Carga Total(W/m2 del espacio) | Q3: Temperatura aire (ｺC)
A4: 1 | B4: 1 | C4: 1 | D4: 1 | E4: 0 | F4: 2.084 | G4: 0.014 | H4: 0 | I4: 0 | J4: 0.186 | K4: 3.141 | L4: 1.223 | M4: 4.211 | N4: -10.859 | O4: 0 | P4: 0 | Q4: 20.69
A5: 1 | B5: 1 | C5: 2 | D5: 1 | E5: 0 | F5: 0.246 | G5: 0.002 | H5: 0 | I5: 0 | J5: 0.019 | K5: 0.313 | L5: 1.145 | M5: 4.072 | N5: -6.664 | O5: 0.867 | P5: 0 | Q5: 20.63
A6: 1 | B6: 1 | C6: 3 | D6: 1 | E6: 0 | F6: 0.199 | G6: 0.001 | H6: 0 | I6: 0 | J6: 0.014 | K6: 0.236 | L6: 1.074 | M6: 3.968 | N6: -5.516 | O6: 0.024 | P6: 0 | Q6: 20.63
A7: 1 | B7: 1 | C7: 4 | D7: 1 | E7: 0 | F7: 0.168 | G7: 0.001 | H7: 0 | I7: 0 | J7: 0.012 | K7: 0.202 | L7: 1.008 | M7: 3.881 | N7: -5.784 | O7: 0.511 | P7: 0 | Q7: 20.6
A8: 1 | B8: 1 | C8: 5 | D8: 1 | E8: 0 | F8: 0.192 | G8: 0.001 | H8: 0 | I8: 0 | J8: 0.014 | K8: 0.232 | L8: 0.949 | M8: 3.807 | N8: -6.043 | O8: 0.847 | P8: 0 | Q8: 20.54
A9: 1 | B9: 1 | C9: 6 | D9: 1 | E9: 0 | F9: 0.23 | G9: 0.001 | H9: 0 | I9: 0 | J9: 0.016 | K9: 0.275 | L9: 0.894 | M9: 3.742 | N9: -6.014 | O9: 0.856 | P9: 0 | Q9: 20.49
A10: 1 | B10: 1 | C10: 7 | D10: 1 | E10: 0 | F10: 0.31 | G10: 0.002 | H10: 0 | I10: 0 | J10: 0.022 | K10: 0.382 | L10: 0.843 | M10: 3.685 | N10: -6.547 | O10: 1.303 | P10: 0 | Q10: 20.4
A11: 1 | B11: 1 | C11: 8 | D11: 1 | E11: 0 | F11: 0.382 | G11: 0.002 | H11: 0 | I11: 0 | J11: 0.027 | K11: 0.472 | L11: 0.796 | M11: 3.702 | N11: -6.51 | O11: 1.128 | P11: 0 | Q11: 20.32
A12: 1 | B12: 1 | C12: 9 | D12: 1 | E12: 0 | F12: 0.44 | G12: 0.002 | H12: 0 | I12: 0 | J12: 0.031 | K12: 0.541 | L12: 0.792 | M12: 3.662 | N12: -6.476 | O12: 1.009 | P12: 0 | Q12: 20.26
A13: 1 | B13: 1 | C13: 10 | D13: 1 | E13: 0 | F13: 0.459 | G13: 0.002 | H13: 0 | I13: 0 | J13: 0.031 | K13: 0.501 | L13: 1.209 | M13: 3.625 | N13: -5.899 | O13: 0.071 | P13: 0 | Q13: 20.25
A14: 1 | B14: 1 | C14: 11 | D14: 1 | E14: 0 | F14: -0.572 | G14: -0.003 | H14: 0 | I14: 0 | J14: -0.027 | K14: 0.972 | L14: 8.349 | M14: 3.591 | N14: -5.275 | O14: -7.035 | P14: 0 | Q14: 20.72
A15: 1 | B15: 1 | C15: 12 | D15: 1 | E15: 0 | F15: -2.405 | G15: -0.012 | H15: 0 | I15: 0 | J15: -0.096 | K15: 0.692 | L15: 10.014 | M15: 3.56 | N15: -4.66 | O15: -7.093 | P15: 0 | Q15: 21.19
A16: 1 | B16: 1 | C16: 13 | D16: 1 | E16: 0 | F16: -3.228 | G16: -0.015 | H16: 0 | I16: 0 | J16: -0.151 | K16: -0.04 | L16: 5.901 | M16: 3.531 | N16: -4.43 | O16: -1.568 | P16: 0 | Q16: 21.3
A17: 1 | B17: 1 | C17: 14 | D17: 1 | E17: 0 | F17: -2.352 | G17: -0.011 | H17: 0 | I17: 0 | J17: -0.123 | K17: -1.021 | L17: 3.488 | M17: 3.505 | N17: -4.672 | O17: 1.186 | P17: 0 | Q17: 21.22
A18: 1 | B18: 1 | C18: 15 | D18: 1 | E18: 0 | F18: -1.786 | G18: -0.008 | H18: 0 | I18: 0 | J18: -0.099 | K18: -1.082 | L18: 2.759 | M18: 3.481 | N18: -4.9 | O18: 1.635 | P18: 0 | Q18: 21.11
A19: 1 | B19: 1 | C19: 16 | D19: 1 | E19: 0 | F19: -1.501 | G19: -0.007 | H19: 0 | I19: 0 | J19: -0.085 | K19: -0.868 | L19: 3.041 | M19: 3.713 | N19: -5.154 | O19: 0.861 | P19: 0 | Q19: 21.05
A20: 1 | B20: 1 | C20: 17 | D20: 1 | E20: 0 | F20: -1.374 | G20: -0.006 | H20: 0 | I20: 0 | J20: -0.079 | K20: -0.718 | L20: 3.36 | M20: 3.715 | N20: -5.146 | O20: 0.248 | P20: 0 | Q20: 21.04
A21: 1 | B21: 1 | C21: 18 | D21: 1 | E21: 0 | F21: -1.063 | G21: -0.005 | H21: 0 | I21: 0 | J21: -0.066 | K21: -0.838 | L21: 2.284 | M21: 3.713 | N21: -5.385 | O21: 1.36 | P21: 0 | Q21: 20.94
A22: 1 | B22: 1 | C22: 19 | D22: 1 | E22: 0 | F22: -0.893 | G22: -0.004 | H22: 0 | I22: 0 | J22: -0.058 | K22: -0.806 | L22: 1.957 | M22: 4.542 | N22: -5.64 | O22: 0.902 | P22: 0 | Q22: 20.88
A23: 1 | B23: 1 | C23: 20 | D23: 1 | E23: 0 | F23: -1.047 | G23: -0.004 | H23: 0 | I23: 0 | J23: -0.07 | K23: -1.007 | L23: 1.777 | M23: 6.692 | N23: -5.662 | O23: -0.678 | P23: 0 | Q23: 20.93
A24: 1 | B24: 1 | C24: 21 | D24: 1 | E24: 0 | F24: -1.11 | G24: -0.005 | H24: 0 | I24: 0 | J24: -0.077 | K24: -1.141 | L24: 1.638 | M24: 6.935 | N24: -5.957 | O24: -0.283 | P24: 0 | Q24: 20.95
A25: 1 | B25: 1 | C25: 22 | D25: 1 | E25: 0 | F25: -1.154 | G25: -0.005 | H25: 0 | I25: 0 | J25: -0.081 | K25: -1.231 | L25: 1.517 | M25: 7.132 | N25: -5.964 | O25: -0.214 | P25: 0 | Q25: 20.96
A26: 1 | B26: 1 | C26: 23 | D26: 1 | E26: 0 | F26: -1.151 | G26: -0.004 | H26: 0 | I26: 0 | J26: -0.082 | K26: -1.288 | L26: 1.409 | M26: 7.302 | N26: -6.249 | O26: 0.063 | P26: 0 | Q26: 20.96
A27: 1 | B27: 1 | C27: 24 | D27: 1 | E27: 0 | F27: -0.957 | G27: -0.003 | H27: 0 | I27: 0 | J27: -0.069 | K27: -1.097 | L27: 1.313 | M27: 5.884 | N27: -6.211 | O27: 1.141 | P27: 0 | Q27: 20.88
A28: 1 | B28: 2 | C28: 1 | D28: 1 | E28: 0 | F28: -0.618 | G28: -0.002 | H28: 0 | I28: 0 | J28: -0.044 | K28: -0.72 | L28: 1.226 | M28: 4.216 | N28: -6.142 | O28: 2.086 | P28: 0 | Q28: 20.74
A29: 1 | B29: 2 | C29: 2 | D29: 1 | E29: 0 | F29: -0.35 | G29: -0.001 | H29: 0 | I29: 0 | J29: -0.025 | K29: -0.42 | L29: 1.147 | M29: 4.077 | N29: -6.366 | O29: 1.938 | P29: 0 | Q29: 20.61
A30: 1 | B30: 2 | C30: 3 | D30: 1 | E30: 0 | F30: -0.128 | G30: 0 | H30: 0 | I30: 0 | J30: -0.009 | K30: -0.158 | L30: 1.076 | M30: 3.972 | N30: -6.594 | O30: 1.841 | P30: 0 | Q30: 20.49
A31: 1 | B31: 2 | C31: 4 | D31: 1 | E31: 0 | F31: 0.038 | G31: 0 | H31: 0 | I31: 0 | J31: 0.003 | K31: 0.047 | L31: 1.011 | M31: 3.886 | N31: -6.542 | O31: 1.558 | P31: 0 | Q31: 20.39
A32: 1 | B32: 2 | C32: 5 | D32: 1 | E32: 0 | F32: 0.182 | G32: 0.001 | H32: 0 | I32: 0 | J32: 0.014 | K32: 0.231 | L32: 0.951 | M32: 3.811 | N32: -6.779 | O32: 1.59 | P32: 0 | Q32: 20.28
A33: 1 | B33: 2 | C33: 6 | D33: 1 | E33: 0 | F33: 0.295 | G33: 0.001 | H33: 0 | I33: 0 | J33: 0.022 | K33: 0.378 | L33: 0.896 | M33: 3.746 | N33: -6.733 | O33: 1.394 | P33: 0 | Q33: 20.19
A34: 1 | B34: 2 | C34: 7 | D34: 1 | E34: 0 | F34: 0.401 | G34: 0.001 | H34: 0 | I34: 0 | J34: 0.03 | K34: 0.523 | L34: 0.845 | M34: 3.689 | N34: -6.974 | O34: 1.485 | P34: 0 | Q34: 20.09
A35: 1 | B35: 2 | C35: 8 | D35: 1 | E35: 0 | F35: 0.48 | G35: 0.001 | H35: 0 | I35: 0 | J35: 0.036 | K35: 0.628 | L35: 0.798 | M35: 3.705 | N35: -6.931 | O35: 1.283 | P35: 0 | Q35: 20
A36: 1 | B36: 2 | C36: 9 | D36: 1 | E36: 1 | F36: 0.357 | G36: 0.001 | H36: 0 | I36: 0 | J36: 0.026 | K36: 0.466 | L36: 0.774 | M36: 3.665 | N36: -6.929 | O36: 0.07 | P36: -1.568 | Q36: 20
A37: 1 | B37: 2 | C37: 10 | D37: 1 | E37: 1 | F37: 0.298 | G37: 0.001 | H37: 0 | I37: 0 | J37: 0.021 | K37: 0.365 | L37: 0.992 | M37: 3.628 | N37: -6.638 | O37: 0 | P37: -1.333 | Q37: 20
A38: 1 | B38: 2 | C38: 11 | D38: 1 | E38: 0 | F38: 0.346 | G38: 0.001 | H38: 0 | I38: 0 | J38: 0.022 | K38: 0.302 | L38: 2.397 | M38: 3.594 | N38: -5.803 | O38: -0.859 | P38: 0 | Q38: 20.06
A39: 1 | B39: 2 | C39: 12 | D39: 1 | E39: 0 | F39: 0.091 | G39: 0 | H39: 0 | I39: 0 | J39: 0.005 | K39: 0.057 | L39: 3.385 | M39: 3.563 | N39: -5.291 | O39: -1.81 | P39: 0 | Q39: 20.18
A40: 1 | B40: 2 | C40: 13 | D40: 1 | E40: 0 | F40: -0.198 | G40: 0 | H40: 0 | I40: 0 | J40: -0.012 | K40: -0.162 | L40: 2.303 | M40: 3.534 | N40: -5.297 | O40: -0.168 | P40: 0 | Q40: 20.19
A41: 1 | B41: 2 | C41: 14 | D41: 1 | E41: 0 | F41: -0.28 | G41: -0.001 | H41: 0 | I41: 0 | J41: -0.017 | K41: -0.225 | L41: 2.146 | M41: 3.508 | N41: -5.017 | O41: -0.115 | P41: 0 | Q41: 20.2
A42: 1 | B42: 2 | C42: 15 | D42: 1 | E42: 0 | F42: -0.325 | G42: -0.001 | H42: 0 | I42: 0 | J42: -0.019 | K42: -0.259 | L42: 2.113 | M42: 3.483 | N42: -5.016 | O42: 0.023 | P42: 0 | Q42: 20.2
A43: 1 | B43: 2 | C43: 16 | D43: 1 | E43: 0 | F43: -0.608 | G43: -0.001 | H43: 0 | I43: 0 | J43: -0.032 | K43: -0.237 | L43: 4.235 | M43: 3.715 | N43: -4.808 | O43: -2.265 | P43: 0 | Q43: 20.35
A44: 1 | B44: 2 | C44: 17 | D44: 1 | E44: 0 | F44: -0.867 | G44: -0.001 | H44: 0 | I44: 0 | J44: -0.048 | K44: -0.475 | L44: 3.386 | M44: 3.717 | N44: -5.11 | O44: -0.6 | P44: 0 | Q44: 20.39
A45: 1 | B45: 2 | C45: 18 | D45: 1 | E45: 0 | F45: -0.734 | G45: -0.001 | H45: 0 | I45: 0 | J45: -0.044 | K45: -0.652 | L45: 1.744 | M45: 3.716 | N45: -5.351 | O45: 1.323 | P45: 0 | Q45: 20.3
A46: 1 | B46: 2 | C46: 19 | D46: 1 | E46: 0 | F46: -0.619 | G46: -0.001 | H46: 0 | I46: 0 | J46: -0.039 | K46: -0.603 | L46: 1.475 | M46: 4.544 | N46: -5.608 | O46: 0.849 | P46: 0 | Q46: 20.24
A47: 1 | B47: 2 | C47: 20 | D47: 1 | E47: 0 | F47: -0.798 | G47: -0.001 | H47: 0 | I47: 0 | J47: -0.051 | K47: -0.815 | L47: 1.328 | M47: 6.694 | N47: -5.631 | O47: -0.726 | P47: 0 | Q47: 20.29
A48: 1 | B48: 2 | C48: 21 | D48: 1 | E48: 0 | F48: -0.92 | G48: -0.001 | H48: 0 | I48: 0 | J48: -0.06 | K48: -0.973 | L48: 1.22 | M48: 6.937 | N48: -5.65 | O48: -0.553 | P48: 0 | Q48: 20.33
A49: 1 | B49: 2 | C49: 22 | D49: 1 | E49: 0 | F49: -0.974 | G49: -0.001 | H49: 0 | I49: 0 | J49: -0.065 | K49: -1.077 | L49: 1.128 | M49: 7.134 | N49: -5.942 | O49: -0.201 | P49: 0 | Q49: 20.34
A50: 1 | B50: 2 | C50: 23 | D50: 1 | E50: 0 | F50: -1.015 | G50: -0.001 | H50: 0 | I50: 0 | J50: -0.069 | K50: -1.151 | L50: 1.047 | M50: 7.304 | N50: -5.948 | O50: -0.166 | P50: 0 | Q50: 20.35
A51: 1 | B51: 2 | C51: 24 | D51: 1 | E51: 0 | F51: -0.823 | G51: -0.001 | H51: 0 | I51: 0 | J51: -0.057 | K51: -0.965 | L51: 0.974 | M51: 5.885 | N51: -6.196 | O51: 1.183 | P51: 0 | Q51: 20.27
A52: 1 | B52: 3 | C52: 1 | D52: 1 | E52: 0 | F52: -0.487 | G52: -0.001 | H52: 0 | I52: 0 | J52: -0.034 | K52: -0.58 | L52: 0.91 | M52: 4.217 | N52: -6.127 | O52: 2.101 | P52: 0 | Q52: 20.13
A53: 1 | B53: 3 | C53: 2 | D53: 1 | E53: 0 | F53: -0.251 | G53: 0 | H53: 0 | I53: 0 | J53: -0.017 | K53: -0.302 | L53: 0.851 | M53: 4.078 | N53: -6.07 | O53: 1.711 | P53: 0 | Q53: 20.02
A54: 1 | B54: 3 | C54: 3 | D54: 1 | E54: 0 | F54: -0.057 | G54: 0 | H54: 0 | I54: 0 | J54: -0.004 | K54: -0.071 | L54: 0.798 | M54: 3.974 | N54: -6.303 | O54: 1.664 | P54: 0 | Q54: 19.91
A55: 1 | B55: 3 | C55: 4 | D55: 1 | E55: 0 | F55: 0.089 | G55: 0 | H55: 0 | I55: 0 | J55: 0.006 | K55: 0.11 | L55: 0.75 | M55: 3.887 | N55: -6.256 | O55: 1.414 | P55: 0 | Q55: 19.81
A56: 1 | B56: 3 | C56: 5 | D56: 1 | E56: 0 | F56: 0.196 | G56: 0 | H56: 0 | I56: 0 | J56: 0.014 | K56: 0.244 | L56: 0.706 | M56: 3.813 | N56: -6.215 | O56: 1.243 | P56: 0 | Q56: 19.73
A57: 1 | B57: 3 | C57: 6 | D57: 1 | E57: 0 | F57: 0.277 | G57: 0 | H57: 0 | I57: 0 | J57: 0.019 | K57: 0.346 | L57: 0.665 | M57: 3.747 | N57: -6.178 | O57: 1.123 | P57: 0 | Q57: 19.66
A58: 1 | B58: 3 | C58: 7 | D58: 1 | E58: 0 | F58: 0.36 | G58: 0 | H58: 0 | I58: 0 | J58: 0.025 | K58: 0.458 | L58: 0.627 | M58: 3.69 | N58: -6.425 | O58: 1.265 | P58: 0 | Q58: 19.57
A59: 1 | B59: 3 | C59: 8 | D59: 1 | E59: 1 | F59: -0.859 | G59: -0.001 | H59: 0 | I59: 0 | J59: -0.06 | K59: -1.095 | L59: 0.593 | M59: 3.706 | N59: -6.638 | O59: -6.435 | P59: -10.79 | Q59: 20
A60: 1 | B60: 3 | C60: 9 | D60: 1 | E60: 1 | F60: -0.878 | G60: -0.001 | H60: 0 | I60: 0 | J60: -0.061 | K60: -1.113 | L60: 0.6 | M60: 3.666 | N60: -6.638 | O60: 0 | P60: -4.426 | Q60: 20
A61: 1 | B61: 3 | C61: 10 | D61: 1 | E61: 1 | F61: -0.872 | G61: -0.001 | H61: 0 | I61: 0 | J61: -0.059 | K61: -1.024 | L61: 0.831 | M61: 3.629 | N61: -6.061 | O61: 0 | P61: -3.557 | Q61: 20
A62: 1 | B62: 3 | C62: 11 | D62: 1 | E62: 1 | F62: -0.778 | G62: -0.001 | H62: 0 | I62: 0 | J62: -0.048 | K62: -0.689 | L62: 2.079 | M62: 3.595 | N62: -5.488 | O62: 0 | P62: -1.33 | Q62: 20
A63: 1 | B63: 3 | C63: 12 | D63: 1 | E63: 1 | F63: -0.749 | G63: -0.001 | H63: 0 | I63: 0 | J63: -0.044 | K63: -0.574 | L63: 2.425 | M63: 3.564 | N63: -4.92 | O63: 0 | P63: -0.298 | Q63: 20
A64: 1 | B64: 3 | C64: 13 | D64: 1 | E64: 1 | F64: -0.801 | G64: -0.001 | H64: 0 | I64: 0 | J64: -0.046 | K64: -0.642 | L64: 2.02 | M64: 3.535 | N64: -4.638 | O64: 0 | P64: -0.572 | Q64: 20
A65: 1 | B65: 3 | C65: 14 | D65: 1 | E65: 0 | F65: -0.9 | G65: -0.001 | H65: 0 | I65: 0 | J65: -0.048 | K65: -0.503 | L65: 3.195 | M65: 3.509 | N65: -4.385 | O65: -0.867 | P65: 0 | Q65: 20.06
A66: 1 | B66: 3 | C66: 15 | D66: 1 | E66: 0 | F66: -1.075 | G66: -0.001 | H66: 0 | I66: 0 | J66: -0.056 | K66: -0.588 | L66: 3.075 | M66: 3.484 | N66: -4.128 | O66: -0.711 | P66: 0 | Q66: 20.11
A67: 1 | B67: 3 | C67: 16 | D67: 1 | E67: 0 | F67: -1.029 | G67: -0.001 | H67: 0 | I67: 0 | J67: -0.057 | K67: -0.773 | L67: 2.03 | M67: 3.716 | N67: -4.391 | O67: 0.505 | P67: 0 | Q67: 20.07
A68: 1 | B68: 3 | C68: 17 | D68: 1 | E68: 0 | F68: -0.852 | G68: -0.001 | H68: 0 | I68: 0 | J68: -0.049 | K68: -0.741 | L68: 1.535 | M68: 3.718 | N68: -4.639 | O68: 1.03 | P68: 0 | Q68: 20
A69: 1 | B69: 3 | C69: 18 | D69: 1 | E69: 1 | F69: -0.883 | G69: -0.001 | H69: 0 | I69: 0 | J69: -0.053 | K69: -0.841 | L69: 1.272 | M69: 3.716 | N69: -4.92 | O69: 0.044 | P69: -1.665 | Q69: 20
A70: 1 | B70: 3 | C70: 19 | D70: 1 | E70: 1 | F70: -0.901 | G70: -0.001 | H70: 0 | I70: 0 | J70: -0.055 | K70: -0.908 | L70: 1.082 | M70: 4.545 | N70: -4.92 | O70: 0 | P70: -1.157 | Q70: 20
A71: 1 | B71: 3 | C71: 20 | D71: 1 | E71: 0 | F71: -0.988 | G71: -0.001 | H71: 0 | I71: 0 | J71: -0.062 | K71: -1.046 | L71: 0.992 | M71: 6.695 | N71: -5.216 | O71: -0.374 | P71: 0 | Q71: 20.02
A72: 1 | B72: 3 | C72: 21 | D72: 1 | E72: 0 | F72: -1.021 | G72: -0.001 | H72: 0 | I72: 0 | J72: -0.066 | K72: -1.132 | L72: 0.916 | M72: 6.937 | N72: -5.505 | O72: -0.128 | P72: 0 | Q72: 20.03
A73: 1 | B73: 3 | C73: 22 | D73: 1 | E73: 0 | F73: -1.054 | G73: -0.001 | H73: 0 | I73: 0 | J73: -0.069 | K73: -1.197 | L73: 0.849 | M73: 7.134 | N73: -5.51 | O73: -0.152 | P73: 0 | Q73: 20.04
A74: 1 | B74: 3 | C74: 23 | D74: 1 | E74: 0 | F74: -1.054 | G74: -0.001 | H74: 0 | I74: 0 | J74: -0.071 | K74: -1.24 | L74: 0.79 | M74: 7.304 | N74: -5.794 | O74: 0.065 | P74: 0 | Q74: 20.04
A75: 1 | B75: 3 | C75: 24 | D75: 1 | E75: 0 | F75: -0.838 | G75: 0 | H75: 0 | I75: 0 | J75: -0.058 | K75: -1.019 | L75: 0.737 | M75: 5.886 | N75: -6.037 | O75: 1.329 | P75: 0 | Q75: 19.95
A76: 1 | B76: 4 | C76: 1 | D76: 1 | E76: 0 | F76: -0.492 | G76: 0 | H76: 0 | I76: 0 | J76: -0.034 | K76: -0.607 | L76: 0.689 | M76: 4.218 | N76: -5.964 | O76: 2.191 | P76: 0 | Q76: 19.8
A77: 1 | B77: 4 | C77: 2 | D77: 1 | E77: 0 | F77: -0.226 | G77: 0 | H77: 0 | I77: 0 | J77: -0.016 | K77: -0.286 | L77: 0.646 | M77: 4.079 | N77: -6.186 | O77: 1.99 | P77: 0 | Q77: 19.67
A78: 1 | B78: 4 | C78: 3 | D78: 1 | E78: 0 | F78: -0.011 | G78: 0 | H78: 0 | I78: 0 | J78: -0.001 | K78: -0.014 | L78: 0.607 | M78: 3.974 | N78: -6.413 | O78: 1.858 | P78: 0 | Q78: 19.55
A79: 1 | B79: 4 | C79: 4 | D79: 1 | E79: 0 | F79: 0.169 | G79: 0 | H79: 0 | I79: 0 | J79: 0.012 | K79: 0.224 | L79: 0.57 | M79: 3.887 | N79: -6.644 | O79: 1.78 | P79: 0 | Q79: 19.43
A80: 1 | B80: 4 | C80: 5 | D80: 1 | E80: 0 | F80: 0.325 | G80: 0 | H80: 0 | I80: 0 | J80: 0.024 | K80: 0.439 | L80: 0.537 | M80: 3.813 | N80: -6.877 | O80: 1.739 | P80: 0 | Q80: 19.31
A81: 1 | B81: 4 | C81: 6 | D81: 1 | E81: 0 | F81: 0.463 | G81: 0 | H81: 0 | I81: 0 | J81: 0.035 | K81: 0.636 | L81: 0.507 | M81: 3.748 | N81: -7.111 | O81: 1.724 | P81: 0 | Q81: 19.2
A82: 1 | B82: 4 | C82: 7 | D82: 1 | E82: 0 | F82: 0.569 | G82: 0 | H82: 0 | I82: 0 | J82: 0.043 | K82: 0.785 | L82: 0.478 | M82: 3.69 | N82: -7.062 | O82: 1.496 | P82: 0 | Q82: 19.1
A83: 1 | B83: 4 | C83: 8 | D83: 1 | E83: 1 | F83: -1.773 | G83: -0.001 | H83: 0 | I83: 0 | J83: -0.134 | K83: -2.479 | L83: 0.452 | M83: 3.707 | N83: -7.807 | O83: -13.517 | P83: -21.552 | Q83: 20
A84: 1 | B84: 4 | C84: 9 | D84: 1 | E84: 1 | F84: -1.726 | G84: -0.001 | H84: 0 | I84: 0 | J84: -0.13 | K84: -2.399 | L84: 0.467 | M84: 3.666 | N84: -7.807 | O84: 0 | P84: -7.929 | Q84: 20
A85: 1 | B85: 4 | C85: 10 | D85: 1 | E85: 1 | F85: -1.704 | G85: -0.001 | H85: 0 | I85: 0 | J85: -0.125 | K85: -2.272 | L85: 0.608 | M85: 3.629 | N85: -7.513 | O85: 0 | P85: -7.378 | Q85: 20
A86: 1 | B86: 4 | C86: 11 | D86: 1 | E86: 1 | F86: -1.685 | G86: -0.001 | H86: 0 | I86: 0 | J86: -0.115 | K86: -1.814 | L86: 1.691 | M86: 3.595 | N86: -6.929 | O86: 0 | P86: -5.257 | Q86: 20
A87: 1 | B87: 4 | C87: 12 | D87: 1 | E87: 1 | F87: -1.674 | G87: -0.001 | H87: 0 | I87: 0 | J87: -0.11 | K87: -1.706 | L87: 1.701 | M87: 3.564 | N87: -6.349 | O87: 0 | P87: -4.574 | Q87: 20
A88: 1 | B88: 4 | C88: 13 | D88: 1 | E88: 0 | F88: -1.856 | G88: -0.001 | H88: 0 | I88: 0 | J88: -0.102 | K88: -0.536 | L88: 5.667 | M88: 3.535 | N88: -5.804 | O88: -0.904 | P88: 0 | Q88: 20.06
A89: 1 | B89: 4 | C89: 14 | D89: 1 | E89: 0 | F89: -2.63 | G89: -0.001 | H89: 0 | I89: 0 | J89: -0.13 | K89: -0.073 | L89: 6.853 | M89: 3.509 | N89: -5.306 | O89: -2.221 | P89: 0 | Q89: 20.21
A90: 1 | B90: 4 | C90: 15 | D90: 1 | E90: 0 | F90: -2.966 | G90: -0.001 | H90: 0 | I90: 0 | J90: -0.144 | K90: -0.278 | L90: 6.087 | M90: 3.484 | N90: -4.786 | O90: -1.396 | P90: 0 | Q90: 20.3
A91: 1 | B91: 4 | C91: 16 | D91: 1 | E91: 0 | F91: -2.393 | G91: -0.001 | H91: 0 | I91: 0 | J91: -0.126 | K91: -1.027 | L91: 4.097 | M91: 3.716 | N91: -5.043 | O91: 0.776 | P91: 0 | Q91: 20.25
A92: 1 | B92: 4 | C92: 17 | D92: 1 | E92: 0 | F92: -1.867 | G92: -0.001 | H92: 0 | I92: 0 | J92: -0.104 | K92: -1.159 | L92: 3.086 | M92: 3.718 | N92: -5.274 | O92: 1.6 | P92: 0 | Q92: 20.14
A93: 1 | B93: 4 | C93: 18 | D93: 1 | E93: 0 | F93: -1.358 | G93: 0 | H93: 0 | I93: 0 | J93: -0.08 | K93: -1.103 | L93: 2.205 | M93: 3.717 | N93: -5.49 | O93: 2.111 | P93: 0 | Q93: 20
A94: 1 | B94: 4 | C94: 19 | D94: 1 | E94: 1 | F94: -1.351 | G94: 0 | H94: 0 | I94: 0 | J94: -0.084 | K94: -1.243 | L94: 1.843 | M94: 4.545 | N94: -5.774 | O94: 0.035 | P94: -2.031 | Q94: 20
A95: 1 | B95: 4 | C95: 20 | D95: 1 | E95: 1 | F95: -1.34 | G95: 0 | H95: 0 | I95: 0 | J95: -0.087 | K95: -1.335 | L95: 1.651 | M95: 6.695 | N95: -6.061 | O95: 0 | P95: -0.478 | Q95: 20
A96: 1 | B96: 4 | C96: 21 | D96: 1 | E96: 1 | F96: -1.331 | G96: 0 | H96: 0 | I96: 0 | J96: -0.089 | K96: -1.416 | L96: 1.506 | M96: 6.938 | N96: -6.349 | O96: 0 | P96: -0.743 | Q96: 20
A97: 1 | B97: 4 | C97: 22 | D97: 1 | E97: 1 | F97: -1.328 | G97: 0 | H97: 0 | I97: 0 | J97: -0.092 | K97: -1.494 | L97: 1.382 | M97: 7.134 | N97: -6.638 | O97: 0 | P97: -1.037 | Q97: 20
A98: 1 | B98: 4 | C98: 23 | D98: 1 | E98: 1 | F98: -1.332 | G98: 0 | H98: 0 | I98: 0 | J98: -0.095 | K98: -1.569 | L98: 1.273 | M98: 7.305 | N98: -6.929 | O98: 0 | P98: -1.347 | Q98: 20
A99: 1 | B99: 4 | C99: 24 | D99: 1 | E99: 0 | F99: -0.981 | G99: 0 | H99: 0 | I99: 0 | J99: -0.071 | K99: -1.185 | L99: 1.178 | M99: 5.886 | N99: -6.861 | O99: 2.034 | P99: 0 | Q99: 19.86
A100: 1 | B100: 5 | C100: 1 | D100: 1 | E100: 0 | F100: -0.521 | G100: 0 | H100: 0 | I100: 0 | J100: -0.038 | K100: -0.65 | L100: 1.093 | M100: 4.218 | N100: -7.054 | O100: 2.954 | P100: 0 | Q100: 19.67
A101: 1 | B101: 5 | C101: 2 | D101: 1 | E101: 0 | F101: -0.177 | G101: 0 | H101: 0 | I101: 0 | J101: -0.013 | K101: -0.227 | L101: 1.017 | M101: 4.079 | N101: -7.26 | O101: 2.582 | P101: 0 | Q101: 19.5
A102: 1 | B102: 5 | C102: 3 | D102: 1 | E102: 0 | F102: 0.09 | G102: 0 | H102: 0 | I102: 0 | J102: 0.007 | K102: 0.118 | L102: 0.948 | M102: 3.974 | N102: -7.475 | O102: 2.338 | P102: 0 | Q102: 19.34
A103: 1 | B103: 5 | C103: 4 | D103: 1 | E103: 0 | F103: 0.306 | G103: 0 | H103: 0 | I103: 0 | J103: 0.023 | K103: 0.411 | L103: 0.886 | M103: 3.888 | N103: -7.696 | O103: 2.183 | P103: 0 | Q103: 19.19
A104: 1 | B104: 5 | C104: 5 | D104: 1 | E104: 0 | F104: 0.506 | G104: 0 | H104: 0 | I104: 0 | J104: 0.039 | K104: 0.701 | L104: 0.83 | M104: 3.813 | N104: -8.21 | O104: 2.32 | P104: 0 | Q104: 19.04
A105: 1 | B105: 5 | C105: 6 | D105: 1 | E105: 0 | F105: 0.682 | G105: 0 | H105: 0 | I105: 0 | J105: 0.054 | K105: 0.964 | L105: 0.779 | M105: 3.748 | N105: -8.434 | O105: 2.207 | P105: 0 | Q105: 18.89
A106: 1 | B106: 5 | C106: 7 | D106: 1 | E106: 0 | F106: 0.834 | G106: 0 | H106: 0 | I106: 0 | J106: 0.066 | K106: 1.196 | L106: 0.732 | M106: 3.69 | N106: -8.66 | O106: 2.142 | P106: 0 | Q106: 18.75
A107: 1 | B107: 5 | C107: 8 | D107: 1 | E107: 1 | F107: -2.324 | G107: -0.001 | H107: 0 | I107: 0 | J107: -0.185 | K107: -3.377 | L107: 0.689 | M107: 3.707 | N107: -9.595 | O107: -18.76 | P107: -29.846 | Q107: 20
A108: 1 | B108: 5 | C108: 9 | D108: 1 | E108: 1 | F108: -2.245 | G108: -0.001 | H108: 0 | I108: 0 | J108: -0.178 | K108: -3.329 | L108: 0.708 | M108: 3.667 | N108: -9.595 | O108: 0 | P108: -10.972 | Q108: 20
A109: 1 | B109: 5 | C109: 10 | D109: 1 | E109: 1 | F109: -2.281 | G109: -0.001 | H109: 0 | I109: 0 | J109: -0.162 | K109: -2.261 | L109: 3.072 | M109: 3.629 | N109: -8.695 | O109: 0 | P109: -6.699 | Q109: 20
A110: 1 | B110: 5 | C110: 11 | D110: 1 | E110: 0 | F110: -3.03 | G110: -0.001 | H110: 0 | I110: 0 | J110: -0.17 | K110: -0.054 | L110: 8.695 | M110: 3.595 | N110: -7.562 | O110: -1.474 | P110: 0 | Q110: 20.1
A111: 1 | B111: 5 | C111: 12 | D111: 1 | E111: 0 | F111: -3.842 | G111: -0.001 | H111: 0 | I111: 0 | J111: -0.173 | K111: 0.044 | L111: 12.106 | M111: 3.564 | N111: -6.568 | O111: -5.13 | P111: 0 | Q111: 20.44
A112: 1 | B112: 5 | C112: 13 | D112: 1 | E112: 0 | F112: -4.59 | G112: -0.001 | H112: 0 | I112: 0 | J112: -0.152 | K112: -0.848 | L112: 16.627 | M112: 3.535 | N112: -5.988 | O112: -8.583 | P112: 0 | Q112: 21.01
A113: 1 | B113: 5 | C113: 14 | D113: 1 | E113: 0 | F113: -5.265 | G113: -0.001 | H113: 0 | I113: 0 | J113: -0.122 | K113: -2.525 | L113: 20.103 | M113: 3.509 | N113: -5.47 | O113: -10.228 | P113: 0 | Q113: 21.69
A114: 1 | B114: 5 | C114: 15 | D114: 1 | E114: 0 | F114: -5.933 | G114: -0.001 | H114: 0 | I114: 0 | J114: -0.127 | K114: -4.099 | L114: 20.068 | M114: 3.484 | N114: -5.446 | O114: -7.945 | P114: 0 | Q114: 22.22
A115: 1 | B115: 5 | C115: 16 | D115: 1 | E115: 0 | F115: -6.398 | G115: -0.001 | H115: 0 | I115: 0 | J115: -0.145 | K115: -5.061 | L115: 18.565 | M115: 3.716 | N115: -5.338 | O115: -5.338 | P115: 0 | Q115: 22.58
A116: 1 | B116: 5 | C116: 17 | D116: 1 | E116: 0 | F116: -7.15 | G116: -0.002 | H116: 0 | I116: 0 | J116: -0.24 | K116: -4.492 | L116: 13.753 | M116: 3.718 | N116: -5.895 | O116: 0.307 | P116: 0 | Q116: 22.56
A117: 1 | B117: 5 | C117: 18 | D117: 1 | E117: 0 | F117: -9.218 | G117: -0.002 | H117: 0 | I117: 0 | J117: -0.46 | K117: -1.062 | L117: 7.577 | M117: 3.717 | N117: -6.277 | O117: 5.726 | P117: 0 | Q117: 22.18
A118: 1 | B118: 5 | C118: 19 | D118: 1 | E118: 0 | F118: -7.718 | G118: -0.002 | H118: 0 | I118: 0 | J118: -0.446 | K118: -0.597 | L118: 6.492 | M118: 4.545 | N118: -6.706 | O118: 4.432 | P118: 0 | Q118: 21.88
A119: 1 | B119: 5 | C119: 20 | D119: 1 | E119: 0 | F119: -5.924 | G119: -0.002 | H119: 0 | I119: 0 | J119: -0.384 | K119: -1.364 | L119: 5.8 | M119: 6.695 | N119: -6.925 | O119: 2.103 | P119: 0 | Q119: 21.74
A120: 1 | B120: 5 | C120: 21 | D120: 1 | E120: 0 | F120: -4.637 | G120: -0.001 | H120: 0 | I120: 0 | J120: -0.331 | K120: -1.837 | L120: 5.258 | M120: 6.938 | N120: -7.156 | O120: 1.768 | P120: 0 | Q120: 21.62
A121: 1 | B121: 5 | C121: 22 | D121: 1 | E121: 0 | F121: -3.735 | G121: -0.001 | H121: 0 | I121: 0 | J121: -0.288 | K121: -2.071 | L121: 4.797 | M121: 7.134 | N121: -7.395 | O121: 1.56 | P121: 0 | Q121: 21.52
A122: 1 | B122: 5 | C122: 23 | D122: 1 | E122: 0 | F122: -3.09 | G122: -0.001 | H122: 0 | I122: 0 | J122: -0.252 | K122: -2.155 | L122: 4.399 | M122: 7.305 | N122: -7.639 | O122: 1.434 | P122: 0 | Q122: 21.42
A123: 1 | B123: 5 | C123: 24 | D123: 1 | E123: 0 | F123: -2.382 | G123: -0.001 | H123: 0 | I123: 0 | J123: -0.202 | K123: -1.961 | L123: 4.049 | M123: 5.886 | N123: -7.85 | O123: 2.46 | P123: 0 | Q123: 21.26
A124: 1 | B124: 6 | C124: 1 | D124: 1 | E124: 0 | F124: -1.638 | G124: -0.001 | H124: 0 | I124: 0 | J124: -0.142 | K124: -1.524 | L124: 3.741 | M124: 4.218 | N124: -8.031 | O124: 3.378 | P124: 0 | Q124: 21.04
A125: 1 | B125: 6 | C125: 2 | D125: 1 | E125: 0 | F125: -1.098 | G125: 0 | H125: 0 | I125: 0 | J125: -0.097 | K125: -1.12 | L125: 3.466 | M125: 4.079 | N125: -8.226 | O125: 2.996 | P125: 0 | Q125: 20.84
A126: 1 | B126: 6 | C126: 3 | D126: 1 | E126: 0 | F126: -0.687 | G126: 0 | H126: 0 | I126: 0 | J126: -0.061 | K126: -0.753 | L126: 3.221 | M126: 3.974 | N126: -8.43 | O126: 2.736 | P126: 0 | Q126: 20.65
A127: 1 | B127: 6 | C127: 4 | D127: 1 | E127: 0 | F127: -0.361 | G127: 0 | H127: 0 | I127: 0 | J127: -0.032 | K127: -0.418 | L127: 3 | M127: 3.888 | N127: -8.641 | O127: 2.564 | P127: 0 | Q127: 20.48
A128: 1 | B128: 6 | C128: 5 | D128: 1 | E128: 0 | F128: -0.091 | G128: 0 | H128: 0 | I128: 0 | J128: -0.008 | K128: -0.111 | L128: 2.801 | M128: 3.813 | N128: -8.856 | O128: 2.452 | P128: 0 | Q128: 20.32
A129: 1 | B129: 6 | C129: 6 | D129: 1 | E129: 0 | F129: 0.138 | G129: 0 | H129: 0 | I129: 0 | J129: 0.012 | K129: 0.173 | L129: 2.621 | M129: 3.748 | N129: -9.075 | O129: 2.382 | P129: 0 | Q129: 20.16
A130: 1 | B130: 6 | C130: 7 | D130: 1 | E130: 0 | F130: 0.34 | G130: 0 | H130: 0 | I130: 0 | J130: 0.03 | K130: 0.438 | L130: 2.456 | M130: 3.69 | N130: -9.296 | O130: 2.341 | P130: 0 | Q130: 20
A131: 1 | B131: 6 | C131: 8 | D131: 1 | E131: 1 | F131: 0.146 | G131: 0 | H131: 0 | I131: 0 | J131: 0.013 | K131: 0.192 | L131: 2.306 | M131: 4.47 | N131: -9.595 | O131: 0.059 | P131: -2.409 | Q131: 20
A132: 1 | B132: 6 | C132: 9 | D132: 1 | E132: 1 | F132: -0.046 | G132: 0 | H132: 0 | I132: 0 | J132: -0.004 | K132: -0.063 | L132: 2.208 | M132: 4.498 | N132: -9.595 | O132: 0 | P132: -3.002 | Q132: 20
A133: 1 | B133: 6 | C133: 10 | D133: 1 | E133: 1 | F133: -0.132 | G133: 0 | H133: 0 | I133: 0 | J133: -0.011 | K133: -0.169 | L133: 2.453 | M133: 4.515 | N133: -9.294 | O133: 0 | P133: -2.637 | Q133: 20
A134: 1 | B134: 6 | C134: 11 | D134: 1 | E134: 0 | F134: -0.023 | G134: 0 | H134: 0 | I134: 0 | J134: -0.002 | K134: -0.019 | L134: 4.518 | M134: 4.528 | N134: -8.418 | O134: -0.584 | P134: 0 | Q134: 20.04
A135: 1 | B135: 6 | C135: 12 | D135: 1 | E135: 0 | F135: -1.574 | G135: 0 | H135: 0 | I135: 0 | J135: -0.087 | K135: 0.728 | L135: 10.819 | M135: 4.538 | N135: -7.471 | O135: -6.953 | P135: 0 | Q135: 20.5
A136: 1 | B136: 6 | C136: 13 | D136: 1 | E136: 0 | F136: -2.986 | G136: -0.001 | H136: 0 | I136: 0 | J136: -0.157 | K136: 0.197 | L136: 9.934 | M136: 4.547 | N136: -6.757 | O136: -4.778 | P136: 0 | Q136: 20.82
A137: 1 | B137: 6 | C137: 14 | D137: 1 | E137: 0 | F137: -3.234 | G137: -0.001 | H137: 0 | I137: 0 | J137: -0.183 | K137: -0.548 | L137: 7.038 | M137: 4.554 | N137: -6.785 | O137: -0.842 | P137: 0 | Q137: 20.88
A138: 1 | B138: 6 | C138: 15 | D138: 1 | E138: 0 | F138: -3.992 | G138: -0.001 | H138: 0 | I138: 0 | J138: -0.206 | K138: -0.02 | L138: 8.583 | M138: 4.56 | N138: -6.574 | O138: -2.35 | P138: 0 | Q138: 21.03
A139: 1 | B139: 6 | C139: 16 | D139: 1 | E139: 0 | F139: -4.285 | G139: -0.001 | H139: 0 | I139: 0 | J139: -0.226 | K139: -0.126 | L139: 7.781 | M139: 4.566 | N139: -6.61 | O139: -1.099 | P139: 0 | Q139: 21.11
A140: 1 | B140: 6 | C140: 17 | D140: 1 | E140: 0 | F140: -3.041 | G140: -0.001 | H140: 0 | I140: 0 | J140: -0.179 | K140: -1.351 | L140: 5.219 | M140: 4.571 | N140: -6.845 | O140: 1.628 | P140: 0 | Q140: 21
A141: 1 | B141: 6 | C141: 18 | D141: 1 | E141: 0 | F141: -2.164 | G141: 0 | H141: 0 | I141: 0 | J141: -0.139 | K141: -1.538 | L141: 3.992 | M141: 4.575 | N141: -7.34 | O141: 2.614 | P141: 0 | Q141: 20.82
A142: 1 | B142: 6 | C142: 19 | D142: 1 | E142: 0 | F142: -1.699 | G142: 0 | H142: 0 | I142: 0 | J142: -0.114 | K142: -1.412 | L142: 3.549 | M142: 5.41 | N142: -7.571 | O142: 1.837 | P142: 0 | Q142: 20.7
A143: 1 | B143: 6 | C143: 20 | D143: 1 | E143: 0 | F143: -1.672 | G143: 0 | H143: 0 | I143: 0 | J143: -0.115 | K143: -1.461 | L143: 3.247 | M143: 7.566 | N143: -7.571 | O143: 0.007 | P143: 0 | Q143: 20.7
A144: 1 | B144: 6 | C144: 21 | D144: 1 | E144: 0 | F144: -1.6 | G144: 0 | H144: 0 | I144: 0 | J144: -0.114 | K144: -1.518 | L144: 3.002 | M144: 7.815 | N144: -7.855 | O144: 0.27 | P144: 0 | Q144: 20.68
A145: 1 | B145: 6 | C145: 22 | D145: 1 | E145: 0 | F145: -1.547 | G145: 0 | H145: 0 | I145: 0 | J145: -0.112 | K145: -1.544 | L145: 2.787 | M145: 8.019 | N145: -7.847 | O145: 0.244 | P145: 0 | Q145: 20.67
A146: 1 | B146: 6 | C146: 23 | D146: 1 | E146: 0 | F146: -1.469 | G146: 0 | H146: 0 | I146: 0 | J146: -0.109 | K146: -1.55 | L146: 2.597 | M146: 8.195 | N146: -8.126 | O146: 0.462 | P146: 0 | Q146: 20.64
A147: 1 | B147: 6 | C147: 24 | D147: 1 | E147: 0 | F147: -1.148 | G147: 0 | H147: 0 | I147: 0 | J147: -0.085 | K147: -1.249 | L147: 2.426 | M147: 6.274 | N147: -8.064 | O147: 1.847 | P147: 0 | Q147: 20.51
A148: 1 | B148: 7 | C148: 1 | D148: 1 | E148: 0 | F148: -0.678 | G148: 0 | H148: 0 | I148: 0 | J148: -0.051 | K148: -0.766 | L148: 2.271 | M148: 4.566 | N148: -8.262 | O148: 2.92 | P148: 0 | Q148: 20.32
A149: 1 | B149: 7 | C149: 2 | D149: 1 | E149: 0 | F149: -0.341 | G149: 0 | H149: 0 | I149: 0 | J149: -0.026 | K149: -0.393 | L149: 2.131 | M149: 4.397 | N149: -8.181 | O149: 2.414 | P149: 0 | Q149: 20.16
A150: 1 | B150: 7 | C150: 3 | D150: 1 | E150: 0 | F150: -0.069 | G150: 0 | H150: 0 | I150: 0 | J150: -0.005 | K150: -0.082 | L150: 2.002 | M150: 4.266 | N150: -8.4 | O150: 2.288 | P150: 0 | Q150: 20
A151: 1 | B151: 7 | C151: 4 | D151: 1 | E151: 0 | F151: 0.138 | G151: 0 | H151: 0 | I151: 0 | J151: 0.01 | K151: 0.165 | L151: 1.885 | M151: 4.157 | N151: -8.334 | O151: 1.978 | P151: 0 | Q151: 19.87
A152: 1 | B152: 7 | C152: 5 | D152: 1 | E152: 0 | F152: 0.295 | G152: 0 | H152: 0 | I152: 0 | J152: 0.022 | K152: 0.356 | L152: 1.776 | M152: 4.063 | N152: -8.275 | O152: 1.763 | P152: 0 | Q152: 19.76
A153: 1 | B153: 7 | C153: 6 | D153: 1 | E153: 0 | F153: 0.439 | G153: 0 | H153: 0 | I153: 0 | J153: 0.033 | K153: 0.54 | L153: 1.676 | M153: 3.98 | N153: -8.51 | O153: 1.842 | P153: 0 | Q153: 19.63
A154: 1 | B154: 7 | C154: 7 | D154: 1 | E154: 0 | F154: 0.559 | G154: 0 | H154: 0 | I154: 0 | J154: 0.042 | K154: 0.691 | L154: 1.584 | M154: 3.907 | N154: -8.454 | O154: 1.671 | P154: 0 | Q154: 19.52
A155: 1 | B155: 7 | C155: 8 | D155: 1 | E155: 1 | F155: -0.862 | G155: 0 | H155: 0 | I155: 0 | J155: -0.064 | K155: -1.083 | L155: 1.498 | M155: 4.672 | N155: -8.994 | O155: -7.18 | P155: -12.013 | Q155: 20
A156: 1 | B156: 7 | C156: 9 | D156: 1 | E156: 1 | F156: -0.932 | G156: 0 | H156: 0 | I156: 0 | J156: -0.069 | K156: -1.207 | L156: 1.438 | M156: 4.687 | N156: -8.994 | O156: 0 | P156: -5.077 | Q156: 20
A157: 1 | B157: 7 | C157: 10 | D157: 1 | E157: 1 | F157: -0.907 | G157: 0 | H157: 0 | I157: 0 | J157: -0.064 | K157: -1.013 | L157: 2.226 | M157: 4.693 | N157: -8.398 | O157: 0 | P157: -3.462 | Q157: 20
A158: 1 | B158: 7 | C158: 11 | D158: 1 | E158: 1 | F158: -0.748 | G158: 0 | H158: 0 | I158: 0 | J158: -0.048 | K158: -0.562 | L158: 4.145 | M158: 4.696 | N158: -7.513 | O158: 0 | P158: -0.03 | Q158: 20
A159: 1 | B159: 7 | C159: 12 | D159: 1 | E159: 0 | F159: -0.894 | G159: 0 | H159: 0 | I159: 0 | J159: -0.054 | K159: -0.589 | L159: 4.436 | M159: 4.696 | N159: -6.95 | O159: -0.645 | P159: 0 | Q159: 20.04
A160: 1 | B160: 7 | C160: 13 | D160: 1 | E160: 0 | F160: -0.944 | G160: 0 | H160: 0 | I160: 0 | J160: -0.057 | K160: -0.749 | L160: 3.313 | M160: 4.696 | N160: -6.647 | O160: 0.388 | P160: 0 | Q160: 20.02
A161: 1 | B161: 7 | C161: 14 | D161: 1 | E161: 0 | F161: -1.01 | G161: 0 | H161: 0 | I161: 0 | J161: -0.058 | K161: -0.695 | L161: 3.82 | M161: 4.695 | N161: -6.37 | O161: -0.382 | P161: 0 | Q161: 20.04
A162: 1 | B162: 7 | C162: 15 | D162: 1 | E162: 0 | F162: -1.137 | G162: 0 | H162: 0 | I162: 0 | J162: -0.064 | K162: -0.747 | L162: 3.859 | M162: 4.694 | N162: -6.099 | O162: -0.505 | P162: 0 | Q162: 20.08
A163: 1 | B163: 7 | C163: 16 | D163: 1 | E163: 0 | F163: -1.61 | G163: 0 | H163: 0 | I163: 0 | J163: -0.084 | K163: -0.513 | L163: 6.083 | M163: 4.693 | N163: -6.178 | O163: -2.389 | P163: 0 | Q163: 20.24
A164: 1 | B164: 7 | C164: 17 | D164: 1 | E164: 0 | F164: -1.792 | G164: 0 | H164: 0 | I164: 0 | J164: -0.098 | K164: -0.851 | L164: 4.93 | M164: 4.691 | N164: -6.2 | O164: -0.679 | P164: 0 | Q164: 20.28
A165: 1 | B165: 7 | C165: 18 | D165: 1 | E165: 0 | F165: -1.378 | G165: 0 | H165: 0 | I165: 0 | J165: -0.083 | K165: -1.207 | L165: 2.633 | M165: 4.689 | N165: -6.71 | O165: 2.057 | P165: 0 | Q165: 20.14
A166: 1 | B166: 7 | C166: 19 | D166: 1 | E166: 0 | F166: -1.112 | G166: 0 | H166: 0 | I166: 0 | J166: -0.07 | K166: -1.042 | L166: 2.281 | M166: 5.519 | N166: -6.955 | O166: 1.378 | P166: 0 | Q166: 20.05
A167: 1 | B167: 7 | C167: 20 | D167: 1 | E167: 0 | F167: -1.201 | G167: 0 | H167: 0 | I167: 0 | J167: -0.077 | K167: -1.18 | L167: 2.087 | M167: 7.67 | N167: -6.966 | O167: -0.333 | P167: 0 | Q167: 20.07
A168: 1 | B168: 7 | C168: 21 | D168: 1 | E168: 0 | F168: -1.22 | G168: 0 | H168: 0 | I168: 0 | J168: -0.08 | K168: -1.267 | L168: 1.925 | M168: 7.914 | N168: -7.258 | O168: -0.014 | P168: 0 | Q168: 20.07
A169: 1 | B169: 7 | C169: 22 | D169: 1 | E169: 0 | F169: -1.197 | G169: 0 | H169: 0 | I169: 0 | J169: -0.081 | K169: -1.306 | L169: 1.786 | M169: 8.113 | N169: -7.543 | O169: 0.229 | P169: 0 | Q169: 20.06
A170: 1 | B170: 7 | C170: 23 | D170: 1 | E170: 0 | F170: -1.185 | G170: 0 | H170: 0 | I170: 0 | J170: -0.081 | K170: -1.328 | L170: 1.662 | M170: 8.285 | N170: -7.537 | O170: 0.184 | P170: 0 | Q170: 20.05
A171: 1 | B171: 7 | C171: 24 | D171: 1 | E171: 0 | F171: -0.888 | G171: 0 | H171: 0 | I171: 0 | J171: -0.062 | K171: -1.032 | L171: 1.552 | M171: 6.36 | N171: -7.769 | O171: 1.84 | P171: 0 | Q171: 19.92
A172: 1 | B172: 8 | C172: 1 | D172: 1 | E172: 0 | F172: -0.447 | G172: 0 | H172: 0 | I172: 0 | J172: -0.032 | K172: -0.535 | L172: 1.452 | M172: 4.648 | N172: -7.967 | O172: 2.881 | P172: 0 | Q172: 19.73
A173: 1 | B173: 8 | C173: 2 | D173: 1 | E173: 0 | F173: -0.133 | G173: 0 | H173: 0 | I173: 0 | J173: -0.01 | K173: -0.162 | L173: 1.362 | M173: 4.475 | N173: -7.888 | O173: 2.356 | P173: 0 | Q173: 19.58
A174: 1 | B174: 8 | C174: 3 | D174: 1 | E174: 0 | F174: 0.116 | G174: 0 | H174: 0 | I174: 0 | J174: 0.008 | K174: 0.144 | L174: 1.28 | M174: 4.341 | N174: -8.11 | O174: 2.22 | P174: 0 | Q174: 19.43
A175: 1 | B175: 8 | C175: 4 | D175: 1 | E175: 0 | F175: 0.326 | G175: 0 | H175: 0 | I175: 0 | J175: 0.024 | K175: 0.414 | L175: 1.204 | M175: 4.228 | N175: -8.334 | O175: 2.137 | P175: 0 | Q175: 19.29
A176: 1 | B176: 8 | C176: 5 | D176: 1 | E176: 0 | F176: 0.488 | G176: 0 | H176: 0 | I176: 0 | J176: 0.036 | K176: 0.624 | L176: 1.135 | M176: 4.131 | N176: -8.272 | O176: 1.858 | P176: 0 | Q176: 19.16
A177: 1 | B177: 8 | C177: 6 | D177: 1 | E177: 0 | F177: 0.628 | G177: 0 | H177: 0 | I177: 0 | J177: 0.046 | K177: 0.817 | L177: 1.071 | M177: 4.045 | N177: -8.506 | O177: 1.898 | P177: 0 | Q177: 19.03
A178: 1 | B178: 8 | C178: 7 | D178: 1 | E178: 0 | F178: 0.762 | G178: 0 | H178: 0 | I178: 0 | J178: 0.056 | K178: 1.006 | L178: 1.012 | M178: 3.969 | N178: -8.739 | O178: 1.935 | P178: 0 | Q178: 18.91
A179: 1 | B179: 8 | C179: 8 | D179: 1 | E179: 1 | F179: -2.154 | G179: 0 | H179: 0 | I179: 0 | J179: -0.161 | K179: -2.884 | L179: 0.957 | M179: 3.968 | N179: -9.595 | O179: -16.414 | P179: -26.283 | Q179: 20
A180: 1 | B180: 8 | C180: 9 | D180: 1 | E180: 1 | F180: -2.094 | G180: 0 | H180: 0 | I180: 0 | J180: -0.156 | K180: -2.876 | L180: 0.945 | M180: 3.912 | N180: -9.595 | O180: 0 | P180: -9.864 | Q180: 20
A181: 1 | B181: 8 | C181: 10 | D181: 1 | E181: 1 | F181: -2.067 | G181: 0 | H181: 0 | I181: 0 | J181: -0.151 | K181: -2.793 | L181: 0.962 | M181: 3.861 | N181: -9.294 | O181: 0 | P181: -9.482 | Q181: 20
A182: 1 | B182: 8 | C182: 11 | D182: 1 | E182: 1 | F182: -2.04 | G182: 0 | H182: 0 | I182: 0 | J182: -0.136 | K182: -1.964 | L182: 3.211 | M182: 3.814 | N182: -8.695 | O182: 0 | P182: -5.811 | Q182: 20
A183: 1 | B183: 8 | C183: 12 | D183: 1 | E183: 1 | F183: -2.005 | G183: 0 | H183: 0 | I183: 0 | J183: -0.122 | K183: -1.323 | L183: 4.864 | M183: 3.771 | N183: -7.807 | O183: 0 | P183: -2.622 | Q183: 20
A184: 1 | B184: 8 | C184: 13 | D184: 1 | E184: 0 | F184: -2.306 | G184: 0 | H184: 0 | I184: 0 | J184: -0.123 | K184: -0.546 | L184: 7.432 | M184: 3.731 | N184: -6.969 | O184: -1.218 | P184: 0 | Q184: 20.08
A185: 1 | B185: 8 | C185: 14 | D185: 1 | E185: 0 | F185: -2.471 | G185: 0 | H185: 0 | I185: 0 | J185: -0.129 | K185: -0.646 | L185: 6.978 | M185: 3.695 | N185: -6.703 | O185: -0.723 | P185: 0 | Q185: 20.13
A186: 1 | B186: 8 | C186: 15 | D186: 1 | E186: 0 | F186: -2.057 | G186: 0 | H186: 0 | I186: 0 | J186: -0.112 | K186: -1.106 | L186: 4.764 | M186: 3.661 | N186: -6.373 | O186: 1.223 | P186: 0 | Q186: 20.05
A187: 1 | B187: 8 | C187: 16 | D187: 1 | E187: 1 | F187: -1.879 | G187: 0 | H187: 0 | I187: 0 | J187: -0.108 | K187: -1.392 | L187: 3.431 | M187: 3.884 | N187: -6.638 | O187: 0.718 | P187: -1.986 | Q187: 20
A188: 1 | B188: 8 | C188: 17 | D188: 1 | E188: 1 | F188: -1.871 | G188: 0 | H188: 0 | I188: 0 | J188: -0.112 | K188: -1.68 | L188: 2.578 | M188: 3.877 | N188: -6.929 | O188: 0 | P188: -4.138 | Q188: 20
A189: 1 | B189: 8 | C189: 18 | D189: 1 | E189: 1 | F189: -1.848 | G189: 0 | H189: 0 | I189: 0 | J189: -0.116 | K189: -1.862 | L189: 2.178 | M189: 3.868 | N189: -7.513 | O189: 0 | P189: -5.294 | Q189: 20
A190: 1 | B190: 8 | C190: 19 | D190: 1 | E190: 1 | F190: -1.813 | G190: 0 | H190: 0 | I190: 0 | J190: -0.118 | K190: -1.896 | L190: 1.968 | M190: 4.69 | N190: -7.807 | O190: 0 | P190: -4.977 | Q190: 20
A191: 1 | B191: 8 | C191: 20 | D191: 1 | E191: 1 | F191: -1.785 | G191: 0 | H191: 0 | I191: 0 | J191: -0.119 | K191: -1.939 | L191: 1.806 | M191: 6.832 | N191: -7.807 | O191: 0 | P191: -3.011 | Q191: 20
A192: 1 | B192: 8 | C192: 21 | D192: 1 | E192: 1 | F192: -1.768 | G192: 0 | H192: 0 | I192: 0 | J192: -0.121 | K192: -2.005 | L192: 1.666 | M192: 7.068 | N192: -8.102 | O192: 0 | P192: -3.261 | Q192: 20
A193: 1 | B193: 8 | C193: 22 | D193: 1 | E193: 1 | F193: -1.758 | G193: 0 | H193: 0 | I193: 0 | J193: -0.121 | K193: -2.043 | L193: 1.544 | M193: 7.259 | N193: -8.102 | O193: 0 | P193: -3.221 | Q193: 20
A194: 1 | B194: 8 | C194: 23 | D194: 1 | E194: 1 | F194: -1.755 | G194: 0 | H194: 0 | I194: 0 | J194: -0.122 | K194: -2.076 | L194: 1.435 | M194: 7.424 | N194: -8.102 | O194: 0 | P194: -3.196 | Q194: 20
A195: 1 | B195: 8 | C195: 24 | D195: 1 | E195: 0 | F195: -1.14 | G195: 0 | H195: 0 | I195: 0 | J195: -0.08 | K195: -1.384 | L195: 1.337 | M195: 6 | N195: -8.279 | O195: 3.547 | P195: 0 | Q195: 19.76
A196: 1 | B196: 9 | C196: 1 | D196: 1 | E196: 0 | F196: -0.538 | G196: 0 | H196: 0 | I196: 0 | J196: -0.038 | K196: -0.66 | L196: 1.249 | M196: 4.326 | N196: -8.151 | O196: 3.811 | P196: 0 | Q196: 19.51
A197: 1 | B197: 9 | C197: 2 | D197: 1 | E197: 0 | F197: -0.102 | G197: 0 | H197: 0 | I197: 0 | J197: -0.007 | K197: -0.128 | L197: 1.17 | M197: 4.182 | N197: -8.339 | O197: 3.224 | P197: 0 | Q197: 19.29
A198: 1 | B198: 9 | C198: 3 | D198: 1 | E198: 0 | F198: 0.228 | G198: 0 | H198: 0 | I198: 0 | J198: 0.016 | K198: 0.291 | L198: 1.097 | M198: 4.073 | N198: -8.541 | O198: 2.836 | P198: 0 | Q198: 19.11
A199: 1 | B199: 9 | C199: 4 | D199: 1 | E199: 0 | F199: 0.467 | G199: 0 | H199: 0 | I199: 0 | J199: 0.033 | K199: 0.598 | L199: 1.031 | M199: 3.982 | N199: -8.462 | O199: 2.351 | P199: 0 | Q199: 18.95
A200: 1 | B200: 9 | C200: 5 | D200: 1 | E200: 0 | F200: 0.656 | G200: 0 | H200: 0 | I200: 0 | J200: 0.047 | K200: 0.854 | L200: 0.97 | M200: 3.903 | N200: -8.685 | O200: 2.254 | P200: 0 | Q200: 18.8
... 4300 more rows

Sheet Archivo 2
D1: Nombre espacio | E1: Area(m2)
D2: P01_E01 | E2: 83.16
A3: Mes | B3: Dia | C3: Hora | D3: Horario Funcionamiento Equipo | E3: Funcionamiento Real Equipo | F3: Transmisi Muros Exteriores(W/m2 del espacio) | G3: Transmisi Muros Interiores(W/m2 del espacio) | H3: Transmisi Cubiertas(W/m2 del espacio) | I3: Transmisi Suelos(W/m2 del espacio) | J3: Transmisi Puentes T駻micos(W/m2 del espacio) | K3: Transmisi Ventanas(W/m2 del espacio) | L3: Radiaci Ventanas(W/m2 del espacio) | M3: Fuentes internas(W/m2 del espacio) | N3: Carga de ventilaci e infiltraci(W/m2 del espacio) | O3: Energia Almacenada Aire(W/m2 del espacio) | P3: Carga Total(W/m2 del espacio) | Q3: Temperatura aire (ｺC)
A4: 1 | B4: 1 | C4: 1 | D4: 1 | E4: 0 | F4: 2.084 | G4: 0.014 | H4: 0 | I4: 0 | J4: 0.186 | K4: 3.141 | L4: 1.223 | M4: 4.211 | N4: -10.859 | O4: 0 | P4: 0 | Q4: 20.69
A5: 1 | B5: 1 | C5: 2 | D5: 1 | E5: 0 | F5: 0.246 | G5: 0.002 | H5: 0 | I5: 0 | J5: 0.019 | K5: 0.313 | L5: 1.145 | M5: 4.072 | N5: -6.664 | O5: 0.867 | P5: 0 | Q5: 20.63
A6: 1 | B6: 1 | C6: 3 | D6: 1 | E6: 0 | F6: 0.199 | G6: 0.001 | H6: 0 | I6: 0 | J6: 0.014 | K6: 0.236 | L6: 1.074 | M6: 3.968 | N6: -5.516 | O6: 0.024 | P6: 0 | Q6: 20.63
A7: 1 | B7: 1 | C7: 4 | D7: 1 | E7: 0 | F7: 0.168 | G7: 0.001 | H7: 0 | I7: 0 | J7: 0.012 | K7: 0.202 | L7: 1.008 | M7: 3.881 | N7: -5.784 | O7: 0.511 | P7: 0 | Q7: 20.6
A8: 1 | B8: 1 | C8: 5 | D8: 1 | E8: 0 | F8: 0.192 | G8: 0.001 | H8: 0 | I8: 0 | J8: 0.014 | K8: 0.232 | L8: 0.949 | M8: 3.807 | N8: -6.043 | O8: 0.847 | P8: 0 | Q8: 20.54
A9: 1 | B9: 1 | C9: 6 | D9: 1 | E9: 0 | F9: 0.23 | G9: 0.001 | H9: 0 | I9: 0 | J9: 0.016 | K9: 0.275 | L9: 0.894 | M9: 3.742 | N9: -6.014 | O9: 0.856 | P9: 0 | Q9: 20.49
A10: 1 | B10: 1 | C10: 7 | D10: 1 | E10: 0 | F10: 0.31 | G10: 0.002 | H10: 0 | I10: 0 | J10: 0.022 | K10: 0.382 | L10: 0.843 | M10: 3.685 | N10: -6.547 | O10: 1.303 | P10: 0 | Q10: 20.4
A11: 1 | B11: 1 | C11: 8 | D11: 1 | E11: 0 | F11: 0.382 | G11: 0.002 | H11: 0 | I11: 0 | J11: 0.027 | K11: 0.472 | L11: 0.796 | M11: 3.702 | N11: -6.51 | O11: 1.128 | P11: 0 | Q11: 20.32
A12: 1 | B12: 1 | C12: 9 | D12: 1 | E12: 0 | F12: 0.44 | G12: 0.002 | H12: 0 | I12: 0 | J12: 0.031 | K12: 0.541 | L12: 0.792 | M12: 3.662 | N12: -6.476 | O12: 1.009 | P12: 0 | Q12: 20.26
A13: 1 | B13: 1 | C13: 10 | D13: 1 | E13: 0 | F13: 0.459 | G13: 0.002 | H13: 0 | I13: 0 | J13: 0.031 | K13: 0.501 | L13: 1.209 | M13: 3.625 | N13: -5.899 | O13: 0.071 | P13: 0 | Q13: 20.25
A14: 1 | B14: 1 | C14: 11 | D14: 1 | E14: 0 | F14: -0.572 | G14: -0.003 | H14: 0 | I14: 0 | J14: -0.027 | K14: 0.972 | L14: 8.349 | M14: 3.591 | N14: -5.275 | O14: -7.035 | P14: 0 | Q14: 20.72
A15: 1 | B15: 1 | C15: 12 | D15: 1 | E15: 0 | F15: -2.405 | G15: -0.012 | H15: 0 | I15: 0 | J15: -0.096 | K15: 0.692 | L15: 10.014 | M15: 3.56 | N15: -4.66 | O15: -7.093 | P15: 0 | Q15: 21.19
A16: 1 | B16: 1 | C16: 13 | D16: 1 | E16: 0 | F16: -3.228 | G16: -0.015 | H16: 0 | I16: 0 | J16: -0.151 | K16: -0.04 | L16: 5.901 | M16: 3.531 | N16: -4.43 | O16: -1.568 | P16: 0 | Q16: 21.3
A17: 1 | B17: 1 | C17: 14 | D17: 1 | E17: 0 | F17: -2.352 | G17: -0.011 | H17: 0 | I17: 0 | J17: -0.123 | K17: -1.021 | L17: 3.488 | M17: 3.505 | N17: -4.672 | O17: 1.186 | P17: 0 | Q17: 21.22
A18: 1 | B18: 1 | C18: 15 | D18: 1 | E18: 0 | F18: -1.786 | G18: -0.008 | H18: 0 | I18: 0 | J18: -0.099 | K18: -1.082 | L18: 2.759 | M18: 3.481 | N18: -4.9 | O18: 1.635 | P18: 0 | Q18: 21.11
A19: 1 | B19: 1 | C19: 16 | D19: 1 | E19: 0 | F19: -1.501 | G19: -0.007 | H19: 0 | I19: 0 | J19: -0.085 | K19: -0.868 | L19: 3.041 | M19: 3.713 | N19: -5.154 | O19: 0.861 | P19: 0 | Q19: 21.05
A20: 1 | B20: 1 | C20: 17 | D20: 1 | E20: 0 | F20: -1.374 | G20: -0.006 | H20: 0 | I20: 0 | J20: -0.079 | K20: -0.718 | L20: 3.36 | M20: 3.715 | N20: -5.146 | O20: 0.248 | P20: 0 | Q20: 21.04
A21: 1 | B21: 1 | C21: 18 | D21: 1 | E21: 0 | F21: -1.063 | G21: -0.005 | H21: 0 | I21: 0 | J21: -0.066 | K21: -0.838 | L21: 2.284 | M21: 3.713 | N21: -5.385 | O21: 1.36 | P21: 0 | Q21: 20.94
A22: 1 | B22: 1 | C22: 19 | D22: 1 | E22: 0 | F22: -0.893 | G22: -0.004 | H22: 0 | I22: 0 | J22: -0.058 | K22: -0.806 | L22: 1.957 | M22: 4.542 | N22: -5.64 | O22: 0.902 | P22: 0 | Q22: 20.88
A23: 1 | B23: 1 | C23: 20 | D23: 1 | E23: 0 | F23: -1.047 | G23: -0.004 | H23: 0 | I23: 0 | J23: -0.07 | K23: -1.007 | L23: 1.777 | M23: 6.692 | N23: -5.662 | O23: -0.678 | P23: 0 | Q23: 20.93
A24: 1 | B24: 1 | C24: 21 | D24: 1 | E24: 0 | F24: -1.11 | G24: -0.005 | H24: 0 | I24: 0 | J24: -0.077 | K24: -1.141 | L24: 1.638 | M24: 6.935 | N24: -5.957 | O24: -0.283 | P24: 0 | Q24: 20.95
A25: 1 | B25: 1 | C25: 22 | D25: 1 | E25: 0 | F25: -1.154 | G25: -0.005 | H25: 0 | I25: 0 | J25: -0.081 | K25: -1.231 | L25: 1.517 | M25: 7.132 | N25: -5.964 | O25: -0.214 | P25: 0 | Q25: 20.96
A26: 1 | B26: 1 | C26: 23 | D26: 1 | E26: 0 | F26: -1.151 | G26: -0.004 | H26: 0 | I26: 0 | J26: -0.082 | K26: -1.288 | L26: 1.409 | M26: 7.302 | N26: -6.249 | O26: 0.063 | P26: 0 | Q26: 20.96
A27: 1 | B27: 1 | C27: 24 | D27: 1 | E27: 0 | F27: -0.957 | G27: -0.003 | H27: 0 | I27: 0 | J27: -0.069 | K27: -1.097 | L27: 1.313 | M27: 5.884 | N27: -6.211 | O27: 1.141 | P27: 0 | Q27: 20.88
A28: 1 | B28: 2 | C28: 1 | D28: 1 | E28: 0 | F28: -0.618 | G28: -0.002 | H28: 0 | I28: 0 | J28: -0.044 | K28: -0.72 | L28: 1.226 | M28: 4.216 | N28: -6.142 | O28: 2.086 | P28: 0 | Q28: 20.74
A29: 1 | B29: 2 | C29: 2 | D29: 1 | E29: 0 | F29: -0.35 | G29: -0.001 | H29: 0 | I29: 0 | J29: -0.025 | K29: -0.42 | L29: 1.147 | M29: 4.077 | N29: -6.366 | O29: 1.938 | P29: 0 | Q29: 20.61
A30: 1 | B30: 2 | C30: 3 | D30: 1 | E30: 0 | F30: -0.128 | G30: 0 | H30: 0 | I30: 0 | J30: -0.009 | K30: -0.158 | L30: 1.076 | M30: 3.972 | N30: -6.594 | O30: 1.841 | P30: 0 | Q30: 20.49
A31: 1 | B31: 2 | C31: 4 | D31: 1 | E31: 0 | F31: 0.038 | G31: 0 | H31: 0 | I31: 0 | J31: 0.003 | K31: 0.047 | L31: 1.011 | M31: 3.886 | N31: -6.542 | O31: 1.558 | P31: 0 | Q31: 20.39
A32: 1 | B32: 2 | C32: 5 | D32: 1 | E32: 0 | F32: 0.182 | G32: 0.001 | H32: 0 | I32: 0 | J32: 0.014 | K32: 0.231 | L32: 0.951 | M32: 3.811 | N32: -6.779 | O32: 1.59 | P32: 0 | Q32: 20.28
A33: 1 | B33: 2 | C33: 6 | D33: 1 | E33: 0 | F33: 0.295 | G33: 0.001 | H33: 0 | I33: 0 | J33: 0.022 | K33: 0.378 | L33: 0.896 | M33: 3.746 | N33: -6.733 | O33: 1.394 | P33: 0 | Q33: 20.19
A34: 1 | B34: 2 | C34: 7 | D34: 1 | E34: 0 | F34: 0.401 | G34: 0.001 | H34: 0 | I34: 0 | J34: 0.03 | K34: 0.523 | L34: 0.845 | M34: 3.689 | N34: -6.974 | O34: 1.485 | P34: 0 | Q34: 20.09
A35: 1 | B35: 2 | C35: 8 | D35: 1 | E35: 0 | F35: 0.48 | G35: 0.001 | H35: 0 | I35: 0 | J35: 0.036 | K35: 0.628 | L35: 0.798 | M35: 3.705 | N35: -6.931 | O35: 1.283 | P35: 0 | Q35: 20
A36: 1 | B36: 2 | C36: 9 | D36: 1 | E36: 1 | F36: 0.357 | G36: 0.001 | H36: 0 | I36: 0 | J36: 0.026 | K36: 0.466 | L36: 0.774 | M36: 3.665 | N36: -6.929 | O36: 0.07 | P36: -1.568 | Q36: 20
A37: 1 | B37: 2 | C37: 10 | D37: 1 | E37: 1 | F37: 0.298 | G37: 0.001 | H37: 0 | I37: 0 | J37: 0.021 | K37: 0.365 | L37: 0.992 | M37: 3.628 | N37: -6.638 | O37: 0 | P37: -1.333 | Q37: 20
A38: 1 | B38: 2 | C38: 11 | D38: 1 | E38: 0 | F38: 0.346 | G38: 0.001 | H38: 0 | I38: 0 | J38: 0.022 | K38: 0.302 | L38: 2.397 | M38: 3.594 | N38: -5.803 | O38: -0.859 | P38: 0 | Q38: 20.06
A39: 1 | B39: 2 | C39: 12 | D39: 1 | E39: 0 | F39: 0.091 | G39: 0 | H39: 0 | I39: 0 | J39: 0.005 | K39: 0.057 | L39: 3.385 | M39: 3.563 | N39: -5.291 | O39: -1.81 | P39: 0 | Q39: 20.18
A40: 1 | B40: 2 | C40: 13 | D40: 1 | E40: 0 | F40: -0.198 | G40: 0 | H40: 0 | I40: 0 | J40: -0.012 | K40: -0.162 | L40: 2.303 | M40: 3.534 | N40: -5.297 | O40: -0.168 | P40: 0 | Q40: 20.19
A41: 1 | B41: 2 | C41: 14 | D41: 1 | E41: 0 | F41: -0.28 | G41: -0.001 | H41: 0 | I41: 0 | J41: -0.017 | K41: -0.225 | L41: 2.146 | M41: 3.508 | N41: -5.017 | O41: -0.115 | P41: 0 | Q41: 20.2
A42: 1 | B42: 2 | C42: 15 | D42: 1 | E42: 0 | F42: -0.325 | G42: -0.001 | H42: 0 | I42: 0 | J42: -0.019 | K42: -0.259 | L42: 2.113 | M42: 3.483 | N42: -5.016 | O42: 0.023 | P42: 0 | Q42: 20.2
A43: 1 | B43: 2 | C43: 16 | D43: 1 | E43: 0 | F43: -0.608 | G43: -0.001 | H43: 0 | I43: 0 | J43: -0.032 | K43: -0.237 | L43: 4.235 | M43: 3.715 | N43: -4.808 | O43: -2.265 | P43: 0 | Q43: 20.35
A44: 1 | B44: 2 | C44: 17 | D44: 1 | E44: 0 | F44: -0.867 | G44: -0.001 | H44: 0 | I44: 0 | J44: -0.048 | K44: -0.475 | L44: 3.386 | M44: 3.717 | N44: -5.11 | O44: -0.6 | P44: 0 | Q44: 20.39
A45: 1 | B45: 2 | C45: 18 | D45: 1 | E45: 0 | F45: -0.734 | G45: -0.001 | H45: 0 | I45: 0 | J45: -0.044 | K45: -0.652 | L45: 1.744 | M45: 3.716 | N45: -5.351 | O45: 1.323 | P45: 0 | Q45: 20.3
A46: 1 | B46: 2 | C46: 19 | D46: 1 | E46: 0 | F46: -0.619 | G46: -0.001 | H46: 0 | I46: 0 | J46: -0.039 | K46: -0.603 | L46: 1.475 | M46: 4.544 | N46: -5.608 | O46: 0.849 | P46: 0 | Q46: 20.24
A47: 1 | B47: 2 | C47: 20 | D47: 1 | E47: 0 | F47: -0.798 | G47: -0.001 | H47: 0 | I47: 0 | J47: -0.051 | K47: -0.815 | L47: 1.328 | M47: 6.694 | N47: -5.631 | O47: -0.726 | P47: 0 | Q47: 20.29
A48: 1 | B48: 2 | C48: 21 | D48: 1 | E48: 0 | F48: -0.92 | G48: -0.001 | H48: 0 | I48: 0 | J48: -0.06 | K48: -0.973 | L48: 1.22 | M48: 6.937 | N48: -5.65 | O48: -0.553 | P48: 0 | Q48: 20.33
A49: 1 | B49: 2 | C49: 22 | D49: 1 | E49: 0 | F49: -0.974 | G49: -0.001 | H49: 0 | I49: 0 | J49: -0.065 | K49: -1.077 | L49: 1.128 | M49: 7.134 | N49: -5.942 | O49: -0.201 | P49: 0 | Q49: 20.34
A50: 1 | B50: 2 | C50: 23 | D50: 1 | E50: 0 | F50: -1.015 | G50: -0.001 | H50: 0 | I50: 0 | J50: -0.069 | K50: -1.151 | L50: 1.047 | M50: 7.304 | N50: -5.948 | O50: -0.166 | P50: 0 | Q50: 20.35
A51: 1 | B51: 2 | C51: 24 | D51: 1 | E51: 0 | F51: -0.823 | G51: -0.001 | H51: 0 | I51: 0 | J51: -0.057 | K51: -0.965 | L51: 0.974 | M51: 5.885 | N51: -6.196 | O51: 1.183 | P51: 0 | Q51: 20.27
A52: 1 | B52: 3 | C52: 1 | D52: 1 | E52: 0 | F52: -0.487 | G52: -0.001 | H52: 0 | I52: 0 | J52: -0.034 | K52: -0.58 | L52: 0.91 | M52: 4.217 | N52: -6.127 | O52: 2.101 | P52: 0 | Q52: 20.13
A53: 1 | B53: 3 | C53: 2 | D53: 1 | E53: 0 | F53: -0.251 | G53: 0 | H53: 0 | I53: 0 | J53: -0.017 | K53: -0.302 | L53: 0.851 | M53: 4.078 | N53: -6.07 | O53: 1.711 | P53: 0 | Q53: 20.02
A54: 1 | B54: 3 | C54: 3 | D54: 1 | E54: 0 | F54: -0.057 | G54: 0 | H54: 0 | I54: 0 | J54: -0.004 | K54: -0.071 | L54: 0.798 | M54: 3.974 | N54: -6.303 | O54: 1.664 | P54: 0 | Q54: 19.91
A55: 1 | B55: 3 | C55: 4 | D55: 1 | E55: 0 | F55: 0.089 | G55: 0 | H55: 0 | I55: 0 | J55: 0.006 | K55: 0.11 | L55: 0.75 | M55: 3.887 | N55: -6.256 | O55: 1.414 | P55: 0 | Q55: 19.81
A56: 1 | B56: 3 | C56: 5 | D56: 1 | E56: 0 | F56: 0.196 | G56: 0 | H56: 0 | I56: 0 | J56: 0.014 | K56: 0.244 | L56: 0.706 | M56: 3.813 | N56: -6.215 | O56: 1.243 | P56: 0 | Q56: 19.73
A57: 1 | B57: 3 | C57: 6 | D57: 1 | E57: 0 | F57: 0.277 | G57: 0 | H57: 0 | I57: 0 | J57: 0.019 | K57: 0.346 | L57: 0.665 | M57: 3.747 | N57: -6.178 | O57: 1.123 | P57: 0 | Q57: 19.66
A58: 1 | B58: 3 | C58: 7 | D58: 1 | E58: 0 | F58: 0.36 | G58: 0 | H58: 0 | I58: 0 | J58: 0.025 | K58: 0.458 | L58: 0.627 | M58: 3.69 | N58: -6.425 | O58: 1.265 | P58: 0 | Q58: 19.57
A59: 1 | B59: 3 | C59: 8 | D59: 1 | E59: 1 | F59: -0.859 | G59: -0.001 | H59: 0 | I59: 0 | J59: -0.06 | K59: -1.095 | L59: 0.593 | M59: 3.706 | N59: -6.638 | O59: -6.435 | P59: -10.79 | Q59: 20
A60: 1 | B60: 3 | C60: 9 | D60: 1 | E60: 1 | F60: -0.878 | G60: -0.001 | H60: 0 | I60: 0 | J60: -0.061 | K60: -1.113 | L60: 0.6 | M60: 3.666 | N60: -6.638 | O60: 0 | P60: -4.426 | Q60: 20
A61: 1 | B61: 3 | C61: 10 | D61: 1 | E61: 1 | F61: -0.872 | G61: -0.001 | H61: 0 | I61: 0 | J61: -0.059 | K61: -1.024 | L61: 0.831 | M61: 3.629 | N61: -6.061 | O61: 0 | P61: -3.557 | Q61: 20
A62: 1 | B62: 3 | C62: 11 | D62: 1 | E62: 1 | F62: -0.778 | G62: -0.001 | H62: 0 | I62: 0 | J62: -0.048 | K62: -0.689 | L62: 2.079 | M62: 3.595 | N62: -5.488 | O62: 0 | P62: -1.33 | Q62: 20
A63: 1 | B63: 3 | C63: 12 | D63: 1 | E63: 1 | F63: -0.749 | G63: -0.001 | H63: 0 | I63: 0 | J63: -0.044 | K63: -0.574 | L63: 2.425 | M63: 3.564 | N63: -4.92 | O63: 0 | P63: -0.298 | Q63: 20
A64: 1 | B64: 3 | C64: 13 | D64: 1 | E64: 1 | F64: -0.801 | G64: -0.001 | H64: 0 | I64: 0 | J64: -0.046 | K64: -0.642 | L64: 2.02 | M64: 3.535 | N64: -4.638 | O64: 0 | P64: -0.572 | Q64: 20
A65: 1 | B65: 3 | C65: 14 | D65: 1 | E65: 0 | F65: -0.9 | G65: -0.001 | H65: 0 | I65: 0 | J65: -0.048 | K65: -0.503 | L65: 3.195 | M65: 3.509 | N65: -4.385 | O65: -0.867 | P65: 0 | Q65: 20.06
A66: 1 | B66: 3 | C66: 15 | D66: 1 | E66: 0 | F66: -1.075 | G66: -0.001 | H66: 0 | I66: 0 | J66: -0.056 | K66: -0.588 | L66: 3.075 | M66: 3.484 | N66: -4.128 | O66: -0.711 | P66: 0 | Q66: 20.11
A67: 1 | B67: 3 | C67: 16 | D67: 1 | E67: 0 | F67: -1.029 | G67: -0.001 | H67: 0 | I67: 0 | J67: -0.057 | K67: -0.773 | L67: 2.03 | M67: 3.716 | N67: -4.391 | O67: 0.505 | P67: 0 | Q67: 20.07
A68: 1 | B68: 3 | C68: 17 | D68: 1 | E68: 0 | F68: -0.852 | G68: -0.001 | H68: 0 | I68: 0 | J68: -0.049 | K68: -0.741 | L68: 1.535 | M68: 3.718 | N68: -4.639 | O68: 1.03 | P68: 0 | Q68: 20
A69: 1 | B69: 3 | C69: 18 | D69: 1 | E69: 1 | F69: -0.883 | G69: -0.001 | H69: 0 | I69: 0 | J69: -0.053 | K69: -0.841 | L69: 1.272 | M69: 3.716 | N69: -4.92 | O69: 0.044 | P69: -1.665 | Q69: 20
A70: 1 | B70: 3 | C70: 19 | D70: 1 | E70: 1 | F70: -0.901 | G70: -0.001 | H70: 0 | I70: 0 | J70: -0.055 | K70: -0.908 | L70: 1.082 | M70: 4.545 | N70: -4.92 | O70: 0 | P70: -1.157 | Q70: 20
A71: 1 | B71: 3 | C71: 20 | D71: 1 | E71: 0 | F71: -0.988 | G71: -0.001 | H71: 0 | I71: 0 | J71: -0.062 | K71: -1.046 | L71: 0.992 | M71: 6.695 | N71: -5.216 | O71: -0.374 | P71: 0 | Q71: 20.02
A72: 1 | B72: 3 | C72: 21 | D72: 1 | E72: 0 | F72: -1.021 | G72: -0.001 | H72: 0 | I72: 0 | J72: -0.066 | K72: -1.132 | L72: 0.916 | M72: 6.937 | N72: -5.505 | O72: -0.128 | P72: 0 | Q72: 20.03
A73: 1 | B73: 3 | C73: 22 | D73: 1 | E73: 0 | F73: -1.054 | G73: -0.001 | H73: 0 | I73: 0 | J73: -0.069 | K73: -1.197 | L73: 0.849 | M73: 7.134 | N73: -5.51 | O73: -0.152 | P73: 0 | Q73: 20.04
A74: 1 | B74: 3 | C74: 23 | D74: 1 | E74: 0 | F74: -1.054 | G74: -0.001 | H74: 0 | I74: 0 | J74: -0.071 | K74: -1.24 | L74: 0.79 | M74: 7.304 | N74: -5.794 | O74: 0.065 | P74: 0 | Q74: 20.04
A75: 1 | B75: 3 | C75: 24 | D75: 1 | E75: 0 | F75: -0.838 | G75: 0 | H75: 0 | I75: 0 | J75: -0.058 | K75: -1.019 | L75: 0.737 | M75: 5.886 | N75: -6.037 | O75: 1.329 | P75: 0 | Q75: 19.95
A76: 1 | B76: 4 | C76: 1 | D76: 1 | E76: 0 | F76: -0.492 | G76: 0 | H76: 0 | I76: 0 | J76: -0.034 | K76: -0.607 | L76: 0.689 | M76: 4.218 | N76: -5.964 | O76: 2.191 | P76: 0 | Q76: 19.8
A77: 1 | B77: 4 | C77: 2 | D77: 1 | E77: 0 | F77: -0.226 | G77: 0 | H77: 0 | I77: 0 | J77: -0.016 | K77: -0.286 | L77: 0.646 | M77: 4.079 | N77: -6.186 | O77: 1.99 | P77: 0 | Q77: 19.67
A78: 1 | B78: 4 | C78: 3 | D78: 1 | E78: 0 | F78: -0.011 | G78: 0 | H78: 0 | I78: 0 | J78: -0.001 | K78: -0.014 | L78: 0.607 | M78: 3.974 | N78: -6.413 | O78: 1.858 | P78: 0 | Q78: 19.55
A79: 1 | B79: 4 | C79: 4 | D79: 1 | E79: 0 | F79: 0.169 | G79: 0 | H79: 0 | I79: 0 | J79: 0.012 | K79: 0.224 | L79: 0.57 | M79: 3.887 | N79: -6.644 | O79: 1.78 | P79: 0 | Q79: 19.43
A80: 1 | B80: 4 | C80: 5 | D80: 1 | E80: 0 | F80: 0.325 | G80: 0 | H80: 0 | I80: 0 | J80: 0.024 | K80: 0.439 | L80: 0.537 | M80: 3.813 | N80: -6.877 | O80: 1.739 | P80: 0 | Q80: 19.31
A81: 1 | B81: 4 | C81: 6 | D81: 1 | E81: 0 | F81: 0.463 | G81: 0 | H81: 0 | I81: 0 | J81: 0.035 | K81: 0.636 | L81: 0.507 | M81: 3.748 | N81: -7.111 | O81: 1.724 | P81: 0 | Q81: 19.2
A82: 1 | B82: 4 | C82: 7 | D82: 1 | E82: 0 | F82: 0.569 | G82: 0 | H82: 0 | I82: 0 | J82: 0.043 | K82: 0.785 | L82: 0.478 | M82: 3.69 | N82: -7.062 | O82: 1.496 | P82: 0 | Q82: 19.1
A83: 1 | B83: 4 | C83: 8 | D83: 1 | E83: 1 | F83: -1.773 | G83: -0.001 | H83: 0 | I83: 0 | J83: -0.134 | K83: -2.479 | L83: 0.452 | M83: 3.707 | N83: -7.807 | O83: -13.517 | P83: -21.552 | Q83: 20
A84: 1 | B84: 4 | C84: 9 | D84: 1 | E84: 1 | F84: -1.726 | G84: -0.001 | H84: 0 | I84: 0 | J84: -0.13 | K84: -2.399 | L84: 0.467 | M84: 3.666 | N84: -7.807 | O84: 0 | P84: -7.929 | Q84: 20
A85: 1 | B85: 4 | C85: 10 | D85: 1 | E85: 1 | F85: -1.704 | G85: -0.001 | H85: 0 | I85: 0 | J85: -0.125 | K85: -2.272 | L85: 0.608 | M85: 3.629 | N85: -7.513 | O85: 0 | P85: -7.378 | Q85: 20
A86: 1 | B86: 4 | C86: 11 | D86: 1 | E86: 1 | F86: -1.685 | G86: -0.001 | H86: 0 | I86: 0 | J86: -0.115 | K86: -1.814 | L86: 1.691 | M86: 3.595 | N86: -6.929 | O86: 0 | P86: -5.257 | Q86: 20
A87: 1 | B87: 4 | C87: 12 | D87: 1 | E87: 1 | F87: -1.674 | G87: -0.001 | H87: 0 | I87: 0 | J87: -0.11 | K87: -1.706 | L87: 1.701 | M87: 3.564 | N87: -6.349 | O87: 0 | P87: -4.574 | Q87: 20
A88: 1 | B88: 4 | C88: 13 | D88: 1 | E88: 0 | F88: -1.856 | G88: -0.001 | H88: 0 | I88: 0 | J88: -0.102 | K88: -0.536 | L88: 5.667 | M88: 3.535 | N88: -5.804 | O88: -0.904 | P88: 0 | Q88: 20.06
A89: 1 | B89: 4 | C89: 14 | D89: 1 | E89: 0 | F89: -2.63 | G89: -0.001 | H89: 0 | I89: 0 | J89: -0.13 | K89: -0.073 | L89: 6.853 | M89: 3.509 | N89: -5.306 | O89: -2.221 | P89: 0 | Q89: 20.21
A90: 1 | B90: 4 | C90: 15 | D90: 1 | E90: 0 | F90: -2.966 | G90: -0.001 | H90: 0 | I90: 0 | J90: -0.144 | K90: -0.278 | L90: 6.087 | M90: 3.484 | N90: -4.786 | O90: -1.396 | P90: 0 | Q90: 20.3
A91: 1 | B91: 4 | C91: 16 | D91: 1 | E91: 0 | F91: -2.393 | G91: -0.001 | H91: 0 | I91: 0 | J91: -0.126 | K91: -1.027 | L91: 4.097 | M91: 3.716 | N91: -5.043 | O91: 0.776 | P91: 0 | Q91: 20.25
A92: 1 | B92: 4 | C92: 17 | D92: 1 | E92: 0 | F92: -1.867 | G92: -0.001 | H92: 0 | I92: 0 | J92: -0.104 | K92: -1.159 | L92: 3.086 | M92: 3.718 | N92: -5.274 | O92: 1.6 | P92: 0 | Q92: 20.14
A93: 1 | B93: 4 | C93: 18 | D93: 1 | E93: 0 | F93: -1.358 | G93: 0 | H93: 0 | I93: 0 | J93: -0.08 | K93: -1.103 | L93: 2.205 | M93: 3.717 | N93: -5.49 | O93: 2.111 | P93: 0 | Q93: 20
A94: 1 | B94: 4 | C94: 19 | D94: 1 | E94: 1 | F94: -1.351 | G94: 0 | H94: 0 | I94: 0 | J94: -0.084 | K94: -1.243 | L94: 1.843 | M94: 4.545 | N94: -5.774 | O94: 0.035 | P94: -2.031 | Q94: 20
A95: 1 | B95: 4 | C95: 20 | D95: 1 | E95: 1 | F95: -1.34 | G95: 0 | H95: 0 | I95: 0 | J95: -0.087 | K95: -1.335 | L95: 1.651 | M95: 6.695 | N95: -6.061 | O95: 0 | P95: -0.478 | Q95: 20
A96: 1 | B96: 4 | C96: 21 | D96: 1 | E96: 1 | F96: -1.331 | G96: 0 | H96: 0 | I96: 0 | J96: -0.089 | K96: -1.416 | L96: 1.506 | M96: 6.938 | N96: -6.349 | O96: 0 | P96: -0.743 | Q96: 20
A97: 1 | B97: 4 | C97: 22 | D97: 1 | E97: 1 | F97: -1.328 | G97: 0 | H97: 0 | I97: 0 | J97: -0.092 | K97: -1.494 | L97: 1.382 | M97: 7.134 | N97: -6.638 | O97: 0 | P97: -1.037 | Q97: 20
A98: 1 | B98: 4 | C98: 23 | D98: 1 | E98: 1 | F98: -1.332 | G98: 0 | H98: 0 | I98: 0 | J98: -0.095 | K98: -1.569 | L98: 1.273 | M98: 7.305 | N98: -6.929 | O98: 0 | P98: -1.347 | Q98: 20
A99: 1 | B99: 4 | C99: 24 | D99: 1 | E99: 0 | F99: -0.981 | G99: 0 | H99: 0 | I99: 0 | J99: -0.071 | K99: -1.185 | L99: 1.178 | M99: 5.886 | N99: -6.861 | O99: 2.034 | P99: 0 | Q99: 19.86
A100: 1 | B100: 5 | C100: 1 | D100: 1 | E100: 0 | F100: -0.521 | G100: 0 | H100: 0 | I100: 0 | J100: -0.038 | K100: -0.65 | L100: 1.093 | M100: 4.218 | N100: -7.054 | O100: 2.954 | P100: 0 | Q100: 19.67
A101: 1 | B101: 5 | C101: 2 | D101: 1 | E101: 0 | F101: -0.177 | G101: 0 | H101: 0 | I101: 0 | J101: -0.013 | K101: -0.227 | L101: 1.017 | M101: 4.079 | N101: -7.26 | O101: 2.582 | P101: 0 | Q101: 19.5
A102: 1 | B102: 5 | C102: 3 | D102: 1 | E102: 0 | F102: 0.09 | G102: 0 | H102: 0 | I102: 0 | J102: 0.007 | K102: 0.118 | L102: 0.948 | M102: 3.974 | N102: -7.475 | O102: 2.338 | P102: 0 | Q102: 19.34
A103: 1 | B103: 5 | C103: 4 | D103: 1 | E103: 0 | F103: 0.306 | G103: 0 | H103: 0 | I103: 0 | J103: 0.023 | K103: 0.411 | L103: 0.886 | M103: 3.888 | N103: -7.696 | O103: 2.183 | P103: 0 | Q103: 19.19
A104: 1 | B104: 5 | C104: 5 | D104: 1 | E104: 0 | F104: 0.506 | G104: 0 | H104: 0 | I104: 0 | J104: 0.039 | K104: 0.701 | L104: 0.83 | M104: 3.813 | N104: -8.21 | O104: 2.32 | P104: 0 | Q104: 19.04
A105: 1 | B105: 5 | C105: 6 | D105: 1 | E105: 0 | F105: 0.682 | G105: 0 | H105: 0 | I105: 0 | J105: 0.054 | K105: 0.964 | L105: 0.779 | M105: 3.748 | N105: -8.434 | O105: 2.207 | P105: 0 | Q105: 18.89
A106: 1 | B106: 5 | C106: 7 | D106: 1 | E106: 0 | F106: 0.834 | G106: 0 | H106: 0 | I106: 0 | J106: 0.066 | K106: 1.196 | L106: 0.732 | M106: 3.69 | N106: -8.66 | O106: 2.142 | P106: 0 | Q106: 18.75
A107: 1 | B107: 5 | C107: 8 | D107: 1 | E107: 1 | F107: -2.324 | G107: -0.001 | H107: 0 | I107: 0 | J107: -0.185 | K107: -3.377 | L107: 0.689 | M107: 3.707 | N107: -9.595 | O107: -18.76 | P107: -29.846 | Q107: 20
A108: 1 | B108: 5 | C108: 9 | D108: 1 | E108: 1 | F108: -2.245 | G108: -0.001 | H108: 0 | I108: 0 | J108: -0.178 | K108: -3.329 | L108: 0.708 | M108: 3.667 | N108: -9.595 | O108: 0 | P108: -10.972 | Q108: 20
A109: 1 | B109: 5 | C109: 10 | D109: 1 | E109: 1 | F109: -2.281 | G109: -0.001 | H109: 0 | I109: 0 | J109: -0.162 | K109: -2.261 | L109: 3.072 | M109: 3.629 | N109: -8.695 | O109: 0 | P109: -6.699 | Q109: 20
A110: 1 | B110: 5 | C110: 11 | D110: 1 | E110: 0 | F110: -3.03 | G110: -0.001 | H110: 0 | I110: 0 | J110: -0.17 | K110: -0.054 | L110: 8.695 | M110: 3.595 | N110: -7.562 | O110: -1.474 | P110: 0 | Q110: 20.1
A111: 1 | B111: 5 | C111: 12 | D111: 1 | E111: 0 | F111: -3.842 | G111: -0.001 | H111: 0 | I111: 0 | J111: -0.173 | K111: 0.044 | L111: 12.106 | M111: 3.564 | N111: -6.568 | O111: -5.13 | P111: 0 | Q111: 20.44
A112: 1 | B112: 5 | C112: 13 | D112: 1 | E112: 0 | F112: -4.59 | G112: -0.001 | H112: 0 | I112: 0 | J112: -0.152 | K112: -0.848 | L112: 16.627 | M112: 3.535 | N112: -5.988 | O112: -8.583 | P112: 0 | Q112: 21.01
A113: 1 | B113: 5 | C113: 14 | D113: 1 | E113: 0 | F113: -5.265 | G113: -0.001 | H113: 0 | I113: 0 | J113: -0.122 | K113: -2.525 | L113: 20.103 | M113: 3.509 | N113: -5.47 | O113: -10.228 | P113: 0 | Q113: 21.69
A114: 1 | B114: 5 | C114: 15 | D114: 1 | E114: 0 | F114: -5.933 | G114: -0.001 | H114: 0 | I114: 0 | J114: -0.127 | K114: -4.099 | L114: 20.068 | M114: 3.484 | N114: -5.446 | O114: -7.945 | P114: 0 | Q114: 22.22
A115: 1 | B115: 5 | C115: 16 | D115: 1 | E115: 0 | F115: -6.398 | G115: -0.001 | H115: 0 | I115: 0 | J115: -0.145 | K115: -5.061 | L115: 18.565 | M115: 3.716 | N115: -5.338 | O115: -5.338 | P115: 0 | Q115: 22.58
A116: 1 | B116: 5 | C116: 17 | D116: 1 | E116: 0 | F116: -7.15 | G116: -0.002 | H116: 0 | I116: 0 | J116: -0.24 | K116: -4.492 | L116: 13.753 | M116: 3.718 | N116: -5.895 | O116: 0.307 | P116: 0 | Q116: 22.56
A117: 1 | B117: 5 | C117: 18 | D117: 1 | E117: 0 | F117: -9.218 | G117: -0.002 | H117: 0 | I117: 0 | J117: -0.46 | K117: -1.062 | L117: 7.577 | M117: 3.717 | N117: -6.277 | O117: 5.726 | P117: 0 | Q117: 22.18
A118: 1 | B118: 5 | C118: 19 | D118: 1 | E118: 0 | F118: -7.718 | G118: -0.002 | H118: 0 | I118: 0 | J118: -0.446 | K118: -0.597 | L118: 6.492 | M118: 4.545 | N118: -6.706 | O118: 4.432 | P118: 0 | Q118: 21.88
A119: 1 | B119: 5 | C119: 20 | D119: 1 | E119: 0 | F119: -5.924 | G119: -0.002 | H119: 0 | I119: 0 | J119: -0.384 | K119: -1.364 | L119: 5.8 | M119: 6.695 | N119: -6.925 | O119: 2.103 | P119: 0 | Q119: 21.74
A120: 1 | B120: 5 | C120: 21 | D120: 1 | E120: 0 | F120: -4.637 | G120: -0.001 | H120: 0 | I120: 0 | J120: -0.331 | K120: -1.837 | L120: 5.258 | M120: 6.938 | N120: -7.156 | O120: 1.768 | P120: 0 | Q120: 21.62
A121: 1 | B121: 5 | C121: 22 | D121: 1 | E121: 0 | F121: -3.735 | G121: -0.001 | H121: 0 | I121: 0 | J121: -0.288 | K121: -2.071 | L121: 4.797 | M121: 7.134 | N121: -7.395 | O121: 1.56 | P121: 0 | Q121: 21.52
A122: 1 | B122: 5 | C122: 23 | D122: 1 | E122: 0 | F122: -3.09 | G122: -0.001 | H122: 0 | I122: 0 | J122: -0.252 | K122: -2.155 | L122: 4.399 | M122: 7.305 | N122: -7.639 | O122: 1.434 | P122: 0 | Q122: 21.42
A123: 1 | B123: 5 | C123: 24 | D123: 1 | E123: 0 | F123: -2.382 | G123: -0.001 | H123: 0 | I123: 0 | J123: -0.202 | K123: -1.961 | L123: 4.049 | M123: 5.886 | N123: -7.85 | O123: 2.46 | P123: 0 | Q123: 21.26
A124: 1 | B124: 6 | C124: 1 | D124: 1 | E124: 0 | F124: -1.638 | G124: -0.001 | H124: 0 | I124: 0 | J124: -0.142 | K124: -1.524 | L124: 3.741 | M124: 4.218 | N124: -8.031 | O124: 3.378 | P124: 0 | Q124: 21.04
A125: 1 | B125: 6 | C125: 2 | D125: 1 | E125: 0 | F125: -1.098 | G125: 0 | H125: 0 | I125: 0 | J125: -0.097 | K125: -1.12 | L125: 3.466 | M125: 4.079 | N125: -8.226 | O125: 2.996 | P125: 0 | Q125: 20.84
A126: 1 | B126: 6 | C126: 3 | D126: 1 | E126: 0 | F126: -0.687 | G126: 0 | H126: 0 | I126: 0 | J126: -0.061 | K126: -0.753 | L126: 3.221 | M126: 3.974 | N126: -8.43 | O126: 2.736 | P126: 0 | Q126: 20.65
A127: 1 | B127: 6 | C127: 4 | D127: 1 | E127: 0 | F127: -0.361 | G127: 0 | H127: 0 | I127: 0 | J127: -0.032 | K127: -0.418 | L127: 3 | M127: 3.888 | N127: -8.641 | O127: 2.564 | P127: 0 | Q127: 20.48
A128: 1 | B128: 6 | C128: 5 | D128: 1 | E128: 0 | F128: -0.091 | G128: 0 | H128: 0 | I128: 0 | J128: -0.008 | K128: -0.111 | L128: 2.801 | M128: 3.813 | N128: -8.856 | O128: 2.452 | P128: 0 | Q128: 20.32
A129: 1 | B129: 6 | C129: 6 | D129: 1 | E129: 0 | F129: 0.138 | G129: 0 | H129: 0 | I129: 0 | J129: 0.012 | K129: 0.173 | L129: 2.621 | M129: 3.748 | N129: -9.075 | O129: 2.382 | P129: 0 | Q129: 20.16
A130: 1 | B130: 6 | C130: 7 | D130: 1 | E130: 0 | F130: 0.34 | G130: 0 | H130: 0 | I130: 0 | J130: 0.03 | K130: 0.438 | L130: 2.456 | M130: 3.69 | N130: -9.296 | O130: 2.341 | P130: 0 | Q130: 20
A131: 1 | B131: 6 | C131: 8 | D131: 1 | E131: 1 | F131: 0.146 | G131: 0 | H131: 0 | I131: 0 | J131: 0.013 | K131: 0.192 | L131: 2.306 | M131: 4.47 | N131: -9.595 | O131: 0.059 | P131: -2.409 | Q131: 20
A132: 1 | B132: 6 | C132: 9 | D132: 1 | E132: 1 | F132: -0.046 | G132: 0 | H132: 0 | I132: 0 | J132: -0.004 | K132: -0.063 | L132: 2.208 | M132: 4.498 | N132: -9.595 | O132: 0 | P132: -3.002 | Q132: 20
A133: 1 | B133: 6 | C133: 10 | D133: 1 | E133: 1 | F133: -0.132 | G133: 0 | H133: 0 | I133: 0 | J133: -0.011 | K133: -0.169 | L133: 2.453 | M133: 4.515 | N133: -9.294 | O133: 0 | P133: -2.637 | Q133: 20
A134: 1 | B134: 6 | C134: 11 | D134: 1 | E134: 0 | F134: -0.023 | G134: 0 | H134: 0 | I134: 0 | J134: -0.002 | K134: -0.019 | L134: 4.518 | M134: 4.528 | N134: -8.418 | O134: -0.584 | P134: 0 | Q134: 20.04
A135: 1 | B135: 6 | C135: 12 | D135: 1 | E135: 0 | F135: -1.574 | G135: 0 | H135: 0 | I135: 0 | J135: -0.087 | K135: 0.728 | L135: 10.819 | M135: 4.538 | N135: -7.471 | O135: -6.953 | P135: 0 | Q135: 20.5
A136: 1 | B136: 6 | C136: 13 | D136: 1 | E136: 0 | F136: -2.986 | G136: -0.001 | H136: 0 | I136: 0 | J136: -0.157 | K136: 0.197 | L136: 9.934 | M136: 4.547 | N136: -6.757 | O136: -4.778 | P136: 0 | Q136: 20.82
A137: 1 | B137: 6 | C137: 14 | D137: 1 | E137: 0 | F137: -3.234 | G137: -0.001 | H137: 0 | I137: 0 | J137: -0.183 | K137: -0.548 | L137: 7.038 | M137: 4.554 | N137: -6.785 | O137: -0.842 | P137: 0 | Q137: 20.88
A138: 1 | B138: 6 | C138: 15 | D138: 1 | E138: 0 | F138: -3.992 | G138: -0.001 | H138: 0 | I138: 0 | J138: -0.206 | K138: -0.02 | L138: 8.583 | M138: 4.56 | N138: -6.574 | O138: -2.35 | P138: 0 | Q138: 21.03
A139: 1 | B139: 6 | C139: 16 | D139: 1 | E139: 0 | F139: -4.285 | G139: -0.001 | H139: 0 | I139: 0 | J139: -0.226 | K139: -0.126 | L139: 7.781 | M139: 4.566 | N139: -6.61 | O139: -1.099 | P139: 0 | Q139: 21.11
A140: 1 | B140: 6 | C140: 17 | D140: 1 | E140: 0 | F140: -3.041 | G140: -0.001 | H140: 0 | I140: 0 | J140: -0.179 | K140: -1.351 | L140: 5.219 | M140: 4.571 | N140: -6.845 | O140: 1.628 | P140: 0 | Q140: 21
A141: 1 | B141: 6 | C141: 18 | D141: 1 | E141: 0 | F141: -2.164 | G141: 0 | H141: 0 | I141: 0 | J141: -0.139 | K141: -1.538 | L141: 3.992 | M141: 4.575 | N141: -7.34 | O141: 2.614 | P141: 0 | Q141: 20.82
A142: 1 | B142: 6 | C142: 19 | D142: 1 | E142: 0 | F142: -1.699 | G142: 0 | H142: 0 | I142: 0 | J142: -0.114 | K142: -1.412 | L142: 3.549 | M142: 5.41 | N142: -7.571 | O142: 1.837 | P142: 0 | Q142: 20.7
A143: 1 | B143: 6 | C143: 20 | D143: 1 | E143: 0 | F143: -1.672 | G143: 0 | H143: 0 | I143: 0 | J143: -0.115 | K143: -1.461 | L143: 3.247 | M143: 7.566 | N143: -7.571 | O143: 0.007 | P143: 0 | Q143: 20.7
A144: 1 | B144: 6 | C144: 21 | D144: 1 | E144: 0 | F144: -1.6 | G144: 0 | H144: 0 | I144: 0 | J144: -0.114 | K144: -1.518 | L144: 3.002 | M144: 7.815 | N144: -7.855 | O144: 0.27 | P144: 0 | Q144: 20.68
A145: 1 | B145: 6 | C145: 22 | D145: 1 | E145: 0 | F145: -1.547 | G145: 0 | H145: 0 | I145: 0 | J145: -0.112 | K145: -1.544 | L145: 2.787 | M145: 8.019 | N145: -7.847 | O145: 0.244 | P145: 0 | Q145: 20.67
A146: 1 | B146: 6 | C146: 23 | D146: 1 | E146: 0 | F146: -1.469 | G146: 0 | H146: 0 | I146: 0 | J146: -0.109 | K146: -1.55 | L146: 2.597 | M146: 8.195 | N146: -8.126 | O146: 0.462 | P146: 0 | Q146: 20.64
A147: 1 | B147: 6 | C147: 24 | D147: 1 | E147: 0 | F147: -1.148 | G147: 0 | H147: 0 | I147: 0 | J147: -0.085 | K147: -1.249 | L147: 2.426 | M147: 6.274 | N147: -8.064 | O147: 1.847 | P147: 0 | Q147: 20.51
A148: 1 | B148: 7 | C148: 1 | D148: 1 | E148: 0 | F148: -0.678 | G148: 0 | H148: 0 | I148: 0 | J148: -0.051 | K148: -0.766 | L148: 2.271 | M148: 4.566 | N148: -8.262 | O148: 2.92 | P148: 0 | Q148: 20.32
A149: 1 | B149: 7 | C149: 2 | D149: 1 | E149: 0 | F149: -0.341 | G149: 0 | H149: 0 | I149: 0 | J149: -0.026 | K149: -0.393 | L149: 2.131 | M149: 4.397 | N149: -8.181 | O149: 2.414 | P149: 0 | Q149: 20.16
A150: 1 | B150: 7 | C150: 3 | D150: 1 | E150: 0 | F150: -0.069 | G150: 0 | H150: 0 | I150: 0 | J150: -0.005 | K150: -0.082 | L150: 2.002 | M150: 4.266 | N150: -8.4 | O150: 2.288 | P150: 0 | Q150: 20
A151: 1 | B151: 7 | C151: 4 | D151: 1 | E151: 0 | F151: 0.138 | G151: 0 | H151: 0 | I151: 0 | J151: 0.01 | K151: 0.165 | L151: 1.885 | M151: 4.157 | N151: -8.334 | O151: 1.978 | P151: 0 | Q151: 19.87
A152: 1 | B152: 7 | C152: 5 | D152: 1 | E152: 0 | F152: 0.295 | G152: 0 | H152: 0 | I152: 0 | J152: 0.022 | K152: 0.356 | L152: 1.776 | M152: 4.063 | N152: -8.275 | O152: 1.763 | P152: 0 | Q152: 19.76
A153: 1 | B153: 7 | C153: 6 | D153: 1 | E153: 0 | F153: 0.439 | G153: 0 | H153: 0 | I153: 0 | J153: 0.033 | K153: 0.54 | L153: 1.676 | M153: 3.98 | N153: -8.51 | O153: 1.842 | P153: 0 | Q153: 19.63
A154: 1 | B154: 7 | C154: 7 | D154: 1 | E154: 0 | F154: 0.559 | G154: 0 | H154: 0 | I154: 0 | J154: 0.042 | K154: 0.691 | L154: 1.584 | M154: 3.907 | N154: -8.454 | O154: 1.671 | P154: 0 | Q154: 19.52
A155: 1 | B155: 7 | C155: 8 | D155: 1 | E155: 1 | F155: -0.862 | G155: 0 | H155: 0 | I155: 0 | J155: -0.064 | K155: -1.083 | L155: 1.498 | M155: 4.672 | N155: -8.994 | O155: -7.18 | P155: -12.013 | Q155: 20
A156: 1 | B156: 7 | C156: 9 | D156: 1 | E156: 1 | F156: -0.932 | G156: 0 | H156: 0 | I156: 0 | J156: -0.069 | K156: -1.207 | L156: 1.438 | M156: 4.687 | N156: -8.994 | O156: 0 | P156: -5.077 | Q156: 20
A157: 1 | B157: 7 | C157: 10 | D157: 1 | E157: 1 | F157: -0.907 | G157: 0 | H157: 0 | I157: 0 | J157: -0.064 | K157: -1.013 | L157: 2.226 | M157: 4.693 | N157: -8.398 | O157: 0 | P157: -3.462 | Q157: 20
A158: 1 | B158: 7 | C158: 11 | D158: 1 | E158: 1 | F158: -0.748 | G158: 0 | H158: 0 | I158: 0 | J158: -0.048 | K158: -0.562 | L158: 4.145 | M158: 4.696 | N158: -7.513 | O158: 0 | P158: -0.03 | Q158: 20
A159: 1 | B159: 7 | C159: 12 | D159: 1 | E159: 0 | F159: -0.894 | G159: 0 | H159: 0 | I159: 0 | J159: -0.054 | K159: -0.589 | L159: 4.436 | M159: 4.696 | N159: -6.95 | O159: -0.645 | P159: 0 | Q159: 20.04
A160: 1 | B160: 7 | C160: 13 | D160: 1 | E160: 0 | F160: -0.944 | G160: 0 | H160: 0 | I160: 0 | J160: -0.057 | K160: -0.749 | L160: 3.313 | M160: 4.696 | N160: -6.647 | O160: 0.388 | P160: 0 | Q160: 20.02
A161: 1 | B161: 7 | C161: 14 | D161: 1 | E161: 0 | F161: -1.01 | G161: 0 | H161: 0 | I161: 0 | J161: -0.058 | K161: -0.695 | L161: 3.82 | M161: 4.695 | N161: -6.37 | O161: -0.382 | P161: 0 | Q161: 20.04
A162: 1 | B162: 7 | C162: 15 | D162: 1 | E162: 0 | F162: -1.137 | G162: 0 | H162: 0 | I162: 0 | J162: -0.064 | K162: -0.747 | L162: 3.859 | M162: 4.694 | N162: -6.099 | O162: -0.505 | P162: 0 | Q162: 20.08
A163: 1 | B163: 7 | C163: 16 | D163: 1 | E163: 0 | F163: -1.61 | G163: 0 | H163: 0 | I163: 0 | J163: -0.084 | K163: -0.513 | L163: 6.083 | M163: 4.693 | N163: -6.178 | O163: -2.389 | P163: 0 | Q163: 20.24
A164: 1 | B164: 7 | C164: 17 | D164: 1 | E164: 0 | F164: -1.792 | G164: 0 | H164: 0 | I164: 0 | J164: -0.098 | K164: -0.851 | L164: 4.93 | M164: 4.691 | N164: -6.2 | O164: -0.679 | P164: 0 | Q164: 20.28
A165: 1 | B165: 7 | C165: 18 | D165: 1 | E165: 0 | F165: -1.378 | G165: 0 | H165: 0 | I165: 0 | J165: -0.083 | K165: -1.207 | L165: 2.633 | M165: 4.689 | N165: -6.71 | O165: 2.057 | P165: 0 | Q165: 20.14
A166: 1 | B166: 7 | C166: 19 | D166: 1 | E166: 0 | F166: -1.112 | G166: 0 | H166: 0 | I166: 0 | J166: -0.07 | K166: -1.042 | L166: 2.281 | M166: 5.519 | N166: -6.955 | O166: 1.378 | P166: 0 | Q166: 20.05
A167: 1 | B167: 7 | C167: 20 | D167: 1 | E167: 0 | F167: -1.201 | G167: 0 | H167: 0 | I167: 0 | J167: -0.077 | K167: -1.18 | L167: 2.087 | M167: 7.67 | N167: -6.966 | O167: -0.333 | P167: 0 | Q167: 20.07
A168: 1 | B168: 7 | C168: 21 | D168: 1 | E168: 0 | F168: -1.22 | G168: 0 | H168: 0 | I168: 0 | J168: -0.08 | K168: -1.267 | L168: 1.925 | M168: 7.914 | N168: -7.258 | O168: -0.014 | P168: 0 | Q168: 20.07
A169: 1 | B169: 7 | C169: 22 | D169: 1 | E169: 0 | F169: -1.197 | G169: 0 | H169: 0 | I169: 0 | J169: -0.081 | K169: -1.306 | L169: 1.786 | M169: 8.113 | N169: -7.543 | O169: 0.229 | P169: 0 | Q169: 20.06
A170: 1 | B170: 7 | C170: 23 | D170: 1 | E170: 0 | F170: -1.185 | G170: 0 | H170: 0 | I170: 0 | J170: -0.081 | K170: -1.328 | L170: 1.662 | M170: 8.285 | N170: -7.537 | O170: 0.184 | P170: 0 | Q170: 20.05
A171: 1 | B171: 7 | C171: 24 | D171: 1 | E171: 0 | F171: -0.888 | G171: 0 | H171: 0 | I171: 0 | J171: -0.062 | K171: -1.032 | L171: 1.552 | M171: 6.36 | N171: -7.769 | O171: 1.84 | P171: 0 | Q171: 19.92
A172: 1 | B172: 8 | C172: 1 | D172: 1 | E172: 0 | F172: -0.447 | G172: 0 | H172: 0 | I172: 0 | J172: -0.032 | K172: -0.535 | L172: 1.452 | M172: 4.648 | N172: -7.967 | O172: 2.881 | P172: 0 | Q172: 19.73
A173: 1 | B173: 8 | C173: 2 | D173: 1 | E173: 0 | F173: -0.133 | G173: 0 | H173: 0 | I173: 0 | J173: -0.01 | K173: -0.162 | L173: 1.362 | M173: 4.475 | N173: -7.888 | O173: 2.356 | P173: 0 | Q173: 19.58
A174: 1 | B174: 8 | C174: 3 | D174: 1 | E174: 0 | F174: 0.116 | G174: 0 | H174: 0 | I174: 0 | J174: 0.008 | K174: 0.144 | L174: 1.28 | M174: 4.341 | N174: -8.11 | O174: 2.22 | P174: 0 | Q174: 19.43
A175: 1 | B175: 8 | C175: 4 | D175: 1 | E175: 0 | F175: 0.326 | G175: 0 | H175: 0 | I175: 0 | J175: 0.024 | K175: 0.414 | L175: 1.204 | M175: 4.228 | N175: -8.334 | O175: 2.137 | P175: 0 | Q175: 19.29
A176: 1 | B176: 8 | C176: 5 | D176: 1 | E176: 0 | F176: 0.488 | G176: 0 | H176: 0 | I176: 0 | J176: 0.036 | K176: 0.624 | L176: 1.135 | M176: 4.131 | N176: -8.272 | O176: 1.858 | P176: 0 | Q176: 19.16
A177: 1 | B177: 8 | C177: 6 | D177: 1 | E177: 0 | F177: 0.628 | G177: 0 | H177: 0 | I177: 0 | J177: 0.046 | K177: 0.817 | L177: 1.071 | M177: 4.045 | N177: -8.506 | O177: 1.898 | P177: 0 | Q177: 19.03
A178: 1 | B178: 8 | C178: 7 | D178: 1 | E178: 0 | F178: 0.762 | G178: 0 | H178: 0 | I178: 0 | J178: 0.056 | K178: 1.006 | L178: 1.012 | M178: 3.969 | N178: -8.739 | O178: 1.935 | P178: 0 | Q178: 18.91
A179: 1 | B179: 8 | C179: 8 | D179: 1 | E179: 1 | F179: -2.154 | G179: 0 | H179: 0 | I179: 0 | J179: -0.161 | K179: -2.884 | L179: 0.957 | M179: 3.968 | N179: -9.595 | O179: -16.414 | P179: -26.283 | Q179: 20
A180: 1 | B180: 8 | C180: 9 | D180: 1 | E180: 1 | F180: -2.094 | G180: 0 | H180: 0 | I180: 0 | J180: -0.156 | K180: -2.876 | L180: 0.945 | M180: 3.912 | N180: -9.595 | O180: 0 | P180: -9.864 | Q180: 20
A181: 1 | B181: 8 | C181: 10 | D181: 1 | E181: 1 | F181: -2.067 | G181: 0 | H181: 0 | I181: 0 | J181: -0.151 | K181: -2.793 | L181: 0.962 | M181: 3.861 | N181: -9.294 | O181: 0 | P181: -9.482 | Q181: 20
A182: 1 | B182: 8 | C182: 11 | D182: 1 | E182: 1 | F182: -2.04 | G182: 0 | H182: 0 | I182: 0 | J182: -0.136 | K182: -1.964 | L182: 3.211 | M182: 3.814 | N182: -8.695 | O182: 0 | P182: -5.811 | Q182: 20
A183: 1 | B183: 8 | C183: 12 | D183: 1 | E183: 1 | F183: -2.005 | G183: 0 | H183: 0 | I183: 0 | J183: -0.122 | K183: -1.323 | L183: 4.864 | M183: 3.771 | N183: -7.807 | O183: 0 | P183: -2.622 | Q183: 20
A184: 1 | B184: 8 | C184: 13 | D184: 1 | E184: 0 | F184: -2.306 | G184: 0 | H184: 0 | I184: 0 | J184: -0.123 | K184: -0.546 | L184: 7.432 | M184: 3.731 | N184: -6.969 | O184: -1.218 | P184: 0 | Q184: 20.08
A185: 1 | B185: 8 | C185: 14 | D185: 1 | E185: 0 | F185: -2.471 | G185: 0 | H185: 0 | I185: 0 | J185: -0.129 | K185: -0.646 | L185: 6.978 | M185: 3.695 | N185: -6.703 | O185: -0.723 | P185: 0 | Q185: 20.13
A186: 1 | B186: 8 | C186: 15 | D186: 1 | E186: 0 | F186: -2.057 | G186: 0 | H186: 0 | I186: 0 | J186: -0.112 | K186: -1.106 | L186: 4.764 | M186: 3.661 | N186: -6.373 | O186: 1.223 | P186: 0 | Q186: 20.05
A187: 1 | B187: 8 | C187: 16 | D187: 1 | E187: 1 | F187: -1.879 | G187: 0 | H187: 0 | I187: 0 | J187: -0.108 | K187: -1.392 | L187: 3.431 | M187: 3.884 | N187: -6.638 | O187: 0.718 | P187: -1.986 | Q187: 20
A188: 1 | B188: 8 | C188: 17 | D188: 1 | E188: 1 | F188: -1.871 | G188: 0 | H188: 0 | I188: 0 | J188: -0.112 | K188: -1.68 | L188: 2.578 | M188: 3.877 | N188: -6.929 | O188: 0 | P188: -4.138 | Q188: 20
A189: 1 | B189: 8 | C189: 18 | D189: 1 | E189: 1 | F189: -1.848 | G189: 0 | H189: 0 | I189: 0 | J189: -0.116 | K189: -1.862 | L189: 2.178 | M189: 3.868 | N189: -7.513 | O189: 0 | P189: -5.294 | Q189: 20
A190: 1 | B190: 8 | C190: 19 | D190: 1 | E190: 1 | F190: -1.813 | G190: 0 | H190: 0 | I190: 0 | J190: -0.118 | K190: -1.896 | L190: 1.968 | M190: 4.69 | N190: -7.807 | O190: 0 | P190: -4.977 | Q190: 20
A191: 1 | B191: 8 | C191: 20 | D191: 1 | E191: 1 | F191: -1.785 | G191: 0 | H191: 0 | I191: 0 | J191: -0.119 | K191: -1.939 | L191: 1.806 | M191: 6.832 | N191: -7.807 | O191: 0 | P191: -3.011 | Q191: 20
A192: 1 | B192: 8 | C192: 21 | D192: 1 | E192: 1 | F192: -1.768 | G192: 0 | H192: 0 | I192: 0 | J192: -0.121 | K192: -2.005 | L192: 1.666 | M192: 7.068 | N192: -8.102 | O192: 0 | P192: -3.261 | Q192: 20
A193: 1 | B193: 8 | C193: 22 | D193: 1 | E193: 1 | F193: -1.758 | G193: 0 | H193: 0 | I193: 0 | J193: -0.121 | K193: -2.043 | L193: 1.544 | M193: 7.259 | N193: -8.102 | O193: 0 | P193: -3.221 | Q193: 20
A194: 1 | B194: 8 | C194: 23 | D194: 1 | E194: 1 | F194: -1.755 | G194: 0 | H194: 0 | I194: 0 | J194: -0.122 | K194: -2.076 | L194: 1.435 | M194: 7.424 | N194: -8.102 | O194: 0 | P194: -3.196 | Q194: 20
A195: 1 | B195: 8 | C195: 24 | D195: 1 | E195: 0 | F195: -1.14 | G195: 0 | H195: 0 | I195: 0 | J195: -0.08 | K195: -1.384 | L195: 1.337 | M195: 6 | N195: -8.279 | O195: 3.547 | P195: 0 | Q195: 19.76
A196: 1 | B196: 9 | C196: 1 | D196: 1 | E196: 0 | F196: -0.538 | G196: 0 | H196: 0 | I196: 0 | J196: -0.038 | K196: -0.66 | L196: 1.249 | M196: 4.326 | N196: -8.151 | O196: 3.811 | P196: 0 | Q196: 19.51
A197: 1 | B197: 9 | C197: 2 | D197: 1 | E197: 0 | F197: -0.102 | G197: 0 | H197: 0 | I197: 0 | J197: -0.007 | K197: -0.128 | L197: 1.17 | M197: 4.182 | N197: -8.339 | O197: 3.224 | P197: 0 | Q197: 19.29
A198: 1 | B198: 9 | C198: 3 | D198: 1 | E198: 0 | F198: 0.228 | G198: 0 | H198: 0 | I198: 0 | J198: 0.016 | K198: 0.291 | L198: 1.097 | M198: 4.073 | N198: -8.541 | O198: 2.836 | P198: 0 | Q198: 19.11
A199: 1 | B199: 9 | C199: 4 | D199: 1 | E199: 0 | F199: 0.467 | G199: 0 | H199: 0 | I199: 0 | J199: 0.033 | K199: 0.598 | L199: 1.031 | M199: 3.982 | N199: -8.462 | O199: 2.351 | P199: 0 | Q199: 18.95
A200: 1 | B200: 9 | C200: 5 | D200: 1 | E200: 0 | F200: 0.656 | G200: 0 | H200: 0 | I200: 0 | J200: 0.047 | K200: 0.854 | L200: 0.97 | M200: 3.903 | N200: -8.685 | O200: 2.254 | P200: 0 | Q200: 18.8
... 4300 more rows

Sheet Archivo 3
D1: Nombre espacio | E1: Area(m2)
D2: P01_E01 | E2: 83.16
A3: Mes | B3: Dia | C3: Hora | D3: Horario Funcionamiento Equipo | E3: Funcionamiento Real Equipo | F3: Transmisi Muros Exteriores(W/m2 del espacio) | G3: Transmisi Muros Interiores(W/m2 del espacio) | H3: Transmisi Cubiertas(W/m2 del espacio) | I3: Transmisi Suelos(W/m2 del espacio) | J3: Transmisi Puentes T駻micos(W/m2 del espacio) | K3: Transmisi Ventanas(W/m2 del espacio) | L3: Radiaci Ventanas(W/m2 del espacio) | M3: Fuentes internas(W/m2 del espacio) | N3: Carga de ventilaci e infiltraci(W/m2 del espacio) | O3: Energia Almacenada Aire(W/m2 del espacio) | P3: Carga Total(W/m2 del espacio) | Q3: Temperatura aire (ｺC)
A4: 1 | B4: 1 | C4: 1 | D4: 1 | E4: 0 | F4: 7.166 | G4: 0.048 | H4: 0 | I4: 0 | J4: 0.64 | K4: 10.799 | L4: 1.223 | M4: 4.211 | N4: -24.087 | O4: 0 | P4: 0 | Q4: 18.88
A5: 1 | B5: 1 | C5: 2 | D5: 1 | E5: 0 | F5: 3.282 | G5: 0.022 | H5: 0 | I5: 0 | J5: 0.251 | K5: 4.174 | L5: 1.145 | M5: 4.072 | N5: -13.964 | O5: 1.018 | P5: 0 | Q5: 18.81
A6: 1 | B6: 1 | C6: 3 | D6: 1 | E6: 0 | F6: 3.057 | G6: 0.02 | H6: 0 | I6: 0 | J6: 0.218 | K6: 3.638 | L6: 1.074 | M6: 3.968 | N6: -11.255 | O6: -0.72 | P6: 0 | Q6: 18.86
A7: 1 | B7: 1 | C7: 4 | D7: 1 | E7: 0 | F7: 2.863 | G7: 0.019 | H7: 0 | I7: 0 | J7: 0.204 | K7: 3.435 | L7: 1.008 | M7: 3.881 | N7: -11.903 | O7: 0.493 | P7: 0 | Q7: 18.83
A8: 1 | B8: 1 | C8: 5 | D8: 1 | E8: 0 | F8: 2.819 | G8: 0.018 | H8: 0 | I8: 0 | J8: 0.2 | K8: 3.405 | L8: 0.949 | M8: 3.807 | N8: -12.49 | O8: 1.293 | P8: 0 | Q8: 18.74
A9: 1 | B9: 1 | C9: 6 | D9: 1 | E9: 0 | F9: 2.819 | G9: 0.017 | H9: 0 | I9: 0 | J9: 0.197 | K9: 3.382 | L9: 0.894 | M9: 3.742 | N9: -12.384 | O9: 1.332 | P9: 0 | Q9: 18.65
A10: 1 | B10: 1 | C10: 7 | D10: 1 | E10: 0 | F10: 2.908 | G10: 0.017 | H10: 0 | I10: 0 | J10: 0.206 | K10: 3.586 | L10: 0.843 | M10: 3.685 | N10: -13.584 | O10: 2.339 | P10: 0 | Q10: 18.49
A11: 1 | B11: 1 | C11: 8 | D11: 1 | E11: 1 | F11: -1.25 | G11: -0.007 | H11: 0 | I11: 0 | J11: -0.088 | K11: -1.544 | L11: 0.796 | M11: 3.702 | N11: -15.398 | O11: -22.582 | P11: -36.371 | Q11: 20
A12: 1 | B12: 1 | C12: 9 | D12: 1 | E12: 1 | F12: -1.162 | G12: -0.006 | H12: 0 | I12: 0 | J12: -0.081 | K12: -1.429 | L12: 0.792 | M12: 3.662 | N12: -15.398 | O12: 0 | P12: -13.623 | Q12: 20
A13: 1 | B13: 1 | C13: 10 | D13: 1 | E13: 1 | F13: -1.08 | G13: -0.006 | H13: 0 | I13: 0 | J13: -0.072 | K13: -1.178 | L13: 1.209 | M13: 3.625 | N13: -14.003 | O13: 0 | P13: -11.505 | Q13: 20
A14: 1 | B14: 1 | C14: 11 | D14: 1 | E14: 0 | F14: -0.744 | G14: -0.004 | H14: 0 | I14: 0 | J14: -0.035 | K14: 0.911 | L14: 8.349 | M14: 3.591 | N14: -11.942 | O14: -0.125 | P14: 0 | Q14: 20.01
A15: 1 | B15: 1 | C15: 12 | D15: 1 | E15: 0 | F15: -1.593 | G15: -0.008 | H15: 0 | I15: 0 | J15: -0.064 | K15: 1.275 | L15: 10.014 | M15: 3.56 | N15: -10.136 | O15: -3.048 | P15: 0 | Q15: 20.21
A16: 1 | B16: 1 | C16: 13 | D16: 1 | E16: 0 | F16: -1.046 | G16: -0.005 | H16: 0 | I16: 0 | J16: -0.049 | K16: 0.049 | L16: 5.901 | M16: 3.531 | N16: -9.38 | O16: 0.999 | P16: 0 | Q16: 20.14
A17: 1 | B17: 1 | C17: 14 | D17: 1 | E17: 1 | F17: -0.584 | G17: -0.003 | H17: 0 | I17: 0 | J17: -0.031 | K17: -0.254 | L17: 3.488 | M17: 3.505 | N17: -9.885 | O17: 2.174 | P17: -1.59 | Q17: 20
A18: 1 | B18: 1 | C18: 15 | D18: 1 | E18: 1 | F18: -0.686 | G18: -0.003 | H18: 0 | I18: 0 | J18: -0.038 | K18: -0.416 | L18: 2.759 | M18: 3.481 | N18: -10.565 | O18: 0 | P18: -5.468 | Q18: 20
A19: 1 | B19: 1 | C19: 16 | D19: 1 | E19: 1 | F19: -0.641 | G19: -0.003 | H19: 0 | I19: 0 | J19: -0.036 | K19: -0.37 | L19: 3.041 | M19: 3.713 | N19: -11.247 | O19: 0 | P19: -5.544 | Q19: 20
A20: 1 | B20: 1 | C20: 17 | D20: 1 | E20: 1 | F20: -0.573 | G20: -0.003 | H20: 0 | I20: 0 | J20: -0.033 | K20: -0.299 | L20: 3.36 | M20: 3.715 | N20: -11.247 | O20: 0 | P20: -5.081 | Q20: 20
A21: 1 | B21: 1 | C21: 18 | D21: 1 | E21: 1 | F21: -0.694 | G21: -0.003 | H21: 0 | I21: 0 | J21: -0.043 | K21: -0.548 | L21: 2.284 | M21: 3.713 | N21: -11.932 | O21: 0 | P21: -7.223 | Q21: 20
A22: 1 | B22: 1 | C22: 19 | D22: 1 | E22: 1 | F22: -0.728 | G22: -0.003 | H22: 0 | I22: 0 | J22: -0.048 | K22: -0.658 | L22: 1.957 | M22: 4.542 | N22: -12.62 | O22: 0 | P22: -7.557 | Q22: 20
A23: 1 | B23: 1 | C23: 20 | D23: 1 | E23: 1 | F23: -0.741 | G23: -0.003 | H23: 0 | I23: 0 | J23: -0.049 | K23: -0.712 | L23: 1.777 | M23: 6.692 | N23: -12.62 | O23: 0 | P23: -5.656 | Q23: 20
A24: 1 | B24: 1 | C24: 21 | D24: 1 | E24: 1 | F24: -0.764 | G24: -0.003 | H24: 0 | I24: 0 | J24: -0.053 | K24: -0.785 | L24: 1.638 | M24: 6.935 | N24: -13.31 | O24: 0 | P24: -6.343 | Q24: 20
A25: 1 | B25: 1 | C25: 22 | D25: 1 | E25: 1 | F25: -0.781 | G25: -0.003 | H25: 0 | I25: 0 | J25: -0.055 | K25: -0.833 | L25: 1.517 | M25: 7.132 | N25: -13.31 | O25: 0 | P25: -6.334 | Q25: 20
A26: 1 | B26: 1 | C26: 23 | D26: 1 | E26: 1 | F26: -0.81 | G26: -0.003 | H26: 0 | I26: 0 | J26: -0.058 | K26: -0.907 | L26: 1.409 | M26: 7.302 | N26: -14.003 | O26: 0 | P26: -7.07 | Q26: 20
A27: 1 | B27: 1 | C27: 24 | D27: 1 | E27: 0 | F27: 0.219 | G27: 0.001 | H27: 0 | I27: 0 | J27: 0.016 | K27: 0.251 | L27: 1.313 | M27: 5.884 | N27: -13.535 | O27: 5.853 | P27: 0 | Q27: 19.61
A28: 1 | B28: 2 | C28: 1 | D28: 1 | E28: 0 | F28: 1.049 | G28: 0.004 | H28: 0 | I28: 0 | J28: 0.075 | K28: 1.222 | L28: 1.226 | M28: 4.216 | N28: -13.11 | O28: 5.318 | P28: 0 | Q28: 19.26
A29: 1 | B29: 2 | C29: 2 | D29: 1 | E29: 0 | F29: 1.632 | G29: 0.005 | H29: 0 | I29: 0 | J29: 0.119 | K29: 1.959 | L29: 1.147 | M29: 4.077 | N29: -13.443 | O29: 4.503 | P29: 0 | Q29: 18.96
A30: 1 | B30: 2 | C30: 3 | D30: 1 | E30: 0 | F30: 2.069 | G30: 0.007 | H30: 0 | I30: 0 | J30: 0.153 | K30: 2.553 | L30: 1.076 | M30: 3.972 | N30: -13.818 | O30: 3.989 | P30: 0 | Q30: 18.69
A31: 1 | B31: 2 | C31: 4 | D31: 1 | E31: 0 | F31: 2.366 | G31: 0.007 | H31: 0 | I31: 0 | J31: 0.174 | K31: 2.946 | L31: 1.011 | M31: 3.886 | N31: -13.563 | O31: 3.173 | P31: 0 | Q31: 18.48
A32: 1 | B32: 2 | C32: 5 | D32: 1 | E32: 0 | F32: 2.601 | G32: 0.007 | H32: 0 | I32: 0 | J32: 0.193 | K32: 3.313 | L32: 0.951 | M32: 3.811 | N32: -14.009 | O32: 3.132 | P32: 0 | Q32: 18.27
A33: 1 | B33: 2 | C33: 6 | D33: 1 | E33: 0 | F33: 2.773 | G33: 0.008 | H33: 0 | I33: 0 | J33: 0.205 | K33: 3.551 | L33: 0.896 | M33: 3.746 | N33: -13.798 | O33: 2.619 | P33: 0 | Q33: 18.09
A34: 1 | B34: 2 | C34: 7 | D34: 1 | E34: 0 | F34: 2.925 | G34: 0.008 | H34: 0 | I34: 0 | J34: 0.218 | K34: 3.813 | L34: 0.845 | M34: 3.689 | N34: -14.274 | O34: 2.776 | P34: 0 | Q34: 17.91
A35: 1 | B35: 2 | C35: 8 | D35: 1 | E35: 1 | F35: -2.613 | G35: -0.006 | H35: 0 | I35: 0 | J35: -0.194 | K35: -3.417 | L35: 0.798 | M35: 3.705 | N35: -16.803 | O35: -31.364 | P35: -49.894 | Q35: 20
A36: 1 | B36: 2 | C36: 9 | D36: 1 | E36: 1 | F36: -2.442 | G36: -0.006 | H36: 0 | I36: 0 | J36: -0.18 | K36: -3.185 | L36: 0.774 | M36: 3.665 | N36: -16.803 | O36: 0 | P36: -18.177 | Q36: 20
A37: 1 | B37: 2 | C37: 10 | D37: 1 | E37: 1 | F37: -2.354 | G37: -0.005 | H37: 0 | I37: 0 | J37: -0.169 | K37: -2.884 | L37: 0.992 | M37: 3.628 | N37: -16.099 | O37: 0 | P37: -16.891 | Q37: 20
A38: 1 | B38: 2 | C38: 11 | D38: 1 | E38: 1 | F38: -2.373 | G38: -0.005 | H38: 0 | I38: 0 | J38: -0.154 | K38: -2.071 | L38: 2.397 | M38: 3.594 | N38: -14.003 | O38: 0 | P38: -12.615 | Q38: 20
A39: 1 | B39: 2 | C39: 12 | D39: 1 | E39: 1 | F39: -2.373 | G39: -0.005 | H39: 0 | I39: 0 | J39: -0.141 | K39: -1.49 | L39: 3.385 | M39: 3.563 | N39: -12.62 | O39: 0 | P39: -9.68 | Q39: 20
A40: 1 | B40: 2 | C40: 13 | D40: 1 | E40: 1 | F40: -2.231 | G40: -0.004 | H40: 0 | I40: 0 | J40: -0.135 | K40: -1.817 | L40: 2.303 | M40: 3.534 | N40: -12.62 | O40: 0 | P40: -10.97 | Q40: 20
A41: 1 | B41: 2 | C41: 14 | D41: 1 | E41: 1 | F41: -2.164 | G41: -0.004 | H41: 0 | I41: 0 | J41: -0.128 | K41: -1.74 | L41: 2.146 | M41: 3.508 | N41: -11.932 | O41: 0 | P41: -10.315 | Q41: 20
A42: 1 | B42: 2 | C42: 15 | D42: 1 | E42: 1 | F42: -2.1 | G42: -0.004 | H42: 0 | I42: 0 | J42: -0.123 | K42: -1.677 | L42: 2.113 | M42: 3.483 | N42: -11.932 | O42: 0 | P42: -10.239 | Q42: 20
A43: 1 | B43: 2 | C43: 16 | D43: 1 | E43: 1 | F43: -2.12 | G43: -0.004 | H43: 0 | I43: 0 | J43: -0.113 | K43: -0.827 | L43: 4.235 | M43: 3.715 | N43: -11.247 | O43: 0 | P43: -6.36 | Q43: 20
A44: 1 | B44: 2 | C44: 17 | D44: 1 | E44: 1 | F44: -2.01 | G44: -0.003 | H44: 0 | I44: 0 | J44: -0.112 | K44: -1.1 | L44: 3.386 | M44: 3.717 | N44: -11.932 | O44: 0 | P44: -8.056 | Q44: 20
A45: 1 | B45: 2 | C45: 18 | D45: 1 | E45: 1 | F45: -1.897 | G45: -0.003 | H45: 0 | I45: 0 | J45: -0.115 | K45: -1.687 | L45: 1.744 | M45: 3.716 | N45: -12.62 | O45: 0 | P45: -10.863 | Q45: 20
A46: 1 | B46: 2 | C46: 19 | D46: 1 | E46: 1 | F46: -1.834 | G46: -0.003 | H46: 0 | I46: 0 | J46: -0.115 | K46: -1.789 | L46: 1.475 | M46: 4.544 | N46: -13.31 | O46: 0 | P46: -11.031 | Q46: 20
A47: 1 | B47: 2 | C47: 20 | D47: 1 | E47: 1 | F47: -1.775 | G47: -0.003 | H47: 0 | I47: 0 | J47: -0.114 | K47: -1.812 | L47: 1.328 | M47: 6.694 | N47: -13.31 | O47: 0 | P47: -8.992 | Q47: 20
A48: 1 | B48: 2 | C48: 21 | D48: 1 | E48: 1 | F48: -1.723 | G48: -0.003 | H48: 0 | I48: 0 | J48: -0.112 | K48: -1.822 | L48: 1.22 | M48: 6.937 | N48: -13.31 | O48: 0 | P48: -8.813 | Q48: 20
A49: 1 | B49: 2 | C49: 22 | D49: 1 | E49: 1 | F49: -1.683 | G49: -0.002 | H49: 0 | I49: 0 | J49: -0.113 | K49: -1.862 | L49: 1.128 | M49: 7.134 | N49: -14.003 | O49: 0 | P49: -9.402 | Q49: 20
A50: 1 | B50: 2 | C50: 23 | D50: 1 | E50: 1 | F50: -1.65 | G50: -0.002 | H50: 0 | I50: 0 | J50: -0.111 | K50: -1.87 | L50: 1.047 | M50: 7.304 | N50: -14.003 | O50: 0 | P50: -9.287 | Q50: 20
A51: 1 | B51: 2 | C51: 24 | D51: 1 | E51: 0 | F51: -0.245 | G51: 0 | H51: 0 | I51: 0 | J51: -0.017 | K51: -0.287 | L51: 0.974 | M51: 5.885 | N51: -14.077 | O51: 7.766 | P51: 0 | Q51: 19.48
A52: 1 | B52: 3 | C52: 1 | D52: 1 | E52: 0 | F52: 0.815 | G52: 0.001 | H52: 0 | I52: 0 | J52: 0.056 | K52: 0.97 | L52: 0.91 | M52: 4.217 | N52: -13.549 | O52: 6.58 | P52: 0 | Q52: 19.04
A53: 1 | B53: 3 | C53: 2 | D53: 1 | E53: 0 | F53: 1.485 | G53: 0.002 | H53: 0 | I53: 0 | J53: 0.103 | K53: 1.787 | L53: 0.851 | M53: 4.078 | N53: -13.16 | O53: 4.853 | P53: 0 | Q53: 18.72
A54: 1 | B54: 3 | C54: 3 | D54: 1 | E54: 0 | F54: 1.965 | G54: 0.002 | H54: 0 | I54: 0 | J54: 0.138 | K54: 2.422 | L54: 0.798 | M54: 3.974 | N54: -13.517 | O54: 4.217 | P54: 0 | Q54: 18.44
A55: 1 | B55: 3 | C55: 4 | D55: 1 | E55: 0 | F55: 2.288 | G55: 0.003 | H55: 0 | I55: 0 | J55: 0.161 | K55: 2.841 | L55: 0.75 | M55: 3.887 | N55: -13.25 | O55: 3.321 | P55: 0 | Q55: 18.22
A56: 1 | B56: 3 | C56: 5 | D56: 1 | E56: 0 | F56: 2.495 | G56: 0.003 | H56: 0 | I56: 0 | J56: 0.175 | K56: 3.114 | L56: 0.706 | M56: 3.813 | N56: -13.031 | O56: 2.726 | P56: 0 | Q56: 18.04
A57: 1 | B57: 3 | C57: 6 | D57: 1 | E57: 0 | F57: 2.629 | G57: 0.003 | H57: 0 | I57: 0 | J57: 0.184 | K57: 3.291 | L57: 0.665 | M57: 3.747 | N57: -12.844 | O57: 2.325 | P57: 0 | Q57: 17.88
A58: 1 | B58: 3 | C58: 7 | D58: 1 | E58: 0 | F58: 2.76 | G58: 0.003 | H58: 0 | I58: 0 | J58: 0.195 | K58: 3.511 | L58: 0.627 | M58: 3.69 | N58: -13.335 | O58: 2.55 | P58: 0 | Q58: 17.71
A59: 1 | B59: 3 | C59: 8 | D59: 1 | E59: 1 | F59: -3.359 | G59: -0.003 | H59: 0 | I59: 0 | J59: -0.237 | K59: -4.284 | L59: 0.593 | M59: 3.706 | N59: -16.099 | O59: -34.338 | P59: -54.021 | Q59: 20
A60: 1 | B60: 3 | C60: 9 | D60: 1 | E60: 1 | F60: -3.135 | G60: -0.003 | H60: 0 | I60: 0 | J60: -0.22 | K60: -3.975 | L60: 0.6 | M60: 3.666 | N60: -16.099 | O60: 0 | P60: -19.166 | Q60: 20
A61: 1 | B61: 3 | C61: 10 | D61: 1 | E61: 1 | F61: -3.026 | G61: -0.003 | H61: 0 | I61: 0 | J61: -0.203 | K61: -3.555 | L61: 0.831 | M61: 3.629 | N61: -14.699 | O61: 0 | P61: -17.027 | Q61: 20
A62: 1 | B62: 3 | C62: 11 | D62: 1 | E62: 1 | F62: -3.065 | G62: -0.003 | H62: 0 | I62: 0 | J62: -0.19 | K62: -2.715 | L62: 2.079 | M62: 3.595 | N62: -13.31 | O62: 0 | P62: -13.609 | Q62: 20
A63: 1 | B63: 3 | C63: 12 | D63: 1 | E63: 1 | F63: -3.012 | G63: -0.002 | H63: 0 | I63: 0 | J63: -0.176 | K63: -2.307 | L63: 2.425 | M63: 3.564 | N63: -11.932 | O63: 0 | P63: -11.441 | Q63: 20
A64: 1 | B64: 3 | C64: 13 | D64: 1 | E64: 1 | F64: -2.868 | G64: -0.002 | H64: 0 | I64: 0 | J64: -0.165 | K64: -2.3 | L64: 2.02 | M64: 3.535 | N64: -11.247 | O64: 0 | P64: -11.027 | Q64: 20
A65: 1 | B65: 3 | C65: 14 | D65: 1 | E65: 1 | F65: -2.911 | G65: -0.002 | H65: 0 | I65: 0 | J65: -0.156 | K65: -1.627 | L65: 3.195 | M65: 3.509 | N65: -10.565 | O65: 0 | P65: -8.557 | Q65: 20
A66: 1 | B66: 3 | C66: 15 | D66: 1 | E66: 1 | F66: -2.798 | G66: -0.002 | H66: 0 | I66: 0 | J66: -0.146 | K66: -1.53 | L66: 3.075 | M66: 3.484 | N66: -9.885 | O66: 0 | P66: -7.802 | Q66: 20
A67: 1 | B67: 3 | C67: 16 | D67: 1 | E67: 1 | F67: -2.579 | G67: -0.002 | H67: 0 | I67: 0 | J67: -0.142 | K67: -1.936 | L67: 2.03 | M67: 3.716 | N67: -10.565 | O67: 0 | P67: -9.478 | Q67: 20
A68: 1 | B68: 3 | C68: 17 | D68: 1 | E68: 1 | F68: -2.433 | G68: -0.002 | H68: 0 | I68: 0 | J68: -0.14 | K68: -2.115 | L68: 1.535 | M68: 3.718 | N68: -11.247 | O68: 0 | P68: -10.684 | Q68: 20
A69: 1 | B69: 3 | C69: 18 | D69: 1 | E69: 1 | F69: -2.315 | G69: -0.002 | H69: 0 | I69: 0 | J69: -0.138 | K69: -2.204 | L69: 1.272 | M69: 3.716 | N69: -11.932 | O69: 0 | P69: -11.603 | Q69: 20
A70: 1 | B70: 3 | C70: 19 | D70: 1 | E70: 1 | F70: -2.212 | G70: -0.001 | H70: 0 | I70: 0 | J70: -0.135 | K70: -2.228 | L70: 1.082 | M70: 4.545 | N70: -11.932 | O70: 0 | P70: -10.882 | Q70: 20
A71: 1 | B71: 3 | C71: 20 | D71: 1 | E71: 1 | F71: -2.124 | G71: -0.001 | H71: 0 | I71: 0 | J71: -0.134 | K71: -2.249 | L71: 0.992 | M71: 6.695 | N71: -12.62 | O71: 0 | P71: -9.441 | Q71: 20
A72: 1 | B72: 3 | C72: 21 | D72: 1 | E72: 1 | F72: -2.049 | G72: -0.001 | H72: 0 | I72: 0 | J72: -0.133 | K72: -2.27 | L72: 0.916 | M72: 6.937 | N72: -13.31 | O72: 0 | P72: -9.91 | Q72: 20
A73: 1 | B73: 3 | C73: 22 | D73: 1 | E73: 1 | F73: -1.987 | G73: -0.001 | H73: 0 | I73: 0 | J73: -0.131 | K73: -2.256 | L73: 0.849 | M73: 7.134 | N73: -13.31 | O73: 0 | P73: -9.702 | Q73: 20
A74: 1 | B74: 3 | C74: 23 | D74: 1 | E74: 1 | F74: -1.935 | G74: -0.001 | H74: 0 | I74: 0 | J74: -0.13 | K74: -2.276 | L74: 0.79 | M74: 7.304 | N74: -14.003 | O74: 0 | P74: -10.252 | Q74: 20
A75: 1 | B75: 3 | C75: 24 | D75: 1 | E75: 0 | F75: -0.428 | G75: 0 | H75: 0 | I75: 0 | J75: -0.029 | K75: -0.52 | L75: 0.737 | M75: 5.886 | N75: -14.027 | O75: 8.381 | P75: 0 | Q75: 19.44
A76: 1 | B76: 4 | C76: 1 | D76: 1 | E76: 0 | F76: 0.689 | G76: 0 | H76: 0 | I76: 0 | J76: 0.048 | K76: 0.849 | L76: 0.689 | M76: 4.218 | N76: -13.468 | O76: 6.975 | P76: 0 | Q76: 18.98
A77: 1 | B77: 4 | C77: 2 | D77: 1 | E77: 0 | F77: 1.45 | G77: 0.001 | H77: 0 | I77: 0 | J77: 0.102 | K77: 1.832 | L77: 0.646 | M77: 4.079 | N77: -13.714 | O77: 5.605 | P77: 0 | Q77: 18.6
A78: 1 | B78: 4 | C78: 3 | D78: 1 | E78: 0 | F78: 1.995 | G78: 0.001 | H78: 0 | I78: 0 | J78: 0.143 | K78: 2.58 | L78: 0.607 | M78: 3.974 | N78: -14.031 | O78: 4.732 | P78: 0 | Q78: 18.29
A79: 1 | B79: 4 | C79: 4 | D79: 1 | E79: 0 | F79: 2.402 | G79: 0.001 | H79: 0 | I79: 0 | J79: 0.175 | K79: 3.175 | L79: 0.57 | M79: 3.887 | N79: -14.394 | O79: 4.184 | P79: 0 | Q79: 18.01
A80: 1 | B80: 4 | C80: 5 | D80: 1 | E80: 0 | F80: 2.721 | G80: 0.001 | H80: 0 | I80: 0 | J80: 0.201 | K80: 3.669 | L80: 0.537 | M80: 3.813 | N80: -14.785 | O80: 3.843 | P80: 0 | Q80: 17.75
A81: 1 | B81: 4 | C81: 6 | D81: 1 | E81: 0 | F81: 2.982 | G81: 0.001 | H81: 0 | I81: 0 | J81: 0.223 | K81: 4.097 | L81: 0.507 | M81: 3.748 | N81: -15.195 | O81: 3.637 | P81: 0 | Q81: 17.51
A82: 1 | B82: 4 | C82: 7 | D82: 1 | E82: 0 | F82: 3.166 | G82: 0.001 | H82: 0 | I82: 0 | J82: 0.236 | K82: 4.366 | L82: 0.478 | M82: 3.69 | N82: -14.951 | O82: 3.012 | P82: 0 | Q82: 17.31
A83: 1 | B83: 4 | C83: 8 | D83: 1 | E83: 1 | F83: -3.698 | G83: -0.002 | H83: 0 | I83: 0 | J83: -0.279 | K83: -5.172 | L83: 0.452 | M83: 3.707 | N83: -18.933 | O83: -40.369 | P83: -64.293 | Q83: 20
A84: 1 | B84: 4 | C84: 9 | D84: 1 | E84: 1 | F84: -3.454 | G84: -0.001 | H84: 0 | I84: 0 | J84: -0.259 | K84: -4.8 | L84: 0.467 | M84: 3.666 | N84: -18.933 | O84: 0 | P84: -23.314 | Q84: 20
A85: 1 | B85: 4 | C85: 10 | D85: 1 | E85: 1 | F85: -3.318 | G85: -0.001 | H85: 0 | I85: 0 | J85: -0.243 | K85: -4.424 | L85: 0.608 | M85: 3.629 | N85: -18.22 | O85: 0 | P85: -21.97 | Q85: 20
A86: 1 | B86: 4 | C86: 11 | D86: 1 | E86: 1 | F86: -3.349 | G86: -0.001 | H86: 0 | I86: 0 | J86: -0.229 | K86: -3.607 | L86: 1.691 | M86: 3.595 | N86: -16.803 | O86: 0 | P86: -18.703 | Q86: 20
A87: 1 | B87: 4 | C87: 12 | D87: 1 | E87: 1 | F87: -3.257 | G87: -0.001 | H87: 0 | I87: 0 | J87: -0.213 | K87: -3.319 | L87: 1.701 | M87: 3.564 | N87: -15.398 | O87: 0 | P87: -16.924 | Q87: 20
A88: 1 | B88: 4 | C88: 13 | D88: 1 | E88: 1 | F88: -3.867 | G88: -0.001 | H88: 0 | I88: 0 | J88: -0.212 | K88: -1.116 | L88: 5.667 | M88: 3.535 | N88: -14.003 | O88: 0 | P88: -9.997 | Q88: 20
A89: 1 | B89: 4 | C89: 14 | D89: 1 | E89: 1 | F89: -4.134 | G89: -0.001 | H89: 0 | I89: 0 | J89: -0.205 | K89: -0.125 | L89: 6.853 | M89: 3.509 | N89: -12.62 | O89: 0 | P89: -6.722 | Q89: 20
A90: 1 | B90: 4 | C90: 15 | D90: 1 | E90: 1 | F90: -3.819 | G90: -0.001 | H90: 0 | I90: 0 | J90: -0.185 | K90: -0.358 | L90: 6.087 | M90: 3.484 | N90: -11.247 | O90: 0 | P90: -6.039 | Q90: 20
A91: 1 | B91: 4 | C91: 16 | D91: 1 | E91: 1 | F91: -3.232 | G91: -0.001 | H91: 0 | I91: 0 | J91: -0.17 | K91: -1.386 | L91: 4.097 | M91: 3.716 | N91: -11.932 | O91: 0 | P91: -8.908 | Q91: 20
A92: 1 | B92: 4 | C92: 17 | D92: 1 | E92: 1 | F92: -2.946 | G92: -0.001 | H92: 0 | I92: 0 | J92: -0.164 | K92: -1.83 | L92: 3.086 | M92: 3.718 | N92: -12.62 | O92: 0 | P92: -10.757 | Q92: 20
A93: 1 | B93: 4 | C93: 18 | D93: 1 | E93: 1 | F93: -2.713 | G93: -0.001 | H93: 0 | I93: 0 | J93: -0.161 | K93: -2.205 | L93: 2.205 | M93: 3.717 | N93: -13.31 | O93: 0 | P93: -12.468 | Q93: 20
A94: 1 | B94: 4 | C94: 19 | D94: 1 | E94: 1 | F94: -2.552 | G94: -0.001 | H94: 0 | I94: 0 | J94: -0.158 | K94: -2.349 | L94: 1.843 | M94: 4.545 | N94: -14.003 | O94: 0 | P94: -12.676 | Q94: 20
A95: 1 | B95: 4 | C95: 20 | D95: 1 | E95: 1 | F95: -2.424 | G95: -0.001 | H95: 0 | I95: 0 | J95: -0.157 | K95: -2.415 | L95: 1.651 | M95: 6.695 | N95: -14.699 | O95: 0 | P95: -11.349 | Q95: 20
A96: 1 | B96: 4 | C96: 21 | D96: 1 | E96: 1 | F96: -2.317 | G96: -0.001 | H96: 0 | I96: 0 | J96: -0.156 | K96: -2.464 | L96: 1.506 | M96: 6.938 | N96: -15.398 | O96: 0 | P96: -11.892 | Q96: 20
A97: 1 | B97: 4 | C97: 22 | D97: 1 | E97: 1 | F97: -2.231 | G97: -0.001 | H97: 0 | I97: 0 | J97: -0.155 | K97: -2.509 | L97: 1.382 | M97: 7.134 | N97: -16.099 | O97: 0 | P97: -12.479 | Q97: 20
A98: 1 | B98: 4 | C98: 23 | D98: 1 | E98: 1 | F98: -2.163 | G98: -0.001 | H98: 0 | I98: 0 | J98: -0.154 | K98: -2.549 | L98: 1.273 | M98: 7.305 | N98: -16.803 | O98: 0 | P98: -13.093 | Q98: 20
A99: 1 | B99: 4 | C99: 24 | D99: 1 | E99: 0 | F99: -0.389 | G99: 0 | H99: 0 | I99: 0 | J99: -0.028 | K99: -0.47 | L99: 1.178 | M99: 5.886 | N99: -16.01 | O99: 9.834 | P99: 0 | Q99: 19.34
A100: 1 | B100: 5 | C100: 1 | D100: 1 | E100: 0 | F100: 0.949 | G100: 0 | H100: 0 | I100: 0 | J100: 0.07 | K100: 1.184 | L100: 1.093 | M100: 4.218 | N100: -16.027 | O100: 8.514 | P100: 0 | Q100: 18.78
A101: 1 | B101: 5 | C101: 2 | D101: 1 | E101: 0 | F101: 1.849 | G101: 0.001 | H101: 0 | I101: 0 | J101: 0.137 | K101: 2.372 | L101: 1.017 | M101: 4.079 | N101: -16.189 | O101: 6.734 | P101: 0 | Q101: 18.33
A102: 1 | B102: 5 | C102: 3 | D102: 1 | E102: 0 | F102: 2.478 | G102: 0.001 | H102: 0 | I102: 0 | J102: 0.187 | K102: 3.257 | L102: 0.948 | M102: 3.974 | N102: -16.443 | O102: 5.598 | P102: 0 | Q102: 17.95
A103: 1 | B103: 5 | C103: 4 | D103: 1 | E103: 0 | F103: 2.937 | G103: 0.001 | H103: 0 | I103: 0 | J103: 0.224 | K103: 3.945 | L103: 0.886 | M103: 3.888 | N103: -16.757 | O103: 4.877 | P103: 0 | Q103: 17.63
A104: 1 | B104: 5 | C104: 5 | D104: 1 | E104: 0 | F104: 3.329 | G104: 0.001 | H104: 0 | I104: 0 | J104: 0.259 | K104: 4.616 | L104: 0.83 | M104: 3.813 | N104: -17.782 | O104: 4.935 | P104: 0 | Q104: 17.3
A105: 1 | B105: 5 | C105: 6 | D105: 1 | E105: 0 | F105: 3.655 | G105: 0.001 | H105: 0 | I105: 0 | J105: 0.287 | K105: 5.161 | L105: 0.779 | M105: 3.748 | N105: -18.132 | O105: 4.501 | P105: 0 | Q105: 17
A106: 1 | B106: 5 | C106: 7 | D106: 1 | E106: 1 | F106: 3.247 | G106: 0.001 | H106: 0 | I106: 0 | J106: 0.257 | K106: 4.656 | L106: 0.732 | M106: 3.69 | N106: -18.851 | O106: 0.006 | P106: -6.262 | Q106: 17
A107: 1 | B107: 5 | C107: 8 | D107: 1 | E107: 1 | F107: -4.21 | G107: -0.001 | H107: 0 | I107: 0 | J107: -0.336 | K107: -6.118 | L107: 0.689 | M107: 3.707 | N107: -23.269 | O107: -45 | P107: -74.538 | Q107: 20
A108: 1 | B108: 5 | C108: 9 | D108: 1 | E108: 1 | F108: -3.906 | G108: -0.001 | H108: 0 | I108: 0 | J108: -0.309 | K108: -5.793 | L108: 0.708 | M108: 3.667 | N108: -23.269 | O108: 0 | P108: -28.903 | Q108: 20
A109: 1 | B109: 5 | C109: 10 | D109: 1 | E109: 1 | F109: -4.156 | G109: -0.001 | H109: 0 | I109: 0 | J109: -0.296 | K109: -4.118 | L109: 3.072 | M109: 3.629 | N109: -21.088 | O109: 0 | P109: -22.957 | Q109: 20
A110: 1 | B110: 5 | C110: 11 | D110: 1 | E110: 1 | F110: -5.649 | G110: -0.001 | H110: 0 | I110: 0 | J110: -0.316 | K110: -0.237 | L110: 8.695 | M110: 3.595 | N110: -18.22 | O110: 0 | P110: -12.133 | Q110: 20
A111: 1 | B111: 5 | C111: 12 | D111: 1 | E111: 1 | F111: -4.244 | G111: -0.001 | H111: 0 | I111: 0 | J111: -0.191 | K111: -0.2 | L111: 12.106 | M111: 3.564 | N111: -15.398 | O111: 0 | P111: -4.363 | Q111: 20
A112: 1 | B112: 5 | C112: 13 | D112: 1 | E112: 0 | F112: -3.875 | G112: -0.001 | H112: 0 | I112: 0 | J112: -0.128 | K112: 0.123 | L112: 16.627 | M112: 3.535 | N112: -13.53 | O112: -2.752 | P112: 0 | Q112: 20.18
A113: 1 | B113: 5 | C113: 14 | D113: 1 | E113: 0 | F113: -4.264 | G113: -0.001 | H113: 0 | I113: 0 | J113: -0.099 | K113: -0.558 | L113: 20.103 | M113: 3.509 | N113: -11.997 | O113: -6.693 | P113: 0 | Q113: 20.63
A114: 1 | B114: 5 | C114: 15 | D114: 1 | E114: 0 | F114: -4.703 | G114: -0.001 | H114: 0 | I114: 0 | J114: -0.101 | K114: -1.574 | L114: 20.068 | M114: 3.484 | N114: -11.744 | O114: -5.43 | P114: 0 | Q114: 20.99
A115: 1 | B115: 5 | C115: 16 | D115: 1 | E115: 0 | F115: -4.984 | G115: -0.001 | H115: 0 | I115: 0 | J115: -0.113 | K115: -2.274 | L115: 18.565 | M115: 3.716 | N115: -11.344 | O115: -3.565 | P115: 0 | Q115: 21.23
A116: 1 | B116: 5 | C116: 17 | D116: 1 | E116: 0 | F116: -5.118 | G116: -0.001 | H116: 0 | I116: 0 | J116: -0.172 | K116: -1.874 | L116: 13.753 | M116: 3.718 | N116: -12.534 | O116: 2.228 | P116: 0 | Q116: 21.08
A117: 1 | B117: 5 | C117: 18 | D117: 1 | E117: 0 | F117: -5.038 | G117: -0.001 | H117: 0 | I117: 0 | J117: -0.251 | K117: -0.292 | L117: 7.577 | M117: 3.717 | N117: -13.307 | O117: 7.596 | P117: 0 | Q117: 20.57
A118: 1 | B118: 5 | C118: 19 | D118: 1 | E118: 0 | F118: -2.796 | G118: -0.001 | H118: 0 | I118: 0 | J118: -0.162 | K118: -0.216 | L118: 6.492 | M118: 4.545 | N118: -14.187 | O118: 6.324 | P118: 0 | Q118: 20.15
A119: 1 | B119: 5 | C119: 20 | D119: 1 | E119: 1 | F119: -1.817 | G119: -0.001 | H119: 0 | I119: 0 | J119: -0.118 | K119: -0.418 | L119: 5.8 | M119: 6.695 | N119: -14.699 | O119: 2.292 | P119: -2.266 | Q119: 20
A120: 1 | B120: 5 | C120: 21 | D120: 1 | E120: 1 | F120: -1.706 | G120: -0.001 | H120: 0 | I120: 0 | J120: -0.122 | K120: -0.676 | L120: 5.258 | M120: 6.938 | N120: -15.398 | O120: 0 | P120: -5.707 | Q120: 20
A121: 1 | B121: 5 | C121: 22 | D121: 1 | E121: 1 | F121: -1.617 | G121: -0.001 | H121: 0 | I121: 0 | J121: -0.125 | K121: -0.896 | L121: 4.797 | M121: 7.134 | N121: -16.099 | O121: 0 | P121: -6.806 | Q121: 20
A122: 1 | B122: 5 | C122: 23 | D122: 1 | E122: 1 | F122: -1.558 | G122: 0 | H122: 0 | I122: 0 | J122: -0.127 | K122: -1.086 | L122: 4.399 | M122: 7.305 | N122: -16.803 | O122: 0 | P122: -7.872 | Q122: 20
A123: 1 | B123: 5 | C123: 24 | D123: 1 | E123: 0 | F123: -0.041 | G123: 0 | H123: 0 | I123: 0 | J123: -0.003 | K123: -0.034 | L123: 4.049 | M123: 5.886 | N123: -16.938 | O123: 7.082 | P123: 0 | Q123: 19.53
A124: 1 | B124: 6 | C124: 1 | D124: 1 | E124: 0 | F124: 1.135 | G124: 0 | H124: 0 | I124: 0 | J124: 0.098 | K124: 1.056 | L124: 3.741 | M124: 4.218 | N124: -17.092 | O124: 6.844 | P124: 0 | Q124: 19.07
A125: 1 | B125: 6 | C125: 2 | D125: 1 | E125: 0 | F125: 1.918 | G125: 0.001 | H125: 0 | I125: 0 | J125: 0.169 | K125: 1.956 | L125: 3.466 | M125: 4.079 | N125: -17.336 | O125: 5.748 | P125: 0 | Q125: 18.69
A126: 1 | B126: 6 | C126: 3 | D126: 1 | E126: 0 | F126: 2.472 | G126: 0.001 | H126: 0 | I126: 0 | J126: 0.219 | K126: 2.707 | L126: 3.221 | M126: 3.974 | N126: -17.639 | O126: 5.045 | P126: 0 | Q126: 18.35
A127: 1 | B127: 6 | C127: 4 | D127: 1 | E127: 0 | F127: 2.89 | G127: 0.001 | H127: 0 | I127: 0 | J127: 0.257 | K127: 3.344 | L127: 3 | M127: 3.888 | N127: -17.978 | O127: 4.599 | P127: 0 | Q127: 18.05
A128: 1 | B128: 6 | C128: 5 | D128: 1 | E128: 0 | F128: 3.224 | G128: 0.001 | H128: 0 | I128: 0 | J128: 0.286 | K128: 3.898 | L128: 2.801 | M128: 3.813 | N128: -18.342 | O128: 4.318 | P128: 0 | Q128: 17.76
A129: 1 | B129: 6 | C129: 6 | D129: 1 | E129: 0 | F129: 3.505 | G129: 0.001 | H129: 0 | I129: 0 | J129: 0.311 | K129: 4.389 | L129: 2.621 | M129: 3.748 | N129: -18.722 | O129: 4.147 | P129: 0 | Q129: 17.48
A130: 1 | B130: 6 | C130: 7 | D130: 1 | E130: 0 | F130: 3.752 | G130: 0.001 | H130: 0 | I130: 0 | J130: 0.331 | K130: 4.835 | L130: 2.456 | M130: 3.69 | N130: -19.111 | O130: 4.045 | P130: 0 | Q130: 17.21
A131: 1 | B131: 6 | C131: 8 | D131: 1 | E131: 1 | F131: -3.628 | G131: -0.001 | H131: 0 | I131: 0 | J131: -0.319 | K131: -4.786 | L131: 2.306 | M131: 4.47 | N131: -23.269 | O131: -41.828 | P131: -67.054 | Q131: 20
A132: 1 | B132: 6 | C132: 9 | D132: 1 | E132: 1 | F132: -3.369 | G132: -0.001 | H132: 0 | I132: 0 | J132: -0.291 | K132: -4.598 | L132: 2.208 | M132: 4.498 | N132: -23.269 | O132: 0 | P132: -24.822 | Q132: 20
A133: 1 | B133: 6 | C133: 10 | D133: 1 | E133: 1 | F133: -3.287 | G133: -0.001 | H133: 0 | I133: 0 | J133: -0.273 | K133: -4.186 | L133: 2.453 | M133: 4.515 | N133: -22.539 | O133: 0 | P133: -23.316 | Q133: 20
A134: 1 | B134: 6 | C134: 11 | D134: 1 | E134: 1 | F134: -3.522 | G134: -0.001 | H134: 0 | I134: 0 | J134: -0.26 | K134: -2.86 | L134: 4.518 | M134: 4.528 | N134: -20.367 | O134: 0 | P134: -17.963 | Q134: 20
A135: 1 | B135: 6 | C135: 12 | D135: 1 | E135: 1 | F135: -3.919 | G135: -0.001 | H135: 0 | I135: 0 | J135: -0.218 | K135: -0.11 | L135: 10.819 | M135: 4.538 | N135: -17.51 | O135: 0 | P135: -6.4 | Q135: 20
A136: 1 | B136: 6 | C136: 13 | D136: 1 | E136: 1 | F136: -3.875 | G136: -0.001 | H136: 0 | I136: 0 | J136: -0.204 | K136: -0.048 | L136: 9.934 | M136: 4.547 | N136: -15.398 | O136: 0 | P136: -5.045 | Q136: 20
A137: 1 | B137: 6 | C137: 14 | D137: 1 | E137: 1 | F137: -3.878 | G137: -0.001 | H137: 0 | I137: 0 | J137: -0.219 | K137: -0.657 | L137: 7.038 | M137: 4.554 | N137: -15.398 | O137: 0 | P137: -8.56 | Q137: 20
A138: 1 | B138: 6 | C138: 15 | D138: 1 | E138: 1 | F138: -3.821 | G138: -0.001 | H138: 0 | I138: 0 | J138: -0.198 | K138: -0.002 | L138: 8.583 | M138: 4.56 | N138: -14.699 | O138: 0 | P138: -5.578 | Q138: 20
A139: 1 | B139: 6 | C139: 16 | D139: 1 | E139: 1 | F139: -3.731 | G139: -0.001 | H139: 0 | I139: 0 | J139: -0.197 | K139: -0.099 | L139: 7.781 | M139: 4.566 | N139: -14.699 | O139: 0 | P139: -6.38 | Q139: 20
A140: 1 | B140: 6 | C140: 17 | D140: 1 | E140: 1 | F140: -3.101 | G140: -0.001 | H140: 0 | I140: 0 | J140: -0.183 | K140: -1.377 | L140: 5.219 | M140: 4.571 | N140: -15.398 | O140: 0 | P140: -10.27 | Q140: 20
A141: 1 | B141: 6 | C141: 18 | D141: 1 | E141: 1 | F141: -2.797 | G141: -0.001 | H141: 0 | I141: 0 | J141: -0.179 | K141: -1.987 | L141: 3.992 | M141: 4.575 | N141: -16.803 | O141: 0 | P141: -13.201 | Q141: 20
A142: 1 | B142: 6 | C142: 19 | D142: 1 | E142: 1 | F142: -2.627 | G142: -0.001 | H142: 0 | I142: 0 | J142: -0.176 | K142: -2.183 | L142: 3.549 | M142: 5.41 | N142: -17.51 | O142: 0 | P142: -13.538 | Q142: 20
A143: 1 | B143: 6 | C143: 20 | D143: 1 | E143: 1 | F143: -2.508 | G143: -0.001 | H143: 0 | I143: 0 | J143: -0.173 | K143: -2.192 | L143: 3.247 | M143: 7.566 | N143: -17.51 | O143: 0 | P143: -11.571 | Q143: 20
A144: 1 | B144: 6 | C144: 21 | D144: 1 | E144: 1 | F144: -2.4 | G144: -0.001 | H144: 0 | I144: 0 | J144: -0.171 | K144: -2.277 | L144: 3.002 | M144: 7.815 | N144: -18.22 | O144: 0 | P144: -12.252 | Q144: 20
A145: 1 | B145: 6 | C145: 22 | D145: 1 | E145: 1 | F145: -2.319 | G145: -0.001 | H145: 0 | I145: 0 | J145: -0.168 | K145: -2.315 | L145: 2.787 | M145: 8.019 | N145: -18.22 | O145: 0 | P145: -12.217 | Q145: 20
A146: 1 | B146: 6 | C146: 23 | D146: 1 | E146: 1 | F146: -2.257 | G146: 0 | H146: 0 | I146: 0 | J146: -0.167 | K146: -2.381 | L146: 2.597 | M146: 8.195 | N146: -18.933 | O146: 0 | P146: -12.947 | Q146: 20
A147: 1 | B147: 6 | C147: 24 | D147: 1 | E147: 0 | F147: -0.339 | G147: 0 | H147: 0 | I147: 0 | J147: -0.025 | K147: -0.368 | L147: 2.426 | M147: 6.274 | N147: -18.11 | O147: 10.142 | P147: 0 | Q147: 19.32
A148: 1 | B148: 7 | C148: 1 | D148: 1 | E148: 0 | F148: 1.109 | G148: 0 | H148: 0 | I148: 0 | J148: 0.083 | K148: 1.252 | L148: 2.271 | M148: 4.566 | N148: -18.106 | O148: 8.824 | P148: 0 | Q148: 18.74
A149: 1 | B149: 7 | C149: 2 | D149: 1 | E149: 0 | F149: 2.029 | G149: 0 | H149: 0 | I149: 0 | J149: 0.152 | K149: 2.335 | L149: 2.131 | M149: 4.397 | N149: -17.575 | O149: 6.532 | P149: 0 | Q149: 18.3
A150: 1 | B150: 7 | C150: 3 | D150: 1 | E150: 0 | F150: 2.669 | G150: 0.001 | H150: 0 | I150: 0 | J150: 0.201 | K150: 3.158 | L150: 2.002 | M150: 4.266 | N150: -17.838 | O150: 5.54 | P150: 0 | Q150: 17.93
A151: 1 | B151: 7 | C151: 4 | D151: 1 | E151: 0 | F151: 3.099 | G151: 0.001 | H151: 0 | I151: 0 | J151: 0.233 | K151: 3.709 | L151: 1.885 | M151: 4.157 | N151: -17.48 | O151: 4.397 | P151: 0 | Q151: 17.64
A152: 1 | B152: 7 | C152: 5 | D152: 1 | E152: 0 | F152: 3.377 | G152: 0.001 | H152: 0 | I152: 0 | J152: 0.252 | K152: 4.076 | L152: 1.776 | M152: 4.063 | N152: -17.183 | O152: 3.638 | P152: 0 | Q152: 17.4
A153: 1 | B153: 7 | C153: 6 | D153: 1 | E153: 0 | F153: 3.604 | G153: 0.001 | H153: 0 | I153: 0 | J153: 0.27 | K153: 4.433 | L153: 1.676 | M153: 3.98 | N153: -17.601 | O153: 3.637 | P153: 0 | Q153: 17.15
A154: 1 | B154: 7 | C154: 7 | D154: 1 | E154: 1 | F154: 3.629 | G154: 0.001 | H154: 0 | I154: 0 | J154: 0.27 | K154: 4.486 | L154: 1.584 | M154: 3.907 | N154: -17.414 | O154: 2.289 | P154: -1.249 | Q154: 17
A155: 1 | B155: 7 | C155: 8 | D155: 1 | E155: 1 | F155: -4.484 | G155: -0.001 | H155: 0 | I155: 0 | J155: -0.335 | K155: -5.632 | L155: 1.498 | M155: 4.672 | N155: -21.812 | O155: -45 | P155: -71.094 | Q155: 20
A156: 1 | B156: 7 | C156: 9 | D156: 1 | E156: 1 | F156: -4.142 | G156: -0.001 | H156: 0 | I156: 0 | J156: -0.307 | K156: -5.362 | L156: 1.438 | M156: 4.687 | N156: -21.812 | O156: 0 | P156: -25.499 | Q156: 20
A157: 1 | B157: 7 | C157: 10 | D157: 1 | E157: 1 | F157: -4.089 | G157: -0.001 | H157: 0 | I157: 0 | J157: -0.288 | K157: -4.568 | L157: 2.226 | M157: 4.693 | N157: -20.367 | O157: 0 | P157: -22.393 | Q157: 20
A158: 1 | B158: 7 | C158: 11 | D158: 1 | E158: 1 | F158: -4.288 | G158: -0.001 | H158: 0 | I158: 0 | J158: -0.272 | K158: -3.218 | L158: 4.145 | M158: 4.696 | N158: -18.22 | O158: 0 | P158: -17.158 | Q158: 20
A159: 1 | B159: 7 | C159: 12 | D159: 1 | E159: 1 | F159: -4.208 | G159: -0.001 | H159: 0 | I159: 0 | J159: -0.254 | K159: -2.77 | L159: 4.436 | M159: 4.696 | N159: -16.803 | O159: 0 | P159: -14.904 | Q159: 20
A160: 1 | B160: 7 | C160: 13 | D160: 1 | E160: 1 | F160: -3.888 | G160: -0.001 | H160: 0 | I160: 0 | J160: -0.235 | K160: -3.087 | L160: 3.313 | M160: 4.696 | N160: -16.099 | O160: 0 | P160: -15.301 | Q160: 20
A161: 1 | B161: 7 | C161: 14 | D161: 1 | E161: 1 | F161: -3.842 | G161: -0.001 | H161: 0 | I161: 0 | J161: -0.222 | K161: -2.642 | L161: 3.82 | M161: 4.695 | N161: -15.398 | O161: 0 | P161: -13.589 | Q161: 20
A162: 1 | B162: 7 | C162: 15 | D162: 1 | E162: 1 | F162: -3.721 | G162: -0.001 | H162: 0 | I162: 0 | J162: -0.21 | K162: -2.444 | L162: 3.859 | M162: 4.694 | N162: -14.699 | O162: 0 | P162: -12.522 | Q162: 20
A163: 1 | B163: 7 | C163: 16 | D163: 1 | E163: 1 | F163: -3.948 | G163: -0.001 | H163: 0 | I163: 0 | J163: -0.207 | K163: -1.258 | L163: 6.083 | M163: 4.693 | N163: -14.699 | O163: 0 | P163: -9.337 | Q163: 20
A164: 1 | B164: 7 | C164: 17 | D164: 1 | E164: 1 | F164: -3.599 | G164: -0.001 | H164: 0 | I164: 0 | J164: -0.196 | K164: -1.709 | L164: 4.93 | M164: 4.691 | N164: -14.699 | O164: 0 | P164: -10.584 | Q164: 20
A165: 1 | B165: 7 | C165: 18 | D165: 1 | E165: 1 | F165: -3.16 | G165: -0.001 | H165: 0 | I165: 0 | J165: -0.191 | K165: -2.768 | L165: 2.633 | M165: 4.689 | N165: -16.099 | O165: 0 | P165: -14.896 | Q165: 20
A166: 1 | B166: 7 | C166: 19 | D166: 1 | E166: 1 | F166: -3.012 | G166: -0.001 | H166: 0 | I166: 0 | J166: -0.189 | K166: -2.821 | L166: 2.281 | M166: 5.519 | N166: -16.803 | O166: 0 | P166: -15.027 | Q166: 20
A167: 1 | B167: 7 | C167: 20 | D167: 1 | E167: 1 | F167: -2.881 | G167: -0.001 | H167: 0 | I167: 0 | J167: -0.184 | K167: -2.83 | L167: 2.087 | M167: 7.67 | N167: -16.803 | O167: 0 | P167: -12.942 | Q167: 20
A168: 1 | B168: 7 | C168: 21 | D168: 1 | E168: 1 | F168: -2.761 | G168: -0.001 | H168: 0 | I168: 0 | J168: -0.182 | K168: -2.867 | L168: 1.925 | M168: 7.914 | N168: -17.51 | O168: 0 | P168: -13.481 | Q168: 20
A169: 1 | B169: 7 | C169: 22 | D169: 1 | E169: 1 | F169: -2.66 | G169: -0.001 | H169: 0 | I169: 0 | J169: -0.18 | K169: -2.901 | L169: 1.786 | M169: 8.113 | N169: -18.22 | O169: 0 | P169: -14.064 | Q169: 20
A170: 1 | B170: 7 | C170: 23 | D170: 1 | E170: 1 | F170: -2.581 | G170: 0 | H170: 0 | I170: 0 | J170: -0.177 | K170: -2.894 | L170: 1.662 | M170: 8.285 | N170: -18.22 | O170: 0 | P170: -13.926 | Q170: 20
A171: 1 | B171: 7 | C171: 24 | D171: 1 | E171: 0 | F171: -0.504 | G171: 0 | H171: 0 | I171: 0 | J171: -0.035 | K171: -0.586 | L171: 1.552 | M171: 6.36 | N171: -18.021 | O171: 11.235 | P171: 0 | Q171: 19.25
A172: 1 | B172: 8 | C172: 1 | D172: 1 | E172: 0 | F172: 1.032 | G172: 0 | H172: 0 | I172: 0 | J172: 0.073 | K172: 1.236 | L172: 1.452 | M172: 4.648 | N172: -17.961 | O172: 9.519 | P172: 0 | Q172: 18.62
A173: 1 | B173: 8 | C173: 2 | D173: 1 | E173: 0 | F173: 2.005 | G173: 0 | H173: 0 | I173: 0 | J173: 0.143 | K173: 2.436 | L173: 1.362 | M173: 4.475 | N173: -17.394 | O173: 6.973 | P173: 0 | Q173: 18.15
A174: 1 | B174: 8 | C174: 3 | D174: 1 | E174: 0 | F174: 2.675 | G174: 0.001 | H174: 0 | I174: 0 | J174: 0.193 | K174: 3.325 | L174: 1.28 | M174: 4.341 | N174: -17.634 | O174: 5.82 | P174: 0 | Q174: 17.76
A175: 1 | B175: 8 | C175: 4 | D175: 1 | E175: 0 | F175: 3.165 | G175: 0.001 | H175: 0 | I175: 0 | J175: 0.231 | K175: 4.02 | L175: 1.204 | M175: 4.228 | N175: -17.934 | O175: 5.085 | P175: 0 | Q175: 17.42
A176: 1 | B176: 8 | C176: 5 | D176: 1 | E176: 0 | F176: 3.498 | G176: 0.001 | H176: 0 | I176: 0 | J176: 0.255 | K176: 4.474 | L176: 1.135 | M176: 4.131 | N176: -17.599 | O176: 4.105 | P176: 0 | Q176: 17.15
A177: 1 | B177: 8 | C177: 6 | D177: 1 | E177: 1 | F177: 3.467 | G177: 0.001 | H177: 0 | I177: 0 | J177: 0.255 | K177: 4.508 | L177: 1.071 | M177: 4.045 | N177: -18.131 | O177: 2.263 | P177: -2.521 | Q177: 17
A178: 1 | B178: 8 | C178: 7 | D178: 1 | E178: 1 | F178: 3.071 | G178: 0.001 | H178: 0 | I178: 0 | J178: 0.228 | K178: 4.054 | L178: 1.012 | M178: 3.969 | N178: -18.851 | O178: 0 | P178: -6.518 | Q178: 17
A179: 1 | B179: 8 | C179: 8 | D179: 1 | E179: 1 | F179: -4.73 | G179: -0.001 | H179: 0 | I179: 0 | J179: -0.353 | K179: -6.334 | L179: 0.957 | M179: 3.968 | N179: -23.269 | O179: -45 | P179: -74.762 | Q179: 20
A180: 1 | B180: 8 | C180: 9 | D180: 1 | E180: 1 | F180: -4.38 | G180: -0.001 | H180: 0 | I180: 0 | J180: -0.325 | K180: -6.015 | L180: 0.945 | M180: 3.912 | N180: -23.269 | O180: 0 | P180: -29.133 | Q180: 20
A181: 1 | B181: 8 | C181: 10 | D181: 1 | E181: 1 | F181: -4.18 | G181: -0.001 | H181: 0 | I181: 0 | J181: -0.305 | K181: -5.648 | L181: 0.962 | M181: 3.861 | N181: -22.539 | O181: 0 | P181: -27.85 | Q181: 20
A182: 1 | B182: 8 | C182: 11 | D182: 1 | E182: 1 | F182: -4.368 | G182: -0.001 | H182: 0 | I182: 0 | J182: -0.292 | K182: -4.206 | L182: 3.211 | M182: 3.814 | N182: -21.088 | O182: 0 | P182: -22.929 | Q182: 20
A183: 1 | B183: 8 | C183: 12 | D183: 1 | E183: 1 | F183: -4.548 | G183: -0.001 | H183: 0 | I183: 0 | J183: -0.277 | K183: -3.001 | L183: 4.864 | M183: 3.771 | N183: -18.933 | O183: 0 | P183: -18.124 | Q183: 20
A184: 1 | B184: 8 | C184: 13 | D184: 1 | E184: 1 | F184: -5.081 | G184: -0.001 | H184: 0 | I184: 0 | J184: -0.271 | K184: -1.203 | L184: 7.432 | M184: 3.731 | N184: -16.803 | O184: 0 | P184: -12.196 | Q184: 20
A185: 1 | B185: 8 | C185: 14 | D185: 1 | E185: 1 | F185: -4.799 | G185: -0.001 | H185: 0 | I185: 0 | J185: -0.25 | K185: -1.255 | L185: 6.978 | M185: 3.695 | N185: -16.099 | O185: 0 | P185: -11.732 | Q185: 20
A186: 1 | B186: 8 | C186: 15 | D186: 1 | E186: 1 | F186: -4.165 | G186: -0.001 | H186: 0 | I186: 0 | J186: -0.227 | K186: -2.241 | L186: 4.764 | M186: 3.661 | N186: -15.398 | O186: 0 | P186: -13.606 | Q186: 20
A187: 1 | B187: 8 | C187: 16 | D187: 1 | E187: 1 | F187: -3.79 | G187: -0.001 | H187: 0 | I187: 0 | J187: -0.217 | K187: -2.808 | L187: 3.431 | M187: 3.884 | N187: -16.099 | O187: 0 | P187: -15.6 | Q187: 20
A188: 1 | B188: 8 | C188: 17 | D188: 1 | E188: 1 | F188: -3.518 | G188: -0.001 | H188: 0 | I188: 0 | J188: -0.211 | K188: -3.159 | L188: 2.578 | M188: 3.877 | N188: -16.803 | O188: 0 | P188: -17.237 | Q188: 20
A189: 1 | B189: 8 | C189: 18 | D189: 1 | E189: 1 | F189: -3.315 | G189: -0.001 | H189: 0 | I189: 0 | J189: -0.209 | K189: -3.341 | L189: 2.178 | M189: 3.868 | N189: -18.22 | O189: 0 | P189: -19.039 | Q189: 20
A190: 1 | B190: 8 | C190: 19 | D190: 1 | E190: 1 | F190: -3.17 | G190: -0.001 | H190: 0 | I190: 0 | J190: -0.207 | K190: -3.316 | L190: 1.968 | M190: 4.69 | N190: -18.933 | O190: 0 | P190: -18.968 | Q190: 20
A191: 1 | B191: 8 | C191: 20 | D191: 1 | E191: 1 | F191: -3.04 | G191: -0.001 | H191: 0 | I191: 0 | J191: -0.202 | K191: -3.302 | L191: 1.806 | M191: 6.832 | N191: -18.933 | O191: 0 | P191: -16.839 | Q191: 20
A192: 1 | B192: 8 | C192: 21 | D192: 1 | E192: 1 | F192: -2.929 | G192: -0.001 | H192: 0 | I192: 0 | J192: -0.2 | K192: -3.321 | L192: 1.666 | M192: 7.068 | N192: -19.648 | O192: 0 | P192: -17.363 | Q192: 20
A193: 1 | B193: 8 | C193: 22 | D193: 1 | E193: 1 | F193: -2.84 | G193: -0.001 | H193: 0 | I193: 0 | J193: -0.196 | K193: -3.302 | L193: 1.544 | M193: 7.259 | N193: -19.648 | O193: 0 | P193: -17.184 | Q193: 20
A194: 1 | B194: 8 | C194: 23 | D194: 1 | E194: 1 | F194: -2.77 | G194: 0 | H194: 0 | I194: 0 | J194: -0.192 | K194: -3.277 | L194: 1.435 | M194: 7.424 | N194: -19.648 | O194: 0 | P194: -17.029 | Q194: 20
A195: 1 | B195: 8 | C195: 24 | D195: 1 | E195: 0 | F195: -0.441 | G195: 0 | H195: 0 | I195: 0 | J195: -0.031 | K195: -0.535 | L195: 1.337 | M195: 6 | N195: -19.309 | O195: 12.979 | P195: 0 | Q195: 19.13
A196: 1 | B196: 9 | C196: 1 | D196: 1 | E196: 0 | F196: 1.184 | G196: 0 | H196: 0 | I196: 0 | J196: 0.083 | K196: 1.452 | L196: 1.249 | M196: 4.326 | N196: -18.48 | O196: 10.185 | P196: 0 | Q196: 18.46
A197: 1 | B197: 9 | C197: 2 | D197: 1 | E197: 0 | F197: 2.263 | G197: 0 | H197: 0 | I197: 0 | J197: 0.161 | K197: 2.83 | L197: 1.17 | M197: 4.182 | N197: -18.549 | O197: 7.942 | P197: 0 | Q197: 17.93
A198: 1 | B198: 9 | C198: 3 | D198: 1 | E198: 0 | F198: 3.009 | G198: 0.001 | H198: 0 | I198: 0 | J198: 0.216 | K198: 3.834 | L198: 1.097 | M198: 4.073 | N198: -18.736 | O198: 6.506 | P198: 0 | Q198: 17.49
A199: 1 | B199: 9 | C199: 4 | D199: 1 | E199: 0 | F199: 3.5 | G199: 0.001 | H199: 0 | I199: 0 | J199: 0.251 | K199: 4.484 | L199: 1.031 | M199: 3.982 | N199: -18.321 | O199: 5.072 | P199: 0 | Q199: 17.15
A200: 1 | B200: 9 | C200: 5 | D200: 1 | E200: 1 | F200: 3.464 | G200: 0.001 | H200: 0 | I200: 0 | J200: 0.25 | K200: 4.505 | L200: 0.97 | M200: 3.903 | N200: -18.851 | O200: 2.317 | P200: -3.442 | Q200: 17
... 4300 more rows

Sheet Archivo 4
D1: Nombre espacio | E1: Area(m2)
D2: P01_E01 | E2: 83.16
A3: Mes | B3: Dia | C3: Hora | D3: Horario Funcionamiento Equipo | E3: Funcionamiento Real Equipo | F3: Transmisi Muros Exteriores(W/m2 del espacio) | G3: Transmisi Muros Interiores(W/m2 del espacio) | H3: Transmisi Cubiertas(W/m2 del espacio) | I3: Transmisi Suelos(W/m2 del espacio) | J3: Transmisi Puentes T駻micos(W/m2 del espacio) | K3: Transmisi Ventanas(W/m2 del espacio) | L3: Radiaci Ventanas(W/m2 del espacio) | M3: Fuentes internas(W/m2 del espacio) | N3: Carga de ventilaci e infiltraci(W/m2 del espacio) | O3: Energia Almacenada Aire(W/m2 del espacio) | P3: Carga Total(W/m2 del espacio) | Q3: Temperatura aire (ｺC)
A4: 1 | B4: 1 | C4: 1 | D4: 1 | E4: 0 | F4: -0.793 | G4: -0.005 | H4: 0 | I4: 0 | J4: -0.071 | K4: -1.195 | L4: 1.223 | M4: 4.211 | N4: -3.371 | O4: 0 | P4: 0 | Q4: 23.22
A5: 1 | B5: 1 | C5: 2 | D5: 1 | E5: 0 | F5: -1.748 | G5: -0.012 | H5: 0 | I5: 0 | J5: -0.134 | K5: -2.223 | L5: 1.145 | M5: 4.072 | N5: -2.195 | O5: 1.094 | P5: 0 | Q5: 23.15
A6: 1 | B6: 1 | C6: 3 | D6: 1 | E6: 0 | F6: -1.669 | G6: -0.011 | H6: 0 | I6: 0 | J6: -0.119 | K6: -1.986 | L6: 1.074 | M6: 3.968 | N6: -1.868 | O6: 0.613 | P6: 0 | Q6: 23.1
A7: 1 | B7: 1 | C7: 4 | D7: 1 | E7: 0 | F7: -1.581 | G7: -0.01 | H7: 0 | I7: 0 | J7: -0.113 | K7: -1.897 | L7: 1.008 | M7: 3.881 | N7: -1.942 | O7: 0.653 | P7: 0 | Q7: 23.06
A8: 1 | B8: 1 | C8: 5 | D8: 1 | E8: 0 | F8: -1.501 | G8: -0.009 | H8: 0 | I8: 0 | J8: -0.106 | K8: -1.813 | L8: 0.949 | M8: 3.807 | N8: -2.016 | O8: 0.69 | P8: 0 | Q8: 23.02
A9: 1 | B9: 1 | C9: 6 | D9: 1 | E9: 0 | F9: -1.435 | G9: -0.009 | H9: 0 | I9: 0 | J9: -0.1 | K9: -1.721 | L9: 0.894 | M9: 3.742 | N9: -2.01 | O9: 0.639 | P9: 0 | Q9: 22.97
A10: 1 | B10: 1 | C10: 7 | D10: 1 | E10: 0 | F10: -1.351 | G10: -0.008 | H10: 0 | I10: 0 | J10: -0.096 | K10: -1.667 | L10: 0.843 | M10: 3.685 | N10: -2.164 | O10: 0.758 | P10: 0 | Q10: 22.92
A11: 1 | B11: 1 | C11: 8 | D11: 1 | E11: 0 | F11: -1.289 | G11: -0.007 | H11: 0 | I11: 0 | J11: -0.091 | K11: -1.593 | L11: 0.796 | M11: 3.702 | N11: -2.158 | O11: 0.64 | P11: 0 | Q11: 22.88
A12: 1 | B12: 1 | C12: 9 | D12: 1 | E12: 0 | F12: -1.24 | G12: -0.007 | H12: 0 | I12: 0 | J12: -0.087 | K12: -1.525 | L12: 0.792 | M12: 3.662 | N12: -2.153 | O12: 0.558 | P12: 0 | Q12: 22.84
A13: 1 | B13: 1 | C13: 10 | D13: 1 | E13: 0 | F13: -1.28 | G13: -0.007 | H13: 0 | I13: 0 | J13: -0.085 | K13: -1.396 | L13: 1.209 | M13: 3.625 | N13: -1.993 | O13: -0.073 | P13: 0 | Q13: 22.85
A14: 1 | B14: 1 | C14: 11 | D14: 1 | E14: 0 | F14: -3.112 | G14: -0.016 | H14: 0 | I14: 0 | J14: -0.148 | K14: 0.082 | L14: 8.349 | M14: 3.591 | N14: -1.817 | O14: -6.929 | P14: 0 | Q14: 23.31
A15: 1 | B15: 1 | C15: 12 | D15: 1 | E15: 0 | F15: -3.604 | G15: -0.018 | H15: 0 | I15: 0 | J15: -0.144 | K15: -0.169 | L15: 10.014 | M15: 3.56 | N15: -5.819 | O15: -3.819 | P15: 0 | Q15: 23.56
A16: 1 | B16: 1 | C16: 13 | D16: 1 | E16: 0 | F16: -4.308 | G16: -0.02 | H16: 0 | I16: 0 | J16: -0.201 | K16: -0.084 | L16: 5.901 | M16: 3.531 | N16: -5.514 | O16: 0.695 | P16: 0 | Q16: 23.52
A17: 1 | B17: 1 | C17: 14 | D17: 1 | E17: 0 | F17: -2.731 | G17: -0.013 | H17: 0 | I17: 0 | J17: -0.143 | K17: -1.186 | L17: 3.488 | M17: 3.505 | N17: -5.706 | O17: 2.786 | P17: 0 | Q17: 23.33
A18: 1 | B18: 1 | C18: 15 | D18: 1 | E18: 0 | F18: -1.883 | G18: -0.009 | H18: 0 | I18: 0 | J18: -0.104 | K18: -1.141 | L18: 2.759 | M18: 3.481 | N18: -5.898 | O18: 2.795 | P18: 0 | Q18: 23.15
A19: 1 | B19: 1 | C19: 16 | D19: 1 | E19: 0 | F19: -1.436 | G19: -0.006 | H19: 0 | I19: 0 | J19: -0.081 | K19: -0.83 | L19: 3.041 | M19: 3.713 | N19: -6.126 | O19: 1.727 | P19: 0 | Q19: 23.03
A20: 1 | B20: 1 | C20: 17 | D20: 1 | E20: 0 | F20: -1.195 | G20: -0.005 | H20: 0 | I20: 0 | J20: -0.068 | K20: -0.624 | L20: 3.36 | M20: 3.715 | N20: -6.096 | O20: 0.914 | P20: 0 | Q20: 22.97
A21: 1 | B21: 1 | C21: 18 | D21: 1 | E21: 0 | F21: -1.543 | G21: -0.007 | H21: 0 | I21: 0 | J21: -0.096 | K21: -1.217 | L21: 2.284 | M21: 3.713 | N21: -1.783 | O21: -1.352 | P21: 0 | Q21: 23.06
A22: 1 | B22: 1 | C22: 19 | D22: 1 | E22: 0 | F22: -1.757 | G22: -0.008 | H22: 0 | I22: 0 | J22: -0.115 | K22: -1.586 | L22: 1.957 | M22: 4.542 | N22: -1.873 | O22: -1.161 | P22: 0 | Q22: 23.14
A23: 1 | B23: 1 | C23: 20 | D23: 1 | E23: 0 | F23: -2.151 | G23: -0.009 | H23: 0 | I23: 0 | J23: -0.144 | K23: -2.068 | L23: 1.777 | M23: 6.692 | N23: -1.893 | O23: -2.205 | P23: 0 | Q23: 23.28
A24: 1 | B24: 1 | C24: 21 | D24: 1 | E24: 0 | F24: -2.376 | G24: -0.01 | H24: 0 | I24: 0 | J24: -0.164 | K24: -2.443 | L24: 1.638 | M24: 6.935 | N24: -1.987 | O24: -1.593 | P24: 0 | Q24: 23.39
A25: 1 | B25: 1 | C25: 22 | D25: 1 | E25: 0 | F25: -2.526 | G25: -0.01 | H25: 0 | I25: 0 | J25: -0.177 | K25: -2.696 | L25: 1.517 | M25: 7.132 | N25: -1.998 | O25: -1.241 | P25: 0 | Q25: 23.47
A26: 1 | B26: 1 | C26: 23 | D26: 1 | E26: 0 | F26: -2.601 | G26: -0.01 | H26: 0 | I26: 0 | J26: -0.186 | K26: -2.911 | L26: 1.409 | M26: 7.302 | N26: -2.087 | O26: -0.916 | P26: 0 | Q26: 23.53
A27: 1 | B27: 1 | C27: 24 | D27: 1 | E27: 0 | F27: -2.46 | G27: -0.009 | H27: 0 | I27: 0 | J27: -0.177 | K27: -2.819 | L27: 1.313 | M27: 5.884 | N27: -2.084 | O27: 0.352 | P27: 0 | Q27: 23.51
A28: 1 | B28: 2 | C28: 1 | D28: 1 | E28: 0 | F28: -2.149 | G28: -0.007 | H28: 0 | I28: 0 | J28: -0.155 | K28: -2.504 | L28: 1.226 | M28: 4.216 | N28: -2.071 | O28: 1.444 | P28: 0 | Q28: 23.41
A29: 1 | B29: 2 | C29: 2 | D29: 1 | E29: 0 | F29: -1.903 | G29: -0.006 | H29: 0 | I29: 0 | J29: -0.139 | K29: -2.285 | L29: 1.147 | M29: 4.077 | N29: -2.14 | O29: 1.248 | P29: 0 | Q29: 23.33
A30: 1 | B30: 2 | C30: 3 | D30: 1 | E30: 0 | F30: -1.709 | G30: -0.005 | H30: 0 | I30: 0 | J30: -0.126 | K30: -2.109 | L30: 1.076 | M30: 3.972 | N30: -2.21 | O30: 1.111 | P30: 0 | Q30: 23.26
A31: 1 | B31: 2 | C31: 4 | D31: 1 | E31: 0 | F31: -1.566 | G31: -0.005 | H31: 0 | I31: 0 | J31: -0.115 | K31: -1.95 | L31: 1.011 | M31: 3.886 | N31: -2.202 | O31: 0.941 | P31: 0 | Q31: 23.19
A32: 1 | B32: 2 | C32: 5 | D32: 1 | E32: 0 | F32: -1.442 | G32: -0.004 | H32: 0 | I32: 0 | J32: -0.107 | K32: -1.837 | L32: 0.951 | M32: 3.811 | N32: -2.274 | O32: 0.902 | P32: 0 | Q32: 23.13
A33: 1 | B33: 2 | C33: 6 | D33: 1 | E33: 0 | F33: -1.347 | G33: -0.004 | H33: 0 | I33: 0 | J33: -0.1 | K33: -1.725 | L33: 0.896 | M33: 3.746 | N33: -2.267 | O33: 0.8 | P33: 0 | Q33: 23.08
A34: 1 | B34: 2 | C34: 7 | D34: 1 | E34: 0 | F34: -1.261 | G34: -0.003 | H34: 0 | I34: 0 | J34: -0.094 | K34: -1.644 | L34: 0.845 | M34: 3.689 | N34: -2.341 | O34: 0.809 | P34: 0 | Q34: 23.03
A35: 1 | B35: 2 | C35: 8 | D35: 1 | E35: 0 | F35: -1.199 | G35: -0.003 | H35: 0 | I35: 0 | J35: -0.089 | K35: -1.569 | L35: 0.798 | M35: 3.705 | N35: -2.335 | O35: 0.692 | P35: 0 | Q35: 22.98
A36: 1 | B36: 2 | C36: 9 | D36: 1 | E36: 0 | F36: -1.152 | G36: -0.003 | H36: 0 | I36: 0 | J36: -0.085 | K36: -1.502 | L36: 0.774 | M36: 3.665 | N36: -2.329 | O36: 0.632 | P36: 0 | Q36: 22.94
A37: 1 | B37: 2 | C37: 10 | D37: 1 | E37: 0 | F37: -1.152 | G37: -0.003 | H37: 0 | I37: 0 | J37: -0.083 | K37: -1.411 | L37: 0.992 | M37: 3.628 | N37: -2.245 | O37: 0.274 | P37: 0 | Q37: 22.92
A38: 1 | B38: 2 | C38: 11 | D38: 1 | E38: 0 | F38: -1.394 | G38: -0.003 | H38: 0 | I38: 0 | J38: -0.09 | K38: -1.216 | L38: 2.397 | M38: 3.594 | N38: -2.014 | O38: -1.273 | P38: 0 | Q38: 23.01
A39: 1 | B39: 2 | C39: 12 | D39: 1 | E39: 0 | F39: -1.858 | G39: -0.004 | H39: 0 | I39: 0 | J39: -0.11 | K39: -1.166 | L39: 3.385 | M39: 3.563 | N39: -1.872 | O39: -1.938 | P39: 0 | Q39: 23.13
A40: 1 | B40: 2 | C40: 13 | D40: 1 | E40: 0 | F40: -1.922 | G40: -0.004 | H40: 0 | I40: 0 | J40: -0.117 | K40: -1.565 | L40: 2.303 | M40: 3.534 | N40: -1.875 | O40: -0.354 | P40: 0 | Q40: 23.16
A41: 1 | B41: 2 | C41: 14 | D41: 1 | E41: 0 | F41: -1.964 | G41: -0.004 | H41: 0 | I41: 0 | J41: -0.116 | K41: -1.579 | L41: 2.146 | M41: 3.508 | N41: -1.798 | O41: -0.193 | P41: 0 | Q41: 23.17
A42: 1 | B42: 2 | C42: 15 | D42: 1 | E42: 0 | F42: -1.98 | G42: -0.003 | H42: 0 | I42: 0 | J42: -0.116 | K42: -1.581 | L42: 2.113 | M42: 3.483 | N42: -1.799 | O42: -0.117 | P42: 0 | Q42: 23.18
A43: 1 | B43: 2 | C43: 16 | D43: 1 | E43: 0 | F43: -1.804 | G43: -0.003 | H43: 0 | I43: 0 | J43: -0.096 | K43: -0.703 | L43: 4.235 | M43: 3.715 | N43: -6.171 | O43: 0.827 | P43: 0 | Q43: 23.12
A44: 1 | B44: 2 | C44: 17 | D44: 1 | E44: 0 | F44: -2.219 | G44: -0.004 | H44: 0 | I44: 0 | J44: -0.124 | K44: -1.215 | L44: 3.386 | M44: 3.717 | N44: -1.807 | O44: -1.734 | P44: 0 | Q44: 23.24
A45: 1 | B45: 2 | C45: 18 | D45: 1 | E45: 0 | F45: -2.013 | G45: -0.003 | H45: 0 | I45: 0 | J45: -0.122 | K45: -1.791 | L45: 1.744 | M45: 3.716 | N45: -1.883 | O45: 0.353 | P45: 0 | Q45: 23.22
A46: 1 | B46: 2 | C46: 19 | D46: 1 | E46: 0 | F46: -1.973 | G46: -0.003 | H46: 0 | I46: 0 | J46: -0.124 | K46: -1.924 | L46: 1.475 | M46: 4.544 | N46: -1.963 | O46: -0.032 | P46: 0 | Q46: 23.22
A47: 1 | B47: 2 | C47: 20 | D47: 1 | E47: 0 | F47: -2.208 | G47: -0.003 | H47: 0 | I47: 0 | J47: -0.141 | K47: -2.254 | L47: 1.328 | M47: 6.694 | N47: -1.977 | O47: -1.439 | P47: 0 | Q47: 23.31
A48: 1 | B48: 2 | C48: 21 | D48: 1 | E48: 0 | F48: -2.362 | G48: -0.003 | H48: 0 | I48: 0 | J48: -0.154 | K48: -2.498 | L48: 1.22 | M48: 6.937 | N48: -1.987 | O48: -1.153 | P48: 0 | Q48: 23.39
A49: 1 | B49: 2 | C49: 22 | D49: 1 | E49: 0 | F49: -2.446 | G49: -0.003 | H49: 0 | I49: 0 | J49: -0.164 | K49: -2.706 | L49: 1.128 | M49: 7.134 | N49: -2.075 | O49: -0.867 | P49: 0 | Q49: 23.45
A50: 1 | B50: 2 | C50: 23 | D50: 1 | E50: 0 | F50: -2.512 | G50: -0.003 | H50: 0 | I50: 0 | J50: -0.17 | K50: -2.847 | L50: 1.047 | M50: 7.304 | N50: -2.082 | O50: -0.737 | P50: 0 | Q50: 23.5
A51: 1 | B51: 2 | C51: 24 | D51: 1 | E51: 0 | F51: -2.343 | G51: -0.003 | H51: 0 | I51: 0 | J51: -0.161 | K51: -2.746 | L51: 0.974 | M51: 5.885 | N51: -2.158 | O51: 0.551 | P51: 0 | Q51: 23.46
A52: 1 | B52: 3 | C52: 1 | D52: 1 | E52: 0 | F52: -2.021 | G52: -0.003 | H52: 0 | I52: 0 | J52: -0.14 | K52: -2.405 | L52: 0.91 | M52: 4.217 | N52: -2.143 | O52: 1.585 | P52: 0 | Q52: 23.35
A53: 1 | B53: 3 | C53: 2 | D53: 1 | E53: 0 | F53: -1.788 | G53: -0.002 | H53: 0 | I53: 0 | J53: -0.124 | K53: -2.153 | L53: 0.851 | M53: 4.078 | N53: -2.131 | O53: 1.269 | P53: 0 | Q53: 23.27
A54: 1 | B54: 3 | C54: 3 | D54: 1 | E54: 0 | F54: -1.603 | G54: -0.002 | H54: 0 | I54: 0 | J54: -0.113 | K54: -1.976 | L54: 0.798 | M54: 3.974 | N54: -2.202 | O54: 1.124 | P54: 0 | Q54: 23.2
A55: 1 | B55: 3 | C55: 4 | D55: 1 | E55: 0 | F55: -1.466 | G55: -0.002 | H55: 0 | I55: 0 | J55: -0.103 | K55: -1.821 | L55: 0.75 | M55: 3.887 | N55: -2.193 | O55: 0.948 | P55: 0 | Q55: 23.13
A56: 1 | B56: 3 | C56: 5 | D56: 1 | E56: 0 | F56: -1.361 | G56: -0.001 | H56: 0 | I56: 0 | J56: -0.096 | K56: -1.699 | L56: 0.706 | M56: 3.813 | N56: -2.186 | O56: 0.824 | P56: 0 | Q56: 23.08
A57: 1 | B57: 3 | C57: 6 | D57: 1 | E57: 0 | F57: -1.279 | G57: -0.001 | H57: 0 | I57: 0 | J57: -0.089 | K57: -1.601 | L57: 0.665 | M57: 3.747 | N57: -2.179 | O57: 0.737 | P57: 0 | Q57: 23.03
A58: 1 | B58: 3 | C58: 7 | D58: 1 | E58: 0 | F58: -1.203 | G58: -0.001 | H58: 0 | I58: 0 | J58: -0.085 | K58: -1.531 | L58: 0.627 | M58: 3.69 | N58: -2.253 | O58: 0.756 | P58: 0 | Q58: 22.98
A59: 1 | B59: 3 | C59: 8 | D59: 1 | E59: 0 | F59: -1.149 | G59: -0.001 | H59: 0 | I59: 0 | J59: -0.081 | K59: -1.465 | L59: 0.593 | M59: 3.706 | N59: -2.247 | O59: 0.645 | P59: 0 | Q59: 22.93
A60: 1 | B60: 3 | C60: 9 | D60: 1 | E60: 0 | F60: -1.109 | G60: -0.001 | H60: 0 | I60: 0 | J60: -0.078 | K60: -1.406 | L60: 0.6 | M60: 3.666 | N60: -2.242 | O60: 0.569 | P60: 0 | Q60: 22.9
A61: 1 | B61: 3 | C61: 10 | D61: 1 | E61: 0 | F61: -1.122 | G61: -0.001 | H61: 0 | I61: 0 | J61: -0.075 | K61: -1.319 | L61: 0.831 | M61: 3.629 | N61: -2.079 | O61: 0.136 | P61: 0 | Q61: 22.89
A62: 1 | B62: 3 | C62: 11 | D62: 1 | E62: 0 | F62: -1.333 | G62: -0.001 | H62: 0 | I62: 0 | J62: -0.083 | K62: -1.181 | L62: 2.079 | M62: 3.595 | N62: -1.929 | O62: -1.148 | P62: 0 | Q62: 22.96
A63: 1 | B63: 3 | C63: 12 | D63: 1 | E63: 0 | F63: -1.621 | G63: -0.001 | H63: 0 | I63: 0 | J63: -0.095 | K63: -1.242 | L63: 2.425 | M63: 3.564 | N63: -1.781 | O63: -1.249 | P63: 0 | Q63: 23.05
A64: 1 | B64: 3 | C64: 13 | D64: 1 | E64: 0 | F64: -1.095 | G64: -0.001 | H64: 0 | I64: 0 | J64: -0.063 | K64: -0.878 | L64: 2.02 | M64: 3.535 | N64: -6.051 | O64: 2.533 | P64: 0 | Q64: 22.88
A65: 1 | B65: 3 | C65: 14 | D65: 1 | E65: 0 | F65: -0.925 | G65: -0.001 | H65: 0 | I65: 0 | J65: -0.049 | K65: -0.517 | L65: 3.195 | M65: 3.509 | N65: -5.75 | O65: 0.538 | P65: 0 | Q65: 22.84
A66: 1 | B66: 3 | C66: 15 | D66: 1 | E66: 0 | F66: -0.894 | G66: -0.001 | H66: 0 | I66: 0 | J66: -0.047 | K66: -0.489 | L66: 3.075 | M66: 3.484 | N66: -5.456 | O66: 0.326 | P66: 0 | Q66: 22.82
A67: 1 | B67: 3 | C67: 16 | D67: 1 | E67: 0 | F67: -0.746 | G67: -0.001 | H67: 0 | I67: 0 | J67: -0.041 | K67: -0.56 | L67: 2.03 | M67: 3.716 | N67: -5.696 | O67: 1.299 | P67: 0 | Q67: 22.73
A68: 1 | B68: 3 | C68: 17 | D68: 1 | E68: 0 | F68: -0.511 | G68: 0 | H68: 0 | I68: 0 | J68: -0.029 | K68: -0.444 | L68: 1.535 | M68: 3.718 | N68: -5.926 | O68: 1.659 | P68: 0 | Q68: 22.62
A69: 1 | B69: 3 | C69: 18 | D69: 1 | E69: 0 | F69: -0.904 | G69: -0.001 | H69: 0 | I69: 0 | J69: -0.054 | K69: -0.861 | L69: 1.272 | M69: 3.716 | N69: -1.736 | O69: -1.434 | P69: 0 | Q69: 22.72
A70: 1 | B70: 3 | C70: 19 | D70: 1 | E70: 0 | F70: -1.21 | G70: -0.001 | H70: 0 | I70: 0 | J70: -0.074 | K70: -1.219 | L70: 1.082 | M70: 4.545 | N70: -1.749 | O70: -1.375 | P70: 0 | Q70: 22.81
A71: 1 | B71: 3 | C71: 20 | D71: 1 | E71: 0 | F71: -1.656 | G71: -0.001 | H71: 0 | I71: 0 | J71: -0.104 | K71: -1.753 | L71: 0.992 | M71: 6.695 | N71: -1.849 | O71: -2.323 | P71: 0 | Q71: 22.97
A72: 1 | B72: 3 | C72: 21 | D72: 1 | E72: 0 | F72: -1.936 | G72: -0.001 | H72: 0 | I72: 0 | J72: -0.126 | K72: -2.145 | L72: 0.916 | M72: 6.937 | N72: -1.945 | O72: -1.7 | P72: 0 | Q72: 23.08
A73: 1 | B73: 3 | C73: 22 | D73: 1 | E73: 0 | F73: -2.13 | G73: -0.001 | H73: 0 | I73: 0 | J73: -0.14 | K73: -2.419 | L73: 0.849 | M73: 7.134 | N73: -1.957 | O73: -1.336 | P73: 0 | Q73: 23.17
A74: 1 | B74: 3 | C74: 23 | D74: 1 | E74: 0 | F74: -2.248 | G74: -0.001 | H74: 0 | I74: 0 | J74: -0.151 | K74: -2.645 | L74: 0.79 | M74: 7.304 | N74: -2.046 | O74: -1.002 | P74: 0 | Q74: 23.24
A75: 1 | B75: 3 | C75: 24 | D75: 1 | E75: 0 | F75: -2.124 | G75: -0.001 | H75: 0 | I75: 0 | J75: -0.146 | K75: -2.581 | L75: 0.737 | M75: 5.886 | N75: -2.123 | O75: 0.354 | P75: 0 | Q75: 23.21
A76: 1 | B76: 4 | C76: 1 | D76: 1 | E76: 0 | F76: -1.838 | G76: -0.001 | H76: 0 | I76: 0 | J76: -0.127 | K76: -2.264 | L76: 0.689 | M76: 4.218 | N76: -2.11 | O76: 1.434 | P76: 0 | Q76: 23.12
A77: 1 | B77: 4 | C77: 2 | D77: 1 | E77: 0 | F77: -1.618 | G77: -0.001 | H77: 0 | I77: 0 | J77: -0.114 | K77: -2.044 | L77: 0.646 | M77: 4.079 | N77: -2.18 | O77: 1.232 | P77: 0 | Q77: 23.03
A78: 1 | B78: 4 | C78: 3 | D78: 1 | E78: 0 | F78: -1.447 | G78: -0.001 | H78: 0 | I78: 0 | J78: -0.104 | K78: -1.871 | L78: 0.607 | M78: 3.974 | N78: -2.251 | O78: 1.093 | P78: 0 | Q78: 22.96
A79: 1 | B79: 4 | C79: 4 | D79: 1 | E79: 0 | F79: -1.31 | G79: -0.001 | H79: 0 | I79: 0 | J79: -0.095 | K79: -1.732 | L79: 0.57 | M79: 3.887 | N79: -2.323 | O79: 1.003 | P79: 0 | Q79: 22.89
A80: 1 | B80: 4 | C80: 5 | D80: 1 | E80: 0 | F80: -1.198 | G80: -0.001 | H80: 0 | I80: 0 | J80: -0.088 | K80: -1.615 | L80: 0.537 | M80: 3.813 | N80: -2.396 | O80: 0.947 | P80: 0 | Q80: 22.83
A81: 1 | B81: 4 | C81: 6 | D81: 1 | E81: 0 | F81: -1.103 | G81: -0.001 | H81: 0 | I81: 0 | J81: -0.082 | K81: -1.516 | L81: 0.507 | M81: 3.748 | N81: -2.469 | O81: 0.916 | P81: 0 | Q81: 22.77
A82: 1 | B82: 4 | C82: 7 | D82: 1 | E82: 0 | F82: -1.03 | G82: 0 | H82: 0 | I82: 0 | J82: -0.077 | K82: -1.42 | L82: 0.478 | M82: 3.69 | N82: -2.461 | O82: 0.821 | P82: 0 | Q82: 22.72
A83: 1 | B83: 4 | C83: 8 | D83: 1 | E83: 0 | F83: -0.974 | G83: 0 | H83: 0 | I83: 0 | J83: -0.073 | K83: -1.362 | L83: 0.452 | M83: 3.707 | N83: -2.536 | O83: 0.788 | P83: 0 | Q83: 22.66
A84: 1 | B84: 4 | C84: 9 | D84: 1 | E84: 0 | F84: -0.932 | G84: 0 | H84: 0 | I84: 0 | J84: -0.07 | K84: -1.295 | L84: 0.467 | M84: 3.666 | N84: -2.53 | O84: 0.694 | P84: 0 | Q84: 22.62
A85: 1 | B85: 4 | C85: 10 | D85: 1 | E85: 0 | F85: -0.921 | G85: 0 | H85: 0 | I85: 0 | J85: -0.067 | K85: -1.228 | L85: 0.608 | M85: 3.629 | N85: -2.444 | O85: 0.424 | P85: 0 | Q85: 22.59
A86: 1 | B86: 4 | C86: 11 | D86: 1 | E86: 0 | F86: -1.047 | G86: 0 | H86: 0 | I86: 0 | J86: -0.072 | K86: -1.128 | L86: 1.691 | M86: 3.595 | N86: -2.287 | O86: -0.752 | P86: 0 | Q86: 22.64
A87: 1 | B87: 4 | C87: 12 | D87: 1 | E87: 0 | F87: -1.212 | G87: 0 | H87: 0 | I87: 0 | J87: -0.079 | K87: -1.235 | L87: 1.701 | M87: 3.564 | N87: -2.131 | O87: -0.607 | P87: 0 | Q87: 22.68
A88: 1 | B88: 4 | C88: 13 | D88: 1 | E88: 0 | F88: -2.217 | G88: -0.001 | H88: 0 | I88: 0 | J88: -0.121 | K88: -0.64 | L88: 5.667 | M88: 3.535 | N88: -2.008 | O88: -4.215 | P88: 0 | Q88: 22.96
A89: 1 | B89: 4 | C89: 14 | D89: 1 | E89: 0 | F89: -3.855 | G89: -0.001 | H89: 0 | I89: 0 | J89: -0.191 | K89: -0.115 | L89: 6.853 | M89: 3.509 | N89: -1.888 | O89: -4.312 | P89: 0 | Q89: 23.25
A90: 1 | B90: 4 | C90: 15 | D90: 1 | E90: 0 | F90: -3.409 | G90: -0.001 | H90: 0 | I90: 0 | J90: -0.165 | K90: -0.32 | L90: 6.087 | M90: 3.484 | N90: -6.215 | O90: 0.538 | P90: 0 | Q90: 23.21
A91: 1 | B91: 4 | C91: 16 | D91: 1 | E91: 0 | F91: -3.269 | G91: -0.001 | H91: 0 | I91: 0 | J91: -0.172 | K91: -1.402 | L91: 4.097 | M91: 3.716 | N91: -1.814 | O91: -1.155 | P91: 0 | Q91: 23.29
A92: 1 | B92: 4 | C92: 17 | D92: 1 | E92: 0 | F92: -2.976 | G92: -0.001 | H92: 0 | I92: 0 | J92: -0.166 | K92: -1.848 | L92: 3.086 | M92: 3.718 | N92: -1.893 | O92: 0.08 | P92: 0 | Q92: 23.28
A93: 1 | B93: 4 | C93: 18 | D93: 1 | E93: 0 | F93: -2.574 | G93: -0.001 | H93: 0 | I93: 0 | J93: -0.152 | K93: -2.091 | L93: 2.205 | M93: 3.717 | N93: -1.965 | O93: 0.862 | P93: 0 | Q93: 23.23
A94: 1 | B94: 4 | C94: 19 | D94: 1 | E94: 0 | F94: -2.378 | G94: -0.001 | H94: 0 | I94: 0 | J94: -0.148 | K94: -2.188 | L94: 1.843 | M94: 4.545 | N94: -2.041 | O94: 0.368 | P94: 0 | Q94: 23.2
A95: 1 | B95: 4 | C95: 20 | D95: 1 | E95: 0 | F95: -2.496 | G95: -0.001 | H95: 0 | I95: 0 | J95: -0.162 | K95: -2.486 | L95: 1.651 | M95: 6.695 | N95: -2.132 | O95: -1.07 | P95: 0 | Q95: 23.27
A96: 1 | B96: 4 | C96: 21 | D96: 1 | E96: 0 | F96: -2.548 | G96: -0.001 | H96: 0 | I96: 0 | J96: -0.171 | K96: -2.71 | L96: 1.506 | M96: 6.938 | N96: -2.22 | O96: -0.794 | P96: 0 | Q96: 23.33
A97: 1 | B97: 4 | C97: 22 | D97: 1 | E97: 0 | F97: -2.563 | G97: -0.001 | H97: 0 | I97: 0 | J97: -0.178 | K97: -2.882 | L97: 1.382 | M97: 7.134 | N97: -2.306 | O97: -0.586 | P97: 0 | Q97: 23.36
A98: 1 | B98: 4 | C98: 23 | D98: 1 | E98: 0 | F98: -2.558 | G98: -0.001 | H98: 0 | I98: 0 | J98: -0.182 | K98: -3.014 | L98: 1.273 | M98: 7.305 | N98: -2.392 | O98: -0.43 | P98: 0 | Q98: 23.39
A99: 1 | B99: 4 | C99: 24 | D99: 1 | E99: 0 | F99: -2.369 | G99: -0.001 | H99: 0 | I99: 0 | J99: -0.17 | K99: -2.861 | L99: 1.178 | M99: 5.886 | N99: -2.385 | O99: 0.723 | P99: 0 | Q99: 23.34
A100: 1 | B100: 5 | C100: 1 | D100: 1 | E100: 0 | F100: -2.016 | G100: -0.001 | H100: 0 | I100: 0 | J100: -0.148 | K100: -2.515 | L100: 1.093 | M100: 4.218 | N100: -2.45 | O100: 1.818 | P100: 0 | Q100: 23.22
A101: 1 | B101: 5 | C101: 2 | D101: 1 | E101: 0 | F101: -1.752 | G101: -0.001 | H101: 0 | I101: 0 | J101: -0.13 | K101: -2.247 | L101: 1.017 | M101: 4.079 | N101: -2.518 | O101: 1.552 | P101: 0 | Q101: 23.12
A102: 1 | B102: 5 | C102: 3 | D102: 1 | E102: 0 | F102: -1.549 | G102: 0 | H102: 0 | I102: 0 | J102: -0.117 | K102: -2.037 | L102: 0.948 | M102: 3.974 | N102: -2.587 | O102: 1.368 | P102: 0 | Q102: 23.03
A103: 1 | B103: 5 | C103: 4 | D103: 1 | E103: 0 | F103: -1.389 | G103: 0 | H103: 0 | I103: 0 | J103: -0.106 | K103: -1.866 | L103: 0.886 | M103: 3.888 | N103: -2.659 | O103: 1.246 | P103: 0 | Q103: 22.95
A104: 1 | B104: 5 | C104: 5 | D104: 1 | E104: 0 | F104: -1.249 | G104: 0 | H104: 0 | I104: 0 | J104: -0.097 | K104: -1.732 | L104: 0.83 | M104: 3.813 | N104: -2.813 | O104: 1.25 | P104: 0 | Q104: 22.86
A105: 1 | B105: 5 | C105: 6 | D105: 1 | E105: 0 | F105: -1.134 | G105: 0 | H105: 0 | I105: 0 | J105: -0.089 | K105: -1.601 | L105: 0.779 | M105: 3.748 | N105: -2.886 | O105: 1.183 | P105: 0 | Q105: 22.78
A106: 1 | B106: 5 | C106: 7 | D106: 1 | E106: 0 | F106: -1.037 | G106: 0 | H106: 0 | I106: 0 | J106: -0.082 | K106: -1.486 | L106: 0.732 | M106: 3.69 | N106: -2.959 | O106: 1.142 | P106: 0 | Q106: 22.71
A107: 1 | B107: 5 | C107: 8 | D107: 1 | E107: 0 | F107: -0.961 | G107: 0 | H107: 0 | I107: 0 | J107: -0.077 | K107: -1.397 | L107: 0.689 | M107: 3.707 | N107: -3.033 | O107: 1.073 | P107: 0 | Q107: 22.64
A108: 1 | B108: 5 | C108: 9 | D108: 1 | E108: 0 | F108: -0.913 | G108: 0 | H108: 0 | I108: 0 | J108: -0.072 | K108: -1.354 | L108: 0.708 | M108: 3.667 | N108: -3.024 | O108: 0.988 | P108: 0 | Q108: 22.57
A109: 1 | B109: 5 | C109: 10 | D109: 1 | E109: 0 | F109: -1.116 | G109: 0 | H109: 0 | I109: 0 | J109: -0.079 | K109: -1.106 | L109: 3.072 | M109: 3.629 | N109: -2.787 | O109: -1.612 | P109: 0 | Q109: 22.68
A110: 1 | B110: 5 | C110: 11 | D110: 1 | E110: 0 | F110: -2.946 | G110: -0.001 | H110: 0 | I110: 0 | J110: -0.165 | K110: -0.049 | L110: 8.695 | M110: 3.595 | N110: -2.518 | O110: -6.613 | P110: 0 | Q110: 23.12
A111: 1 | B111: 5 | C111: 12 | D111: 1 | E111: 0 | F111: -4.57 | G111: -0.001 | H111: 0 | I111: 0 | J111: -0.206 | K111: -0.399 | L111: 12.106 | M111: 3.564 | N111: -2.267 | O111: -8.227 | P111: 0 | Q111: 23.67
A112: 1 | B112: 5 | C112: 13 | D112: 1 | E112: 0 | F112: -5.402 | G112: -0.001 | H112: 0 | I112: 0 | J112: -0.178 | K112: -1.949 | L112: 16.627 | M112: 3.535 | N112: -2.121 | O112: -10.51 | P112: 0 | Q112: 24.37
A113: 1 | B113: 5 | C113: 14 | D113: 1 | E113: 0 | F113: -5.56 | G113: -0.001 | H113: 0 | I113: 0 | J113: -0.129 | K113: -3.105 | L113: 20.103 | M113: 3.509 | N113: -7.037 | O113: -7.779 | P113: 0 | Q113: 24.89
A114: 1 | B114: 5 | C114: 15 | D114: 1 | E114: 0 | F114: -6.001 | G114: -0.001 | H114: 0 | I114: 0 | J114: -0.129 | K114: -4.239 | L114: 20.068 | M114: 3.484 | N114: -6.955 | O114: -6.227 | P114: 0 | Q114: 25.3
A115: 1 | B115: 5 | C115: 16 | D115: 1 | E115: 0 | F115: -6.324 | G115: -0.001 | H115: 0 | I115: 0 | J115: -0.143 | K115: -4.914 | L115: 18.565 | M115: 3.716 | N115: -6.803 | O115: -4.095 | P115: 0 | Q115: 25.57
A116: 1 | B116: 5 | C116: 17 | D116: 1 | E116: 0 | F116: -6.93 | G116: -0.002 | H116: 0 | I116: 0 | J116: -0.233 | K116: -4.208 | L116: 13.753 | M116: 3.718 | N116: -7.335 | O116: 1.236 | P116: 0 | Q116: 25.49
A117: 1 | B117: 5 | C117: 18 | D117: 1 | E117: 0 | F117: -9.928 | G117: -0.003 | H117: 0 | I117: 0 | J117: -0.495 | K117: -1.193 | L117: 7.577 | M117: 3.717 | N117: -2.172 | O117: 2.498 | P117: 0 | Q117: 25.33
A118: 1 | B118: 5 | C118: 19 | D118: 1 | E118: 0 | F118: -9.363 | G118: -0.003 | H118: 0 | I118: 0 | J118: -0.541 | K118: -0.724 | L118: 6.492 | M118: 4.545 | N118: -2.316 | O118: 1.909 | P118: 0 | Q118: 25.2
A119: 1 | B119: 5 | C119: 20 | D119: 1 | E119: 0 | F119: -7.904 | G119: -0.002 | H119: 0 | I119: 0 | J119: -0.512 | K119: -1.82 | L119: 5.8 | M119: 6.695 | N119: -2.395 | O119: 0.138 | P119: 0 | Q119: 25.19
A120: 1 | B120: 5 | C120: 21 | D120: 1 | E120: 0 | F120: -6.732 | G120: -0.002 | H120: 0 | I120: 0 | J120: -0.481 | K120: -2.667 | L120: 5.258 | M120: 6.938 | N120: -2.475 | O120: 0.162 | P120: 0 | Q120: 25.18
A121: 1 | B121: 5 | C121: 22 | D121: 1 | E121: 0 | F121: -5.859 | G121: -0.002 | H121: 0 | I121: 0 | J121: -0.452 | K121: -3.248 | L121: 4.797 | M121: 7.134 | N121: -2.555 | O121: 0.185 | P121: 0 | Q121: 25.17
A122: 1 | B122: 5 | C122: 23 | D122: 1 | E122: 0 | F122: -5.212 | G122: -0.002 | H122: 0 | I122: 0 | J122: -0.425 | K122: -3.635 | L122: 4.399 | M122: 7.305 | N122: -2.635 | O122: 0.206 | P122: 0 | Q122: 25.15
A123: 1 | B123: 5 | C123: 24 | D123: 1 | E123: 0 | F123: -4.493 | G123: -0.001 | H123: 0 | I123: 0 | J123: -0.381 | K123: -3.698 | L123: 4.049 | M123: 5.886 | N123: -2.705 | O123: 1.343 | P123: 0 | Q123: 25.06
A124: 1 | B124: 6 | C124: 1 | D124: 1 | E124: 0 | F124: -3.737 | G124: -0.001 | H124: 0 | I124: 0 | J124: -0.324 | K124: -3.477 | L124: 3.741 | M124: 4.218 | N124: -2.766 | O124: 2.347 | P124: 0 | Q124: 24.91
A125: 1 | B125: 6 | C125: 2 | D125: 1 | E125: 0 | F125: -3.192 | G125: -0.001 | H125: 0 | I125: 0 | J125: -0.281 | K125: -3.255 | L125: 3.466 | M125: 4.079 | N125: -2.83 | O125: 2.014 | P125: 0 | Q125: 24.77
A126: 1 | B126: 6 | C126: 3 | D126: 1 | E126: 0 | F126: -2.783 | G126: -0.001 | H126: 0 | I126: 0 | J126: -0.247 | K126: -3.047 | L126: 3.221 | M126: 3.974 | N126: -2.897 | O126: 1.779 | P126: 0 | Q126: 24.65
A127: 1 | B127: 6 | C127: 4 | D127: 1 | E127: 0 | F127: -2.466 | G127: -0.001 | H127: 0 | I127: 0 | J127: -0.219 | K127: -2.854 | L127: 3 | M127: 3.888 | N127: -2.965 | O127: 1.616 | P127: 0 | Q127: 24.55
A128: 1 | B128: 6 | C128: 5 | D128: 1 | E128: 0 | F128: -2.213 | G128: -0.001 | H128: 0 | I128: 0 | J128: -0.197 | K128: -2.675 | L128: 2.801 | M128: 3.813 | N128: -3.035 | O128: 1.505 | P128: 0 | Q128: 24.45
A129: 1 | B129: 6 | C129: 6 | D129: 1 | E129: 0 | F129: -2.005 | G129: -0.001 | H129: 0 | I129: 0 | J129: -0.178 | K129: -2.51 | L129: 2.621 | M129: 3.748 | N129: -3.106 | O129: 1.43 | P129: 0 | Q129: 24.35
A130: 1 | B130: 6 | C130: 7 | D130: 1 | E130: 0 | F130: -1.83 | G130: 0 | H130: 0 | I130: 0 | J130: -0.161 | K130: -2.358 | L130: 2.456 | M130: 3.69 | N130: -3.177 | O130: 1.38 | P130: 0 | Q130: 24.26
A131: 1 | B131: 6 | C131: 8 | D131: 1 | E131: 0 | F131: -1.778 | G131: 0 | H131: 0 | I131: 0 | J131: -0.156 | K131: -2.345 | L131: 2.306 | M131: 4.47 | N131: -3.255 | O131: 0.758 | P131: 0 | Q131: 24.21
A132: 1 | B132: 6 | C132: 9 | D132: 1 | E132: 0 | F132: -1.728 | G132: 0 | H132: 0 | I132: 0 | J132: -0.149 | K132: -2.358 | L132: 2.208 | M132: 4.498 | N132: -3.247 | O132: 0.777 | P132: 0 | Q132: 24.16
A133: 1 | B133: 6 | C133: 10 | D133: 1 | E133: 0 | F133: -1.759 | G133: 0 | H133: 0 | I133: 0 | J133: -0.146 | K133: -2.24 | L133: 2.453 | M133: 4.515 | N133: -3.16 | O133: 0.337 | P133: 0 | Q133: 24.13
A134: 1 | B134: 6 | C134: 11 | D134: 1 | E134: 0 | F134: -2.259 | G134: -0.001 | H134: 0 | I134: 0 | J134: -0.167 | K134: -1.834 | L134: 4.518 | M134: 4.528 | N134: -2.925 | O134: -1.861 | P134: 0 | Q134: 24.26
A135: 1 | B135: 6 | C135: 12 | D135: 1 | E135: 0 | F135: -4.596 | G135: -0.001 | H135: 0 | I135: 0 | J135: -0.255 | K135: -0.352 | L135: 10.819 | M135: 4.538 | N135: -2.663 | O135: -7.491 | P135: 0 | Q135: 24.76
A136: 1 | B136: 6 | C136: 13 | D136: 1 | E136: 0 | F136: -6.116 | G136: -0.001 | H136: 0 | I136: 0 | J136: -0.322 | K136: -0.667 | L136: 9.934 | M136: 4.547 | N136: -2.462 | O136: -4.913 | P136: 0 | Q136: 25.08
A137: 1 | B137: 6 | C137: 14 | D137: 1 | E137: 0 | F137: -6.568 | G137: -0.001 | H137: 0 | I137: 0 | J137: -0.371 | K137: -1.113 | L137: 7.038 | M137: 4.554 | N137: -2.472 | O137: -1.067 | P137: 0 | Q137: 25.16
A138: 1 | B138: 6 | C138: 15 | D138: 1 | E138: 0 | F138: -7.453 | G138: -0.002 | H138: 0 | I138: 0 | J138: -0.385 | K138: -0.379 | L138: 8.583 | M138: 4.56 | N138: -2.414 | O138: -2.511 | P138: 0 | Q138: 25.32
A139: 1 | B139: 6 | C139: 16 | D139: 1 | E139: 0 | F139: -7.867 | G139: -0.002 | H139: 0 | I139: 0 | J139: -0.416 | K139: -0.3 | L139: 7.781 | M139: 4.566 | N139: -2.426 | O139: -1.336 | P139: 0 | Q139: 25.41
A140: 1 | B140: 6 | C140: 17 | D140: 1 | E140: 0 | F140: -5.673 | G140: -0.001 | H140: 0 | I140: 0 | J140: -0.335 | K140: -2.52 | L140: 5.219 | M140: 4.571 | N140: -2.496 | O140: 1.235 | P140: 0 | Q140: 25.33
A141: 1 | B141: 6 | C141: 18 | D141: 1 | E141: 0 | F141: -4.452 | G141: -0.001 | H141: 0 | I141: 0 | J141: -0.285 | K141: -3.163 | L141: 3.992 | M141: 4.575 | N141: -2.641 | O141: 1.977 | P141: 0 | Q141: 25.2
A142: 1 | B142: 6 | C142: 19 | D142: 1 | E142: 0 | F142: -3.899 | G142: -0.001 | H142: 0 | I142: 0 | J142: -0.262 | K142: -3.241 | L142: 3.549 | M142: 5.41 | N142: -2.713 | O142: 1.156 | P142: 0 | Q142: 25.12
A143: 1 | B143: 6 | C143: 20 | D143: 1 | E143: 0 | F143: -3.861 | G143: -0.001 | H143: 0 | I143: 0 | J143: -0.267 | K143: -3.375 | L143: 3.247 | M143: 7.566 | N143: -2.719 | O143: -0.591 | P143: 0 | Q143: 25.16
A144: 1 | B144: 6 | C144: 21 | D144: 1 | E144: 0 | F144: -3.758 | G144: -0.001 | H144: 0 | I144: 0 | J144: -0.268 | K144: -3.565 | L144: 3.002 | M144: 7.815 | N144: -2.805 | O144: -0.42 | P144: 0 | Q144: 25.19
A145: 1 | B145: 6 | C145: 22 | D145: 1 | E145: 0 | F145: -3.686 | G145: -0.001 | H145: 0 | I145: 0 | J145: -0.267 | K145: -3.679 | L145: 2.787 | M145: 8.019 | N145: -2.808 | O145: -0.365 | P145: 0 | Q145: 25.21
A146: 1 | B146: 6 | C146: 23 | D146: 1 | E146: 0 | F146: -3.597 | G146: -0.001 | H146: 0 | I146: 0 | J146: -0.266 | K146: -3.795 | L146: 2.597 | M146: 8.195 | N146: -2.894 | O146: -0.24 | P146: 0 | Q146: 25.23
A147: 1 | B147: 6 | C147: 24 | D147: 1 | E147: 0 | F147: -3.269 | G147: -0.001 | H147: 0 | I147: 0 | J147: -0.243 | K147: -3.555 | L147: 2.426 | M147: 6.274 | N147: -2.882 | O147: 1.25 | P147: 0 | Q147: 25.14
A148: 1 | B148: 7 | C148: 1 | D148: 1 | E148: 0 | F148: -2.792 | G148: -0.001 | H148: 0 | I148: 0 | J148: -0.21 | K148: -3.153 | L148: 2.271 | M148: 4.566 | N148: -2.944 | O148: 2.262 | P148: 0 | Q148: 24.99
A149: 1 | B149: 7 | C149: 2 | D149: 1 | E149: 0 | F149: -2.45 | G149: -0.001 | H149: 0 | I149: 0 | J149: -0.184 | K149: -2.82 | L149: 2.131 | M149: 4.397 | N149: -2.927 | O149: 1.854 | P149: 0 | Q149: 24.87
A150: 1 | B150: 7 | C150: 3 | D150: 1 | E150: 0 | F150: -2.176 | G150: 0 | H150: 0 | I150: 0 | J150: -0.164 | K150: -2.575 | L150: 2.002 | M150: 4.266 | N150: -2.995 | O150: 1.642 | P150: 0 | Q150: 24.76
A151: 1 | B151: 7 | C151: 4 | D151: 1 | E151: 0 | F151: -1.97 | G151: 0 | H151: 0 | I151: 0 | J151: -0.148 | K151: -2.358 | L151: 1.885 | M151: 4.157 | N151: -2.982 | O151: 1.416 | P151: 0 | Q151: 24.67
A152: 1 | B152: 7 | C152: 5 | D152: 1 | E152: 0 | F152: -1.808 | G152: 0 | H152: 0 | I152: 0 | J152: -0.135 | K152: -2.182 | L152: 1.776 | M152: 4.063 | N152: -2.97 | O152: 1.257 | P152: 0 | Q152: 24.58
A153: 1 | B153: 7 | C153: 6 | D153: 1 | E153: 0 | F153: -1.665 | G153: 0 | H153: 0 | I153: 0 | J153: -0.125 | K153: -2.048 | L153: 1.676 | M153: 3.98 | N153: -3.043 | O153: 1.224 | P153: 0 | Q153: 24.5
A154: 1 | B154: 7 | C154: 7 | D154: 1 | E154: 0 | F154: -1.549 | G154: 0 | H154: 0 | I154: 0 | J154: -0.115 | K154: -1.915 | L154: 1.584 | M154: 3.907 | N154: -3.032 | O154: 1.122 | P154: 0 | Q154: 24.43
A155: 1 | B155: 7 | C155: 8 | D155: 1 | E155: 0 | F155: -1.544 | G155: 0 | H155: 0 | I155: 0 | J155: -0.115 | K155: -1.939 | L155: 1.498 | M155: 4.672 | N155: -3.111 | O155: 0.54 | P155: 0 | Q155: 24.39
A156: 1 | B156: 7 | C156: 9 | D156: 1 | E156: 0 | F156: -1.53 | G156: 0 | H156: 0 | I156: 0 | J156: -0.114 | K156: -1.98 | L156: 1.438 | M156: 4.687 | N156: -3.106 | O156: 0.605 | P156: 0 | Q156: 24.35
A157: 1 | B157: 7 | C157: 10 | D157: 1 | E157: 0 | F157: -1.648 | G157: 0 | H157: 0 | I157: 0 | J157: -0.116 | K157: -1.841 | L157: 2.226 | M157: 4.693 | N157: -2.941 | O157: -0.372 | P157: 0 | Q157: 24.37
A158: 1 | B158: 7 | C158: 11 | D158: 1 | E158: 0 | F158: -2.15 | G158: 0 | H158: 0 | I158: 0 | J158: -0.137 | K158: -1.613 | L158: 4.145 | M158: 4.696 | N158: -2.713 | O158: -2.228 | P158: 0 | Q158: 24.52
A159: 1 | B159: 7 | C159: 12 | D159: 1 | E159: 0 | F159: -2.657 | G159: 0 | H159: 0 | I159: 0 | J159: -0.16 | K159: -1.749 | L159: 4.436 | M159: 4.696 | N159: -2.567 | O159: -1.999 | P159: 0 | Q159: 24.66
A160: 1 | B160: 7 | C160: 13 | D160: 1 | E160: 0 | F160: -2.715 | G160: 0 | H160: 0 | I160: 0 | J160: -0.164 | K160: -2.156 | L160: 3.313 | M160: 4.696 | N160: -2.489 | O160: -0.484 | P160: 0 | Q160: 24.69
A161: 1 | B161: 7 | C161: 14 | D161: 1 | E161: 0 | F161: -2.957 | G161: -0.001 | H161: 0 | I161: 0 | J161: -0.171 | K161: -2.033 | L161: 3.82 | M161: 4.695 | N161: -2.416 | O161: -0.937 | P161: 0 | Q161: 24.75
A162: 1 | B162: 7 | C162: 15 | D162: 1 | E162: 0 | F162: -3.133 | G162: -0.001 | H162: 0 | I162: 0 | J162: -0.177 | K162: -2.057 | L162: 3.859 | M162: 4.694 | N162: -2.343 | O162: -0.842 | P162: 0 | Q162: 24.81
A163: 1 | B163: 7 | C163: 16 | D163: 1 | E163: 0 | F163: -4.124 | G163: -0.001 | H163: 0 | I163: 0 | J163: -0.216 | K163: -1.315 | L163: 6.083 | M163: 4.693 | N163: -2.368 | O163: -2.751 | P163: 0 | Q163: 24.99
A164: 1 | B164: 7 | C164: 17 | D164: 1 | E164: 0 | F164: -4.061 | G164: -0.001 | H164: 0 | I164: 0 | J164: -0.221 | K164: -1.929 | L164: 4.93 | M164: 4.691 | N164: -2.378 | O164: -1.031 | P164: 0 | Q164: 25.06
A165: 1 | B165: 7 | C165: 18 | D165: 1 | E165: 0 | F165: -3.23 | G165: -0.001 | H165: 0 | I165: 0 | J165: -0.195 | K165: -2.83 | L165: 2.633 | M165: 4.689 | N165: -2.527 | O165: 1.46 | P165: 0 | Q165: 24.96
A166: 1 | B166: 7 | C166: 19 | D166: 1 | E166: 0 | F166: -2.969 | G166: -0.001 | H166: 0 | I166: 0 | J166: -0.186 | K166: -2.781 | L166: 2.281 | M166: 5.519 | N166: -2.602 | O166: 0.739 | P166: 0 | Q166: 24.91
A167: 1 | B167: 7 | C167: 20 | D167: 1 | E167: 0 | F167: -3.058 | G167: -0.001 | H167: 0 | I167: 0 | J167: -0.196 | K167: -3.004 | L167: 2.087 | M167: 7.67 | N167: -2.61 | O167: -0.889 | P167: 0 | Q167: 24.97
A168: 1 | B168: 7 | C168: 21 | D168: 1 | E168: 0 | F168: -3.081 | G168: -0.001 | H168: 0 | I168: 0 | J168: -0.203 | K168: -3.199 | L168: 1.925 | M168: 7.914 | N168: -2.699 | O168: -0.658 | P168: 0 | Q168: 25.02
A169: 1 | B169: 7 | C169: 22 | D169: 1 | E169: 0 | F169: -3.073 | G169: -0.001 | H169: 0 | I169: 0 | J169: -0.208 | K169: -3.351 | L169: 1.786 | M169: 8.113 | N169: -2.786 | O169: -0.48 | P169: 0 | Q169: 25.05
A170: 1 | B170: 7 | C170: 23 | D170: 1 | E170: 0 | F170: -3.074 | G170: -0.001 | H170: 0 | I170: 0 | J170: -0.211 | K170: -3.446 | L170: 1.662 | M170: 8.285 | N170: -2.79 | O170: -0.426 | P170: 0 | Q170: 25.08
A171: 1 | B171: 7 | C171: 24 | D171: 1 | E171: 0 | F171: -2.789 | G171: -0.001 | H171: 0 | I171: 0 | J171: -0.195 | K171: -3.239 | L171: 1.552 | M171: 6.36 | N171: -2.862 | O171: 1.173 | P171: 0 | Q171: 25
A172: 1 | B172: 8 | C172: 1 | D172: 1 | E172: 0 | F172: -2.364 | G172: 0 | H172: 0 | I172: 0 | J172: -0.168 | K172: -2.831 | L172: 1.452 | M172: 4.648 | N172: -2.925 | O172: 2.188 | P172: 0 | Q172: 24.85
A173: 1 | B173: 8 | C173: 2 | D173: 1 | E173: 0 | F173: -2.061 | G173: 0 | H173: 0 | I173: 0 | J173: -0.147 | K173: -2.504 | L173: 1.362 | M173: 4.475 | N173: -2.908 | O173: 1.784 | P173: 0 | Q173: 24.73
A174: 1 | B174: 8 | C174: 3 | D174: 1 | E174: 0 | F174: -1.822 | G174: 0 | H174: 0 | I174: 0 | J174: -0.132 | K174: -2.266 | L174: 1.28 | M174: 4.341 | N174: -2.977 | O174: 1.577 | P174: 0 | Q174: 24.63
A175: 1 | B175: 8 | C175: 4 | D175: 1 | E175: 0 | F175: -1.632 | G175: 0 | H175: 0 | I175: 0 | J175: -0.119 | K175: -2.072 | L175: 1.204 | M175: 4.228 | N175: -3.047 | O175: 1.438 | P175: 0 | Q175: 24.53
A176: 1 | B176: 8 | C176: 5 | D176: 1 | E176: 0 | F176: -1.486 | G176: 0 | H176: 0 | I176: 0 | J176: -0.108 | K176: -1.9 | L176: 1.135 | M176: 4.131 | N176: -3.035 | O176: 1.265 | P176: 0 | Q176: 24.45
A177: 1 | B177: 8 | C177: 6 | D177: 1 | E177: 0 | F177: -1.362 | G177: 0 | H177: 0 | I177: 0 | J177: -0.1 | K177: -1.771 | L177: 1.071 | M177: 4.045 | N177: -3.108 | O177: 1.225 | P177: 0 | Q177: 24.37
A178: 1 | B178: 8 | C178: 7 | D178: 1 | E178: 0 | F178: -1.253 | G178: 0 | H178: 0 | I178: 0 | J178: -0.093 | K178: -1.655 | L178: 1.012 | M178: 3.969 | N178: -3.181 | O178: 1.202 | P178: 0 | Q178: 24.29
A179: 1 | B179: 8 | C179: 8 | D179: 1 | E179: 0 | F179: -1.165 | G179: 0 | H179: 0 | I179: 0 | J179: -0.087 | K179: -1.56 | L179: 0.957 | M179: 3.968 | N179: -3.255 | O179: 1.143 | P179: 0 | Q179: 24.21
A180: 1 | B180: 8 | C180: 9 | D180: 1 | E180: 0 | F180: -1.101 | G180: 0 | H180: 0 | I180: 0 | J180: -0.082 | K180: -1.512 | L180: 0.945 | M180: 3.912 | N180: -3.245 | O180: 1.083 | P180: 0 | Q180: 24.14
A181: 1 | B181: 8 | C181: 10 | D181: 1 | E181: 0 | F181: -1.054 | G181: 0 | H181: 0 | I181: 0 | J181: -0.077 | K181: -1.424 | L181: 0.962 | M181: 3.861 | N181: -3.152 | O181: 0.884 | P181: 0 | Q181: 24.08
A182: 1 | B182: 8 | C182: 11 | D182: 1 | E182: 0 | F182: -1.266 | G182: 0 | H182: 0 | I182: 0 | J182: -0.085 | K182: -1.219 | L182: 3.211 | M182: 3.814 | N182: -2.997 | O182: -1.458 | P182: 0 | Q182: 24.18
A183: 1 | B183: 8 | C183: 12 | D183: 1 | E183: 0 | F183: -1.842 | G183: 0 | H183: 0 | I183: 0 | J183: -0.112 | K183: -1.216 | L183: 4.864 | M183: 3.771 | N183: -2.772 | O183: -2.693 | P183: 0 | Q183: 24.36
A184: 1 | B184: 8 | C184: 13 | D184: 1 | E184: 0 | F184: -3.184 | G184: -0.001 | H184: 0 | I184: 0 | J184: -0.17 | K184: -0.754 | L184: 7.432 | M184: 3.731 | N184: -2.566 | O184: -4.488 | P184: 0 | Q184: 24.66
A185: 1 | B185: 8 | C185: 14 | D185: 1 | E185: 0 | F185: -3.994 | G185: -0.001 | H185: 0 | I185: 0 | J185: -0.208 | K185: -1.045 | L185: 6.978 | M185: 3.695 | N185: -2.511 | O185: -2.914 | P185: 0 | Q185: 24.85
A186: 1 | B186: 8 | C186: 15 | D186: 1 | E186: 0 | F186: -3.632 | G186: -0.001 | H186: 0 | I186: 0 | J186: -0.198 | K186: -1.954 | L186: 4.764 | M186: 3.661 | N186: -2.432 | O186: -0.208 | P186: 0 | Q186: 24.86
A187: 1 | B187: 8 | C187: 16 | D187: 1 | E187: 0 | F187: -3.178 | G187: -0.001 | H187: 0 | I187: 0 | J187: -0.182 | K187: -2.355 | L187: 3.431 | M187: 3.884 | N187: -2.505 | O187: 0.907 | P187: 0 | Q187: 24.8
A188: 1 | B188: 8 | C188: 17 | D188: 1 | E188: 0 | F188: -2.729 | G188: 0 | H188: 0 | I188: 0 | J188: -0.163 | K188: -2.45 | L188: 2.578 | M188: 3.877 | N188: -2.573 | O188: 1.461 | P188: 0 | Q188: 24.71
A189: 1 | B189: 8 | C189: 18 | D189: 1 | E189: 0 | F189: -2.35 | G189: 0 | H189: 0 | I189: 0 | J189: -0.148 | K189: -2.369 | L189: 2.178 | M189: 3.868 | N189: -2.724 | O189: 1.545 | P189: 0 | Q189: 24.6
A190: 1 | B190: 8 | C190: 19 | D190: 1 | E190: 0 | F190: -2.179 | G190: 0 | H190: 0 | I190: 0 | J190: -0.142 | K190: -2.279 | L190: 1.968 | M190: 4.69 | N190: -2.8 | O190: 0.743 | P190: 0 | Q190: 24.55
A191: 1 | B191: 8 | C191: 20 | D191: 1 | E191: 0 | F191: -2.321 | G191: 0 | H191: 0 | I191: 0 | J191: -0.154 | K191: -2.521 | L191: 1.806 | M191: 6.832 | N191: -2.807 | O191: -0.835 | P191: 0 | Q191: 24.61
A192: 1 | B192: 8 | C192: 21 | D192: 1 | E192: 0 | F192: -2.397 | G192: 0 | H192: 0 | I192: 0 | J192: -0.163 | K192: -2.719 | L192: 1.666 | M192: 7.068 | N192: -2.896 | O192: -0.56 | P192: 0 | Q192: 24.65
A193: 1 | B193: 8 | C193: 22 | D193: 1 | E193: 0 | F193: -2.452 | G193: 0 | H193: 0 | I193: 0 | J193: -0.169 | K193: -2.85 | L193: 1.544 | M193: 7.259 | N193: -2.9 | O193: -0.431 | P193: 0 | Q193: 24.67
A194: 1 | B194: 8 | C194: 23 | D194: 1 | E194: 0 | F194: -2.494 | G194: 0 | H194: 0 | I194: 0 | J194: -0.173 | K194: -2.951 | L194: 1.435 | M194: 7.424 | N194: -2.903 | O194: -0.337 | P194: 0 | Q194: 24.7
A195: 1 | B195: 8 | C195: 24 | D195: 1 | E195: 0 | F195: -2.315 | G195: 0 | H195: 0 | I195: 0 | J195: -0.163 | K195: -2.81 | L195: 1.337 | M195: 6 | N195: -2.978 | O195: 0.929 | P195: 0 | Q195: 24.64
A196: 1 | B196: 9 | C196: 1 | D196: 1 | E196: 0 | F196: -1.985 | G196: 0 | H196: 0 | I196: 0 | J196: -0.14 | K196: -2.435 | L196: 1.249 | M196: 4.326 | N196: -2.96 | O196: 1.944 | P196: 0 | Q196: 24.51
A197: 1 | B197: 9 | C197: 2 | D197: 1 | E197: 0 | F197: -1.732 | G197: 0 | H197: 0 | I197: 0 | J197: -0.123 | K197: -2.166 | L197: 1.17 | M197: 4.182 | N197: -3.028 | O197: 1.696 | P197: 0 | Q197: 24.39
A198: 1 | B198: 9 | C198: 3 | D198: 1 | E198: 0 | F198: -1.533 | G198: 0 | H198: 0 | I198: 0 | J198: -0.11 | K198: -1.953 | L198: 1.097 | M198: 4.073 | N198: -3.097 | O198: 1.524 | P198: 0 | Q198: 24.29
A199: 1 | B199: 9 | C199: 4 | D199: 1 | E199: 0 | F199: -1.383 | G199: 0 | H199: 0 | I199: 0 | J199: -0.099 | K199: -1.772 | L199: 1.031 | M199: 3.982 | N199: -3.085 | O199: 1.326 | P199: 0 | Q199: 24.2
A200: 1 | B200: 9 | C200: 5 | D200: 1 | E200: 0 | F200: -1.258 | G200: 0 | H200: 0 | I200: 0 | J200: -0.091 | K200: -1.636 | L200: 0.97 | M200: 3.903 | N200: -3.157 | O200: 1.27 | P200: 0 | Q200: 24.12
... 4300 more rows

Sheet Archivo 5
D1: Nombre espacio | E1: Area(m2)
D2: P01_E01 | E2: 83.16
A3: Mes | B3: Dia | C3: Hora | D3: Horario Funcionamiento Equipo | E3: Funcionamiento Real Equipo | F3: Transmisi Muros Exteriores(W/m2 del espacio) | G3: Transmisi Muros Interiores(W/m2 del espacio) | H3: Transmisi Cubiertas(W/m2 del espacio) | I3: Transmisi Suelos(W/m2 del espacio) | J3: Transmisi Puentes T駻micos(W/m2 del espacio) | K3: Transmisi Ventanas(W/m2 del espacio) | L3: Radiaci Ventanas(W/m2 del espacio) | M3: Fuentes internas(W/m2 del espacio) | N3: Carga de ventilaci e infiltraci(W/m2 del espacio) | O3: Energia Almacenada Aire(W/m2 del espacio) | P3: Carga Total(W/m2 del espacio) | Q3: Temperatura aire (ｺC)
A4: 1 | B4: 1 | C4: 1 | D4: 1 | E4: 0 | F4: 1.749 | G4: 0.012 | H4: 0 | I4: 0 | J4: 0.156 | K4: 2.636 | L4: 1.223 | M4: 4.211 | N4: -9.988 | O4: 0 | P4: 0 | Q4: 21.02
A5: 1 | B5: 1 | C5: 2 | D5: 1 | E5: 0 | F5: -0.005 | G5: 0 | H5: 0 | I5: 0 | J5: 0 | K5: -0.006 | L5: 1.145 | M5: 4.072 | N5: -6.18 | O5: 0.974 | P5: 0 | Q5: 20.95
A6: 1 | B6: 1 | C6: 3 | D6: 1 | E6: 0 | F6: -0.028 | G6: 0 | H6: 0 | I6: 0 | J6: -0.002 | K6: -0.034 | L6: 1.074 | M6: 3.968 | N6: -5.134 | O6: 0.157 | P6: 0 | Q6: 20.94
A7: 1 | B7: 1 | C7: 4 | D7: 1 | E7: 0 | F7: -0.038 | G7: 0 | H7: 0 | I7: 0 | J7: -0.003 | K7: -0.045 | L7: 1.008 | M7: 3.881 | N7: -5.376 | O7: 0.573 | P7: 0 | Q7: 20.9
A8: 1 | B8: 1 | C8: 5 | D8: 1 | E8: 0 | F8: -0.003 | G8: 0 | H8: 0 | I8: 0 | J8: 0 | K8: -0.003 | L8: 0.949 | M8: 3.807 | N8: -5.61 | O8: 0.861 | P8: 0 | Q8: 20.85
A9: 1 | B9: 1 | C9: 6 | D9: 1 | E9: 0 | F9: 0.041 | G9: 0 | H9: 0 | I9: 0 | J9: 0.003 | K9: 0.049 | L9: 0.894 | M9: 3.742 | N9: -5.585 | O9: 0.856 | P9: 0 | Q9: 20.79
A10: 1 | B10: 1 | C10: 7 | D10: 1 | E10: 0 | F10: 0.123 | G10: 0.001 | H10: 0 | I10: 0 | J10: 0.009 | K10: 0.151 | L10: 0.843 | M10: 3.685 | N10: -6.069 | O10: 1.257 | P10: 0 | Q10: 20.7
A11: 1 | B11: 1 | C11: 8 | D11: 1 | E11: 0 | F11: 0.195 | G11: 0.001 | H11: 0 | I11: 0 | J11: 0.014 | K11: 0.241 | L11: 0.796 | M11: 3.702 | N11: -6.036 | O11: 1.087 | P11: 0 | Q11: 20.63
A12: 1 | B12: 1 | C12: 9 | D12: 1 | E12: 0 | F12: 0.253 | G12: 0.001 | H12: 0 | I12: 0 | J12: 0.018 | K12: 0.311 | L12: 0.792 | M12: 3.662 | N12: -6.007 | O12: 0.971 | P12: 0 | Q12: 20.57
A13: 1 | B13: 1 | C13: 10 | D13: 1 | E13: 0 | F13: 0.268 | G13: 0.001 | H13: 0 | I13: 0 | J13: 0.018 | K13: 0.292 | L13: 1.209 | M13: 3.625 | N13: -5.483 | O13: 0.071 | P13: 0 | Q13: 20.56
A14: 1 | B14: 1 | C14: 11 | D14: 1 | E14: 0 | F14: -0.848 | G14: -0.004 | H14: 0 | I14: 0 | J14: -0.04 | K14: 0.875 | L14: 8.349 | M14: 3.591 | N14: -4.916 | O14: -7.005 | P14: 0 | Q14: 21.03
A15: 1 | B15: 1 | C15: 12 | D15: 1 | E15: 0 | F15: -2.606 | G15: -0.013 | H15: 0 | I15: 0 | J15: -0.104 | K15: 0.548 | L15: 10.014 | M15: 3.56 | N15: -4.357 | O15: -7.041 | P15: 0 | Q15: 21.5
A16: 1 | B16: 1 | C16: 13 | D16: 1 | E16: 0 | F16: -3.527 | G16: -0.017 | H16: 0 | I16: 0 | J16: -0.165 | K16: -0.052 | L16: 5.901 | M16: 3.531 | N16: -4.148 | O16: -1.524 | P16: 0 | Q16: 21.6
A17: 1 | B17: 1 | C17: 14 | D17: 1 | E17: 0 | F17: -2.561 | G17: -0.012 | H17: 0 | I17: 0 | J17: -0.134 | K17: -1.112 | L17: 3.488 | M17: 3.505 | N17: -4.367 | O17: 1.194 | P17: 0 | Q17: 21.52
A18: 1 | B18: 1 | C18: 15 | D18: 1 | E18: 0 | F18: -1.971 | G18: -0.009 | H18: 0 | I18: 0 | J18: -0.109 | K18: -1.195 | L18: 2.759 | M18: 3.481 | N18: -4.574 | O18: 1.618 | P18: 0 | Q18: 21.41
A19: 1 | B19: 1 | C19: 16 | D19: 1 | E19: 0 | F19: -1.692 | G19: -0.008 | H19: 0 | I19: 0 | J19: -0.096 | K19: -0.978 | L19: 3.041 | M19: 3.713 | N19: -4.806 | O19: 0.826 | P19: 0 | Q19: 21.36
A20: 1 | B20: 1 | C20: 17 | D20: 1 | E20: 0 | F20: -1.573 | G20: -0.007 | H20: 0 | I20: 0 | J20: -0.09 | K20: -0.821 | L20: 3.36 | M20: 3.715 | N20: -4.799 | O20: 0.216 | P20: 0 | Q20: 21.34
A21: 1 | B21: 1 | C21: 18 | D21: 1 | E21: 0 | F21: -1.237 | G21: -0.005 | H21: 0 | I21: 0 | J21: -0.077 | K21: -0.975 | L21: 2.284 | M21: 3.713 | N21: -5.017 | O21: 1.314 | P21: 0 | Q21: 21.26
A22: 1 | B22: 1 | C22: 19 | D22: 1 | E22: 0 | F22: -1.062 | G22: -0.005 | H22: 0 | I22: 0 | J22: -0.069 | K22: -0.959 | L22: 1.957 | M22: 4.542 | N22: -5.25 | O22: 0.845 | P22: 0 | Q22: 21.2
A23: 1 | B23: 1 | C23: 20 | D23: 1 | E23: 0 | F23: -1.215 | G23: -0.005 | H23: 0 | I23: 0 | J23: -0.081 | K23: -1.168 | L23: 1.777 | M23: 6.692 | N23: -5.272 | O23: -0.729 | P23: 0 | Q23: 21.25
A24: 1 | B24: 1 | C24: 21 | D24: 1 | E24: 0 | F24: -1.278 | G24: -0.005 | H24: 0 | I24: 0 | J24: -0.088 | K24: -1.314 | L24: 1.638 | M24: 6.935 | N24: -5.541 | O24: -0.347 | P24: 0 | Q24: 21.27
A25: 1 | B25: 1 | C25: 22 | D25: 1 | E25: 0 | F25: -1.322 | G25: -0.005 | H25: 0 | I25: 0 | J25: -0.092 | K25: -1.411 | L25: 1.517 | M25: 7.132 | N25: -5.549 | O25: -0.269 | P25: 0 | Q25: 21.29
A26: 1 | B26: 1 | C26: 23 | D26: 1 | E26: 0 | F26: -1.32 | G26: -0.005 | H26: 0 | I26: 0 | J26: -0.094 | K26: -1.478 | L26: 1.409 | M26: 7.302 | N26: -5.809 | O26: -0.005 | P26: 0 | Q26: 21.29
A27: 1 | B27: 1 | C27: 24 | D27: 1 | E27: 0 | F27: -1.127 | G27: -0.004 | H27: 0 | I27: 0 | J27: -0.081 | K27: -1.292 | L27: 1.313 | M27: 5.884 | N27: -5.777 | O27: 1.085 | P27: 0 | Q27: 21.22
A28: 1 | B28: 2 | C28: 1 | D28: 1 | E28: 0 | F28: -0.788 | G28: -0.003 | H28: 0 | I28: 0 | J28: -0.057 | K28: -0.918 | L28: 1.226 | M28: 4.216 | N28: -5.716 | O28: 2.04 | P28: 0 | Q28: 21.08
A29: 1 | B29: 2 | C29: 2 | D29: 1 | E29: 0 | F29: -0.52 | G29: -0.002 | H29: 0 | I29: 0 | J29: -0.038 | K29: -0.624 | L29: 1.147 | M29: 4.077 | N29: -5.921 | O29: 1.88 | P29: 0 | Q29: 20.96
A30: 1 | B30: 2 | C30: 3 | D30: 1 | E30: 0 | F30: -0.3 | G30: -0.001 | H30: 0 | I30: 0 | J30: -0.022 | K30: -0.37 | L30: 1.076 | M30: 3.972 | N30: -6.129 | O30: 1.774 | P30: 0 | Q30: 20.84
A31: 1 | B31: 2 | C31: 4 | D31: 1 | E31: 0 | F31: -0.136 | G31: 0 | H31: 0 | I31: 0 | J31: -0.01 | K31: -0.169 | L31: 1.011 | M31: 3.886 | N31: -6.084 | O31: 1.503 | P31: 0 | Q31: 20.74
A32: 1 | B32: 2 | C32: 5 | D32: 1 | E32: 0 | F32: 0.007 | G32: 0 | H32: 0 | I32: 0 | J32: 0 | K32: 0.008 | L32: 0.951 | M32: 3.811 | N32: -6.301 | O32: 1.523 | P32: 0 | Q32: 20.64
A33: 1 | B33: 2 | C33: 6 | D33: 1 | E33: 0 | F33: 0.119 | G33: 0 | H33: 0 | I33: 0 | J33: 0.009 | K33: 0.152 | L33: 0.896 | M33: 3.746 | N33: -6.261 | O33: 1.338 | P33: 0 | Q33: 20.55
A34: 1 | B34: 2 | C34: 7 | D34: 1 | E34: 0 | F34: 0.223 | G34: 0.001 | H34: 0 | I34: 0 | J34: 0.017 | K34: 0.29 | L34: 0.845 | M34: 3.689 | N34: -6.481 | O34: 1.418 | P34: 0 | Q34: 20.45
A35: 1 | B35: 2 | C35: 8 | D35: 1 | E35: 0 | F35: 0.3 | G35: 0.001 | H35: 0 | I35: 0 | J35: 0.022 | K35: 0.393 | L35: 0.798 | M35: 3.705 | N35: -6.445 | O35: 1.225 | P35: 0 | Q35: 20.37
A36: 1 | B36: 2 | C36: 9 | D36: 1 | E36: 0 | F36: 0.36 | G36: 0.001 | H36: 0 | I36: 0 | J36: 0.027 | K36: 0.47 | L36: 0.774 | M36: 3.665 | N36: -6.411 | O36: 1.114 | P36: 0 | Q36: 20.3
A37: 1 | B37: 2 | C37: 10 | D37: 1 | E37: 0 | F37: 0.397 | G37: 0.001 | H37: 0 | I37: 0 | J37: 0.028 | K37: 0.487 | L37: 0.992 | M37: 3.628 | N37: -6.13 | O37: 0.596 | P37: 0 | Q37: 20.26
A38: 1 | B38: 2 | C38: 11 | D38: 1 | E38: 0 | F38: 0.357 | G38: 0.001 | H38: 0 | I38: 0 | J38: 0.023 | K38: 0.311 | L38: 2.397 | M38: 3.594 | N38: -5.385 | O38: -1.298 | P38: 0 | Q38: 20.34
A39: 1 | B39: 2 | C39: 12 | D39: 1 | E39: 0 | F39: 0.034 | G39: 0 | H39: 0 | I39: 0 | J39: 0.002 | K39: 0.021 | L39: 3.385 | M39: 3.563 | N39: -4.929 | O39: -2.076 | P39: 0 | Q39: 20.48
A40: 1 | B40: 2 | C40: 13 | D40: 1 | E40: 0 | F40: -0.289 | G40: -0.001 | H40: 0 | I40: 0 | J40: -0.018 | K40: -0.236 | L40: 2.303 | M40: 3.534 | N40: -4.94 | O40: -0.354 | P40: 0 | Q40: 20.51
A41: 1 | B41: 2 | C41: 14 | D41: 1 | E41: 0 | F41: -0.394 | G41: -0.001 | H41: 0 | I41: 0 | J41: -0.023 | K41: -0.317 | L41: 2.146 | M41: 3.508 | N41: -4.689 | O41: -0.23 | P41: 0 | Q41: 20.52
A42: 1 | B42: 2 | C42: 15 | D42: 1 | E42: 0 | F42: -0.453 | G42: -0.001 | H42: 0 | I42: 0 | J42: -0.027 | K42: -0.362 | L42: 2.113 | M42: 3.483 | N42: -4.691 | O42: -0.063 | P42: 0 | Q42: 20.52
A43: 1 | B43: 2 | C43: 16 | D43: 1 | E43: 0 | F43: -0.782 | G43: -0.001 | H43: 0 | I43: 0 | J43: -0.042 | K43: -0.305 | L43: 4.235 | M43: 3.715 | N43: -4.504 | O43: -2.317 | P43: 0 | Q43: 20.68
A44: 1 | B44: 2 | C44: 17 | D44: 1 | E44: 0 | F44: -1.033 | G44: -0.002 | H44: 0 | I44: 0 | J44: -0.058 | K44: -0.566 | L44: 3.386 | M44: 3.717 | N44: -4.78 | O44: -0.664 | P44: 0 | Q44: 20.72
A45: 1 | B45: 2 | C45: 18 | D45: 1 | E45: 0 | F45: -0.879 | G45: -0.001 | H45: 0 | I45: 0 | J45: -0.053 | K45: -0.781 | L45: 1.744 | M45: 3.716 | N45: -5 | O45: 1.255 | P45: 0 | Q45: 20.64
A46: 1 | B46: 2 | C46: 19 | D46: 1 | E46: 0 | F46: -0.766 | G46: -0.001 | H46: 0 | I46: 0 | J46: -0.048 | K46: -0.747 | L46: 1.475 | M46: 4.544 | N46: -5.235 | O46: 0.777 | P46: 0 | Q46: 20.59
A47: 1 | B47: 2 | C47: 20 | D47: 1 | E47: 0 | F47: -0.947 | G47: -0.001 | H47: 0 | I47: 0 | J47: -0.061 | K47: -0.967 | L47: 1.328 | M47: 6.694 | N47: -5.259 | O47: -0.787 | P47: 0 | Q47: 20.64
A48: 1 | B48: 2 | C48: 21 | D48: 1 | E48: 0 | F48: -1.07 | G48: -0.002 | H48: 0 | I48: 0 | J48: -0.07 | K48: -1.132 | L48: 1.22 | M48: 6.937 | N48: -5.277 | O48: -0.607 | P48: 0 | Q48: 20.68
A49: 1 | B49: 2 | C49: 22 | D49: 1 | E49: 0 | F49: -1.126 | G49: -0.002 | H49: 0 | I49: 0 | J49: -0.075 | K49: -1.246 | L49: 1.128 | M49: 7.134 | N49: -5.544 | O49: -0.267 | P49: 0 | Q49: 20.7
A50: 1 | B50: 2 | C50: 23 | D50: 1 | E50: 0 | F50: -1.17 | G50: -0.002 | H50: 0 | I50: 0 | J50: -0.079 | K50: -1.326 | L50: 1.047 | M50: 7.304 | N50: -5.551 | O50: -0.223 | P50: 0 | Q50: 20.71
A51: 1 | B51: 2 | C51: 24 | D51: 1 | E51: 0 | F51: -0.98 | G51: -0.001 | H51: 0 | I51: 0 | J51: -0.068 | K51: -1.149 | L51: 0.974 | M51: 5.885 | N51: -5.778 | O51: 1.117 | P51: 0 | Q51: 20.64
A52: 1 | B52: 3 | C52: 1 | D52: 1 | E52: 0 | F52: -0.645 | G52: -0.001 | H52: 0 | I52: 0 | J52: -0.045 | K52: -0.768 | L52: 0.91 | M52: 4.217 | N52: -5.717 | O52: 2.048 | P52: 0 | Q52: 20.5
A53: 1 | B53: 3 | C53: 2 | D53: 1 | E53: 0 | F53: -0.409 | G53: -0.001 | H53: 0 | I53: 0 | J53: -0.028 | K53: -0.493 | L53: 0.851 | M53: 4.078 | N53: -5.667 | O53: 1.668 | P53: 0 | Q53: 20.39
A54: 1 | B54: 3 | C54: 3 | D54: 1 | E54: 0 | F54: -0.217 | G54: 0 | H54: 0 | I54: 0 | J54: -0.015 | K54: -0.267 | L54: 0.798 | M54: 3.974 | N54: -5.88 | O54: 1.607 | P54: 0 | Q54: 20.28
A55: 1 | B55: 3 | C55: 4 | D55: 1 | E55: 0 | F55: -0.071 | G55: 0 | H55: 0 | I55: 0 | J55: -0.005 | K55: -0.089 | L55: 0.75 | M55: 3.887 | N55: -5.839 | O55: 1.367 | P55: 0 | Q55: 20.19
A56: 1 | B56: 3 | C56: 5 | D56: 1 | E56: 0 | F56: 0.036 | G56: 0 | H56: 0 | I56: 0 | J56: 0.003 | K56: 0.045 | L56: 0.706 | M56: 3.813 | N56: -5.803 | O56: 1.202 | P56: 0 | Q56: 20.11
A57: 1 | B57: 3 | C57: 6 | D57: 1 | E57: 0 | F57: 0.117 | G57: 0 | H57: 0 | I57: 0 | J57: 0.008 | K57: 0.147 | L57: 0.665 | M57: 3.747 | N57: -5.77 | O57: 1.086 | P57: 0 | Q57: 20.04
A58: 1 | B58: 3 | C58: 7 | D58: 1 | E58: 0 | F58: 0.199 | G58: 0 | H58: 0 | I58: 0 | J58: 0.014 | K58: 0.254 | L58: 0.627 | M58: 3.69 | N58: -5.996 | O58: 1.212 | P58: 0 | Q58: 19.96
A59: 1 | B59: 3 | C59: 8 | D59: 1 | E59: 1 | F59: -0.019 | G59: 0 | H59: 0 | I59: 0 | J59: -0.001 | K59: -0.025 | L59: 0.593 | M59: 3.706 | N59: -6.014 | O59: -0.601 | P59: -2.361 | Q59: 20
A60: 1 | B60: 3 | C60: 9 | D60: 1 | E60: 1 | F60: -0.109 | G60: 0 | H60: 0 | I60: 0 | J60: -0.008 | K60: -0.138 | L60: 0.6 | M60: 3.666 | N60: -6.014 | O60: 0 | P60: -2.004 | Q60: 20
A61: 1 | B61: 3 | C61: 10 | D61: 1 | E61: 1 | F61: -0.131 | G61: 0 | H61: 0 | I61: 0 | J61: -0.009 | K61: -0.154 | L61: 0.831 | M61: 3.629 | N61: -5.491 | O61: 0 | P61: -1.326 | Q61: 20
A62: 1 | B62: 3 | C62: 11 | D62: 1 | E62: 0 | F62: -0.091 | G62: 0 | H62: 0 | I62: 0 | J62: -0.006 | K62: -0.08 | L62: 2.079 | M62: 3.595 | N62: -4.987 | O62: -0.51 | P62: 0 | Q62: 20.03
A63: 1 | B63: 3 | C63: 12 | D63: 1 | E63: 0 | F63: -0.278 | G63: 0 | H63: 0 | I63: 0 | J63: -0.016 | K63: -0.213 | L63: 2.425 | M63: 3.564 | N63: -4.502 | O63: -0.98 | P63: 0 | Q63: 20.1
A64: 1 | B64: 3 | C64: 13 | D64: 1 | E64: 0 | F64: -0.46 | G64: 0 | H64: 0 | I64: 0 | J64: -0.026 | K64: -0.369 | L64: 2.02 | M64: 3.535 | N64: -4.259 | O64: -0.442 | P64: 0 | Q64: 20.13
A65: 1 | B65: 3 | C65: 14 | D65: 1 | E65: 0 | F65: -0.693 | G65: -0.001 | H65: 0 | I65: 0 | J65: -0.037 | K65: -0.387 | L65: 3.195 | M65: 3.509 | N65: -4.049 | O65: -1.536 | P65: 0 | Q65: 20.23
A66: 1 | B66: 3 | C66: 15 | D66: 1 | E66: 0 | F66: -0.985 | G66: -0.001 | H66: 0 | I66: 0 | J66: -0.051 | K66: -0.538 | L66: 3.075 | M66: 3.484 | N66: -3.829 | O66: -1.155 | P66: 0 | Q66: 20.31
A67: 1 | B67: 3 | C67: 16 | D67: 1 | E67: 0 | F67: -1.021 | G67: -0.001 | H67: 0 | I67: 0 | J67: -0.056 | K67: -0.767 | L67: 2.03 | M67: 3.716 | N67: -4.078 | O67: 0.177 | P67: 0 | Q67: 20.3
A68: 1 | B68: 3 | C68: 17 | D68: 1 | E68: 0 | F68: -0.893 | G68: -0.001 | H68: 0 | I68: 0 | J68: -0.051 | K68: -0.776 | L68: 1.535 | M68: 3.718 | N68: -4.31 | O68: 0.779 | P68: 0 | Q68: 20.24
A69: 1 | B69: 3 | C69: 18 | D69: 1 | E69: 0 | F69: -0.725 | G69: 0 | H69: 0 | I69: 0 | J69: -0.043 | K69: -0.69 | L69: 1.272 | M69: 3.716 | N69: -4.536 | O69: 1.007 | P69: 0 | Q69: 20.18
A70: 1 | B70: 3 | C70: 19 | D70: 1 | E70: 0 | F70: -0.693 | G70: 0 | H70: 0 | I70: 0 | J70: -0.042 | K70: -0.698 | L70: 1.082 | M70: 4.545 | N70: -4.526 | O70: 0.334 | P70: 0 | Q70: 20.16
A71: 1 | B71: 3 | C71: 20 | D71: 1 | E71: 0 | F71: -0.907 | G71: -0.001 | H71: 0 | I71: 0 | J71: -0.057 | K71: -0.961 | L71: 0.992 | M71: 6.695 | N71: -4.812 | O71: -0.949 | P71: 0 | Q71: 20.22
A72: 1 | B72: 3 | C72: 21 | D72: 1 | E72: 0 | F72: -1.022 | G72: -0.001 | H72: 0 | I72: 0 | J72: -0.066 | K72: -1.133 | L72: 0.916 | M72: 6.937 | N72: -5.086 | O72: -0.545 | P72: 0 | Q72: 20.25
A73: 1 | B73: 3 | C73: 22 | D73: 1 | E73: 0 | F73: -1.106 | G73: -0.001 | H73: 0 | I73: 0 | J73: -0.073 | K73: -1.256 | L73: 0.849 | M73: 7.134 | N73: -5.099 | O73: -0.448 | P73: 0 | Q73: 20.28
A74: 1 | B74: 3 | C74: 23 | D74: 1 | E74: 0 | F74: -1.142 | G74: -0.001 | H74: 0 | I74: 0 | J74: -0.077 | K74: -1.343 | L74: 0.79 | M74: 7.304 | N74: -5.364 | O74: -0.169 | P74: 0 | Q74: 20.3
A75: 1 | B75: 3 | C75: 24 | D75: 1 | E75: 0 | F75: -0.95 | G75: -0.001 | H75: 0 | I75: 0 | J75: -0.065 | K75: -1.155 | L75: 0.737 | M75: 5.886 | N75: -5.59 | O75: 1.138 | P75: 0 | Q75: 20.22
A76: 1 | B76: 4 | C76: 1 | D76: 1 | E76: 0 | F76: -0.62 | G76: 0 | H76: 0 | I76: 0 | J76: -0.043 | K76: -0.764 | L76: 0.689 | M76: 4.218 | N76: -5.528 | O76: 2.048 | P76: 0 | Q76: 20.08
A77: 1 | B77: 4 | C77: 2 | D77: 1 | E77: 0 | F77: -0.365 | G77: 0 | H77: 0 | I77: 0 | J77: -0.026 | K77: -0.461 | L77: 0.646 | M77: 4.079 | N77: -5.734 | O77: 1.861 | P77: 0 | Q77: 19.96
A78: 1 | B78: 4 | C78: 3 | D78: 1 | E78: 0 | F78: -0.159 | G78: 0 | H78: 0 | I78: 0 | J78: -0.011 | K78: -0.205 | L78: 0.607 | M78: 3.974 | N78: -5.943 | O78: 1.738 | P78: 0 | Q78: 19.84
A79: 1 | B79: 4 | C79: 4 | D79: 1 | E79: 0 | F79: 0.014 | G79: 0 | H79: 0 | I79: 0 | J79: 0.001 | K79: 0.018 | L79: 0.57 | M79: 3.887 | N79: -6.156 | O79: 1.666 | P79: 0 | Q79: 19.73
A80: 1 | B80: 4 | C80: 5 | D80: 1 | E80: 0 | F80: 0.162 | G80: 0 | H80: 0 | I80: 0 | J80: 0.012 | K80: 0.219 | L80: 0.537 | M80: 3.813 | N80: -6.371 | O80: 1.628 | P80: 0 | Q80: 19.62
A81: 1 | B81: 4 | C81: 6 | D81: 1 | E81: 0 | F81: 0.293 | G81: 0 | H81: 0 | I81: 0 | J81: 0.022 | K81: 0.403 | L81: 0.507 | M81: 3.748 | N81: -6.587 | O81: 1.614 | P81: 0 | Q81: 19.52
A82: 1 | B82: 4 | C82: 7 | D82: 1 | E82: 0 | F82: 0.395 | G82: 0 | H82: 0 | I82: 0 | J82: 0.03 | K82: 0.545 | L82: 0.478 | M82: 3.69 | N82: -6.544 | O82: 1.406 | P82: 0 | Q82: 19.42
A83: 1 | B83: 4 | C83: 8 | D83: 1 | E83: 1 | F83: -1.152 | G83: -0.001 | H83: 0 | I83: 0 | J83: -0.087 | K83: -1.611 | L83: 0.452 | M83: 3.707 | N83: -7.072 | O83: -8.662 | P83: -14.425 | Q83: 20
A84: 1 | B84: 4 | C84: 9 | D84: 1 | E84: 1 | F84: -1.158 | G84: 0 | H84: 0 | I84: 0 | J84: -0.087 | K84: -1.609 | L84: 0.467 | M84: 3.666 | N84: -7.072 | O84: 0 | P84: -5.793 | Q84: 20
A85: 1 | B85: 4 | C85: 10 | D85: 1 | E85: 1 | F85: -1.166 | G85: 0 | H85: 0 | I85: 0 | J85: -0.085 | K85: -1.555 | L85: 0.608 | M85: 3.629 | N85: -6.806 | O85: 0 | P85: -5.376 | Q85: 20
A86: 1 | B86: 4 | C86: 11 | D86: 1 | E86: 1 | F86: -1.123 | G86: 0 | H86: 0 | I86: 0 | J86: -0.077 | K86: -1.21 | L86: 1.691 | M86: 3.595 | N86: -6.277 | O86: 0 | P86: -3.401 | Q86: 20
A87: 1 | B87: 4 | C87: 12 | D87: 1 | E87: 1 | F87: -1.135 | G87: 0 | H87: 0 | I87: 0 | J87: -0.074 | K87: -1.157 | L87: 1.701 | M87: 3.564 | N87: -5.752 | O87: 0 | P87: -2.853 | Q87: 20
A88: 1 | B88: 4 | C88: 13 | D88: 1 | E88: 0 | F88: -1.406 | G88: -0.001 | H88: 0 | I88: 0 | J88: -0.077 | K88: -0.406 | L88: 5.667 | M88: 3.535 | N88: -5.291 | O88: -2.021 | P88: 0 | Q88: 20.13
A89: 1 | B89: 4 | C89: 14 | D89: 1 | E89: 0 | F89: -2.368 | G89: -0.001 | H89: 0 | I89: 0 | J89: -0.117 | K89: -0.064 | L89: 6.853 | M89: 3.509 | N89: -4.862 | O89: -2.949 | P89: 0 | Q89: 20.33
A90: 1 | B90: 4 | C90: 15 | D90: 1 | E90: 0 | F90: -2.888 | G90: -0.001 | H90: 0 | I90: 0 | J90: -0.14 | K90: -0.271 | L90: 6.087 | M90: 3.484 | N90: -4.404 | O90: -1.867 | P90: 0 | Q90: 20.46
A91: 1 | B91: 4 | C91: 16 | D91: 1 | E91: 0 | F91: -2.424 | G91: -0.001 | H91: 0 | I91: 0 | J91: -0.127 | K91: -1.04 | L91: 4.097 | M91: 3.716 | N91: -4.648 | O91: 0.427 | P91: 0 | Q91: 20.43
A92: 1 | B92: 4 | C92: 17 | D92: 1 | E92: 0 | F92: -1.951 | G92: -0.001 | H92: 0 | I92: 0 | J92: -0.109 | K92: -1.211 | L92: 3.086 | M92: 3.718 | N92: -4.865 | O92: 1.332 | P92: 0 | Q92: 20.34
A93: 1 | B93: 4 | C93: 18 | D93: 1 | E93: 0 | F93: -1.47 | G93: 0 | H93: 0 | I93: 0 | J93: -0.087 | K93: -1.194 | L93: 2.205 | M93: 3.717 | N93: -5.067 | O93: 1.897 | P93: 0 | Q93: 20.21
A94: 1 | B94: 4 | C94: 19 | D94: 1 | E94: 0 | F94: -1.197 | G94: 0 | H94: 0 | I94: 0 | J94: -0.074 | K94: -1.102 | L94: 1.843 | M94: 4.545 | N94: -5.288 | O94: 1.274 | P94: 0 | Q94: 20.13
A95: 1 | B95: 4 | C95: 20 | D95: 1 | E95: 0 | F95: -1.247 | G95: 0 | H95: 0 | I95: 0 | J95: -0.081 | K95: -1.242 | L95: 1.651 | M95: 6.695 | N95: -5.555 | O95: -0.221 | P95: 0 | Q95: 20.14
A96: 1 | B96: 4 | C96: 21 | D96: 1 | E96: 0 | F96: -1.243 | G96: 0 | H96: 0 | I96: 0 | J96: -0.083 | K96: -1.322 | L96: 1.506 | M96: 6.938 | N96: -5.815 | O96: 0.02 | P96: 0 | Q96: 20.14
A97: 1 | B97: 4 | C97: 22 | D97: 1 | E97: 0 | F97: -1.209 | G97: 0 | H97: 0 | I97: 0 | J97: -0.084 | K97: -1.36 | L97: 1.382 | M97: 7.134 | N97: -6.071 | O97: 0.209 | P97: 0 | Q97: 20.13
A98: 1 | B98: 4 | C98: 23 | D98: 1 | E98: 0 | F98: -1.16 | G98: 0 | H98: 0 | I98: 0 | J98: -0.083 | K98: -1.367 | L98: 1.273 | M98: 7.305 | N98: -6.323 | O98: 0.356 | P98: 0 | Q98: 20.1
A99: 1 | B99: 4 | C99: 24 | D99: 1 | E99: 0 | F99: -0.941 | G99: 0 | H99: 0 | I99: 0 | J99: -0.068 | K99: -1.136 | L99: 1.178 | M99: 5.886 | N99: -6.282 | O99: 1.364 | P99: 0 | Q99: 20.01
A100: 1 | B100: 5 | C100: 1 | D100: 1 | E100: 0 | F100: -0.565 | G100: 0 | H100: 0 | I100: 0 | J100: -0.041 | K100: -0.705 | L100: 1.093 | M100: 4.218 | N100: -6.472 | O100: 2.473 | P100: 0 | Q100: 19.85
A101: 1 | B101: 5 | C101: 2 | D101: 1 | E101: 0 | F101: -0.276 | G101: 0 | H101: 0 | I101: 0 | J101: -0.02 | K101: -0.354 | L101: 1.017 | M101: 4.079 | N101: -6.67 | O101: 2.224 | P101: 0 | Q101: 19.7
A102: 1 | B102: 5 | C102: 3 | D102: 1 | E102: 0 | F102: -0.045 | G102: 0 | H102: 0 | I102: 0 | J102: -0.003 | K102: -0.06 | L102: 0.948 | M102: 3.974 | N102: -6.873 | O102: 2.059 | P102: 0 | Q102: 19.56
A103: 1 | B103: 5 | C103: 4 | D103: 1 | E103: 0 | F103: 0.145 | G103: 0 | H103: 0 | I103: 0 | J103: 0.011 | K103: 0.195 | L103: 0.886 | M103: 3.888 | N103: -7.081 | O103: 1.956 | P103: 0 | Q103: 19.43
A104: 1 | B104: 5 | C104: 5 | D104: 1 | E104: 0 | F104: 0.325 | G104: 0 | H104: 0 | I104: 0 | J104: 0.025 | K104: 0.451 | L104: 0.83 | M104: 3.813 | N104: -7.553 | O104: 2.108 | P104: 0 | Q104: 19.29
A105: 1 | B105: 5 | C105: 6 | D105: 1 | E105: 0 | F105: 0.486 | G105: 0 | H105: 0 | I105: 0 | J105: 0.038 | K105: 0.687 | L105: 0.779 | M105: 3.748 | N105: -7.761 | O105: 2.023 | P105: 0 | Q105: 19.16
A106: 1 | B106: 5 | C106: 7 | D106: 1 | E106: 0 | F106: 0.626 | G106: 0 | H106: 0 | I106: 0 | J106: 0.05 | K106: 0.898 | L106: 0.732 | M106: 3.69 | N106: -7.971 | O106: 1.976 | P106: 0 | Q106: 19.02
A107: 1 | B107: 5 | C107: 8 | D107: 1 | E107: 1 | F107: -1.867 | G107: 0 | H107: 0 | I107: 0 | J107: -0.149 | K107: -2.714 | L107: 0.689 | M107: 3.707 | N107: -8.692 | O107: -14.64 | P107: -23.667 | Q107: 20
A108: 1 | B108: 5 | C108: 9 | D108: 1 | E108: 1 | F108: -1.834 | G108: 0 | H108: 0 | I108: 0 | J108: -0.145 | K108: -2.719 | L108: 0.708 | M108: 3.667 | N108: -8.692 | O108: 0 | P108: -9.016 | Q108: 20
A109: 1 | B109: 5 | C109: 10 | D109: 1 | E109: 1 | F109: -1.81 | G109: 0 | H109: 0 | I109: 0 | J109: -0.129 | K109: -1.794 | L109: 3.072 | M109: 3.629 | N109: -7.877 | O109: 0 | P109: -4.91 | Q109: 20
A110: 1 | B110: 5 | C110: 11 | D110: 1 | E110: 0 | F110: -2.629 | G110: -0.001 | H110: 0 | I110: 0 | J110: -0.147 | K110: -0.026 | L110: 8.695 | M110: 3.595 | N110: -6.885 | O110: -2.602 | P110: 0 | Q110: 20.17
A111: 1 | B111: 5 | C111: 12 | D111: 1 | E111: 0 | F111: -3.756 | G111: -0.001 | H111: 0 | I111: 0 | J111: -0.169 | K111: 0.097 | L111: 12.106 | M111: 3.564 | N111: -6.005 | O111: -5.836 | P111: 0 | Q111: 20.56
A112: 1 | B112: 5 | C112: 13 | D112: 1 | E112: 0 | F112: -4.608 | G112: -0.001 | H112: 0 | I112: 0 | J112: -0.152 | K112: -0.871 | L112: 16.627 | M112: 3.535 | N112: -5.493 | O112: -9.037 | P112: 0 | Q112: 21.17
A113: 1 | B113: 5 | C113: 14 | D113: 1 | E113: 0 | F113: -5.315 | G113: -0.001 | H113: 0 | I113: 0 | J113: -0.123 | K113: -2.623 | L113: 20.103 | M113: 3.509 | N113: -5.032 | O113: -10.518 | P113: 0 | Q113: 21.87
A114: 1 | B114: 5 | C114: 15 | D114: 1 | E114: 0 | F114: -6.004 | G114: -0.001 | H114: 0 | I114: 0 | J114: -0.129 | K114: -4.245 | L114: 20.068 | M114: 3.484 | N114: -5.017 | O114: -8.157 | P114: 0 | Q114: 22.41
A115: 1 | B115: 5 | C115: 16 | D115: 1 | E115: 0 | F115: -6.486 | G115: -0.002 | H115: 0 | I115: 0 | J115: -0.147 | K115: -5.234 | L115: 18.565 | M115: 3.716 | N115: -4.923 | O115: -5.491 | P115: 0 | Q115: 22.78
A116: 1 | B116: 5 | C116: 17 | D116: 1 | E116: 0 | F116: -7.281 | G116: -0.002 | H116: 0 | I116: 0 | J116: -0.245 | K116: -4.661 | L116: 13.753 | M116: 3.718 | N116: -5.432 | O116: 0.15 | P116: 0 | Q116: 22.77
A117: 1 | B117: 5 | C117: 18 | D117: 1 | E117: 0 | F117: -9.497 | G117: -0.002 | H117: 0 | I117: 0 | J117: -0.474 | K117: -1.114 | L117: 7.577 | M117: 3.717 | N117: -5.784 | O117: 5.577 | P117: 0 | Q117: 22.39
A118: 1 | B118: 5 | C118: 19 | D118: 1 | E118: 0 | F118: -8.053 | G118: -0.002 | H118: 0 | I118: 0 | J118: -0.466 | K118: -0.623 | L118: 6.492 | M118: 4.545 | N118: -6.177 | O118: 4.283 | P118: 0 | Q118: 22.11
A119: 1 | B119: 5 | C119: 20 | D119: 1 | E119: 0 | F119: -6.241 | G119: -0.002 | H119: 0 | I119: 0 | J119: -0.404 | K119: -1.437 | L119: 5.8 | M119: 6.695 | N119: -6.379 | O119: 1.967 | P119: 0 | Q119: 21.98
A120: 1 | B120: 5 | C120: 21 | D120: 1 | E120: 0 | F120: -4.934 | G120: -0.001 | H120: 0 | I120: 0 | J120: -0.353 | K120: -1.955 | L120: 5.258 | M120: 6.938 | N120: -6.593 | O120: 1.64 | P120: 0 | Q120: 21.87
A121: 1 | B121: 5 | C121: 22 | D121: 1 | E121: 0 | F121: -4.017 | G121: -0.001 | H121: 0 | I121: 0 | J121: -0.31 | K121: -2.227 | L121: 4.797 | M121: 7.134 | N121: -6.813 | O121: 1.437 | P121: 0 | Q121: 21.77
A122: 1 | B122: 5 | C122: 23 | D122: 1 | E122: 0 | F122: -3.36 | G122: -0.001 | H122: 0 | I122: 0 | J122: -0.274 | K122: -2.343 | L122: 4.399 | M122: 7.305 | N122: -7.038 | O122: 1.313 | P122: 0 | Q122: 21.68
A123: 1 | B123: 5 | C123: 24 | D123: 1 | E123: 0 | F123: -2.643 | G123: -0.001 | H123: 0 | I123: 0 | J123: -0.224 | K123: -2.176 | L123: 4.049 | M123: 5.886 | N123: -7.233 | O123: 2.342 | P123: 0 | Q123: 21.53
A124: 1 | B124: 6 | C124: 1 | D124: 1 | E124: 0 | F124: -1.894 | G124: -0.001 | H124: 0 | I124: 0 | J124: -0.164 | K124: -1.763 | L124: 3.741 | M124: 4.218 | N124: -7.401 | O124: 3.265 | P124: 0 | Q124: 21.31
A125: 1 | B125: 6 | C125: 2 | D125: 1 | E125: 0 | F125: -1.351 | G125: 0 | H125: 0 | I125: 0 | J125: -0.119 | K125: -1.378 | L125: 3.466 | M125: 4.079 | N125: -7.581 | O125: 2.884 | P125: 0 | Q125: 21.12
A126: 1 | B126: 6 | C126: 3 | D126: 1 | E126: 0 | F126: -0.938 | G126: 0 | H126: 0 | I126: 0 | J126: -0.083 | K126: -1.028 | L126: 3.221 | M126: 3.974 | N126: -7.77 | O126: 2.624 | P126: 0 | Q126: 20.94
A127: 1 | B127: 6 | C127: 4 | D127: 1 | E127: 0 | F127: -0.612 | G127: 0 | H127: 0 | I127: 0 | J127: -0.054 | K127: -0.708 | L127: 3 | M127: 3.888 | N127: -7.964 | O127: 2.451 | P127: 0 | Q127: 20.78
A128: 1 | B128: 6 | C128: 5 | D128: 1 | E128: 0 | F128: -0.343 | G128: 0 | H128: 0 | I128: 0 | J128: -0.03 | K128: -0.415 | L128: 2.801 | M128: 3.813 | N128: -8.163 | O128: 2.338 | P128: 0 | Q128: 20.62
A129: 1 | B129: 6 | C129: 6 | D129: 1 | E129: 0 | F129: -0.115 | G129: 0 | H129: 0 | I129: 0 | J129: -0.01 | K129: -0.145 | L129: 2.621 | M129: 3.748 | N129: -8.365 | O129: 2.267 | P129: 0 | Q129: 20.47
A130: 1 | B130: 6 | C130: 7 | D130: 1 | E130: 0 | F130: 0.083 | G130: 0 | H130: 0 | I130: 0 | J130: 0.007 | K130: 0.108 | L130: 2.456 | M130: 3.69 | N130: -8.569 | O130: 2.224 | P130: 0 | Q130: 20.33
A131: 1 | B131: 6 | C131: 8 | D131: 1 | E131: 0 | F131: 0.165 | G131: 0 | H131: 0 | I131: 0 | J131: 0.014 | K131: 0.217 | L131: 2.306 | M131: 4.47 | N131: -8.792 | O131: 1.619 | P131: 0 | Q131: 20.22
A132: 1 | B132: 6 | C132: 9 | D132: 1 | E132: 0 | F132: 0.212 | G132: 0 | H132: 0 | I132: 0 | J132: 0.018 | K132: 0.289 | L132: 2.208 | M132: 4.498 | N132: -8.746 | O132: 1.521 | P132: 0 | Q132: 20.12
A133: 1 | B133: 6 | C133: 10 | D133: 1 | E133: 0 | F133: 0.257 | G133: 0 | H133: 0 | I133: 0 | J133: 0.021 | K133: 0.327 | L133: 2.453 | M133: 4.515 | N133: -8.446 | O133: 0.873 | P133: 0 | Q133: 20.06
A134: 1 | B134: 6 | C134: 11 | D134: 1 | E134: 0 | F134: 0.184 | G134: 0 | H134: 0 | I134: 0 | J134: 0.014 | K134: 0.149 | L134: 4.518 | M134: 4.528 | N134: -7.686 | O134: -1.706 | P134: 0 | Q134: 20.17
A135: 1 | B135: 6 | C135: 12 | D135: 1 | E135: 0 | F135: -1.517 | G135: 0 | H135: 0 | I135: 0 | J135: -0.084 | K135: 0.749 | L135: 10.819 | M135: 4.538 | N135: -6.85 | O135: -7.654 | P135: 0 | Q135: 20.68
A136: 1 | B136: 6 | C136: 13 | D136: 1 | E136: 0 | F136: -3.063 | G136: -0.001 | H136: 0 | I136: 0 | J136: -0.161 | K136: 0.176 | L136: 9.934 | M136: 4.547 | N136: -6.215 | O136: -5.218 | P136: 0 | Q136: 21.03
A137: 1 | B137: 6 | C137: 14 | D137: 1 | E137: 0 | F137: -3.414 | G137: -0.001 | H137: 0 | I137: 0 | J137: -0.193 | K137: -0.579 | L137: 7.038 | M137: 4.554 | N137: -6.25 | O137: -1.156 | P137: 0 | Q137: 21.11
A138: 1 | B138: 6 | C138: 15 | D138: 1 | E138: 0 | F138: -4.245 | G138: -0.001 | H138: 0 | I138: 0 | J138: -0.22 | K138: -0.046 | L138: 8.583 | M138: 4.56 | N138: -6.065 | O138: -2.566 | P138: 0 | Q138: 21.28
A139: 1 | B139: 6 | C139: 16 | D139: 1 | E139: 0 | F139: -4.595 | G139: -0.001 | H139: 0 | I139: 0 | J139: -0.243 | K139: -0.141 | L139: 7.781 | M139: 4.566 | N139: -6.103 | O139: -1.264 | P139: 0 | Q139: 21.36
A140: 1 | B140: 6 | C140: 17 | D140: 1 | E140: 0 | F140: -3.293 | G140: -0.001 | H140: 0 | I140: 0 | J140: -0.194 | K140: -1.463 | L140: 5.219 | M140: 4.571 | N140: -6.321 | O140: 1.482 | P140: 0 | Q140: 21.26
A141: 1 | B141: 6 | C141: 18 | D141: 1 | E141: 0 | F141: -2.399 | G141: -0.001 | H141: 0 | I141: 0 | J141: -0.154 | K141: -1.704 | L141: 3.992 | M141: 4.575 | N141: -6.774 | O141: 2.464 | P141: 0 | Q141: 21.1
A142: 1 | B142: 6 | C142: 19 | D142: 1 | E142: 0 | F142: -1.934 | G142: 0 | H142: 0 | I142: 0 | J142: -0.13 | K142: -1.608 | L142: 3.549 | M142: 5.41 | N142: -6.987 | O142: 1.7 | P142: 0 | Q142: 20.99
A143: 1 | B143: 6 | C143: 20 | D143: 1 | E143: 0 | F143: -1.913 | G143: 0 | H143: 0 | I143: 0 | J143: -0.132 | K143: -1.672 | L143: 3.247 | M143: 7.566 | N143: -6.991 | O143: -0.106 | P143: 0 | Q143: 20.99
A144: 1 | B144: 6 | C144: 21 | D144: 1 | E144: 0 | F144: -1.841 | G144: 0 | H144: 0 | I144: 0 | J144: -0.131 | K144: -1.747 | L144: 3.002 | M144: 7.815 | N144: -7.252 | O144: 0.155 | P144: 0 | Q144: 20.98
A145: 1 | B145: 6 | C145: 22 | D145: 1 | E145: 0 | F145: -1.789 | G145: 0 | H145: 0 | I145: 0 | J145: -0.13 | K145: -1.785 | L145: 2.787 | M145: 8.019 | N145: -7.248 | O145: 0.146 | P145: 0 | Q145: 20.97
A146: 1 | B146: 6 | C146: 23 | D146: 1 | E146: 0 | F146: -1.712 | G146: 0 | H146: 0 | I146: 0 | J146: -0.127 | K146: -1.806 | L146: 2.597 | M146: 8.195 | N146: -7.504 | O146: 0.356 | P146: 0 | Q146: 20.95
A147: 1 | B147: 6 | C147: 24 | D147: 1 | E147: 0 | F147: -1.391 | G147: 0 | H147: 0 | I147: 0 | J147: -0.103 | K147: -1.513 | L147: 2.426 | M147: 6.274 | N147: -7.451 | O147: 1.758 | P147: 0 | Q147: 20.83
A148: 1 | B148: 7 | C148: 1 | D148: 1 | E148: 0 | F148: -0.921 | G148: 0 | H148: 0 | I148: 0 | J148: -0.069 | K148: -1.04 | L148: 2.271 | M148: 4.566 | N148: -7.633 | O148: 2.825 | P148: 0 | Q148: 20.64
A149: 1 | B149: 7 | C149: 2 | D149: 1 | E149: 0 | F149: -0.584 | G149: 0 | H149: 0 | I149: 0 | J149: -0.044 | K149: -0.672 | L149: 2.131 | M149: 4.397 | N149: -7.562 | O149: 2.334 | P149: 0 | Q149: 20.49
A150: 1 | B150: 7 | C150: 3 | D150: 1 | E150: 0 | F150: -0.311 | G150: 0 | H150: 0 | I150: 0 | J150: -0.024 | K150: -0.369 | L150: 2.002 | M150: 4.266 | N150: -7.764 | O150: 2.199 | P150: 0 | Q150: 20.34
A151: 1 | B151: 7 | C151: 4 | D151: 1 | E151: 0 | F151: -0.104 | G151: 0 | H151: 0 | I151: 0 | J151: -0.008 | K151: -0.125 | L151: 1.885 | M151: 4.157 | N151: -7.706 | O151: 1.901 | P151: 0 | Q151: 20.21
A152: 1 | B152: 7 | C152: 5 | D152: 1 | E152: 0 | F152: 0.053 | G152: 0 | H152: 0 | I152: 0 | J152: 0.004 | K152: 0.064 | L152: 1.776 | M152: 4.063 | N152: -7.654 | O152: 1.694 | P152: 0 | Q152: 20.1
A153: 1 | B153: 7 | C153: 6 | D153: 1 | E153: 0 | F153: 0.197 | G153: 0 | H153: 0 | I153: 0 | J153: 0.015 | K153: 0.242 | L153: 1.676 | M153: 3.98 | N153: -7.87 | O153: 1.759 | P153: 0 | Q153: 19.98
A154: 1 | B154: 7 | C154: 7 | D154: 1 | E154: 0 | F154: 0.317 | G154: 0 | H154: 0 | I154: 0 | J154: 0.024 | K154: 0.392 | L154: 1.584 | M154: 3.907 | N154: -7.822 | O154: 1.598 | P154: 0 | Q154: 19.88
A155: 1 | B155: 7 | C155: 8 | D155: 1 | E155: 1 | F155: -0.174 | G155: 0 | H155: 0 | I155: 0 | J155: -0.013 | K155: -0.219 | L155: 1.498 | M155: 4.672 | N155: -8.148 | O155: -1.835 | P155: -4.22 | Q155: 20
A156: 1 | B156: 7 | C156: 9 | D156: 1 | E156: 1 | F156: -0.317 | G156: 0 | H156: 0 | I156: 0 | J156: -0.024 | K156: -0.411 | L156: 1.438 | M156: 4.687 | N156: -8.148 | O156: 0 | P156: -2.775 | Q156: 20
A157: 1 | B157: 7 | C157: 10 | D157: 1 | E157: 1 | F157: -0.294 | G157: 0 | H157: 0 | I157: 0 | J157: -0.021 | K157: -0.328 | L157: 2.226 | M157: 4.693 | N157: -7.608 | O157: 0 | P157: -1.331 | Q157: 20
A158: 1 | B158: 7 | C158: 11 | D158: 1 | E158: 0 | F158: -0.359 | G158: 0 | H158: 0 | I158: 0 | J158: -0.023 | K158: -0.269 | L158: 4.145 | M158: 4.696 | N158: -6.847 | O158: -1.342 | P158: 0 | Q158: 20.09
A159: 1 | B159: 7 | C159: 12 | D159: 1 | E159: 0 | F159: -0.716 | G159: 0 | H159: 0 | I159: 0 | J159: -0.043 | K159: -0.471 | L159: 4.436 | M159: 4.696 | N159: -6.364 | O159: -1.537 | P159: 0 | Q159: 20.19
A160: 1 | B160: 7 | C160: 13 | D160: 1 | E160: 0 | F160: -0.914 | G160: 0 | H160: 0 | I160: 0 | J160: -0.055 | K160: -0.726 | L160: 3.313 | M160: 4.696 | N160: -6.107 | O160: -0.206 | P160: 0 | Q160: 20.21
A161: 1 | B161: 7 | C161: 14 | D161: 1 | E161: 0 | F161: -1.069 | G161: 0 | H161: 0 | I161: 0 | J161: -0.062 | K161: -0.735 | L161: 3.82 | M161: 4.695 | N161: -5.868 | O161: -0.782 | P161: 0 | Q161: 20.26
A162: 1 | B162: 7 | C162: 15 | D162: 1 | E162: 0 | F162: -1.253 | G162: 0 | H162: 0 | I162: 0 | J162: -0.071 | K162: -0.823 | L162: 3.859 | M162: 4.694 | N162: -5.63 | O162: -0.775 | P162: 0 | Q162: 20.31
A163: 1 | B163: 7 | C163: 16 | D163: 1 | E163: 0 | F163: -1.803 | G163: 0 | H163: 0 | I163: 0 | J163: -0.094 | K163: -0.575 | L163: 6.083 | M163: 4.693 | N163: -5.708 | O163: -2.595 | P163: 0 | Q163: 20.48
A164: 1 | B164: 7 | C164: 17 | D164: 1 | E164: 0 | F164: -1.994 | G164: 0 | H164: 0 | I164: 0 | J164: -0.108 | K164: -0.947 | L164: 4.93 | M164: 4.691 | N164: -5.733 | O164: -0.838 | P164: 0 | Q164: 20.54
A165: 1 | B165: 7 | C165: 18 | D165: 1 | E165: 0 | F165: -1.56 | G165: 0 | H165: 0 | I165: 0 | J165: -0.094 | K165: -1.366 | L165: 2.633 | M165: 4.689 | N165: -6.2 | O165: 1.897 | P165: 0 | Q165: 20.41
A166: 1 | B166: 7 | C166: 19 | D166: 1 | E166: 0 | F166: -1.305 | G166: 0 | H166: 0 | I166: 0 | J166: -0.082 | K166: -1.222 | L166: 2.281 | M166: 5.519 | N166: -6.426 | O166: 1.235 | P166: 0 | Q166: 20.33
A167: 1 | B167: 7 | C167: 20 | D167: 1 | E167: 0 | F167: -1.4 | G167: 0 | H167: 0 | I167: 0 | J167: -0.09 | K167: -1.376 | L167: 2.087 | M167: 7.67 | N167: -6.44 | O167: -0.451 | P167: 0 | Q167: 20.36
A168: 1 | B168: 7 | C168: 21 | D168: 1 | E168: 0 | F168: -1.425 | G168: 0 | H168: 0 | I168: 0 | J168: -0.094 | K168: -1.48 | L168: 1.925 | M168: 7.914 | N168: -6.708 | O168: -0.132 | P168: 0 | Q168: 20.37
A169: 1 | B169: 7 | C169: 22 | D169: 1 | E169: 0 | F169: -1.407 | G169: 0 | H169: 0 | I169: 0 | J169: -0.095 | K169: -1.535 | L169: 1.786 | M169: 8.113 | N169: -6.97 | O169: 0.109 | P169: 0 | Q169: 20.36
A170: 1 | B170: 7 | C170: 23 | D170: 1 | E170: 0 | F170: -1.398 | G170: 0 | H170: 0 | I170: 0 | J170: -0.096 | K170: -1.568 | L170: 1.662 | M170: 8.285 | N170: -6.968 | O170: 0.083 | P170: 0 | Q170: 20.36
A171: 1 | B171: 7 | C171: 24 | D171: 1 | E171: 0 | F171: -1.105 | G171: 0 | H171: 0 | I171: 0 | J171: -0.077 | K171: -1.283 | L171: 1.552 | M171: 6.36 | N171: -7.182 | O171: 1.735 | P171: 0 | Q171: 20.24
A172: 1 | B172: 8 | C172: 1 | D172: 1 | E172: 0 | F172: -0.667 | G172: 0 | H172: 0 | I172: 0 | J172: -0.047 | K172: -0.798 | L172: 1.452 | M172: 4.648 | N172: -7.365 | O172: 2.776 | P172: 0 | Q172: 20.05
A173: 1 | B173: 8 | C173: 2 | D173: 1 | E173: 0 | F173: -0.355 | G173: 0 | H173: 0 | I173: 0 | J173: -0.025 | K173: -0.431 | L173: 1.362 | M173: 4.475 | N173: -7.296 | O173: 2.27 | P173: 0 | Q173: 19.9
A174: 1 | B174: 8 | C174: 3 | D174: 1 | E174: 0 | F174: -0.107 | G174: 0 | H174: 0 | I174: 0 | J174: -0.008 | K174: -0.133 | L174: 1.28 | M174: 4.341 | N174: -7.499 | O174: 2.127 | P174: 0 | Q174: 19.76
A175: 1 | B175: 8 | C175: 4 | D175: 1 | E175: 0 | F175: 0.101 | G175: 0 | H175: 0 | I175: 0 | J175: 0.007 | K175: 0.128 | L175: 1.204 | M175: 4.228 | N175: -7.706 | O175: 2.038 | P175: 0 | Q175: 19.63
A176: 1 | B176: 8 | C176: 5 | D176: 1 | E176: 0 | F176: 0.26 | G176: 0 | H176: 0 | I176: 0 | J176: 0.019 | K176: 0.333 | L176: 1.135 | M176: 4.131 | N176: -7.652 | O176: 1.774 | P176: 0 | Q176: 19.51
A177: 1 | B177: 8 | C177: 6 | D177: 1 | E177: 0 | F177: 0.399 | G177: 0 | H177: 0 | I177: 0 | J177: 0.029 | K177: 0.518 | L177: 1.071 | M177: 4.045 | N177: -7.867 | O177: 1.805 | P177: 0 | Q177: 19.39
A178: 1 | B178: 8 | C178: 7 | D178: 1 | E178: 0 | F178: 0.529 | G178: 0 | H178: 0 | I178: 0 | J178: 0.039 | K178: 0.699 | L178: 1.012 | M178: 3.969 | N178: -8.082 | O178: 1.834 | P178: 0 | Q178: 19.27
A179: 1 | B179: 8 | C179: 8 | D179: 1 | E179: 1 | F179: -1.48 | G179: 0 | H179: 0 | I179: 0 | J179: -0.11 | K179: -1.983 | L179: 0.957 | M179: 3.968 | N179: -8.692 | O179: -11.023 | P179: -18.364 | Q179: 20
A180: 1 | B180: 8 | C180: 9 | D180: 1 | E180: 1 | F180: -1.491 | G180: 0 | H180: 0 | I180: 0 | J180: -0.111 | K180: -2.047 | L180: 0.945 | M180: 3.912 | N180: -8.692 | O180: 0 | P180: -7.484 | Q180: 20
A181: 1 | B181: 8 | C181: 10 | D181: 1 | E181: 1 | F181: -1.505 | G181: 0 | H181: 0 | I181: 0 | J181: -0.11 | K181: -2.034 | L181: 0.962 | M181: 3.861 | N181: -8.42 | O181: 0 | P181: -7.246 | Q181: 20
A182: 1 | B182: 8 | C182: 11 | D182: 1 | E182: 1 | F182: -1.418 | G182: 0 | H182: 0 | I182: 0 | J182: -0.095 | K182: -1.365 | L182: 3.211 | M182: 3.814 | N182: -7.877 | O182: 0 | P182: -3.731 | Q182: 20
A183: 1 | B183: 8 | C183: 12 | D183: 1 | E183: 1 | F183: -1.322 | G183: 0 | H183: 0 | I183: 0 | J183: -0.08 | K183: -0.872 | L183: 4.864 | M183: 3.771 | N183: -7.072 | O183: 0 | P183: -0.712 | Q183: 20
A184: 1 | B184: 8 | C184: 13 | D184: 1 | E184: 0 | F184: -1.836 | G184: 0 | H184: 0 | I184: 0 | J184: -0.098 | K184: -0.435 | L184: 7.432 | M184: 3.731 | N184: -6.351 | O184: -2.444 | P184: 0 | Q184: 20.16
A185: 1 | B185: 8 | C185: 14 | D185: 1 | E185: 0 | F185: -2.281 | G185: 0 | H185: 0 | I185: 0 | J185: -0.119 | K185: -0.597 | L185: 6.978 | M185: 3.695 | N185: -6.134 | O185: -1.542 | P185: 0 | Q185: 20.27
A186: 1 | B186: 8 | C186: 15 | D186: 1 | E186: 0 | F186: -2.041 | G186: 0 | H186: 0 | I186: 0 | J186: -0.111 | K186: -1.098 | L186: 4.764 | M186: 3.661 | N186: -5.851 | O186: 0.676 | P186: 0 | Q186: 20.22
A187: 1 | B187: 8 | C187: 16 | D187: 1 | E187: 0 | F187: -1.642 | G187: 0 | H187: 0 | I187: 0 | J187: -0.094 | K187: -1.217 | L187: 3.431 | M187: 3.884 | N187: -6.062 | O187: 1.701 | P187: 0 | Q187: 20.11
A188: 1 | B188: 8 | C188: 17 | D188: 1 | E188: 1 | F188: -1.339 | G188: 0 | H188: 0 | I188: 0 | J188: -0.08 | K188: -1.202 | L188: 2.578 | M188: 3.877 | N188: -6.277 | O188: 1.609 | P188: -0.835 | Q188: 20
A189: 1 | B189: 8 | C189: 18 | D189: 1 | E189: 1 | F189: -1.381 | G189: 0 | H189: 0 | I189: 0 | J189: -0.087 | K189: -1.392 | L189: 2.178 | M189: 3.868 | N189: -6.806 | O189: 0 | P189: -3.62 | Q189: 20
A190: 1 | B190: 8 | C190: 19 | D190: 1 | E190: 1 | F190: -1.385 | G190: 0 | H190: 0 | I190: 0 | J190: -0.09 | K190: -1.448 | L190: 1.968 | M190: 4.69 | N190: -7.072 | O190: 0 | P190: -3.338 | Q190: 20
A191: 1 | B191: 8 | C191: 20 | D191: 1 | E191: 1 | F191: -1.391 | G191: 0 | H191: 0 | I191: 0 | J191: -0.092 | K191: -1.51 | L191: 1.806 | M191: 6.832 | N191: -7.072 | O191: 0 | P191: -1.427 | Q191: 20
A192: 1 | B192: 8 | C192: 21 | D192: 1 | E192: 1 | F192: -1.405 | G192: 0 | H192: 0 | I192: 0 | J192: -0.096 | K192: -1.594 | L192: 1.666 | M192: 7.068 | N192: -7.34 | O192: 0 | P192: -1.7 | Q192: 20
A193: 1 | B193: 8 | C193: 22 | D193: 1 | E193: 1 | F193: -1.42 | G193: 0 | H193: 0 | I193: 0 | J193: -0.098 | K193: -1.651 | L193: 1.544 | M193: 7.259 | N193: -7.34 | O193: 0 | P193: -1.706 | Q193: 20
A194: 1 | B194: 8 | C194: 23 | D194: 1 | E194: 1 | F194: -1.439 | G194: 0 | H194: 0 | I194: 0 | J194: -0.1 | K194: -1.702 | L194: 1.435 | M194: 7.424 | N194: -7.34 | O194: 0 | P194: -1.723 | Q194: 20
A195: 1 | B195: 8 | C195: 24 | D195: 1 | E195: 0 | F195: -1.023 | G195: 0 | H195: 0 | I195: 0 | J195: -0.072 | K195: -1.242 | L195: 1.337 | M195: 6 | N195: -7.531 | O195: 2.531 | P195: 0 | Q195: 19.83
A196: 1 | B196: 9 | C196: 1 | D196: 1 | E196: 0 | F196: -0.545 | G196: 0 | H196: 0 | I196: 0 | J196: -0.038 | K196: -0.668 | L196: 1.249 | M196: 4.326 | N196: -7.436 | O196: 3.112 | P196: 0 | Q196: 19.62
A197: 1 | B197: 9 | C197: 2 | D197: 1 | E197: 0 | F197: -0.19 | G197: 0 | H197: 0 | I197: 0 | J197: -0.013 | K197: -0.237 | L197: 1.17 | M197: 4.182 | N197: -7.623 | O197: 2.712 | P197: 0 | Q197: 19.44
A198: 1 | B198: 9 | C198: 3 | D198: 1 | E198: 0 | F198: 0.086 | G198: 0 | H198: 0 | I198: 0 | J198: 0.006 | K198: 0.11 | L198: 1.097 | M198: 4.073 | N198: -7.818 | O198: 2.446 | P198: 0 | Q198: 19.28
A199: 1 | B199: 9 | C199: 4 | D199: 1 | E199: 0 | F199: 0.289 | G199: 0 | H199: 0 | I199: 0 | J199: 0.021 | K199: 0.371 | L199: 1.031 | M199: 3.982 | N199: -7.755 | O199: 2.061 | P199: 0 | Q199: 19.14
A200: 1 | B200: 9 | C200: 5 | D200: 1 | E200: 0 | F200: 0.455 | G200: 0 | H200: 0 | I200: 0 | J200: 0.033 | K200: 0.592 | L200: 0.97 | M200: 3.903 | N200: -7.964 | O200: 2.011 | P200: 0 | Q200: 19.01
... 4300 more rows
